Workbook

Sheet Startseite
E2: exactfinance 2020 | G2: Aktueller Monat | H2: März
G3: Aktuelles Jahr | H3: 2020
G4: Start Jahr | H4: 2015
C8: Kontenplan importieren
C10: Der Kontenplan muss einmalig importiert werden. Anschliessend nur noch, wenn neue Konti vorhanden sind.
C13: Journal aller Buchungen importieren
C15: Das Journal sollte sämtliche Jahre enthalten, welche analysiert werden möchten.
C18: Dashboard
C20: Übersicht (Umsatz, Bruttogewinn, Gewinn) anzeigen.
C23: Erfolgsrechnungsdetails anzeigen
C25: Hier wird die gesamte Erfolgsrechnung aller Jahre und Monate angezeigt.
C28: Erfolgsrechnung - Jahres- und Periodenvergleiche
C30: Mittels dieser Funktion kann die gesamte Erfolgrechnung mit Vorperioden verglichen werden.
C33: Datenblatt
C35: Hier werden sämtliche Buchungen angezeigt. Das Datenblatt ist die Basis für sämtliche Auswertungen.
C38: Budgetplanung
C40: Hier erfassen Sie Ihre Budgetzahlen pro Konto auf Monatsbasis.
C43: Kontogruppe und Logo
C45: Hier können Sie für den Export Logos einfügen und die Kontogruppen selbst mit den Abschnitten in der Erfolgsrechnung verknüpfen.
B50: © exact construct GmbH | H50: Version 2021 können Sie hier herunterladen

Sheet Dashboard
K3: Anzeigeart auswählen | L3: Nicht kumuliert
B11: Umsatzentwicklung
C13: =DATE(jahr,1,1) -> 2020-01-01 | D13: =EOMONTH(C13,0)+1 -> 2020-02-01 | E13: =EOMONTH(D13,0)+1 -> 2020-03-01 | F13: 2020-04-01 | G13: 2020-05-01 | H13: 2020-06-01 | I13: 2020-07-01 | J13: 2020-08-01 | K13: 2020-09-01 | L13: 2020-10-01 | M13: 2020-11-01 | N13: 2020-12-01 | P13: ="YTD " & IF(INDEX(tblMonate[Nr],MATCH(monat,tblMonate[Monate],0))<> 1, Einstellungen!$AY$8 &" bis " & monat,Einstellungen!$AY$8) -> YTD Januar bis März | Q13: Total
B14: =B15-1 -> 2014 | C14: =IFERROR( SUMIF(INDIRECT(dshbrdrng_umsatzentwicklung),"<>", INDEX(INDIRECT(dshbrdrng_umsatzentwicklung2),0,MATCH(DATE($B14,MONTH(C$13),1),Erfolgsrechnung_Detail!$O$8:$DF$8,0))), "") ->  | D14: =IFERROR( IF(INDEX(tblUmsatzFltr[Nr],MATCH(filter_umsatz,tblUmsatzFltr[Umsatz Filter],0)) = 1, SUMIF(INDIRECT(dshbrdrng_umsatzentwicklung),"<>", INDEX(INDIRECT(dshbrdrng_umsatzentwicklung2),0,MATCH(DATE($B14,MONTH(D$13),1),Erfolgsrechnung_Detail!$O$8:$DF$8,0))), SUMIF(INDIRECT(dshbrdrng_umsatzentwicklung),"<>", INDEX(INDIRECT(dshbrdrng_umsatzentwicklung2),0,MATCH(DATE($B14,MONTH(D$13),1),Erfolgsrechnung_Detail!$O$8:$DF$8,0)))+C14),"") ->  | E14: =IFERROR( IF(INDEX(tblUmsatzFltr[Nr],MATCH(filter_umsatz,tblUmsatzFltr[Umsatz Filter],0)) = 1, SUMIF(INDIRECT(dshbrdrng_umsatzentwicklung),"<>", INDEX(INDIRECT(dshbrdrng_umsatzentwicklung2),0,MATCH(DATE($B14,MONTH(E$13),1),Erfolgsrechnung_Detail!$O$8:$DF$8,0))), SUMIF(INDIRECT(dshbrdrng_umsatzentwicklung),"<>", INDEX(INDIRECT(dshbrdrng_umsatzentwicklung2),0,MATCH(DATE($B14,MONTH(E$13),1),Erfolgsrechnung_Detail!$O$8:$DF$8,0)))+D14),"") ->  | F14: =IFERROR( IF(INDEX(tblUmsatzFltr[Nr],MATCH(filter_umsatz,tblUmsatzFltr[Umsatz Filter],0)) = 1, SUMIF(INDIRECT(dshbrdrng_umsatzentwicklung),"<>", INDEX(INDIRECT(dshbrdrng_umsatzentwicklung2),0,MATCH(DATE($B14,MONTH(F$13),1),Erfolgsrechnung_Detail!$O$8:$DF$8,0))), SUMIF(INDIRECT(dshbrdrng_umsatzentwicklung),"<>", INDEX(INDIRECT(dshbrdrng_umsatzentwicklung2),0,MATCH(DATE($B14,MONTH(F$13),1),Erfolgsrechnung_Detail!$O$8:$DF$8,0)))+E14),"") ->  | G14: =IFERROR( IF(INDEX(tblUmsatzFltr[Nr],MATCH(filter_umsatz,tblUmsatzFltr[Umsatz Filter],0)) = 1, SUMIF(INDIRECT(dshbrdrng_umsatzentwicklung),"<>", INDEX(INDIRECT(dshbrdrng_umsatzentwicklung2),0,MATCH(DATE($B14,MONTH(G$13),1),Erfolgsrechnung_Detail!$O$8:$DF$8,0))), SUMIF(INDIRECT(dshbrdrng_umsatzentwicklung),"<>", INDEX(INDIRECT(dshbrdrng_umsatzentwicklung2),0,MATCH(DATE($B14,MONTH(G$13),1),Erfolgsrechnung_Detail!$O$8:$DF$8,0)))+F14),"") ->  | H14: =IFERROR( IF(INDEX(tblUmsatzFltr[Nr],MATCH(filter_umsatz,tblUmsatzFltr[Umsatz Filter],0)) = 1, SUMIF(INDIRECT(dshbrdrng_umsatzentwicklung),"<>", INDEX(INDIRECT(dshbrdrng_umsatzentwicklung2),0,MATCH(DATE($B14,MONTH(H$13),1),Erfolgsrechnung_Detail!$O$8:$DF$8,0))), SUMIF(INDIRECT(dshbrdrng_umsatzentwicklung),"<>", INDEX(INDIRECT(dshbrdrng_umsatzentwicklung2),0,MATCH(DATE($B14,MONTH(H$13),1),Erfolgsrechnung_Detail!$O$8:$DF$8,0)))+G14),"") ->  | I14: =IFERROR( IF(INDEX(tblUmsatzFltr[Nr],MATCH(filter_umsatz,tblUmsatzFltr[Umsatz Filter],0)) = 1, SUMIF(INDIRECT(dshbrdrng_umsatzentwicklung),"<>", INDEX(INDIRECT(dshbrdrng_umsatzentwicklung2),0,MATCH(DATE($B14,MONTH(I$13),1),Erfolgsrechnung_Detail!$O$8:$DF$8,0))), SUMIF(INDIRECT(dshbrdrng_umsatzentwicklung),"<>", INDEX(INDIRECT(dshbrdrng_umsatzentwicklung2),0,MATCH(DATE($B14,MONTH(I$13),1),Erfolgsrechnung_Detail!$O$8:$DF$8,0)))+H14),"") ->  | J14: =IFERROR( IF(INDEX(tblUmsatzFltr[Nr],MATCH(filter_umsatz,tblUmsatzFltr[Umsatz Filter],0)) = 1, SUMIF(INDIRECT(dshbrdrng_umsatzentwicklung),"<>", INDEX(INDIRECT(dshbrdrng_umsatzentwicklung2),0,MATCH(DATE($B14,MONTH(J$13),1),Erfolgsrechnung_Detail!$O$8:$DF$8,0))), SUMIF(INDIRECT(dshbrdrng_umsatzentwicklung),"<>", INDEX(INDIRECT(dshbrdrng_umsatzentwicklung2),0,MATCH(DATE($B14,MONTH(J$13),1),Erfolgsrechnung_Detail!$O$8:$DF$8,0)))+I14),"") ->  | K14: =IFERROR( IF(INDEX(tblUmsatzFltr[Nr],MATCH(filter_umsatz,tblUmsatzFltr[Umsatz Filter],0)) = 1, SUMIF(INDIRECT(dshbrdrng_umsatzentwicklung),"<>", INDEX(INDIRECT(dshbrdrng_umsatzentwicklung2),0,MATCH(DATE($B14,MONTH(K$13),1),Erfolgsrechnung_Detail!$O$8:$DF$8,0))), SUMIF(INDIRECT(dshbrdrng_umsatzentwicklung),"<>", INDEX(INDIRECT(dshbrdrng_umsatzentwicklung2),0,MATCH(DATE($B14,MONTH(K$13),1),Erfolgsrechnung_Detail!$O$8:$DF$8,0)))+J14),"") ->  | L14: =IFERROR( IF(INDEX(tblUmsatzFltr[Nr],MATCH(filter_umsatz,tblUmsatzFltr[Umsatz Filter],0)) = 1, SUMIF(INDIRECT(dshbrdrng_umsatzentwicklung),"<>", INDEX(INDIRECT(dshbrdrng_umsatzentwicklung2),0,MATCH(DATE($B14,MONTH(L$13),1),Erfolgsrechnung_Detail!$O$8:$DF$8,0))), SUMIF(INDIRECT(dshbrdrng_umsatzentwicklung),"<>", INDEX(INDIRECT(dshbrdrng_umsatzentwicklung2),0,MATCH(DATE($B14,MONTH(L$13),1),Erfolgsrechnung_Detail!$O$8:$DF$8,0)))+K14),"") ->  | M14: =IFERROR( IF(INDEX(tblUmsatzFltr[Nr],MATCH(filter_umsatz,tblUmsatzFltr[Umsatz Filter],0)) = 1, SUMIF(INDIRECT(dshbrdrng_umsatzentwicklung),"<>", INDEX(INDIRECT(dshbrdrng_umsatzentwicklung2),0,MATCH(DATE($B14,MONTH(M$13),1),Erfolgsrechnung_Detail!$O$8:$DF$8,0))), SUMIF(INDIRECT(dshbrdrng_umsatzentwicklung),"<>", INDEX(INDIRECT(dshbrdrng_umsatzentwicklung2),0,MATCH(DATE($B14,MONTH(M$13),1),Erfolgsrechnung_Detail!$O$8:$DF$8,0)))+L14),"") ->  | N14: =IFERROR( IF(INDEX(tblUmsatzFltr[Nr],MATCH(filter_umsatz,tblUmsatzFltr[Umsatz Filter],0)) = 1, SUMIF(INDIRECT(dshbrdrng_umsatzentwicklung),"<>", INDEX(INDIRECT(dshbrdrng_umsatzentwicklung2),0,MATCH(DATE($B14,MONTH(N$13),1),Erfolgsrechnung_Detail!$O$8:$DF$8,0))), SUMIF(INDIRECT(dshbrdrng_umsatzentwicklung),"<>", INDEX(INDIRECT(dshbrdrng_umsatzentwicklung2),0,MATCH(DATE($B14,MONTH(N$13),1),Erfolgsrechnung_Detail!$O$8:$DF$8,0)))+M14),"") ->  | P14: =IFERROR(IF( INDEX(tblUmsatzFltr[Nr],MATCH(filter_umsatz,tblUmsatzFltr[Umsatz Filter],0))=1, SUM($C14:INDEX($C14:$N14,1,selectedmonat_num)), INDEX($C14:$N14,0,MATCH(monat,tblMonate[Monate],0))),"") -> 0 | Q14: =IFERROR( IF(INDEX(tblUmsatzFltr[Nr],MATCH(filter_umsatz,tblUmsatzFltr[Umsatz Filter],0))=1, SUM(C14:$N14),N14),"") -> 0
B15: 2015 | C15: =IFERROR( SUMIF(INDIRECT(dshbrdrng_umsatzentwicklung),"<>", INDEX(INDIRECT(dshbrdrng_umsatzentwicklung2),0,MATCH(DATE($B15,MONTH(C$13),1),Erfolgsrechnung_Detail!$O$8:$DF$8,0))), "") -> 68086.2 | D15: =IFERROR( IF(INDEX(tblUmsatzFltr[Nr],MATCH(filter_umsatz,tblUmsatzFltr[Umsatz Filter],0)) = 1, SUMIF(INDIRECT(dshbrdrng_umsatzentwicklung),"<>", INDEX(INDIRECT(dshbrdrng_umsatzentwicklung2),0,MATCH(DATE($B15,MONTH(D$13),1),Erfolgsrechnung_Detail!$O$8:$DF$8,0))), SUMIF(INDIRECT(dshbrdrng_umsatzentwicklung),"<>", INDEX(INDIRECT(dshbrdrng_umsatzentwicklung2),0,MATCH(DATE($B15,MONTH(D$13),1),Erfolgsrechnung_Detail!$O$8:$DF$8,0)))+C15),"") -> 74517.01 | E15: =IFERROR( IF(INDEX(tblUmsatzFltr[Nr],MATCH(filter_umsatz,tblUmsatzFltr[Umsatz Filter],0)) = 1, SUMIF(INDIRECT(dshbrdrng_umsatzentwicklung),"<>", INDEX(INDIRECT(dshbrdrng_umsatzentwicklung2),0,MATCH(DATE($B15,MONTH(E$13),1),Erfolgsrechnung_Detail!$O$8:$DF$8,0))), SUMIF(INDIRECT(dshbrdrng_umsatzentwicklung),"<>", INDEX(INDIRECT(dshbrdrng_umsatzentwicklung2),0,MATCH(DATE($B15,MONTH(E$13),1),Erfolgsrechnung_Detail!$O$8:$DF$8,0)))+D15),"") -> 29874.83 | F15: =IFERROR( IF(INDEX(tblUmsatzFltr[Nr],MATCH(filter_umsatz,tblUmsatzFltr[Umsatz Filter],0)) = 1, SUMIF(INDIRECT(dshbrdrng_umsatzentwicklung),"<>", INDEX(INDIRECT(dshbrdrng_umsatzentwicklung2),0,MATCH(DATE($B15,MONTH(F$13),1),Erfolgsrechnung_Detail!$O$8:$DF$8,0))), SUMIF(INDIRECT(dshbrdrng_umsatzentwicklung),"<>", INDEX(INDIRECT(dshbrdrng_umsatzentwicklung2),0,MATCH(DATE($B15,MONTH(F$13),1),Erfolgsrechnung_Detail!$O$8:$DF$8,0)))+E15),"") -> 40582.85 | G15: =IFERROR( IF(INDEX(tblUmsatzFltr[Nr],MATCH(filter_umsatz,tblUmsatzFltr[Umsatz Filter],0)) = 1, SUMIF(INDIRECT(dshbrdrng_umsatzentwicklung),"<>", INDEX(INDIRECT(dshbrdrng_umsatzentwicklung2),0,MATCH(DATE($B15,MONTH(G$13),1),Erfolgsrechnung_Detail!$O$8:$DF$8,0))), SUMIF(INDIRECT(dshbrdrng_umsatzentwicklung),"<>", INDEX(INDIRECT(dshbrdrng_umsatzentwicklung2),0,MATCH(DATE($B15,MONTH(G$13),1),Erfolgsrechnung_Detail!$O$8:$DF$8,0)))+F15),"") -> 82064.13 | H15: =IFERROR( IF(INDEX(tblUmsatzFltr[Nr],MATCH(filter_umsatz,tblUmsatzFltr[Umsatz Filter],0)) = 1, SUMIF(INDIRECT(dshbrdrng_umsatzentwicklung),"<>", INDEX(INDIRECT(dshbrdrng_umsatzentwicklung2),0,MATCH(DATE($B15,MONTH(H$13),1),Erfolgsrechnung_Detail!$O$8:$DF$8,0))), SUMIF(INDIRECT(dshbrdrng_umsatzentwicklung),"<>", INDEX(INDIRECT(dshbrdrng_umsatzentwicklung2),0,MATCH(DATE($B15,MONTH(H$13),1),Erfolgsrechnung_Detail!$O$8:$DF$8,0)))+G15),"") -> 121482.01 | I15: =IFERROR( IF(INDEX(tblUmsatzFltr[Nr],MATCH(filter_umsatz,tblUmsatzFltr[Umsatz Filter],0)) = 1, SUMIF(INDIRECT(dshbrdrng_umsatzentwicklung),"<>", INDEX(INDIRECT(dshbrdrng_umsatzentwicklung2),0,MATCH(DATE($B15,MONTH(I$13),1),Erfolgsrechnung_Detail!$O$8:$DF$8,0))), SUMIF(INDIRECT(dshbrdrng_umsatzentwicklung),"<>", INDEX(INDIRECT(dshbrdrng_umsatzentwicklung2),0,MATCH(DATE($B15,MONTH(I$13),1),Erfolgsrechnung_Detail!$O$8:$DF$8,0)))+H15),"") -> 62256.72 | J15: =IFERROR( IF(INDEX(tblUmsatzFltr[Nr],MATCH(filter_umsatz,tblUmsatzFltr[Umsatz Filter],0)) = 1, SUMIF(INDIRECT(dshbrdrng_umsatzentwicklung),"<>", INDEX(INDIRECT(dshbrdrng_umsatzentwicklung2),0,MATCH(DATE($B15,MONTH(J$13),1),Erfolgsrechnung_Detail!$O$8:$DF$8,0))), SUMIF(INDIRECT(dshbrdrng_umsatzentwicklung),"<>", INDEX(INDIRECT(dshbrdrng_umsatzentwicklung2),0,MATCH(DATE($B15,MONTH(J$13),1),Erfolgsrechnung_Detail!$O$8:$DF$8,0)))+I15),"") -> 45082.3 | K15: =IFERROR( IF(INDEX(tblUmsatzFltr[Nr],MATCH(filter_umsatz,tblUmsatzFltr[Umsatz Filter],0)) = 1, SUMIF(INDIRECT(dshbrdrng_umsatzentwicklung),"<>", INDEX(INDIRECT(dshbrdrng_umsatzentwicklung2),0,MATCH(DATE($B15,MONTH(K$13),1),Erfolgsrechnung_Detail!$O$8:$DF$8,0))), SUMIF(INDIRECT(dshbrdrng_umsatzentwicklung),"<>", INDEX(INDIRECT(dshbrdrng_umsatzentwicklung2),0,MATCH(DATE($B15,MONTH(K$13),1),Erfolgsrechnung_Detail!$O$8:$DF$8,0)))+J15),"") -> 45797.07 | L15: =IFERROR( IF(INDEX(tblUmsatzFltr[Nr],MATCH(filter_umsatz,tblUmsatzFltr[Umsatz Filter],0)) = 1, SUMIF(INDIRECT(dshbrdrng_umsatzentwicklung),"<>", INDEX(INDIRECT(dshbrdrng_umsatzentwicklung2),0,MATCH(DATE($B15,MONTH(L$13),1),Erfolgsrechnung_Detail!$O$8:$DF$8,0))), SUMIF(INDIRECT(dshbrdrng_umsatzentwicklung),"<>", INDEX(INDIRECT(dshbrdrng_umsatzentwicklung2),0,MATCH(DATE($B15,MONTH(L$13),1),Erfolgsrechnung_Detail!$O$8:$DF$8,0)))+K15),"") -> 66159.32 | M15: =IFERROR( IF(INDEX(tblUmsatzFltr[Nr],MATCH(filter_umsatz,tblUmsatzFltr[Umsatz Filter],0)) = 1, SUMIF(INDIRECT(dshbrdrng_umsatzentwicklung),"<>", INDEX(INDIRECT(dshbrdrng_umsatzentwicklung2),0,MATCH(DATE($B15,MONTH(M$13),1),Erfolgsrechnung_Detail!$O$8:$DF$8,0))), SUMIF(INDIRECT(dshbrdrng_umsatzentwicklung),"<>", INDEX(INDIRECT(dshbrdrng_umsatzentwicklung2),0,MATCH(DATE($B15,MONTH(M$13),1),Erfolgsrechnung_Detail!$O$8:$DF$8,0)))+L15),"") -> 75110.45 | N15: =IFERROR( IF(INDEX(tblUmsatzFltr[Nr],MATCH(filter_umsatz,tblUmsatzFltr[Umsatz Filter],0)) = 1, SUMIF(INDIRECT(dshbrdrng_umsatzentwicklung),"<>", INDEX(INDIRECT(dshbrdrng_umsatzentwicklung2),0,MATCH(DATE($B15,MONTH(N$13),1),Erfolgsrechnung_Detail!$O$8:$DF$8,0))), SUMIF(INDIRECT(dshbrdrng_umsatzentwicklung),"<>", INDEX(INDIRECT(dshbrdrng_umsatzentwicklung2),0,MATCH(DATE($B15,MONTH(N$13),1),Erfolgsrechnung_Detail!$O$8:$DF$8,0)))+M15),"") -> 99553.78 | P15: =IFERROR(IF( INDEX(tblUmsatzFltr[Nr],MATCH(filter_umsatz,tblUmsatzFltr[Umsatz Filter],0))=1, SUM($C15:INDEX($C15:$N15,1,selectedmonat_num)), INDEX($C15:$N15,0,MATCH(monat,tblMonate[Monate],0))),"") -> 172478.04 | Q15: =IFERROR( IF(INDEX(tblUmsatzFltr[Nr],MATCH(filter_umsatz,tblUmsatzFltr[Umsatz Filter],0))=1, SUM(C15:$N15),N15),"") -> 810566.67
B16: 2016 | C16: =IFERROR( SUMIF(INDIRECT(dshbrdrng_umsatzentwicklung),"<>", INDEX(INDIRECT(dshbrdrng_umsatzentwicklung2),0,MATCH(DATE($B16,MONTH(C$13),1),Erfolgsrechnung_Detail!$O$8:$DF$8,0))), "") -> 72755.14 | D16: =IFERROR( IF(INDEX(tblUmsatzFltr[Nr],MATCH(filter_umsatz,tblUmsatzFltr[Umsatz Filter],0)) = 1, SUMIF(INDIRECT(dshbrdrng_umsatzentwicklung),"<>", INDEX(INDIRECT(dshbrdrng_umsatzentwicklung2),0,MATCH(DATE($B16,MONTH(D$13),1),Erfolgsrechnung_Detail!$O$8:$DF$8,0))), SUMIF(INDIRECT(dshbrdrng_umsatzentwicklung),"<>", INDEX(INDIRECT(dshbrdrng_umsatzentwicklung2),0,MATCH(DATE($B16,MONTH(D$13),1),Erfolgsrechnung_Detail!$O$8:$DF$8,0)))+C16),"") -> 45349.76 | E16: =IFERROR( IF(INDEX(tblUmsatzFltr[Nr],MATCH(filter_umsatz,tblUmsatzFltr[Umsatz Filter],0)) = 1, SUMIF(INDIRECT(dshbrdrng_umsatzentwicklung),"<>", INDEX(INDIRECT(dshbrdrng_umsatzentwicklung2),0,MATCH(DATE($B16,MONTH(E$13),1),Erfolgsrechnung_Detail!$O$8:$DF$8,0))), SUMIF(INDIRECT(dshbrdrng_umsatzentwicklung),"<>", INDEX(INDIRECT(dshbrdrng_umsatzentwicklung2),0,MATCH(DATE($B16,MONTH(E$13),1),Erfolgsrechnung_Detail!$O$8:$DF$8,0)))+D16),"") -> 70982.72 | F16: =IFERROR( IF(INDEX(tblUmsatzFltr[Nr],MATCH(filter_umsatz,tblUmsatzFltr[Umsatz Filter],0)) = 1, SUMIF(INDIRECT(dshbrdrng_umsatzentwicklung),"<>", INDEX(INDIRECT(dshbrdrng_umsatzentwicklung2),0,MATCH(DATE($B16,MONTH(F$13),1),Erfolgsrechnung_Detail!$O$8:$DF$8,0))), SUMIF(INDIRECT(dshbrdrng_umsatzentwicklung),"<>", INDEX(INDIRECT(dshbrdrng_umsatzentwicklung2),0,MATCH(DATE($B16,MONTH(F$13),1),Erfolgsrechnung_Detail!$O$8:$DF$8,0)))+E16),"") -> 43735.05 | G16: =IFERROR( IF(INDEX(tblUmsatzFltr[Nr],MATCH(filter_umsatz,tblUmsatzFltr[Umsatz Filter],0)) = 1, SUMIF(INDIRECT(dshbrdrng_umsatzentwicklung),"<>", INDEX(INDIRECT(dshbrdrng_umsatzentwicklung2),0,MATCH(DATE($B16,MONTH(G$13),1),Erfolgsrechnung_Detail!$O$8:$DF$8,0))), SUMIF(INDIRECT(dshbrdrng_umsatzentwicklung),"<>", INDEX(INDIRECT(dshbrdrng_umsatzentwicklung2),0,MATCH(DATE($B16,MONTH(G$13),1),Erfolgsrechnung_Detail!$O$8:$DF$8,0)))+F16),"") -> 33187.37 | H16: =IFERROR( IF(INDEX(tblUmsatzFltr[Nr],MATCH(filter_umsatz,tblUmsatzFltr[Umsatz Filter],0)) = 1, SUMIF(INDIRECT(dshbrdrng_umsatzentwicklung),"<>", INDEX(INDIRECT(dshbrdrng_umsatzentwicklung2),0,MATCH(DATE($B16,MONTH(H$13),1),Erfolgsrechnung_Detail!$O$8:$DF$8,0))), SUMIF(INDIRECT(dshbrdrng_umsatzentwicklung),"<>", INDEX(INDIRECT(dshbrdrng_umsatzentwicklung2),0,MATCH(DATE($B16,MONTH(H$13),1),Erfolgsrechnung_Detail!$O$8:$DF$8,0)))+G16),"") -> 52450.84 | I16: =IFERROR( IF(INDEX(tblUmsatzFltr[Nr],MATCH(filter_umsatz,tblUmsatzFltr[Umsatz Filter],0)) = 1, SUMIF(INDIRECT(dshbrdrng_umsatzentwicklung),"<>", INDEX(INDIRECT(dshbrdrng_umsatzentwicklung2),0,MATCH(DATE($B16,MONTH(I$13),1),Erfolgsrechnung_Detail!$O$8:$DF$8,0))), SUMIF(INDIRECT(dshbrdrng_umsatzentwicklung),"<>", INDEX(INDIRECT(dshbrdrng_umsatzentwicklung2),0,MATCH(DATE($B16,MONTH(I$13),1),Erfolgsrechnung_Detail!$O$8:$DF$8,0)))+H16),"") -> 76763.65 | J16: =IFERROR( IF(INDEX(tblUmsatzFltr[Nr],MATCH(filter_umsatz,tblUmsatzFltr[Umsatz Filter],0)) = 1, SUMIF(INDIRECT(dshbrdrng_umsatzentwicklung),"<>", INDEX(INDIRECT(dshbrdrng_umsatzentwicklung2),0,MATCH(DATE($B16,MONTH(J$13),1),Erfolgsrechnung_Detail!$O$8:$DF$8,0))), SUMIF(INDIRECT(dshbrdrng_umsatzentwicklung),"<>", INDEX(INDIRECT(dshbrdrng_umsatzentwicklung2),0,MATCH(DATE($B16,MONTH(J$13),1),Erfolgsrechnung_Detail!$O$8:$DF$8,0)))+I16),"") -> 42021.32 | K16: =IFERROR( IF(INDEX(tblUmsatzFltr[Nr],MATCH(filter_umsatz,tblUmsatzFltr[Umsatz Filter],0)) = 1, SUMIF(INDIRECT(dshbrdrng_umsatzentwicklung),"<>", INDEX(INDIRECT(dshbrdrng_umsatzentwicklung2),0,MATCH(DATE($B16,MONTH(K$13),1),Erfolgsrechnung_Detail!$O$8:$DF$8,0))), SUMIF(INDIRECT(dshbrdrng_umsatzentwicklung),"<>", INDEX(INDIRECT(dshbrdrng_umsatzentwicklung2),0,MATCH(DATE($B16,MONTH(K$13),1),Erfolgsrechnung_Detail!$O$8:$DF$8,0)))+J16),"") -> 42308.9 | L16: =IFERROR( IF(INDEX(tblUmsatzFltr[Nr],MATCH(filter_umsatz,tblUmsatzFltr[Umsatz Filter],0)) = 1, SUMIF(INDIRECT(dshbrdrng_umsatzentwicklung),"<>", INDEX(INDIRECT(dshbrdrng_umsatzentwicklung2),0,MATCH(DATE($B16,MONTH(L$13),1),Erfolgsrechnung_Detail!$O$8:$DF$8,0))), SUMIF(INDIRECT(dshbrdrng_umsatzentwicklung),"<>", INDEX(INDIRECT(dshbrdrng_umsatzentwicklung2),0,MATCH(DATE($B16,MONTH(L$13),1),Erfolgsrechnung_Detail!$O$8:$DF$8,0)))+K16),"") -> 40331.05 | M16: =IFERROR( IF(INDEX(tblUmsatzFltr[Nr],MATCH(filter_umsatz,tblUmsatzFltr[Umsatz Filter],0)) = 1, SUMIF(INDIRECT(dshbrdrng_umsatzentwicklung),"<>", INDEX(INDIRECT(dshbrdrng_umsatzentwicklung2),0,MATCH(DATE($B16,MONTH(M$13),1),Erfolgsrechnung_Detail!$O$8:$DF$8,0))), SUMIF(INDIRECT(dshbrdrng_umsatzentwicklung),"<>", INDEX(INDIRECT(dshbrdrng_umsatzentwicklung2),0,MATCH(DATE($B16,MONTH(M$13),1),Erfolgsrechnung_Detail!$O$8:$DF$8,0)))+L16),"") -> 93173.7 | N16: =IFERROR( IF(INDEX(tblUmsatzFltr[Nr],MATCH(filter_umsatz,tblUmsatzFltr[Umsatz Filter],0)) = 1, SUMIF(INDIRECT(dshbrdrng_umsatzentwicklung),"<>", INDEX(INDIRECT(dshbrdrng_umsatzentwicklung2),0,MATCH(DATE($B16,MONTH(N$13),1),Erfolgsrechnung_Detail!$O$8:$DF$8,0))), SUMIF(INDIRECT(dshbrdrng_umsatzentwicklung),"<>", INDEX(INDIRECT(dshbrdrng_umsatzentwicklung2),0,MATCH(DATE($B16,MONTH(N$13),1),Erfolgsrechnung_Detail!$O$8:$DF$8,0)))+M16),"") -> 132849.16 | P16: =IFERROR(IF( INDEX(tblUmsatzFltr[Nr],MATCH(filter_umsatz,tblUmsatzFltr[Umsatz Filter],0))=1, SUM($C16:INDEX($C16:$N16,1,selectedmonat_num)), INDEX($C16:$N16,0,MATCH(monat,tblMonate[Monate],0))),"") -> 189087.62 | Q16: =IFERROR( IF(INDEX(tblUmsatzFltr[Nr],MATCH(filter_umsatz,tblUmsatzFltr[Umsatz Filter],0))=1, SUM(C16:$N16),N16),"") -> 745908.66
B17: 2017 | C17: =IFERROR( SUMIF(INDIRECT(dshbrdrng_umsatzentwicklung),"<>", INDEX(INDIRECT(dshbrdrng_umsatzentwicklung2),0,MATCH(DATE($B17,MONTH(C$13),1),Erfolgsrechnung_Detail!$O$8:$DF$8,0))), "") -> 69182.58 | D17: =IFERROR( IF(INDEX(tblUmsatzFltr[Nr],MATCH(filter_umsatz,tblUmsatzFltr[Umsatz Filter],0)) = 1, SUMIF(INDIRECT(dshbrdrng_umsatzentwicklung),"<>", INDEX(INDIRECT(dshbrdrng_umsatzentwicklung2),0,MATCH(DATE($B17,MONTH(D$13),1),Erfolgsrechnung_Detail!$O$8:$DF$8,0))), SUMIF(INDIRECT(dshbrdrng_umsatzentwicklung),"<>", INDEX(INDIRECT(dshbrdrng_umsatzentwicklung2),0,MATCH(DATE($B17,MONTH(D$13),1),Erfolgsrechnung_Detail!$O$8:$DF$8,0)))+C17),"") -> 36184.19 | E17: =IFERROR( IF(INDEX(tblUmsatzFltr[Nr],MATCH(filter_umsatz,tblUmsatzFltr[Umsatz Filter],0)) = 1, SUMIF(INDIRECT(dshbrdrng_umsatzentwicklung),"<>", INDEX(INDIRECT(dshbrdrng_umsatzentwicklung2),0,MATCH(DATE($B17,MONTH(E$13),1),Erfolgsrechnung_Detail!$O$8:$DF$8,0))), SUMIF(INDIRECT(dshbrdrng_umsatzentwicklung),"<>", INDEX(INDIRECT(dshbrdrng_umsatzentwicklung2),0,MATCH(DATE($B17,MONTH(E$13),1),Erfolgsrechnung_Detail!$O$8:$DF$8,0)))+D17),"") -> 73542.25 | F17: =IFERROR( IF(INDEX(tblUmsatzFltr[Nr],MATCH(filter_umsatz,tblUmsatzFltr[Umsatz Filter],0)) = 1, SUMIF(INDIRECT(dshbrdrng_umsatzentwicklung),"<>", INDEX(INDIRECT(dshbrdrng_umsatzentwicklung2),0,MATCH(DATE($B17,MONTH(F$13),1),Erfolgsrechnung_Detail!$O$8:$DF$8,0))), SUMIF(INDIRECT(dshbrdrng_umsatzentwicklung),"<>", INDEX(INDIRECT(dshbrdrng_umsatzentwicklung2),0,MATCH(DATE($B17,MONTH(F$13),1),Erfolgsrechnung_Detail!$O$8:$DF$8,0)))+E17),"") -> 30500.71 | G17: =IFERROR( IF(INDEX(tblUmsatzFltr[Nr],MATCH(filter_umsatz,tblUmsatzFltr[Umsatz Filter],0)) = 1, SUMIF(INDIRECT(dshbrdrng_umsatzentwicklung),"<>", INDEX(INDIRECT(dshbrdrng_umsatzentwicklung2),0,MATCH(DATE($B17,MONTH(G$13),1),Erfolgsrechnung_Detail!$O$8:$DF$8,0))), SUMIF(INDIRECT(dshbrdrng_umsatzentwicklung),"<>", INDEX(INDIRECT(dshbrdrng_umsatzentwicklung2),0,MATCH(DATE($B17,MONTH(G$13),1),Erfolgsrechnung_Detail!$O$8:$DF$8,0)))+F17),"") -> 69167.81 | H17: =IFERROR( IF(INDEX(tblUmsatzFltr[Nr],MATCH(filter_umsatz,tblUmsatzFltr[Umsatz Filter],0)) = 1, SUMIF(INDIRECT(dshbrdrng_umsatzentwicklung),"<>", INDEX(INDIRECT(dshbrdrng_umsatzentwicklung2),0,MATCH(DATE($B17,MONTH(H$13),1),Erfolgsrechnung_Detail!$O$8:$DF$8,0))), SUMIF(INDIRECT(dshbrdrng_umsatzentwicklung),"<>", INDEX(INDIRECT(dshbrdrng_umsatzentwicklung2),0,MATCH(DATE($B17,MONTH(H$13),1),Erfolgsrechnung_Detail!$O$8:$DF$8,0)))+G17),"") -> 64336.96 | I17: =IFERROR( IF(INDEX(tblUmsatzFltr[Nr],MATCH(filter_umsatz,tblUmsatzFltr[Umsatz Filter],0)) = 1, SUMIF(INDIRECT(dshbrdrng_umsatzentwicklung),"<>", INDEX(INDIRECT(dshbrdrng_umsatzentwicklung2),0,MATCH(DATE($B17,MONTH(I$13),1),Erfolgsrechnung_Detail!$O$8:$DF$8,0))), SUMIF(INDIRECT(dshbrdrng_umsatzentwicklung),"<>", INDEX(INDIRECT(dshbrdrng_umsatzentwicklung2),0,MATCH(DATE($B17,MONTH(I$13),1),Erfolgsrechnung_Detail!$O$8:$DF$8,0)))+H17),"") -> 53346.67 | J17: =IFERROR( IF(INDEX(tblUmsatzFltr[Nr],MATCH(filter_umsatz,tblUmsatzFltr[Umsatz Filter],0)) = 1, SUMIF(INDIRECT(dshbrdrng_umsatzentwicklung),"<>", INDEX(INDIRECT(dshbrdrng_umsatzentwicklung2),0,MATCH(DATE($B17,MONTH(J$13),1),Erfolgsrechnung_Detail!$O$8:$DF$8,0))), SUMIF(INDIRECT(dshbrdrng_umsatzentwicklung),"<>", INDEX(INDIRECT(dshbrdrng_umsatzentwicklung2),0,MATCH(DATE($B17,MONTH(J$13),1),Erfolgsrechnung_Detail!$O$8:$DF$8,0)))+I17),"") -> 60857.21 | K17: =IFERROR( IF(INDEX(tblUmsatzFltr[Nr],MATCH(filter_umsatz,tblUmsatzFltr[Umsatz Filter],0)) = 1, SUMIF(INDIRECT(dshbrdrng_umsatzentwicklung),"<>", INDEX(INDIRECT(dshbrdrng_umsatzentwicklung2),0,MATCH(DATE($B17,MONTH(K$13),1),Erfolgsrechnung_Detail!$O$8:$DF$8,0))), SUMIF(INDIRECT(dshbrdrng_umsatzentwicklung),"<>", INDEX(INDIRECT(dshbrdrng_umsatzentwicklung2),0,MATCH(DATE($B17,MONTH(K$13),1),Erfolgsrechnung_Detail!$O$8:$DF$8,0)))+J17),"") -> 58339.5 | L17: =IFERROR( IF(INDEX(tblUmsatzFltr[Nr],MATCH(filter_umsatz,tblUmsatzFltr[Umsatz Filter],0)) = 1, SUMIF(INDIRECT(dshbrdrng_umsatzentwicklung),"<>", INDEX(INDIRECT(dshbrdrng_umsatzentwicklung2),0,MATCH(DATE($B17,MONTH(L$13),1),Erfolgsrechnung_Detail!$O$8:$DF$8,0))), SUMIF(INDIRECT(dshbrdrng_umsatzentwicklung),"<>", INDEX(INDIRECT(dshbrdrng_umsatzentwicklung2),0,MATCH(DATE($B17,MONTH(L$13),1),Erfolgsrechnung_Detail!$O$8:$DF$8,0)))+K17),"") -> 65859.6 | M17: =IFERROR( IF(INDEX(tblUmsatzFltr[Nr],MATCH(filter_umsatz,tblUmsatzFltr[Umsatz Filter],0)) = 1, SUMIF(INDIRECT(dshbrdrng_umsatzentwicklung),"<>", INDEX(INDIRECT(dshbrdrng_umsatzentwicklung2),0,MATCH(DATE($B17,MONTH(M$13),1),Erfolgsrechnung_Detail!$O$8:$DF$8,0))), SUMIF(INDIRECT(dshbrdrng_umsatzentwicklung),"<>", INDEX(INDIRECT(dshbrdrng_umsatzentwicklung2),0,MATCH(DATE($B17,MONTH(M$13),1),Erfolgsrechnung_Detail!$O$8:$DF$8,0)))+L17),"") -> 36299.77 | N17: =IFERROR( IF(INDEX(tblUmsatzFltr[Nr],MATCH(filter_umsatz,tblUmsatzFltr[Umsatz Filter],0)) = 1, SUMIF(INDIRECT(dshbrdrng_umsatzentwicklung),"<>", INDEX(INDIRECT(dshbrdrng_umsatzentwicklung2),0,MATCH(DATE($B17,MONTH(N$13),1),Erfolgsrechnung_Detail!$O$8:$DF$8,0))), SUMIF(INDIRECT(dshbrdrng_umsatzentwicklung),"<>", INDEX(INDIRECT(dshbrdrng_umsatzentwicklung2),0,MATCH(DATE($B17,MONTH(N$13),1),Erfolgsrechnung_Detail!$O$8:$DF$8,0)))+M17),"") -> 41689.61 | P17: =IFERROR(IF( INDEX(tblUmsatzFltr[Nr],MATCH(filter_umsatz,tblUmsatzFltr[Umsatz Filter],0))=1, SUM($C17:INDEX($C17:$N17,1,selectedmonat_num)), INDEX($C17:$N17,0,MATCH(monat,tblMonate[Monate],0))),"") -> 178909.02 | Q17: =IFERROR( IF(INDEX(tblUmsatzFltr[Nr],MATCH(filter_umsatz,tblUmsatzFltr[Umsatz Filter],0))=1, SUM(C17:$N17),N17),"") -> 659306.86
B18: 2018 | C18: =IFERROR( SUMIF(INDIRECT(dshbrdrng_umsatzentwicklung),"<>", INDEX(INDIRECT(dshbrdrng_umsatzentwicklung2),0,MATCH(DATE($B18,MONTH(C$13),1),Erfolgsrechnung_Detail!$O$8:$DF$8,0))), "") -> 43355.46 | D18: =IFERROR( IF(INDEX(tblUmsatzFltr[Nr],MATCH(filter_umsatz,tblUmsatzFltr[Umsatz Filter],0)) = 1, SUMIF(INDIRECT(dshbrdrng_umsatzentwicklung),"<>", INDEX(INDIRECT(dshbrdrng_umsatzentwicklung2),0,MATCH(DATE($B18,MONTH(D$13),1),Erfolgsrechnung_Detail!$O$8:$DF$8,0))), SUMIF(INDIRECT(dshbrdrng_umsatzentwicklung),"<>", INDEX(INDIRECT(dshbrdrng_umsatzentwicklung2),0,MATCH(DATE($B18,MONTH(D$13),1),Erfolgsrechnung_Detail!$O$8:$DF$8,0)))+C18),"") -> 29973.59 | E18: =IFERROR( IF(INDEX(tblUmsatzFltr[Nr],MATCH(filter_umsatz,tblUmsatzFltr[Umsatz Filter],0)) = 1, SUMIF(INDIRECT(dshbrdrng_umsatzentwicklung),"<>", INDEX(INDIRECT(dshbrdrng_umsatzentwicklung2),0,MATCH(DATE($B18,MONTH(E$13),1),Erfolgsrechnung_Detail!$O$8:$DF$8,0))), SUMIF(INDIRECT(dshbrdrng_umsatzentwicklung),"<>", INDEX(INDIRECT(dshbrdrng_umsatzentwicklung2),0,MATCH(DATE($B18,MONTH(E$13),1),Erfolgsrechnung_Detail!$O$8:$DF$8,0)))+D18),"") -> 64949.33 | F18: =IFERROR( IF(INDEX(tblUmsatzFltr[Nr],MATCH(filter_umsatz,tblUmsatzFltr[Umsatz Filter],0)) = 1, SUMIF(INDIRECT(dshbrdrng_umsatzentwicklung),"<>", INDEX(INDIRECT(dshbrdrng_umsatzentwicklung2),0,MATCH(DATE($B18,MONTH(F$13),1),Erfolgsrechnung_Detail!$O$8:$DF$8,0))), SUMIF(INDIRECT(dshbrdrng_umsatzentwicklung),"<>", INDEX(INDIRECT(dshbrdrng_umsatzentwicklung2),0,MATCH(DATE($B18,MONTH(F$13),1),Erfolgsrechnung_Detail!$O$8:$DF$8,0)))+E18),"") -> 71544.28 | G18: =IFERROR( IF(INDEX(tblUmsatzFltr[Nr],MATCH(filter_umsatz,tblUmsatzFltr[Umsatz Filter],0)) = 1, SUMIF(INDIRECT(dshbrdrng_umsatzentwicklung),"<>", INDEX(INDIRECT(dshbrdrng_umsatzentwicklung2),0,MATCH(DATE($B18,MONTH(G$13),1),Erfolgsrechnung_Detail!$O$8:$DF$8,0))), SUMIF(INDIRECT(dshbrdrng_umsatzentwicklung),"<>", INDEX(INDIRECT(dshbrdrng_umsatzentwicklung2),0,MATCH(DATE($B18,MONTH(G$13),1),Erfolgsrechnung_Detail!$O$8:$DF$8,0)))+F18),"") -> 41048.34 | H18: =IFERROR( IF(INDEX(tblUmsatzFltr[Nr],MATCH(filter_umsatz,tblUmsatzFltr[Umsatz Filter],0)) = 1, SUMIF(INDIRECT(dshbrdrng_umsatzentwicklung),"<>", INDEX(INDIRECT(dshbrdrng_umsatzentwicklung2),0,MATCH(DATE($B18,MONTH(H$13),1),Erfolgsrechnung_Detail!$O$8:$DF$8,0))), SUMIF(INDIRECT(dshbrdrng_umsatzentwicklung),"<>", INDEX(INDIRECT(dshbrdrng_umsatzentwicklung2),0,MATCH(DATE($B18,MONTH(H$13),1),Erfolgsrechnung_Detail!$O$8:$DF$8,0)))+G18),"") -> 66495.69 | I18: =IFERROR( IF(INDEX(tblUmsatzFltr[Nr],MATCH(filter_umsatz,tblUmsatzFltr[Umsatz Filter],0)) = 1, SUMIF(INDIRECT(dshbrdrng_umsatzentwicklung),"<>", INDEX(INDIRECT(dshbrdrng_umsatzentwicklung2),0,MATCH(DATE($B18,MONTH(I$13),1),Erfolgsrechnung_Detail!$O$8:$DF$8,0))), SUMIF(INDIRECT(dshbrdrng_umsatzentwicklung),"<>", INDEX(INDIRECT(dshbrdrng_umsatzentwicklung2),0,MATCH(DATE($B18,MONTH(I$13),1),Erfolgsrechnung_Detail!$O$8:$DF$8,0)))+H18),"") -> 86313.28 | J18: =IFERROR( IF(INDEX(tblUmsatzFltr[Nr],MATCH(filter_umsatz,tblUmsatzFltr[Umsatz Filter],0)) = 1, SUMIF(INDIRECT(dshbrdrng_umsatzentwicklung),"<>", INDEX(INDIRECT(dshbrdrng_umsatzentwicklung2),0,MATCH(DATE($B18,MONTH(J$13),1),Erfolgsrechnung_Detail!$O$8:$DF$8,0))), SUMIF(INDIRECT(dshbrdrng_umsatzentwicklung),"<>", INDEX(INDIRECT(dshbrdrng_umsatzentwicklung2),0,MATCH(DATE($B18,MONTH(J$13),1),Erfolgsrechnung_Detail!$O$8:$DF$8,0)))+I18),"") -> 89773.62 | K18: =IFERROR( IF(INDEX(tblUmsatzFltr[Nr],MATCH(filter_umsatz,tblUmsatzFltr[Umsatz Filter],0)) = 1, SUMIF(INDIRECT(dshbrdrng_umsatzentwicklung),"<>", INDEX(INDIRECT(dshbrdrng_umsatzentwicklung2),0,MATCH(DATE($B18,MONTH(K$13),1),Erfolgsrechnung_Detail!$O$8:$DF$8,0))), SUMIF(INDIRECT(dshbrdrng_umsatzentwicklung),"<>", INDEX(INDIRECT(dshbrdrng_umsatzentwicklung2),0,MATCH(DATE($B18,MONTH(K$13),1),Erfolgsrechnung_Detail!$O$8:$DF$8,0)))+J18),"") -> 59724.2 | L18: =IFERROR( IF(INDEX(tblUmsatzFltr[Nr],MATCH(filter_umsatz,tblUmsatzFltr[Umsatz Filter],0)) = 1, SUMIF(INDIRECT(dshbrdrng_umsatzentwicklung),"<>", INDEX(INDIRECT(dshbrdrng_umsatzentwicklung2),0,MATCH(DATE($B18,MONTH(L$13),1),Erfolgsrechnung_Detail!$O$8:$DF$8,0))), SUMIF(INDIRECT(dshbrdrng_umsatzentwicklung),"<>", INDEX(INDIRECT(dshbrdrng_umsatzentwicklung2),0,MATCH(DATE($B18,MONTH(L$13),1),Erfolgsrechnung_Detail!$O$8:$DF$8,0)))+K18),"") -> 50628.39 | M18: =IFERROR( IF(INDEX(tblUmsatzFltr[Nr],MATCH(filter_umsatz,tblUmsatzFltr[Umsatz Filter],0)) = 1, SUMIF(INDIRECT(dshbrdrng_umsatzentwicklung),"<>", INDEX(INDIRECT(dshbrdrng_umsatzentwicklung2),0,MATCH(DATE($B18,MONTH(M$13),1),Erfolgsrechnung_Detail!$O$8:$DF$8,0))), SUMIF(INDIRECT(dshbrdrng_umsatzentwicklung),"<>", INDEX(INDIRECT(dshbrdrng_umsatzentwicklung2),0,MATCH(DATE($B18,MONTH(M$13),1),Erfolgsrechnung_Detail!$O$8:$DF$8,0)))+L18),"") -> 68537.76 | N18: =IFERROR( IF(INDEX(tblUmsatzFltr[Nr],MATCH(filter_umsatz,tblUmsatzFltr[Umsatz Filter],0)) = 1, SUMIF(INDIRECT(dshbrdrng_umsatzentwicklung),"<>", INDEX(INDIRECT(dshbrdrng_umsatzentwicklung2),0,MATCH(DATE($B18,MONTH(N$13),1),Erfolgsrechnung_Detail!$O$8:$DF$8,0))), SUMIF(INDIRECT(dshbrdrng_umsatzentwicklung),"<>", INDEX(INDIRECT(dshbrdrng_umsatzentwicklung2),0,MATCH(DATE($B18,MONTH(N$13),1),Erfolgsrechnung_Detail!$O$8:$DF$8,0)))+M18),"") -> 74572.86 | P18: =IFERROR(IF( INDEX(tblUmsatzFltr[Nr],MATCH(filter_umsatz,tblUmsatzFltr[Umsatz Filter],0))=1, SUM($C18:INDEX($C18:$N18,1,selectedmonat_num)), INDEX($C18:$N18,0,MATCH(monat,tblMonate[Monate],0))),"") -> 138278.38 | Q18: =IFERROR( IF(INDEX(tblUmsatzFltr[Nr],MATCH(filter_umsatz,tblUmsatzFltr[Umsatz Filter],0))=1, SUM(C18:$N18),N18),"") -> 746916.8
B19: 2019 | C19: =IFERROR( SUMIF(INDIRECT(dshbrdrng_umsatzentwicklung),"<>", INDEX(INDIRECT(dshbrdrng_umsatzentwicklung2),0,MATCH(DATE($B19,MONTH(C$13),1),Erfolgsrechnung_Detail!$O$8:$DF$8,0))), "") -> 30676.18 | D19: =IFERROR( IF(INDEX(tblUmsatzFltr[Nr],MATCH(filter_umsatz,tblUmsatzFltr[Umsatz Filter],0)) = 1, SUMIF(INDIRECT(dshbrdrng_umsatzentwicklung),"<>", INDEX(INDIRECT(dshbrdrng_umsatzentwicklung2),0,MATCH(DATE($B19,MONTH(D$13),1),Erfolgsrechnung_Detail!$O$8:$DF$8,0))), SUMIF(INDIRECT(dshbrdrng_umsatzentwicklung),"<>", INDEX(INDIRECT(dshbrdrng_umsatzentwicklung2),0,MATCH(DATE($B19,MONTH(D$13),1),Erfolgsrechnung_Detail!$O$8:$DF$8,0)))+C19),"") -> 26999.11 | E19: =IFERROR( IF(INDEX(tblUmsatzFltr[Nr],MATCH(filter_umsatz,tblUmsatzFltr[Umsatz Filter],0)) = 1, SUMIF(INDIRECT(dshbrdrng_umsatzentwicklung),"<>", INDEX(INDIRECT(dshbrdrng_umsatzentwicklung2),0,MATCH(DATE($B19,MONTH(E$13),1),Erfolgsrechnung_Detail!$O$8:$DF$8,0))), SUMIF(INDIRECT(dshbrdrng_umsatzentwicklung),"<>", INDEX(INDIRECT(dshbrdrng_umsatzentwicklung2),0,MATCH(DATE($B19,MONTH(E$13),1),Erfolgsrechnung_Detail!$O$8:$DF$8,0)))+D19),"") -> 89441.74 | F19: =IFERROR( IF(INDEX(tblUmsatzFltr[Nr],MATCH(filter_umsatz,tblUmsatzFltr[Umsatz Filter],0)) = 1, SUMIF(INDIRECT(dshbrdrng_umsatzentwicklung),"<>", INDEX(INDIRECT(dshbrdrng_umsatzentwicklung2),0,MATCH(DATE($B19,MONTH(F$13),1),Erfolgsrechnung_Detail!$O$8:$DF$8,0))), SUMIF(INDIRECT(dshbrdrng_umsatzentwicklung),"<>", INDEX(INDIRECT(dshbrdrng_umsatzentwicklung2),0,MATCH(DATE($B19,MONTH(F$13),1),Erfolgsrechnung_Detail!$O$8:$DF$8,0)))+E19),"") -> 30174.22 | G19: =IFERROR( IF(INDEX(tblUmsatzFltr[Nr],MATCH(filter_umsatz,tblUmsatzFltr[Umsatz Filter],0)) = 1, SUMIF(INDIRECT(dshbrdrng_umsatzentwicklung),"<>", INDEX(INDIRECT(dshbrdrng_umsatzentwicklung2),0,MATCH(DATE($B19,MONTH(G$13),1),Erfolgsrechnung_Detail!$O$8:$DF$8,0))), SUMIF(INDIRECT(dshbrdrng_umsatzentwicklung),"<>", INDEX(INDIRECT(dshbrdrng_umsatzentwicklung2),0,MATCH(DATE($B19,MONTH(G$13),1),Erfolgsrechnung_Detail!$O$8:$DF$8,0)))+F19),"") -> 26050.16 | H19: =IFERROR( IF(INDEX(tblUmsatzFltr[Nr],MATCH(filter_umsatz,tblUmsatzFltr[Umsatz Filter],0)) = 1, SUMIF(INDIRECT(dshbrdrng_umsatzentwicklung),"<>", INDEX(INDIRECT(dshbrdrng_umsatzentwicklung2),0,MATCH(DATE($B19,MONTH(H$13),1),Erfolgsrechnung_Detail!$O$8:$DF$8,0))), SUMIF(INDIRECT(dshbrdrng_umsatzentwicklung),"<>", INDEX(INDIRECT(dshbrdrng_umsatzentwicklung2),0,MATCH(DATE($B19,MONTH(H$13),1),Erfolgsrechnung_Detail!$O$8:$DF$8,0)))+G19),"") -> 47831.45 | I19: =IFERROR( IF(INDEX(tblUmsatzFltr[Nr],MATCH(filter_umsatz,tblUmsatzFltr[Umsatz Filter],0)) = 1, SUMIF(INDIRECT(dshbrdrng_umsatzentwicklung),"<>", INDEX(INDIRECT(dshbrdrng_umsatzentwicklung2),0,MATCH(DATE($B19,MONTH(I$13),1),Erfolgsrechnung_Detail!$O$8:$DF$8,0))), SUMIF(INDIRECT(dshbrdrng_umsatzentwicklung),"<>", INDEX(INDIRECT(dshbrdrng_umsatzentwicklung2),0,MATCH(DATE($B19,MONTH(I$13),1),Erfolgsrechnung_Detail!$O$8:$DF$8,0)))+H19),"") -> 47190.82 | J19: =IFERROR( IF(INDEX(tblUmsatzFltr[Nr],MATCH(filter_umsatz,tblUmsatzFltr[Umsatz Filter],0)) = 1, SUMIF(INDIRECT(dshbrdrng_umsatzentwicklung),"<>", INDEX(INDIRECT(dshbrdrng_umsatzentwicklung2),0,MATCH(DATE($B19,MONTH(J$13),1),Erfolgsrechnung_Detail!$O$8:$DF$8,0))), SUMIF(INDIRECT(dshbrdrng_umsatzentwicklung),"<>", INDEX(INDIRECT(dshbrdrng_umsatzentwicklung2),0,MATCH(DATE($B19,MONTH(J$13),1),Erfolgsrechnung_Detail!$O$8:$DF$8,0)))+I19),"") -> 71861.49 | K19: =IFERROR( IF(INDEX(tblUmsatzFltr[Nr],MATCH(filter_umsatz,tblUmsatzFltr[Umsatz Filter],0)) = 1, SUMIF(INDIRECT(dshbrdrng_umsatzentwicklung),"<>", INDEX(INDIRECT(dshbrdrng_umsatzentwicklung2),0,MATCH(DATE($B19,MONTH(K$13),1),Erfolgsrechnung_Detail!$O$8:$DF$8,0))), SUMIF(INDIRECT(dshbrdrng_umsatzentwicklung),"<>", INDEX(INDIRECT(dshbrdrng_umsatzentwicklung2),0,MATCH(DATE($B19,MONTH(K$13),1),Erfolgsrechnung_Detail!$O$8:$DF$8,0)))+J19),"") -> 20684.74 | L19: =IFERROR( IF(INDEX(tblUmsatzFltr[Nr],MATCH(filter_umsatz,tblUmsatzFltr[Umsatz Filter],0)) = 1, SUMIF(INDIRECT(dshbrdrng_umsatzentwicklung),"<>", INDEX(INDIRECT(dshbrdrng_umsatzentwicklung2),0,MATCH(DATE($B19,MONTH(L$13),1),Erfolgsrechnung_Detail!$O$8:$DF$8,0))), SUMIF(INDIRECT(dshbrdrng_umsatzentwicklung),"<>", INDEX(INDIRECT(dshbrdrng_umsatzentwicklung2),0,MATCH(DATE($B19,MONTH(L$13),1),Erfolgsrechnung_Detail!$O$8:$DF$8,0)))+K19),"") -> 39419.62 | M19: =IFERROR( IF(INDEX(tblUmsatzFltr[Nr],MATCH(filter_umsatz,tblUmsatzFltr[Umsatz Filter],0)) = 1, SUMIF(INDIRECT(dshbrdrng_umsatzentwicklung),"<>", INDEX(INDIRECT(dshbrdrng_umsatzentwicklung2),0,MATCH(DATE($B19,MONTH(M$13),1),Erfolgsrechnung_Detail!$O$8:$DF$8,0))), SUMIF(INDIRECT(dshbrdrng_umsatzentwicklung),"<>", INDEX(INDIRECT(dshbrdrng_umsatzentwicklung2),0,MATCH(DATE($B19,MONTH(M$13),1),Erfolgsrechnung_Detail!$O$8:$DF$8,0)))+L19),"") -> 80885.2 | N19: =IFERROR( IF(INDEX(tblUmsatzFltr[Nr],MATCH(filter_umsatz,tblUmsatzFltr[Umsatz Filter],0)) = 1, SUMIF(INDIRECT(dshbrdrng_umsatzentwicklung),"<>", INDEX(INDIRECT(dshbrdrng_umsatzentwicklung2),0,MATCH(DATE($B19,MONTH(N$13),1),Erfolgsrechnung_Detail!$O$8:$DF$8,0))), SUMIF(INDIRECT(dshbrdrng_umsatzentwicklung),"<>", INDEX(INDIRECT(dshbrdrng_umsatzentwicklung2),0,MATCH(DATE($B19,MONTH(N$13),1),Erfolgsrechnung_Detail!$O$8:$DF$8,0)))+M19),"") -> 144494.26 | P19: =IFERROR(IF( INDEX(tblUmsatzFltr[Nr],MATCH(filter_umsatz,tblUmsatzFltr[Umsatz Filter],0))=1, SUM($C19:INDEX($C19:$N19,1,selectedmonat_num)), INDEX($C19:$N19,0,MATCH(monat,tblMonate[Monate],0))),"") -> 147117.03 | Q19: =IFERROR( IF(INDEX(tblUmsatzFltr[Nr],MATCH(filter_umsatz,tblUmsatzFltr[Umsatz Filter],0))=1, SUM(C19:$N19),N19),"") -> 655708.99
B20: =jahr -> 2020 | C20: =IFERROR( SUMIF(INDIRECT(dshbrdrng_umsatzentwicklung),"<>", INDEX(INDIRECT(dshbrdrng_umsatzentwicklung2),0,MATCH(DATE($B20,MONTH(C$13),1),Erfolgsrechnung_Detail!$O$8:$DF$8,0))), "") -> 14530.1 | D20: =IFERROR( IF(INDEX(tblUmsatzFltr[Nr],MATCH(filter_umsatz,tblUmsatzFltr[Umsatz Filter],0)) = 1, SUMIF(INDIRECT(dshbrdrng_umsatzentwicklung),"<>", INDEX(INDIRECT(dshbrdrng_umsatzentwicklung2),0,MATCH(DATE($B20,MONTH(D$13),1),Erfolgsrechnung_Detail!$O$8:$DF$8,0))), SUMIF(INDIRECT(dshbrdrng_umsatzentwicklung),"<>", INDEX(INDIRECT(dshbrdrng_umsatzentwicklung2),0,MATCH(DATE($B20,MONTH(D$13),1),Erfolgsrechnung_Detail!$O$8:$DF$8,0)))+C20),"") -> 17705.62 | E20: =IFERROR( IF(INDEX(tblUmsatzFltr[Nr],MATCH(filter_umsatz,tblUmsatzFltr[Umsatz Filter],0)) = 1, SUMIF(INDIRECT(dshbrdrng_umsatzentwicklung),"<>", INDEX(INDIRECT(dshbrdrng_umsatzentwicklung2),0,MATCH(DATE($B20,MONTH(E$13),1),Erfolgsrechnung_Detail!$O$8:$DF$8,0))), SUMIF(INDIRECT(dshbrdrng_umsatzentwicklung),"<>", INDEX(INDIRECT(dshbrdrng_umsatzentwicklung2),0,MATCH(DATE($B20,MONTH(E$13),1),Erfolgsrechnung_Detail!$O$8:$DF$8,0)))+D20),"") -> 75544.97 | F20: =IFERROR( IF(INDEX(tblUmsatzFltr[Nr],MATCH(filter_umsatz,tblUmsatzFltr[Umsatz Filter],0)) = 1, SUMIF(INDIRECT(dshbrdrng_umsatzentwicklung),"<>", INDEX(INDIRECT(dshbrdrng_umsatzentwicklung2),0,MATCH(DATE($B20,MONTH(F$13),1),Erfolgsrechnung_Detail!$O$8:$DF$8,0))), SUMIF(INDIRECT(dshbrdrng_umsatzentwicklung),"<>", INDEX(INDIRECT(dshbrdrng_umsatzentwicklung2),0,MATCH(DATE($B20,MONTH(F$13),1),Erfolgsrechnung_Detail!$O$8:$DF$8,0)))+E20),"") -> 20130.78 | G20: =IFERROR( IF(INDEX(tblUmsatzFltr[Nr],MATCH(filter_umsatz,tblUmsatzFltr[Umsatz Filter],0)) = 1, SUMIF(INDIRECT(dshbrdrng_umsatzentwicklung),"<>", INDEX(INDIRECT(dshbrdrng_umsatzentwicklung2),0,MATCH(DATE($B20,MONTH(G$13),1),Erfolgsrechnung_Detail!$O$8:$DF$8,0))), SUMIF(INDIRECT(dshbrdrng_umsatzentwicklung),"<>", INDEX(INDIRECT(dshbrdrng_umsatzentwicklung2),0,MATCH(DATE($B20,MONTH(G$13),1),Erfolgsrechnung_Detail!$O$8:$DF$8,0)))+F20),"") -> 77884.19 | H20: =IFERROR( IF(INDEX(tblUmsatzFltr[Nr],MATCH(filter_umsatz,tblUmsatzFltr[Umsatz Filter],0)) = 1, SUMIF(INDIRECT(dshbrdrng_umsatzentwicklung),"<>", INDEX(INDIRECT(dshbrdrng_umsatzentwicklung2),0,MATCH(DATE($B20,MONTH(H$13),1),Erfolgsrechnung_Detail!$O$8:$DF$8,0))), SUMIF(INDIRECT(dshbrdrng_umsatzentwicklung),"<>", INDEX(INDIRECT(dshbrdrng_umsatzentwicklung2),0,MATCH(DATE($B20,MONTH(H$13),1),Erfolgsrechnung_Detail!$O$8:$DF$8,0)))+G20),"") -> 120040.8 | I20: =IFERROR( IF(INDEX(tblUmsatzFltr[Nr],MATCH(filter_umsatz,tblUmsatzFltr[Umsatz Filter],0)) = 1, SUMIF(INDIRECT(dshbrdrng_umsatzentwicklung),"<>", INDEX(INDIRECT(dshbrdrng_umsatzentwicklung2),0,MATCH(DATE($B20,MONTH(I$13),1),Erfolgsrechnung_Detail!$O$8:$DF$8,0))), SUMIF(INDIRECT(dshbrdrng_umsatzentwicklung),"<>", INDEX(INDIRECT(dshbrdrng_umsatzentwicklung2),0,MATCH(DATE($B20,MONTH(I$13),1),Erfolgsrechnung_Detail!$O$8:$DF$8,0)))+H20),"") -> 69578.2 | J20: =IFERROR( IF(INDEX(tblUmsatzFltr[Nr],MATCH(filter_umsatz,tblUmsatzFltr[Umsatz Filter],0)) = 1, SUMIF(INDIRECT(dshbrdrng_umsatzentwicklung),"<>", INDEX(INDIRECT(dshbrdrng_umsatzentwicklung2),0,MATCH(DATE($B20,MONTH(J$13),1),Erfolgsrechnung_Detail!$O$8:$DF$8,0))), SUMIF(INDIRECT(dshbrdrng_umsatzentwicklung),"<>", INDEX(INDIRECT(dshbrdrng_umsatzentwicklung2),0,MATCH(DATE($B20,MONTH(J$13),1),Erfolgsrechnung_Detail!$O$8:$DF$8,0)))+I20),"") -> 10740.19 | K20: =IFERROR( IF(INDEX(tblUmsatzFltr[Nr],MATCH(filter_umsatz,tblUmsatzFltr[Umsatz Filter],0)) = 1, SUMIF(INDIRECT(dshbrdrng_umsatzentwicklung),"<>", INDEX(INDIRECT(dshbrdrng_umsatzentwicklung2),0,MATCH(DATE($B20,MONTH(K$13),1),Erfolgsrechnung_Detail!$O$8:$DF$8,0))), SUMIF(INDIRECT(dshbrdrng_umsatzentwicklung),"<>", INDEX(INDIRECT(dshbrdrng_umsatzentwicklung2),0,MATCH(DATE($B20,MONTH(K$13),1),Erfolgsrechnung_Detail!$O$8:$DF$8,0)))+J20),"") -> 17659.46 | L20: =IFERROR( IF(INDEX(tblUmsatzFltr[Nr],MATCH(filter_umsatz,tblUmsatzFltr[Umsatz Filter],0)) = 1, SUMIF(INDIRECT(dshbrdrng_umsatzentwicklung),"<>", INDEX(INDIRECT(dshbrdrng_umsatzentwicklung2),0,MATCH(DATE($B20,MONTH(L$13),1),Erfolgsrechnung_Detail!$O$8:$DF$8,0))), SUMIF(INDIRECT(dshbrdrng_umsatzentwicklung),"<>", INDEX(INDIRECT(dshbrdrng_umsatzentwicklung2),0,MATCH(DATE($B20,MONTH(L$13),1),Erfolgsrechnung_Detail!$O$8:$DF$8,0)))+K20),"") -> 54301.26 | M20: =IFERROR( IF(INDEX(tblUmsatzFltr[Nr],MATCH(filter_umsatz,tblUmsatzFltr[Umsatz Filter],0)) = 1, SUMIF(INDIRECT(dshbrdrng_umsatzentwicklung),"<>", INDEX(INDIRECT(dshbrdrng_umsatzentwicklung2),0,MATCH(DATE($B20,MONTH(M$13),1),Erfolgsrechnung_Detail!$O$8:$DF$8,0))), SUMIF(INDIRECT(dshbrdrng_umsatzentwicklung),"<>", INDEX(INDIRECT(dshbrdrng_umsatzentwicklung2),0,MATCH(DATE($B20,MONTH(M$13),1),Erfolgsrechnung_Detail!$O$8:$DF$8,0)))+L20),"") -> 21905.52 | N20: =IFERROR( IF(INDEX(tblUmsatzFltr[Nr],MATCH(filter_umsatz,tblUmsatzFltr[Umsatz Filter],0)) = 1, SUMIF(INDIRECT(dshbrdrng_umsatzentwicklung),"<>", INDEX(INDIRECT(dshbrdrng_umsatzentwicklung2),0,MATCH(DATE($B20,MONTH(N$13),1),Erfolgsrechnung_Detail!$O$8:$DF$8,0))), SUMIF(INDIRECT(dshbrdrng_umsatzentwicklung),"<>", INDEX(INDIRECT(dshbrdrng_umsatzentwicklung2),0,MATCH(DATE($B20,MONTH(N$13),1),Erfolgsrechnung_Detail!$O$8:$DF$8,0)))+M20),"") -> 44644.48 | P20: =IFERROR(IF( INDEX(tblUmsatzFltr[Nr],MATCH(filter_umsatz,tblUmsatzFltr[Umsatz Filter],0))=1, SUM($C20:INDEX($C20:$N20,1,selectedmonat_num)), INDEX($C20:$N20,0,MATCH(monat,tblMonate[Monate],0))),"") -> 107780.69 | Q20: =IFERROR( IF(INDEX(tblUmsatzFltr[Nr],MATCH(filter_umsatz,tblUmsatzFltr[Umsatz Filter],0))=1, SUM(C20:$N20),N20),"") -> 544665.57
B21: YTD Wachstum | C21: =IFERROR(C20/C19-1,0) -> -0.5263393291 | D21: =IFERROR(D20/D19-1,0) -> -0.3442146797 | E21: =IFERROR(E20/E19-1,0) -> -0.1553723127 | F21: -0.3328483719 | G21: 1.989777798 | H21: 1.509662576 | I21: 0.4744011653 | J21: -0.8505431769 | K21: -0.1462566124 | L21: 0.3775186062 | M21: -0.7291776493 | N21: -0.6910293876 | P21: =IFERROR(P20/P19-1,0) -> -0.2673812814 | Q21: =IFERROR(Q20/Q19-1,0) -> -0.1693486313
B23: Budget | C23: =IFERROR(SUMIFS(INDIRECT(budgetrng_umsatzentwicklung),INDIRECT(budgetrng),"<>"),"") -> 10000 | D23: =IFERROR(SUMIFS(OFFSET(INDIRECT(budgetrng_umsatzentwicklung),0,1),INDIRECT(budgetrng),"<>"),"") -> 10000 | E23: =IFERROR(SUMIFS(OFFSET(INDIRECT(budgetrng_umsatzentwicklung),0,2),INDIRECT(budgetrng),"<>"),"") -> 12000 | F23: =IFERROR(SUMIFS(OFFSET(INDIRECT(budgetrng_umsatzentwicklung),0,3),INDIRECT(budgetrng),"<>"),"") -> 12000 | G23: =IFERROR(SUMIFS(OFFSET(INDIRECT(budgetrng_umsatzentwicklung),0,4),INDIRECT(budgetrng),"<>"),"") -> 14000 | H23: =IFERROR(SUMIFS(OFFSET(INDIRECT(budgetrng_umsatzentwicklung),0,5),INDIRECT(budgetrng),"<>"),"") -> 14000 | I23: =IFERROR(SUMIFS(OFFSET(INDIRECT(budgetrng_umsatzentwicklung),0,6),INDIRECT(budgetrng),"<>"),"") -> 16000 | J23: =IFERROR(SUMIFS(OFFSET(INDIRECT(budgetrng_umsatzentwicklung),0,7),INDIRECT(budgetrng),"<>"),"") -> 16000 | K23: =IFERROR(SUMIFS(OFFSET(INDIRECT(budgetrng_umsatzentwicklung),0,8),INDIRECT(budgetrng),"<>"),"") -> 18000 | L23: =IFERROR(SUMIFS(OFFSET(INDIRECT(budgetrng_umsatzentwicklung),0,9),INDIRECT(budgetrng),"<>"),"") -> 18000 | M23: =IFERROR(SUMIFS(OFFSET(INDIRECT(budgetrng_umsatzentwicklung),0,10),INDIRECT(budgetrng),"<>"),"") -> 20000 | N23: =IFERROR(SUMIFS(OFFSET(INDIRECT(budgetrng_umsatzentwicklung),0,11),INDIRECT(budgetrng),"<>"),"") -> 20000 | P23: =SUM($C23:INDEX($C23:$N23,1,selectedmonat_num)) -> 32000 | Q23: =SUM(rngBudget) -> 180000
B26: Aktuelles Jahr vs. Vorjahr | P26: =IF(INDEX(tblMonate[Nr],MATCH(monat,tblMonate[Monate],0))<> 1, CONCATENATE("YTD ",Einstellungen!$AY$8," - ",monat," Umsatz Zielerreichung"), CONCATENATE("YTD ",Einstellungen!$AY$8," Umsatz Zielerreichungt")) -> YTD Januar - März Umsatz Zielerreichung
B28: Budget | C28: =C23 -> 10000 | D28: =IF(INDEX(tblUmsatzFltr[Nr],MATCH($L$3,tblUmsatzFltr[Umsatz Filter],0)) = 1,D$23,D$23+C$28) -> 10000 | E28: =IF(INDEX(tblUmsatzFltr[Nr],MATCH($L$3,tblUmsatzFltr[Umsatz Filter],0)) = 1,E$23,E$23+D$28) -> 12000 | F28: =IF(INDEX(tblUmsatzFltr[Nr],MATCH($L$3,tblUmsatzFltr[Umsatz Filter],0)) = 1,F$23,F$23+E$28) -> 12000 | G28: =IF(INDEX(tblUmsatzFltr[Nr],MATCH($L$3,tblUmsatzFltr[Umsatz Filter],0)) = 1,G$23,G$23+F$28) -> 14000 | H28: =IF(INDEX(tblUmsatzFltr[Nr],MATCH($L$3,tblUmsatzFltr[Umsatz Filter],0)) = 1,H$23,H$23+G$28) -> 14000 | I28: =IF(INDEX(tblUmsatzFltr[Nr],MATCH($L$3,tblUmsatzFltr[Umsatz Filter],0)) = 1,I$23,I$23+H$28) -> 16000 | J28: =IF(INDEX(tblUmsatzFltr[Nr],MATCH($L$3,tblUmsatzFltr[Umsatz Filter],0)) = 1,J$23,J$23+I$28) -> 16000 | K28: =IF(INDEX(tblUmsatzFltr[Nr],MATCH($L$3,tblUmsatzFltr[Umsatz Filter],0)) = 1,K$23,K$23+J$28) -> 18000 | L28: =IF(INDEX(tblUmsatzFltr[Nr],MATCH($L$3,tblUmsatzFltr[Umsatz Filter],0)) = 1,L$23,L$23+K$28) -> 18000 | M28: =IF(INDEX(tblUmsatzFltr[Nr],MATCH($L$3,tblUmsatzFltr[Umsatz Filter],0)) = 1,M$23,M$23+L$28) -> 20000 | N28: =IF(INDEX(tblUmsatzFltr[Nr],MATCH($L$3,tblUmsatzFltr[Umsatz Filter],0)) = 1,N$23,N$23+M$28) -> 20000
B47: Bruttogewinn /-Verlust
C49: =DATE(jahr,1,1) -> 2020-01-01 | D49: =EOMONTH(C49,0)+1 -> 2020-02-01 | E49: 2020-03-01 | F49: 2020-04-01 | G49: 2020-05-01 | H49: 2020-06-01 | I49: 2020-07-01 | J49: 2020-08-01 | K49: 2020-09-01 | L49: 2020-10-01 | M49: 2020-11-01 | N49: 2020-12-01 | P49: =P13 -> YTD Januar bis März | Q49: Total
B50: =B51-1 -> 2014 | C50: =IFERROR(C14+ SUMIF(INDIRECT(dshbrdrng_bruttogewinn),"<>", INDEX(INDIRECT(dshbrdrng_bruttogewinn2),0,MATCH(DATE($B50,MONTH(C$49),1),Erfolgsrechnung_Detail!$O$8:$DF$8,0))), "") ->  | D50: =IFERROR(SUMIF(INDIRECT(dshbrdrng_umsatzentwicklung),"<>", INDEX(INDIRECT(dshbrdrng_umsatzentwicklung2),0,MATCH(DATE($B14,MONTH(D$13),1),Erfolgsrechnung_Detail!$O$8:$DF$8,0))) + IF(INDEX(tblUmsatzFltr[Nr],MATCH(filter_umsatz,tblUmsatzFltr[Umsatz Filter],0)) = 1, SUMIF(INDIRECT(dshbrdrng_bruttogewinn),"<>", INDEX(INDIRECT(dshbrdrng_bruttogewinn2),0,MATCH(DATE($B50,MONTH(D$49),1),Erfolgsrechnung_Detail!$O$8:$DF$8,0))), SUMIF(INDIRECT(dshbrdrng_bruttogewinn),"<>", INDEX(INDIRECT(dshbrdrng_bruttogewinn2),0,MATCH(DATE($B50,MONTH(D$49),1),Erfolgsrechnung_Detail!$O$8:$DF$8,0)))+C50),"") ->  | E50: =IFERROR(SUMIF(INDIRECT(dshbrdrng_umsatzentwicklung),"<>", INDEX(INDIRECT(dshbrdrng_umsatzentwicklung2),0,MATCH(DATE($B14,MONTH(E$13),1),Erfolgsrechnung_Detail!$O$8:$DF$8,0))) + IF(INDEX(tblUmsatzFltr[Nr],MATCH(filter_umsatz,tblUmsatzFltr[Umsatz Filter],0)) = 1, SUMIF(INDIRECT(dshbrdrng_bruttogewinn),"<>", INDEX(INDIRECT(dshbrdrng_bruttogewinn2),0,MATCH(DATE($B50,MONTH(E$49),1),Erfolgsrechnung_Detail!$O$8:$DF$8,0))), SUMIF(INDIRECT(dshbrdrng_bruttogewinn),"<>", INDEX(INDIRECT(dshbrdrng_bruttogewinn2),0,MATCH(DATE($B50,MONTH(E$49),1),Erfolgsrechnung_Detail!$O$8:$DF$8,0)))+D50),"") ->  | F50: =IFERROR(SUMIF(INDIRECT(dshbrdrng_umsatzentwicklung),"<>", INDEX(INDIRECT(dshbrdrng_umsatzentwicklung2),0,MATCH(DATE($B14,MONTH(F$13),1),Erfolgsrechnung_Detail!$O$8:$DF$8,0))) + IF(INDEX(tblUmsatzFltr[Nr],MATCH(filter_umsatz,tblUmsatzFltr[Umsatz Filter],0)) = 1, SUMIF(INDIRECT(dshbrdrng_bruttogewinn),"<>", INDEX(INDIRECT(dshbrdrng_bruttogewinn2),0,MATCH(DATE($B50,MONTH(F$49),1),Erfolgsrechnung_Detail!$O$8:$DF$8,0))), SUMIF(INDIRECT(dshbrdrng_bruttogewinn),"<>", INDEX(INDIRECT(dshbrdrng_bruttogewinn2),0,MATCH(DATE($B50,MONTH(F$49),1),Erfolgsrechnung_Detail!$O$8:$DF$8,0)))+E50),"") ->  | G50: =IFERROR(SUMIF(INDIRECT(dshbrdrng_umsatzentwicklung),"<>", INDEX(INDIRECT(dshbrdrng_umsatzentwicklung2),0,MATCH(DATE($B14,MONTH(G$13),1),Erfolgsrechnung_Detail!$O$8:$DF$8,0))) + IF(INDEX(tblUmsatzFltr[Nr],MATCH(filter_umsatz,tblUmsatzFltr[Umsatz Filter],0)) = 1, SUMIF(INDIRECT(dshbrdrng_bruttogewinn),"<>", INDEX(INDIRECT(dshbrdrng_bruttogewinn2),0,MATCH(DATE($B50,MONTH(G$49),1),Erfolgsrechnung_Detail!$O$8:$DF$8,0))), SUMIF(INDIRECT(dshbrdrng_bruttogewinn),"<>", INDEX(INDIRECT(dshbrdrng_bruttogewinn2),0,MATCH(DATE($B50,MONTH(G$49),1),Erfolgsrechnung_Detail!$O$8:$DF$8,0)))+F50),"") ->  | H50: =IFERROR(SUMIF(INDIRECT(dshbrdrng_umsatzentwicklung),"<>", INDEX(INDIRECT(dshbrdrng_umsatzentwicklung2),0,MATCH(DATE($B14,MONTH(H$13),1),Erfolgsrechnung_Detail!$O$8:$DF$8,0))) + IF(INDEX(tblUmsatzFltr[Nr],MATCH(filter_umsatz,tblUmsatzFltr[Umsatz Filter],0)) = 1, SUMIF(INDIRECT(dshbrdrng_bruttogewinn),"<>", INDEX(INDIRECT(dshbrdrng_bruttogewinn2),0,MATCH(DATE($B50,MONTH(H$49),1),Erfolgsrechnung_Detail!$O$8:$DF$8,0))), SUMIF(INDIRECT(dshbrdrng_bruttogewinn),"<>", INDEX(INDIRECT(dshbrdrng_bruttogewinn2),0,MATCH(DATE($B50,MONTH(H$49),1),Erfolgsrechnung_Detail!$O$8:$DF$8,0)))+G50),"") ->  | I50: =IFERROR(SUMIF(INDIRECT(dshbrdrng_umsatzentwicklung),"<>", INDEX(INDIRECT(dshbrdrng_umsatzentwicklung2),0,MATCH(DATE($B14,MONTH(I$13),1),Erfolgsrechnung_Detail!$O$8:$DF$8,0))) + IF(INDEX(tblUmsatzFltr[Nr],MATCH(filter_umsatz,tblUmsatzFltr[Umsatz Filter],0)) = 1, SUMIF(INDIRECT(dshbrdrng_bruttogewinn),"<>", INDEX(INDIRECT(dshbrdrng_bruttogewinn2),0,MATCH(DATE($B50,MONTH(I$49),1),Erfolgsrechnung_Detail!$O$8:$DF$8,0))), SUMIF(INDIRECT(dshbrdrng_bruttogewinn),"<>", INDEX(INDIRECT(dshbrdrng_bruttogewinn2),0,MATCH(DATE($B50,MONTH(I$49),1),Erfolgsrechnung_Detail!$O$8:$DF$8,0)))+H50),"") ->  | J50: =IFERROR(SUMIF(INDIRECT(dshbrdrng_umsatzentwicklung),"<>", INDEX(INDIRECT(dshbrdrng_umsatzentwicklung2),0,MATCH(DATE($B14,MONTH(J$13),1),Erfolgsrechnung_Detail!$O$8:$DF$8,0))) + IF(INDEX(tblUmsatzFltr[Nr],MATCH(filter_umsatz,tblUmsatzFltr[Umsatz Filter],0)) = 1, SUMIF(INDIRECT(dshbrdrng_bruttogewinn),"<>", INDEX(INDIRECT(dshbrdrng_bruttogewinn2),0,MATCH(DATE($B50,MONTH(J$49),1),Erfolgsrechnung_Detail!$O$8:$DF$8,0))), SUMIF(INDIRECT(dshbrdrng_bruttogewinn),"<>", INDEX(INDIRECT(dshbrdrng_bruttogewinn2),0,MATCH(DATE($B50,MONTH(J$49),1),Erfolgsrechnung_Detail!$O$8:$DF$8,0)))+I50),"") ->  | K50: =IFERROR(SUMIF(INDIRECT(dshbrdrng_umsatzentwicklung),"<>", INDEX(INDIRECT(dshbrdrng_umsatzentwicklung2),0,MATCH(DATE($B14,MONTH(K$13),1),Erfolgsrechnung_Detail!$O$8:$DF$8,0))) + IF(INDEX(tblUmsatzFltr[Nr],MATCH(filter_umsatz,tblUmsatzFltr[Umsatz Filter],0)) = 1, SUMIF(INDIRECT(dshbrdrng_bruttogewinn),"<>", INDEX(INDIRECT(dshbrdrng_bruttogewinn2),0,MATCH(DATE($B50,MONTH(K$49),1),Erfolgsrechnung_Detail!$O$8:$DF$8,0))), SUMIF(INDIRECT(dshbrdrng_bruttogewinn),"<>", INDEX(INDIRECT(dshbrdrng_bruttogewinn2),0,MATCH(DATE($B50,MONTH(K$49),1),Erfolgsrechnung_Detail!$O$8:$DF$8,0)))+J50),"") ->  | L50: =IFERROR(SUMIF(INDIRECT(dshbrdrng_umsatzentwicklung),"<>", INDEX(INDIRECT(dshbrdrng_umsatzentwicklung2),0,MATCH(DATE($B14,MONTH(L$13),1),Erfolgsrechnung_Detail!$O$8:$DF$8,0))) + IF(INDEX(tblUmsatzFltr[Nr],MATCH(filter_umsatz,tblUmsatzFltr[Umsatz Filter],0)) = 1, SUMIF(INDIRECT(dshbrdrng_bruttogewinn),"<>", INDEX(INDIRECT(dshbrdrng_bruttogewinn2),0,MATCH(DATE($B50,MONTH(L$49),1),Erfolgsrechnung_Detail!$O$8:$DF$8,0))), SUMIF(INDIRECT(dshbrdrng_bruttogewinn),"<>", INDEX(INDIRECT(dshbrdrng_bruttogewinn2),0,MATCH(DATE($B50,MONTH(L$49),1),Erfolgsrechnung_Detail!$O$8:$DF$8,0)))+K50),"") ->  | M50: =IFERROR(SUMIF(INDIRECT(dshbrdrng_umsatzentwicklung),"<>", INDEX(INDIRECT(dshbrdrng_umsatzentwicklung2),0,MATCH(DATE($B14,MONTH(M$13),1),Erfolgsrechnung_Detail!$O$8:$DF$8,0))) + IF(INDEX(tblUmsatzFltr[Nr],MATCH(filter_umsatz,tblUmsatzFltr[Umsatz Filter],0)) = 1, SUMIF(INDIRECT(dshbrdrng_bruttogewinn),"<>", INDEX(INDIRECT(dshbrdrng_bruttogewinn2),0,MATCH(DATE($B50,MONTH(M$49),1),Erfolgsrechnung_Detail!$O$8:$DF$8,0))), SUMIF(INDIRECT(dshbrdrng_bruttogewinn),"<>", INDEX(INDIRECT(dshbrdrng_bruttogewinn2),0,MATCH(DATE($B50,MONTH(M$49),1),Erfolgsrechnung_Detail!$O$8:$DF$8,0)))+L50),"") ->  | N50: =IFERROR(SUMIF(INDIRECT(dshbrdrng_umsatzentwicklung),"<>", INDEX(INDIRECT(dshbrdrng_umsatzentwicklung2),0,MATCH(DATE($B14,MONTH(N$13),1),Erfolgsrechnung_Detail!$O$8:$DF$8,0))) + IF(INDEX(tblUmsatzFltr[Nr],MATCH(filter_umsatz,tblUmsatzFltr[Umsatz Filter],0)) = 1, SUMIF(INDIRECT(dshbrdrng_bruttogewinn),"<>", INDEX(INDIRECT(dshbrdrng_bruttogewinn2),0,MATCH(DATE($B50,MONTH(N$49),1),Erfolgsrechnung_Detail!$O$8:$DF$8,0))), SUMIF(INDIRECT(dshbrdrng_bruttogewinn),"<>", INDEX(INDIRECT(dshbrdrng_bruttogewinn2),0,MATCH(DATE($B50,MONTH(N$49),1),Erfolgsrechnung_Detail!$O$8:$DF$8,0)))+M50),"") ->  | P50: =IFERROR(IF( INDEX(tblUmsatzFltr[Nr],MATCH(filter_umsatz,tblUmsatzFltr[Umsatz Filter],0))=1, SUM($C50:INDEX($C50:$N50,1,selectedmonat_num)), INDEX($C50:$N50,0,MATCH(monat,tblMonate[Monate],0))),"") -> 0 | Q50: =IFERROR( IF(INDEX(tblUmsatzFltr[Nr],MATCH(filter_umsatz,tblUmsatzFltr[Umsatz Filter],0))=1, SUM(C50:$N50),N50),"") -> 0
B51: 2015 | C51: =IFERROR(C15+ SUMIF(INDIRECT(dshbrdrng_bruttogewinn),"<>", INDEX(INDIRECT(dshbrdrng_bruttogewinn2),0,MATCH(DATE($B51,MONTH(C$49),1),Erfolgsrechnung_Detail!$O$8:$DF$8,0))), "") -> 68086.2 | D51: =IFERROR(SUMIF(INDIRECT(dshbrdrng_umsatzentwicklung),"<>", INDEX(INDIRECT(dshbrdrng_umsatzentwicklung2),0,MATCH(DATE($B15,MONTH(D$13),1),Erfolgsrechnung_Detail!$O$8:$DF$8,0))) + IF(INDEX(tblUmsatzFltr[Nr],MATCH(filter_umsatz,tblUmsatzFltr[Umsatz Filter],0)) = 1, SUMIF(INDIRECT(dshbrdrng_bruttogewinn),"<>", INDEX(INDIRECT(dshbrdrng_bruttogewinn2),0,MATCH(DATE($B51,MONTH(D$49),1),Erfolgsrechnung_Detail!$O$8:$DF$8,0))), SUMIF(INDIRECT(dshbrdrng_bruttogewinn),"<>", INDEX(INDIRECT(dshbrdrng_bruttogewinn2),0,MATCH(DATE($B51,MONTH(D$49),1),Erfolgsrechnung_Detail!$O$8:$DF$8,0)))+C51),"") -> 85609.92 | E51: =IFERROR(SUMIF(INDIRECT(dshbrdrng_umsatzentwicklung),"<>", INDEX(INDIRECT(dshbrdrng_umsatzentwicklung2),0,MATCH(DATE($B15,MONTH(E$13),1),Erfolgsrechnung_Detail!$O$8:$DF$8,0))) + IF(INDEX(tblUmsatzFltr[Nr],MATCH(filter_umsatz,tblUmsatzFltr[Umsatz Filter],0)) = 1, SUMIF(INDIRECT(dshbrdrng_bruttogewinn),"<>", INDEX(INDIRECT(dshbrdrng_bruttogewinn2),0,MATCH(DATE($B51,MONTH(E$49),1),Erfolgsrechnung_Detail!$O$8:$DF$8,0))), SUMIF(INDIRECT(dshbrdrng_bruttogewinn),"<>", INDEX(INDIRECT(dshbrdrng_bruttogewinn2),0,MATCH(DATE($B51,MONTH(E$49),1),Erfolgsrechnung_Detail!$O$8:$DF$8,0)))+D51),"") -> 40767.27 | F51: =IFERROR(SUMIF(INDIRECT(dshbrdrng_umsatzentwicklung),"<>", INDEX(INDIRECT(dshbrdrng_umsatzentwicklung2),0,MATCH(DATE($B15,MONTH(F$13),1),Erfolgsrechnung_Detail!$O$8:$DF$8,0))) + IF(INDEX(tblUmsatzFltr[Nr],MATCH(filter_umsatz,tblUmsatzFltr[Umsatz Filter],0)) = 1, SUMIF(INDIRECT(dshbrdrng_bruttogewinn),"<>", INDEX(INDIRECT(dshbrdrng_bruttogewinn2),0,MATCH(DATE($B51,MONTH(F$49),1),Erfolgsrechnung_Detail!$O$8:$DF$8,0))), SUMIF(INDIRECT(dshbrdrng_bruttogewinn),"<>", INDEX(INDIRECT(dshbrdrng_bruttogewinn2),0,MATCH(DATE($B51,MONTH(F$49),1),Erfolgsrechnung_Detail!$O$8:$DF$8,0)))+E51),"") -> 52002.77 | G51: =IFERROR(SUMIF(INDIRECT(dshbrdrng_umsatzentwicklung),"<>", INDEX(INDIRECT(dshbrdrng_umsatzentwicklung2),0,MATCH(DATE($B15,MONTH(G$13),1),Erfolgsrechnung_Detail!$O$8:$DF$8,0))) + IF(INDEX(tblUmsatzFltr[Nr],MATCH(filter_umsatz,tblUmsatzFltr[Umsatz Filter],0)) = 1, SUMIF(INDIRECT(dshbrdrng_bruttogewinn),"<>", INDEX(INDIRECT(dshbrdrng_bruttogewinn2),0,MATCH(DATE($B51,MONTH(G$49),1),Erfolgsrechnung_Detail!$O$8:$DF$8,0))), SUMIF(INDIRECT(dshbrdrng_bruttogewinn),"<>", INDEX(INDIRECT(dshbrdrng_bruttogewinn2),0,MATCH(DATE($B51,MONTH(G$49),1),Erfolgsrechnung_Detail!$O$8:$DF$8,0)))+F51),"") -> 93260.79 | H51: =IFERROR(SUMIF(INDIRECT(dshbrdrng_umsatzentwicklung),"<>", INDEX(INDIRECT(dshbrdrng_umsatzentwicklung2),0,MATCH(DATE($B15,MONTH(H$13),1),Erfolgsrechnung_Detail!$O$8:$DF$8,0))) + IF(INDEX(tblUmsatzFltr[Nr],MATCH(filter_umsatz,tblUmsatzFltr[Umsatz Filter],0)) = 1, SUMIF(INDIRECT(dshbrdrng_bruttogewinn),"<>", INDEX(INDIRECT(dshbrdrng_bruttogewinn2),0,MATCH(DATE($B51,MONTH(H$49),1),Erfolgsrechnung_Detail!$O$8:$DF$8,0))), SUMIF(INDIRECT(dshbrdrng_bruttogewinn),"<>", INDEX(INDIRECT(dshbrdrng_bruttogewinn2),0,MATCH(DATE($B51,MONTH(H$49),1),Erfolgsrechnung_Detail!$O$8:$DF$8,0)))+G51),"") -> 132597.31 | I51: =IFERROR(SUMIF(INDIRECT(dshbrdrng_umsatzentwicklung),"<>", INDEX(INDIRECT(dshbrdrng_umsatzentwicklung2),0,MATCH(DATE($B15,MONTH(I$13),1),Erfolgsrechnung_Detail!$O$8:$DF$8,0))) + IF(INDEX(tblUmsatzFltr[Nr],MATCH(filter_umsatz,tblUmsatzFltr[Umsatz Filter],0)) = 1, SUMIF(INDIRECT(dshbrdrng_bruttogewinn),"<>", INDEX(INDIRECT(dshbrdrng_bruttogewinn2),0,MATCH(DATE($B51,MONTH(I$49),1),Erfolgsrechnung_Detail!$O$8:$DF$8,0))), SUMIF(INDIRECT(dshbrdrng_bruttogewinn),"<>", INDEX(INDIRECT(dshbrdrng_bruttogewinn2),0,MATCH(DATE($B51,MONTH(I$49),1),Erfolgsrechnung_Detail!$O$8:$DF$8,0)))+H51),"") -> 72882.39 | J51: =IFERROR(SUMIF(INDIRECT(dshbrdrng_umsatzentwicklung),"<>", INDEX(INDIRECT(dshbrdrng_umsatzentwicklung2),0,MATCH(DATE($B15,MONTH(J$13),1),Erfolgsrechnung_Detail!$O$8:$DF$8,0))) + IF(INDEX(tblUmsatzFltr[Nr],MATCH(filter_umsatz,tblUmsatzFltr[Umsatz Filter],0)) = 1, SUMIF(INDIRECT(dshbrdrng_bruttogewinn),"<>", INDEX(INDIRECT(dshbrdrng_bruttogewinn2),0,MATCH(DATE($B51,MONTH(J$49),1),Erfolgsrechnung_Detail!$O$8:$DF$8,0))), SUMIF(INDIRECT(dshbrdrng_bruttogewinn),"<>", INDEX(INDIRECT(dshbrdrng_bruttogewinn2),0,MATCH(DATE($B51,MONTH(J$49),1),Erfolgsrechnung_Detail!$O$8:$DF$8,0)))+I51),"") -> 56066.2 | K51: =IFERROR(SUMIF(INDIRECT(dshbrdrng_umsatzentwicklung),"<>", INDEX(INDIRECT(dshbrdrng_umsatzentwicklung2),0,MATCH(DATE($B15,MONTH(K$13),1),Erfolgsrechnung_Detail!$O$8:$DF$8,0))) + IF(INDEX(tblUmsatzFltr[Nr],MATCH(filter_umsatz,tblUmsatzFltr[Umsatz Filter],0)) = 1, SUMIF(INDIRECT(dshbrdrng_bruttogewinn),"<>", INDEX(INDIRECT(dshbrdrng_bruttogewinn2),0,MATCH(DATE($B51,MONTH(K$49),1),Erfolgsrechnung_Detail!$O$8:$DF$8,0))), SUMIF(INDIRECT(dshbrdrng_bruttogewinn),"<>", INDEX(INDIRECT(dshbrdrng_bruttogewinn2),0,MATCH(DATE($B51,MONTH(K$49),1),Erfolgsrechnung_Detail!$O$8:$DF$8,0)))+J51),"") -> 55903.44 | L51: =IFERROR(SUMIF(INDIRECT(dshbrdrng_umsatzentwicklung),"<>", INDEX(INDIRECT(dshbrdrng_umsatzentwicklung2),0,MATCH(DATE($B15,MONTH(L$13),1),Erfolgsrechnung_Detail!$O$8:$DF$8,0))) + IF(INDEX(tblUmsatzFltr[Nr],MATCH(filter_umsatz,tblUmsatzFltr[Umsatz Filter],0)) = 1, SUMIF(INDIRECT(dshbrdrng_bruttogewinn),"<>", INDEX(INDIRECT(dshbrdrng_bruttogewinn2),0,MATCH(DATE($B51,MONTH(L$49),1),Erfolgsrechnung_Detail!$O$8:$DF$8,0))), SUMIF(INDIRECT(dshbrdrng_bruttogewinn),"<>", INDEX(INDIRECT(dshbrdrng_bruttogewinn2),0,MATCH(DATE($B51,MONTH(L$49),1),Erfolgsrechnung_Detail!$O$8:$DF$8,0)))+K51),"") -> 77143.22 | M51: =IFERROR(SUMIF(INDIRECT(dshbrdrng_umsatzentwicklung),"<>", INDEX(INDIRECT(dshbrdrng_umsatzentwicklung2),0,MATCH(DATE($B15,MONTH(M$13),1),Erfolgsrechnung_Detail!$O$8:$DF$8,0))) + IF(INDEX(tblUmsatzFltr[Nr],MATCH(filter_umsatz,tblUmsatzFltr[Umsatz Filter],0)) = 1, SUMIF(INDIRECT(dshbrdrng_bruttogewinn),"<>", INDEX(INDIRECT(dshbrdrng_bruttogewinn2),0,MATCH(DATE($B51,MONTH(M$49),1),Erfolgsrechnung_Detail!$O$8:$DF$8,0))), SUMIF(INDIRECT(dshbrdrng_bruttogewinn),"<>", INDEX(INDIRECT(dshbrdrng_bruttogewinn2),0,MATCH(DATE($B51,MONTH(M$49),1),Erfolgsrechnung_Detail!$O$8:$DF$8,0)))+L51),"") -> 78001.25 | N51: =IFERROR(SUMIF(INDIRECT(dshbrdrng_umsatzentwicklung),"<>", INDEX(INDIRECT(dshbrdrng_umsatzentwicklung2),0,MATCH(DATE($B15,MONTH(N$13),1),Erfolgsrechnung_Detail!$O$8:$DF$8,0))) + IF(INDEX(tblUmsatzFltr[Nr],MATCH(filter_umsatz,tblUmsatzFltr[Umsatz Filter],0)) = 1, SUMIF(INDIRECT(dshbrdrng_bruttogewinn),"<>", INDEX(INDIRECT(dshbrdrng_bruttogewinn2),0,MATCH(DATE($B51,MONTH(N$49),1),Erfolgsrechnung_Detail!$O$8:$DF$8,0))), SUMIF(INDIRECT(dshbrdrng_bruttogewinn),"<>", INDEX(INDIRECT(dshbrdrng_bruttogewinn2),0,MATCH(DATE($B51,MONTH(N$49),1),Erfolgsrechnung_Detail!$O$8:$DF$8,0)))+M51),"") -> 122789.64 | P51: =IFERROR(IF( INDEX(tblUmsatzFltr[Nr],MATCH(filter_umsatz,tblUmsatzFltr[Umsatz Filter],0))=1, SUM($C51:INDEX($C51:$N51,1,selectedmonat_num)), INDEX($C51:$N51,0,MATCH(monat,tblMonate[Monate],0))),"") -> 194463.39 | Q51: =IFERROR( IF(INDEX(tblUmsatzFltr[Nr],MATCH(filter_umsatz,tblUmsatzFltr[Umsatz Filter],0))=1, SUM(C51:$N51),N51),"") -> 935110.4
B52: 2016 | C52: =IFERROR(C16+ SUMIF(INDIRECT(dshbrdrng_bruttogewinn),"<>", INDEX(INDIRECT(dshbrdrng_bruttogewinn2),0,MATCH(DATE($B52,MONTH(C$49),1),Erfolgsrechnung_Detail!$O$8:$DF$8,0))), "") -> 72297.77 | D52: =IFERROR(SUMIF(INDIRECT(dshbrdrng_umsatzentwicklung),"<>", INDEX(INDIRECT(dshbrdrng_umsatzentwicklung2),0,MATCH(DATE($B16,MONTH(D$13),1),Erfolgsrechnung_Detail!$O$8:$DF$8,0))) + IF(INDEX(tblUmsatzFltr[Nr],MATCH(filter_umsatz,tblUmsatzFltr[Umsatz Filter],0)) = 1, SUMIF(INDIRECT(dshbrdrng_bruttogewinn),"<>", INDEX(INDIRECT(dshbrdrng_bruttogewinn2),0,MATCH(DATE($B52,MONTH(D$49),1),Erfolgsrechnung_Detail!$O$8:$DF$8,0))), SUMIF(INDIRECT(dshbrdrng_bruttogewinn),"<>", INDEX(INDIRECT(dshbrdrng_bruttogewinn2),0,MATCH(DATE($B52,MONTH(D$49),1),Erfolgsrechnung_Detail!$O$8:$DF$8,0)))+C52),"") -> 56260.99 | E52: =IFERROR(SUMIF(INDIRECT(dshbrdrng_umsatzentwicklung),"<>", INDEX(INDIRECT(dshbrdrng_umsatzentwicklung2),0,MATCH(DATE($B16,MONTH(E$13),1),Erfolgsrechnung_Detail!$O$8:$DF$8,0))) + IF(INDEX(tblUmsatzFltr[Nr],MATCH(filter_umsatz,tblUmsatzFltr[Umsatz Filter],0)) = 1, SUMIF(INDIRECT(dshbrdrng_bruttogewinn),"<>", INDEX(INDIRECT(dshbrdrng_bruttogewinn2),0,MATCH(DATE($B52,MONTH(E$49),1),Erfolgsrechnung_Detail!$O$8:$DF$8,0))), SUMIF(INDIRECT(dshbrdrng_bruttogewinn),"<>", INDEX(INDIRECT(dshbrdrng_bruttogewinn2),0,MATCH(DATE($B52,MONTH(E$49),1),Erfolgsrechnung_Detail!$O$8:$DF$8,0)))+D52),"") -> 82359.04 | F52: =IFERROR(SUMIF(INDIRECT(dshbrdrng_umsatzentwicklung),"<>", INDEX(INDIRECT(dshbrdrng_umsatzentwicklung2),0,MATCH(DATE($B16,MONTH(F$13),1),Erfolgsrechnung_Detail!$O$8:$DF$8,0))) + IF(INDEX(tblUmsatzFltr[Nr],MATCH(filter_umsatz,tblUmsatzFltr[Umsatz Filter],0)) = 1, SUMIF(INDIRECT(dshbrdrng_bruttogewinn),"<>", INDEX(INDIRECT(dshbrdrng_bruttogewinn2),0,MATCH(DATE($B52,MONTH(F$49),1),Erfolgsrechnung_Detail!$O$8:$DF$8,0))), SUMIF(INDIRECT(dshbrdrng_bruttogewinn),"<>", INDEX(INDIRECT(dshbrdrng_bruttogewinn2),0,MATCH(DATE($B52,MONTH(F$49),1),Erfolgsrechnung_Detail!$O$8:$DF$8,0)))+E52),"") -> 54486 | G52: =IFERROR(SUMIF(INDIRECT(dshbrdrng_umsatzentwicklung),"<>", INDEX(INDIRECT(dshbrdrng_umsatzentwicklung2),0,MATCH(DATE($B16,MONTH(G$13),1),Erfolgsrechnung_Detail!$O$8:$DF$8,0))) + IF(INDEX(tblUmsatzFltr[Nr],MATCH(filter_umsatz,tblUmsatzFltr[Umsatz Filter],0)) = 1, SUMIF(INDIRECT(dshbrdrng_bruttogewinn),"<>", INDEX(INDIRECT(dshbrdrng_bruttogewinn2),0,MATCH(DATE($B52,MONTH(G$49),1),Erfolgsrechnung_Detail!$O$8:$DF$8,0))), SUMIF(INDIRECT(dshbrdrng_bruttogewinn),"<>", INDEX(INDIRECT(dshbrdrng_bruttogewinn2),0,MATCH(DATE($B52,MONTH(G$49),1),Erfolgsrechnung_Detail!$O$8:$DF$8,0)))+F52),"") -> 44094.37 | H52: =IFERROR(SUMIF(INDIRECT(dshbrdrng_umsatzentwicklung),"<>", INDEX(INDIRECT(dshbrdrng_umsatzentwicklung2),0,MATCH(DATE($B16,MONTH(H$13),1),Erfolgsrechnung_Detail!$O$8:$DF$8,0))) + IF(INDEX(tblUmsatzFltr[Nr],MATCH(filter_umsatz,tblUmsatzFltr[Umsatz Filter],0)) = 1, SUMIF(INDIRECT(dshbrdrng_bruttogewinn),"<>", INDEX(INDIRECT(dshbrdrng_bruttogewinn2),0,MATCH(DATE($B52,MONTH(H$49),1),Erfolgsrechnung_Detail!$O$8:$DF$8,0))), SUMIF(INDIRECT(dshbrdrng_bruttogewinn),"<>", INDEX(INDIRECT(dshbrdrng_bruttogewinn2),0,MATCH(DATE($B52,MONTH(H$49),1),Erfolgsrechnung_Detail!$O$8:$DF$8,0)))+G52),"") -> 63434.74 | I52: =IFERROR(SUMIF(INDIRECT(dshbrdrng_umsatzentwicklung),"<>", INDEX(INDIRECT(dshbrdrng_umsatzentwicklung2),0,MATCH(DATE($B16,MONTH(I$13),1),Erfolgsrechnung_Detail!$O$8:$DF$8,0))) + IF(INDEX(tblUmsatzFltr[Nr],MATCH(filter_umsatz,tblUmsatzFltr[Umsatz Filter],0)) = 1, SUMIF(INDIRECT(dshbrdrng_bruttogewinn),"<>", INDEX(INDIRECT(dshbrdrng_bruttogewinn2),0,MATCH(DATE($B52,MONTH(I$49),1),Erfolgsrechnung_Detail!$O$8:$DF$8,0))), SUMIF(INDIRECT(dshbrdrng_bruttogewinn),"<>", INDEX(INDIRECT(dshbrdrng_bruttogewinn2),0,MATCH(DATE($B52,MONTH(I$49),1),Erfolgsrechnung_Detail!$O$8:$DF$8,0)))+H52),"") -> 86742 | J52: =IFERROR(SUMIF(INDIRECT(dshbrdrng_umsatzentwicklung),"<>", INDEX(INDIRECT(dshbrdrng_umsatzentwicklung2),0,MATCH(DATE($B16,MONTH(J$13),1),Erfolgsrechnung_Detail!$O$8:$DF$8,0))) + IF(INDEX(tblUmsatzFltr[Nr],MATCH(filter_umsatz,tblUmsatzFltr[Umsatz Filter],0)) = 1, SUMIF(INDIRECT(dshbrdrng_bruttogewinn),"<>", INDEX(INDIRECT(dshbrdrng_bruttogewinn2),0,MATCH(DATE($B52,MONTH(J$49),1),Erfolgsrechnung_Detail!$O$8:$DF$8,0))), SUMIF(INDIRECT(dshbrdrng_bruttogewinn),"<>", INDEX(INDIRECT(dshbrdrng_bruttogewinn2),0,MATCH(DATE($B52,MONTH(J$49),1),Erfolgsrechnung_Detail!$O$8:$DF$8,0)))+I52),"") -> 54516.32 | K52: =IFERROR(SUMIF(INDIRECT(dshbrdrng_umsatzentwicklung),"<>", INDEX(INDIRECT(dshbrdrng_umsatzentwicklung2),0,MATCH(DATE($B16,MONTH(K$13),1),Erfolgsrechnung_Detail!$O$8:$DF$8,0))) + IF(INDEX(tblUmsatzFltr[Nr],MATCH(filter_umsatz,tblUmsatzFltr[Umsatz Filter],0)) = 1, SUMIF(INDIRECT(dshbrdrng_bruttogewinn),"<>", INDEX(INDIRECT(dshbrdrng_bruttogewinn2),0,MATCH(DATE($B52,MONTH(K$49),1),Erfolgsrechnung_Detail!$O$8:$DF$8,0))), SUMIF(INDIRECT(dshbrdrng_bruttogewinn),"<>", INDEX(INDIRECT(dshbrdrng_bruttogewinn2),0,MATCH(DATE($B52,MONTH(K$49),1),Erfolgsrechnung_Detail!$O$8:$DF$8,0)))+J52),"") -> 55148.83 | L52: =IFERROR(SUMIF(INDIRECT(dshbrdrng_umsatzentwicklung),"<>", INDEX(INDIRECT(dshbrdrng_umsatzentwicklung2),0,MATCH(DATE($B16,MONTH(L$13),1),Erfolgsrechnung_Detail!$O$8:$DF$8,0))) + IF(INDEX(tblUmsatzFltr[Nr],MATCH(filter_umsatz,tblUmsatzFltr[Umsatz Filter],0)) = 1, SUMIF(INDIRECT(dshbrdrng_bruttogewinn),"<>", INDEX(INDIRECT(dshbrdrng_bruttogewinn2),0,MATCH(DATE($B52,MONTH(L$49),1),Erfolgsrechnung_Detail!$O$8:$DF$8,0))), SUMIF(INDIRECT(dshbrdrng_bruttogewinn),"<>", INDEX(INDIRECT(dshbrdrng_bruttogewinn2),0,MATCH(DATE($B52,MONTH(L$49),1),Erfolgsrechnung_Detail!$O$8:$DF$8,0)))+K52),"") -> 48698.83 | M52: =IFERROR(SUMIF(INDIRECT(dshbrdrng_umsatzentwicklung),"<>", INDEX(INDIRECT(dshbrdrng_umsatzentwicklung2),0,MATCH(DATE($B16,MONTH(M$13),1),Erfolgsrechnung_Detail!$O$8:$DF$8,0))) + IF(INDEX(tblUmsatzFltr[Nr],MATCH(filter_umsatz,tblUmsatzFltr[Umsatz Filter],0)) = 1, SUMIF(INDIRECT(dshbrdrng_bruttogewinn),"<>", INDEX(INDIRECT(dshbrdrng_bruttogewinn2),0,MATCH(DATE($B52,MONTH(M$49),1),Erfolgsrechnung_Detail!$O$8:$DF$8,0))), SUMIF(INDIRECT(dshbrdrng_bruttogewinn),"<>", INDEX(INDIRECT(dshbrdrng_bruttogewinn2),0,MATCH(DATE($B52,MONTH(M$49),1),Erfolgsrechnung_Detail!$O$8:$DF$8,0)))+L52),"") -> 109157.6 | N52: =IFERROR(SUMIF(INDIRECT(dshbrdrng_umsatzentwicklung),"<>", INDEX(INDIRECT(dshbrdrng_umsatzentwicklung2),0,MATCH(DATE($B16,MONTH(N$13),1),Erfolgsrechnung_Detail!$O$8:$DF$8,0))) + IF(INDEX(tblUmsatzFltr[Nr],MATCH(filter_umsatz,tblUmsatzFltr[Umsatz Filter],0)) = 1, SUMIF(INDIRECT(dshbrdrng_bruttogewinn),"<>", INDEX(INDIRECT(dshbrdrng_bruttogewinn2),0,MATCH(DATE($B52,MONTH(N$49),1),Erfolgsrechnung_Detail!$O$8:$DF$8,0))), SUMIF(INDIRECT(dshbrdrng_bruttogewinn),"<>", INDEX(INDIRECT(dshbrdrng_bruttogewinn2),0,MATCH(DATE($B52,MONTH(N$49),1),Erfolgsrechnung_Detail!$O$8:$DF$8,0)))+M52),"") -> 135972.44 | P52: =IFERROR(IF( INDEX(tblUmsatzFltr[Nr],MATCH(filter_umsatz,tblUmsatzFltr[Umsatz Filter],0))=1, SUM($C52:INDEX($C52:$N52,1,selectedmonat_num)), INDEX($C52:$N52,0,MATCH(monat,tblMonate[Monate],0))),"") -> 210917.8 | Q52: =IFERROR( IF(INDEX(tblUmsatzFltr[Nr],MATCH(filter_umsatz,tblUmsatzFltr[Umsatz Filter],0))=1, SUM(C52:$N52),N52),"") -> 863168.93
B53: 2017 | C53: =IFERROR(C17+ SUMIF(INDIRECT(dshbrdrng_bruttogewinn),"<>", INDEX(INDIRECT(dshbrdrng_bruttogewinn2),0,MATCH(DATE($B53,MONTH(C$49),1),Erfolgsrechnung_Detail!$O$8:$DF$8,0))), "") -> 69182.58 | D53: =IFERROR(SUMIF(INDIRECT(dshbrdrng_umsatzentwicklung),"<>", INDEX(INDIRECT(dshbrdrng_umsatzentwicklung2),0,MATCH(DATE($B17,MONTH(D$13),1),Erfolgsrechnung_Detail!$O$8:$DF$8,0))) + IF(INDEX(tblUmsatzFltr[Nr],MATCH(filter_umsatz,tblUmsatzFltr[Umsatz Filter],0)) = 1, SUMIF(INDIRECT(dshbrdrng_bruttogewinn),"<>", INDEX(INDIRECT(dshbrdrng_bruttogewinn2),0,MATCH(DATE($B53,MONTH(D$49),1),Erfolgsrechnung_Detail!$O$8:$DF$8,0))), SUMIF(INDIRECT(dshbrdrng_bruttogewinn),"<>", INDEX(INDIRECT(dshbrdrng_bruttogewinn2),0,MATCH(DATE($B53,MONTH(D$49),1),Erfolgsrechnung_Detail!$O$8:$DF$8,0)))+C53),"") -> 45397.29 | E53: =IFERROR(SUMIF(INDIRECT(dshbrdrng_umsatzentwicklung),"<>", INDEX(INDIRECT(dshbrdrng_umsatzentwicklung2),0,MATCH(DATE($B17,MONTH(E$13),1),Erfolgsrechnung_Detail!$O$8:$DF$8,0))) + IF(INDEX(tblUmsatzFltr[Nr],MATCH(filter_umsatz,tblUmsatzFltr[Umsatz Filter],0)) = 1, SUMIF(INDIRECT(dshbrdrng_bruttogewinn),"<>", INDEX(INDIRECT(dshbrdrng_bruttogewinn2),0,MATCH(DATE($B53,MONTH(E$49),1),Erfolgsrechnung_Detail!$O$8:$DF$8,0))), SUMIF(INDIRECT(dshbrdrng_bruttogewinn),"<>", INDEX(INDIRECT(dshbrdrng_bruttogewinn2),0,MATCH(DATE($B53,MONTH(E$49),1),Erfolgsrechnung_Detail!$O$8:$DF$8,0)))+D53),"") -> 84700.56 | F53: =IFERROR(SUMIF(INDIRECT(dshbrdrng_umsatzentwicklung),"<>", INDEX(INDIRECT(dshbrdrng_umsatzentwicklung2),0,MATCH(DATE($B17,MONTH(F$13),1),Erfolgsrechnung_Detail!$O$8:$DF$8,0))) + IF(INDEX(tblUmsatzFltr[Nr],MATCH(filter_umsatz,tblUmsatzFltr[Umsatz Filter],0)) = 1, SUMIF(INDIRECT(dshbrdrng_bruttogewinn),"<>", INDEX(INDIRECT(dshbrdrng_bruttogewinn2),0,MATCH(DATE($B53,MONTH(F$49),1),Erfolgsrechnung_Detail!$O$8:$DF$8,0))), SUMIF(INDIRECT(dshbrdrng_bruttogewinn),"<>", INDEX(INDIRECT(dshbrdrng_bruttogewinn2),0,MATCH(DATE($B53,MONTH(F$49),1),Erfolgsrechnung_Detail!$O$8:$DF$8,0)))+E53),"") -> 39722.82 | G53: =IFERROR(SUMIF(INDIRECT(dshbrdrng_umsatzentwicklung),"<>", INDEX(INDIRECT(dshbrdrng_umsatzentwicklung2),0,MATCH(DATE($B17,MONTH(G$13),1),Erfolgsrechnung_Detail!$O$8:$DF$8,0))) + IF(INDEX(tblUmsatzFltr[Nr],MATCH(filter_umsatz,tblUmsatzFltr[Umsatz Filter],0)) = 1, SUMIF(INDIRECT(dshbrdrng_bruttogewinn),"<>", INDEX(INDIRECT(dshbrdrng_bruttogewinn2),0,MATCH(DATE($B53,MONTH(G$49),1),Erfolgsrechnung_Detail!$O$8:$DF$8,0))), SUMIF(INDIRECT(dshbrdrng_bruttogewinn),"<>", INDEX(INDIRECT(dshbrdrng_bruttogewinn2),0,MATCH(DATE($B53,MONTH(G$49),1),Erfolgsrechnung_Detail!$O$8:$DF$8,0)))+F53),"") -> 79515.66 | H53: =IFERROR(SUMIF(INDIRECT(dshbrdrng_umsatzentwicklung),"<>", INDEX(INDIRECT(dshbrdrng_umsatzentwicklung2),0,MATCH(DATE($B17,MONTH(H$13),1),Erfolgsrechnung_Detail!$O$8:$DF$8,0))) + IF(INDEX(tblUmsatzFltr[Nr],MATCH(filter_umsatz,tblUmsatzFltr[Umsatz Filter],0)) = 1, SUMIF(INDIRECT(dshbrdrng_bruttogewinn),"<>", INDEX(INDIRECT(dshbrdrng_bruttogewinn2),0,MATCH(DATE($B53,MONTH(H$49),1),Erfolgsrechnung_Detail!$O$8:$DF$8,0))), SUMIF(INDIRECT(dshbrdrng_bruttogewinn),"<>", INDEX(INDIRECT(dshbrdrng_bruttogewinn2),0,MATCH(DATE($B53,MONTH(H$49),1),Erfolgsrechnung_Detail!$O$8:$DF$8,0)))+G53),"") -> 75797.19 | I53: =IFERROR(SUMIF(INDIRECT(dshbrdrng_umsatzentwicklung),"<>", INDEX(INDIRECT(dshbrdrng_umsatzentwicklung2),0,MATCH(DATE($B17,MONTH(I$13),1),Erfolgsrechnung_Detail!$O$8:$DF$8,0))) + IF(INDEX(tblUmsatzFltr[Nr],MATCH(filter_umsatz,tblUmsatzFltr[Umsatz Filter],0)) = 1, SUMIF(INDIRECT(dshbrdrng_bruttogewinn),"<>", INDEX(INDIRECT(dshbrdrng_bruttogewinn2),0,MATCH(DATE($B53,MONTH(I$49),1),Erfolgsrechnung_Detail!$O$8:$DF$8,0))), SUMIF(INDIRECT(dshbrdrng_bruttogewinn),"<>", INDEX(INDIRECT(dshbrdrng_bruttogewinn2),0,MATCH(DATE($B53,MONTH(I$49),1),Erfolgsrechnung_Detail!$O$8:$DF$8,0)))+H53),"") -> 64330.57 | J53: =IFERROR(SUMIF(INDIRECT(dshbrdrng_umsatzentwicklung),"<>", INDEX(INDIRECT(dshbrdrng_umsatzentwicklung2),0,MATCH(DATE($B17,MONTH(J$13),1),Erfolgsrechnung_Detail!$O$8:$DF$8,0))) + IF(INDEX(tblUmsatzFltr[Nr],MATCH(filter_umsatz,tblUmsatzFltr[Umsatz Filter],0)) = 1, SUMIF(INDIRECT(dshbrdrng_bruttogewinn),"<>", INDEX(INDIRECT(dshbrdrng_bruttogewinn2),0,MATCH(DATE($B53,MONTH(J$49),1),Erfolgsrechnung_Detail!$O$8:$DF$8,0))), SUMIF(INDIRECT(dshbrdrng_bruttogewinn),"<>", INDEX(INDIRECT(dshbrdrng_bruttogewinn2),0,MATCH(DATE($B53,MONTH(J$49),1),Erfolgsrechnung_Detail!$O$8:$DF$8,0)))+I53),"") -> 70817.8 | K53: =IFERROR(SUMIF(INDIRECT(dshbrdrng_umsatzentwicklung),"<>", INDEX(INDIRECT(dshbrdrng_umsatzentwicklung2),0,MATCH(DATE($B17,MONTH(K$13),1),Erfolgsrechnung_Detail!$O$8:$DF$8,0))) + IF(INDEX(tblUmsatzFltr[Nr],MATCH(filter_umsatz,tblUmsatzFltr[Umsatz Filter],0)) = 1, SUMIF(INDIRECT(dshbrdrng_bruttogewinn),"<>", INDEX(INDIRECT(dshbrdrng_bruttogewinn2),0,MATCH(DATE($B53,MONTH(K$49),1),Erfolgsrechnung_Detail!$O$8:$DF$8,0))), SUMIF(INDIRECT(dshbrdrng_bruttogewinn),"<>", INDEX(INDIRECT(dshbrdrng_bruttogewinn2),0,MATCH(DATE($B53,MONTH(K$49),1),Erfolgsrechnung_Detail!$O$8:$DF$8,0)))+J53),"") -> 68833.13 | L53: =IFERROR(SUMIF(INDIRECT(dshbrdrng_umsatzentwicklung),"<>", INDEX(INDIRECT(dshbrdrng_umsatzentwicklung2),0,MATCH(DATE($B17,MONTH(L$13),1),Erfolgsrechnung_Detail!$O$8:$DF$8,0))) + IF(INDEX(tblUmsatzFltr[Nr],MATCH(filter_umsatz,tblUmsatzFltr[Umsatz Filter],0)) = 1, SUMIF(INDIRECT(dshbrdrng_bruttogewinn),"<>", INDEX(INDIRECT(dshbrdrng_bruttogewinn2),0,MATCH(DATE($B53,MONTH(L$49),1),Erfolgsrechnung_Detail!$O$8:$DF$8,0))), SUMIF(INDIRECT(dshbrdrng_bruttogewinn),"<>", INDEX(INDIRECT(dshbrdrng_bruttogewinn2),0,MATCH(DATE($B53,MONTH(L$49),1),Erfolgsrechnung_Detail!$O$8:$DF$8,0)))+K53),"") -> 68405.48 | M53: =IFERROR(SUMIF(INDIRECT(dshbrdrng_umsatzentwicklung),"<>", INDEX(INDIRECT(dshbrdrng_umsatzentwicklung2),0,MATCH(DATE($B17,MONTH(M$13),1),Erfolgsrechnung_Detail!$O$8:$DF$8,0))) + IF(INDEX(tblUmsatzFltr[Nr],MATCH(filter_umsatz,tblUmsatzFltr[Umsatz Filter],0)) = 1, SUMIF(INDIRECT(dshbrdrng_bruttogewinn),"<>", INDEX(INDIRECT(dshbrdrng_bruttogewinn2),0,MATCH(DATE($B53,MONTH(M$49),1),Erfolgsrechnung_Detail!$O$8:$DF$8,0))), SUMIF(INDIRECT(dshbrdrng_bruttogewinn),"<>", INDEX(INDIRECT(dshbrdrng_bruttogewinn2),0,MATCH(DATE($B53,MONTH(M$49),1),Erfolgsrechnung_Detail!$O$8:$DF$8,0)))+L53),"") -> 46786.17 | N53: =IFERROR(SUMIF(INDIRECT(dshbrdrng_umsatzentwicklung),"<>", INDEX(INDIRECT(dshbrdrng_umsatzentwicklung2),0,MATCH(DATE($B17,MONTH(N$13),1),Erfolgsrechnung_Detail!$O$8:$DF$8,0))) + IF(INDEX(tblUmsatzFltr[Nr],MATCH(filter_umsatz,tblUmsatzFltr[Umsatz Filter],0)) = 1, SUMIF(INDIRECT(dshbrdrng_bruttogewinn),"<>", INDEX(INDIRECT(dshbrdrng_bruttogewinn2),0,MATCH(DATE($B53,MONTH(N$49),1),Erfolgsrechnung_Detail!$O$8:$DF$8,0))), SUMIF(INDIRECT(dshbrdrng_bruttogewinn),"<>", INDEX(INDIRECT(dshbrdrng_bruttogewinn2),0,MATCH(DATE($B53,MONTH(N$49),1),Erfolgsrechnung_Detail!$O$8:$DF$8,0)))+M53),"") -> 73966.43 | P53: =IFERROR(IF( INDEX(tblUmsatzFltr[Nr],MATCH(filter_umsatz,tblUmsatzFltr[Umsatz Filter],0))=1, SUM($C53:INDEX($C53:$N53,1,selectedmonat_num)), INDEX($C53:$N53,0,MATCH(monat,tblMonate[Monate],0))),"") -> 199280.43 | Q53: =IFERROR( IF(INDEX(tblUmsatzFltr[Nr],MATCH(filter_umsatz,tblUmsatzFltr[Umsatz Filter],0))=1, SUM(C53:$N53),N53),"") -> 787455.68
B54: 2018 | C54: =IFERROR(C18+ SUMIF(INDIRECT(dshbrdrng_bruttogewinn),"<>", INDEX(INDIRECT(dshbrdrng_bruttogewinn2),0,MATCH(DATE($B54,MONTH(C$49),1),Erfolgsrechnung_Detail!$O$8:$DF$8,0))), "") -> 43355.46 | D54: =IFERROR(SUMIF(INDIRECT(dshbrdrng_umsatzentwicklung),"<>", INDEX(INDIRECT(dshbrdrng_umsatzentwicklung2),0,MATCH(DATE($B18,MONTH(D$13),1),Erfolgsrechnung_Detail!$O$8:$DF$8,0))) + IF(INDEX(tblUmsatzFltr[Nr],MATCH(filter_umsatz,tblUmsatzFltr[Umsatz Filter],0)) = 1, SUMIF(INDIRECT(dshbrdrng_bruttogewinn),"<>", INDEX(INDIRECT(dshbrdrng_bruttogewinn2),0,MATCH(DATE($B54,MONTH(D$49),1),Erfolgsrechnung_Detail!$O$8:$DF$8,0))), SUMIF(INDIRECT(dshbrdrng_bruttogewinn),"<>", INDEX(INDIRECT(dshbrdrng_bruttogewinn2),0,MATCH(DATE($B54,MONTH(D$49),1),Erfolgsrechnung_Detail!$O$8:$DF$8,0)))+C54),"") -> 38658.93 | E54: =IFERROR(SUMIF(INDIRECT(dshbrdrng_umsatzentwicklung),"<>", INDEX(INDIRECT(dshbrdrng_umsatzentwicklung2),0,MATCH(DATE($B18,MONTH(E$13),1),Erfolgsrechnung_Detail!$O$8:$DF$8,0))) + IF(INDEX(tblUmsatzFltr[Nr],MATCH(filter_umsatz,tblUmsatzFltr[Umsatz Filter],0)) = 1, SUMIF(INDIRECT(dshbrdrng_bruttogewinn),"<>", INDEX(INDIRECT(dshbrdrng_bruttogewinn2),0,MATCH(DATE($B54,MONTH(E$49),1),Erfolgsrechnung_Detail!$O$8:$DF$8,0))), SUMIF(INDIRECT(dshbrdrng_bruttogewinn),"<>", INDEX(INDIRECT(dshbrdrng_bruttogewinn2),0,MATCH(DATE($B54,MONTH(E$49),1),Erfolgsrechnung_Detail!$O$8:$DF$8,0)))+D54),"") -> 76194.84 | F54: =IFERROR(SUMIF(INDIRECT(dshbrdrng_umsatzentwicklung),"<>", INDEX(INDIRECT(dshbrdrng_umsatzentwicklung2),0,MATCH(DATE($B18,MONTH(F$13),1),Erfolgsrechnung_Detail!$O$8:$DF$8,0))) + IF(INDEX(tblUmsatzFltr[Nr],MATCH(filter_umsatz,tblUmsatzFltr[Umsatz Filter],0)) = 1, SUMIF(INDIRECT(dshbrdrng_bruttogewinn),"<>", INDEX(INDIRECT(dshbrdrng_bruttogewinn2),0,MATCH(DATE($B54,MONTH(F$49),1),Erfolgsrechnung_Detail!$O$8:$DF$8,0))), SUMIF(INDIRECT(dshbrdrng_bruttogewinn),"<>", INDEX(INDIRECT(dshbrdrng_bruttogewinn2),0,MATCH(DATE($B54,MONTH(F$49),1),Erfolgsrechnung_Detail!$O$8:$DF$8,0)))+E54),"") -> 83400.22 | G54: =IFERROR(SUMIF(INDIRECT(dshbrdrng_umsatzentwicklung),"<>", INDEX(INDIRECT(dshbrdrng_umsatzentwicklung2),0,MATCH(DATE($B18,MONTH(G$13),1),Erfolgsrechnung_Detail!$O$8:$DF$8,0))) + IF(INDEX(tblUmsatzFltr[Nr],MATCH(filter_umsatz,tblUmsatzFltr[Umsatz Filter],0)) = 1, SUMIF(INDIRECT(dshbrdrng_bruttogewinn),"<>", INDEX(INDIRECT(dshbrdrng_bruttogewinn2),0,MATCH(DATE($B54,MONTH(G$49),1),Erfolgsrechnung_Detail!$O$8:$DF$8,0))), SUMIF(INDIRECT(dshbrdrng_bruttogewinn),"<>", INDEX(INDIRECT(dshbrdrng_bruttogewinn2),0,MATCH(DATE($B54,MONTH(G$49),1),Erfolgsrechnung_Detail!$O$8:$DF$8,0)))+F54),"") -> 51532.75 | H54: =IFERROR(SUMIF(INDIRECT(dshbrdrng_umsatzentwicklung),"<>", INDEX(INDIRECT(dshbrdrng_umsatzentwicklung2),0,MATCH(DATE($B18,MONTH(H$13),1),Erfolgsrechnung_Detail!$O$8:$DF$8,0))) + IF(INDEX(tblUmsatzFltr[Nr],MATCH(filter_umsatz,tblUmsatzFltr[Umsatz Filter],0)) = 1, SUMIF(INDIRECT(dshbrdrng_bruttogewinn),"<>", INDEX(INDIRECT(dshbrdrng_bruttogewinn2),0,MATCH(DATE($B54,MONTH(H$49),1),Erfolgsrechnung_Detail!$O$8:$DF$8,0))), SUMIF(INDIRECT(dshbrdrng_bruttogewinn),"<>", INDEX(INDIRECT(dshbrdrng_bruttogewinn2),0,MATCH(DATE($B54,MONTH(H$49),1),Erfolgsrechnung_Detail!$O$8:$DF$8,0)))+G54),"") -> 78300.84 | I54: =IFERROR(SUMIF(INDIRECT(dshbrdrng_umsatzentwicklung),"<>", INDEX(INDIRECT(dshbrdrng_umsatzentwicklung2),0,MATCH(DATE($B18,MONTH(I$13),1),Erfolgsrechnung_Detail!$O$8:$DF$8,0))) + IF(INDEX(tblUmsatzFltr[Nr],MATCH(filter_umsatz,tblUmsatzFltr[Umsatz Filter],0)) = 1, SUMIF(INDIRECT(dshbrdrng_bruttogewinn),"<>", INDEX(INDIRECT(dshbrdrng_bruttogewinn2),0,MATCH(DATE($B54,MONTH(I$49),1),Erfolgsrechnung_Detail!$O$8:$DF$8,0))), SUMIF(INDIRECT(dshbrdrng_bruttogewinn),"<>", INDEX(INDIRECT(dshbrdrng_bruttogewinn2),0,MATCH(DATE($B54,MONTH(I$49),1),Erfolgsrechnung_Detail!$O$8:$DF$8,0)))+H54),"") -> 96012.35 | J54: =IFERROR(SUMIF(INDIRECT(dshbrdrng_umsatzentwicklung),"<>", INDEX(INDIRECT(dshbrdrng_umsatzentwicklung2),0,MATCH(DATE($B18,MONTH(J$13),1),Erfolgsrechnung_Detail!$O$8:$DF$8,0))) + IF(INDEX(tblUmsatzFltr[Nr],MATCH(filter_umsatz,tblUmsatzFltr[Umsatz Filter],0)) = 1, SUMIF(INDIRECT(dshbrdrng_bruttogewinn),"<>", INDEX(INDIRECT(dshbrdrng_bruttogewinn2),0,MATCH(DATE($B54,MONTH(J$49),1),Erfolgsrechnung_Detail!$O$8:$DF$8,0))), SUMIF(INDIRECT(dshbrdrng_bruttogewinn),"<>", INDEX(INDIRECT(dshbrdrng_bruttogewinn2),0,MATCH(DATE($B54,MONTH(J$49),1),Erfolgsrechnung_Detail!$O$8:$DF$8,0)))+I54),"") -> 99310.21 | K54: =IFERROR(SUMIF(INDIRECT(dshbrdrng_umsatzentwicklung),"<>", INDEX(INDIRECT(dshbrdrng_umsatzentwicklung2),0,MATCH(DATE($B18,MONTH(K$13),1),Erfolgsrechnung_Detail!$O$8:$DF$8,0))) + IF(INDEX(tblUmsatzFltr[Nr],MATCH(filter_umsatz,tblUmsatzFltr[Umsatz Filter],0)) = 1, SUMIF(INDIRECT(dshbrdrng_bruttogewinn),"<>", INDEX(INDIRECT(dshbrdrng_bruttogewinn2),0,MATCH(DATE($B54,MONTH(K$49),1),Erfolgsrechnung_Detail!$O$8:$DF$8,0))), SUMIF(INDIRECT(dshbrdrng_bruttogewinn),"<>", INDEX(INDIRECT(dshbrdrng_bruttogewinn2),0,MATCH(DATE($B54,MONTH(K$49),1),Erfolgsrechnung_Detail!$O$8:$DF$8,0)))+J54),"") -> 69812.41 | L54: =IFERROR(SUMIF(INDIRECT(dshbrdrng_umsatzentwicklung),"<>", INDEX(INDIRECT(dshbrdrng_umsatzentwicklung2),0,MATCH(DATE($B18,MONTH(L$13),1),Erfolgsrechnung_Detail!$O$8:$DF$8,0))) + IF(INDEX(tblUmsatzFltr[Nr],MATCH(filter_umsatz,tblUmsatzFltr[Umsatz Filter],0)) = 1, SUMIF(INDIRECT(dshbrdrng_bruttogewinn),"<>", INDEX(INDIRECT(dshbrdrng_bruttogewinn2),0,MATCH(DATE($B54,MONTH(L$49),1),Erfolgsrechnung_Detail!$O$8:$DF$8,0))), SUMIF(INDIRECT(dshbrdrng_bruttogewinn),"<>", INDEX(INDIRECT(dshbrdrng_bruttogewinn2),0,MATCH(DATE($B54,MONTH(L$49),1),Erfolgsrechnung_Detail!$O$8:$DF$8,0)))+K54),"") -> 59036.46 | M54: =IFERROR(SUMIF(INDIRECT(dshbrdrng_umsatzentwicklung),"<>", INDEX(INDIRECT(dshbrdrng_umsatzentwicklung2),0,MATCH(DATE($B18,MONTH(M$13),1),Erfolgsrechnung_Detail!$O$8:$DF$8,0))) + IF(INDEX(tblUmsatzFltr[Nr],MATCH(filter_umsatz,tblUmsatzFltr[Umsatz Filter],0)) = 1, SUMIF(INDIRECT(dshbrdrng_bruttogewinn),"<>", INDEX(INDIRECT(dshbrdrng_bruttogewinn2),0,MATCH(DATE($B54,MONTH(M$49),1),Erfolgsrechnung_Detail!$O$8:$DF$8,0))), SUMIF(INDIRECT(dshbrdrng_bruttogewinn),"<>", INDEX(INDIRECT(dshbrdrng_bruttogewinn2),0,MATCH(DATE($B54,MONTH(M$49),1),Erfolgsrechnung_Detail!$O$8:$DF$8,0)))+L54),"") -> 71773.49 | N54: =IFERROR(SUMIF(INDIRECT(dshbrdrng_umsatzentwicklung),"<>", INDEX(INDIRECT(dshbrdrng_umsatzentwicklung2),0,MATCH(DATE($B18,MONTH(N$13),1),Erfolgsrechnung_Detail!$O$8:$DF$8,0))) + IF(INDEX(tblUmsatzFltr[Nr],MATCH(filter_umsatz,tblUmsatzFltr[Umsatz Filter],0)) = 1, SUMIF(INDIRECT(dshbrdrng_bruttogewinn),"<>", INDEX(INDIRECT(dshbrdrng_bruttogewinn2),0,MATCH(DATE($B54,MONTH(N$49),1),Erfolgsrechnung_Detail!$O$8:$DF$8,0))), SUMIF(INDIRECT(dshbrdrng_bruttogewinn),"<>", INDEX(INDIRECT(dshbrdrng_bruttogewinn2),0,MATCH(DATE($B54,MONTH(N$49),1),Erfolgsrechnung_Detail!$O$8:$DF$8,0)))+M54),"") -> 78498.44 | P54: =IFERROR(IF( INDEX(tblUmsatzFltr[Nr],MATCH(filter_umsatz,tblUmsatzFltr[Umsatz Filter],0))=1, SUM($C54:INDEX($C54:$N54,1,selectedmonat_num)), INDEX($C54:$N54,0,MATCH(monat,tblMonate[Monate],0))),"") -> 158209.23 | Q54: =IFERROR( IF(INDEX(tblUmsatzFltr[Nr],MATCH(filter_umsatz,tblUmsatzFltr[Umsatz Filter],0))=1, SUM(C54:$N54),N54),"") -> 845886.4
B55: 2019 | C55: =IFERROR(C19+ SUMIF(INDIRECT(dshbrdrng_bruttogewinn),"<>", INDEX(INDIRECT(dshbrdrng_bruttogewinn2),0,MATCH(DATE($B55,MONTH(C$49),1),Erfolgsrechnung_Detail!$O$8:$DF$8,0))), "") -> 27562.02 | D55: =IFERROR(SUMIF(INDIRECT(dshbrdrng_umsatzentwicklung),"<>", INDEX(INDIRECT(dshbrdrng_umsatzentwicklung2),0,MATCH(DATE($B19,MONTH(D$13),1),Erfolgsrechnung_Detail!$O$8:$DF$8,0))) + IF(INDEX(tblUmsatzFltr[Nr],MATCH(filter_umsatz,tblUmsatzFltr[Umsatz Filter],0)) = 1, SUMIF(INDIRECT(dshbrdrng_bruttogewinn),"<>", INDEX(INDIRECT(dshbrdrng_bruttogewinn2),0,MATCH(DATE($B55,MONTH(D$49),1),Erfolgsrechnung_Detail!$O$8:$DF$8,0))), SUMIF(INDIRECT(dshbrdrng_bruttogewinn),"<>", INDEX(INDIRECT(dshbrdrng_bruttogewinn2),0,MATCH(DATE($B55,MONTH(D$49),1),Erfolgsrechnung_Detail!$O$8:$DF$8,0)))+C55),"") -> 37818.86 | E55: =IFERROR(SUMIF(INDIRECT(dshbrdrng_umsatzentwicklung),"<>", INDEX(INDIRECT(dshbrdrng_umsatzentwicklung2),0,MATCH(DATE($B19,MONTH(E$13),1),Erfolgsrechnung_Detail!$O$8:$DF$8,0))) + IF(INDEX(tblUmsatzFltr[Nr],MATCH(filter_umsatz,tblUmsatzFltr[Umsatz Filter],0)) = 1, SUMIF(INDIRECT(dshbrdrng_bruttogewinn),"<>", INDEX(INDIRECT(dshbrdrng_bruttogewinn2),0,MATCH(DATE($B55,MONTH(E$49),1),Erfolgsrechnung_Detail!$O$8:$DF$8,0))), SUMIF(INDIRECT(dshbrdrng_bruttogewinn),"<>", INDEX(INDIRECT(dshbrdrng_bruttogewinn2),0,MATCH(DATE($B55,MONTH(E$49),1),Erfolgsrechnung_Detail!$O$8:$DF$8,0)))+D55),"") -> 98043.96 | F55: =IFERROR(SUMIF(INDIRECT(dshbrdrng_umsatzentwicklung),"<>", INDEX(INDIRECT(dshbrdrng_umsatzentwicklung2),0,MATCH(DATE($B19,MONTH(F$13),1),Erfolgsrechnung_Detail!$O$8:$DF$8,0))) + IF(INDEX(tblUmsatzFltr[Nr],MATCH(filter_umsatz,tblUmsatzFltr[Umsatz Filter],0)) = 1, SUMIF(INDIRECT(dshbrdrng_bruttogewinn),"<>", INDEX(INDIRECT(dshbrdrng_bruttogewinn2),0,MATCH(DATE($B55,MONTH(F$49),1),Erfolgsrechnung_Detail!$O$8:$DF$8,0))), SUMIF(INDIRECT(dshbrdrng_bruttogewinn),"<>", INDEX(INDIRECT(dshbrdrng_bruttogewinn2),0,MATCH(DATE($B55,MONTH(F$49),1),Erfolgsrechnung_Detail!$O$8:$DF$8,0)))+E55),"") -> 41703.15 | G55: =IFERROR(SUMIF(INDIRECT(dshbrdrng_umsatzentwicklung),"<>", INDEX(INDIRECT(dshbrdrng_umsatzentwicklung2),0,MATCH(DATE($B19,MONTH(G$13),1),Erfolgsrechnung_Detail!$O$8:$DF$8,0))) + IF(INDEX(tblUmsatzFltr[Nr],MATCH(filter_umsatz,tblUmsatzFltr[Umsatz Filter],0)) = 1, SUMIF(INDIRECT(dshbrdrng_bruttogewinn),"<>", INDEX(INDIRECT(dshbrdrng_bruttogewinn2),0,MATCH(DATE($B55,MONTH(G$49),1),Erfolgsrechnung_Detail!$O$8:$DF$8,0))), SUMIF(INDIRECT(dshbrdrng_bruttogewinn),"<>", INDEX(INDIRECT(dshbrdrng_bruttogewinn2),0,MATCH(DATE($B55,MONTH(G$49),1),Erfolgsrechnung_Detail!$O$8:$DF$8,0)))+F55),"") -> 38524.09 | H55: =IFERROR(SUMIF(INDIRECT(dshbrdrng_umsatzentwicklung),"<>", INDEX(INDIRECT(dshbrdrng_umsatzentwicklung2),0,MATCH(DATE($B19,MONTH(H$13),1),Erfolgsrechnung_Detail!$O$8:$DF$8,0))) + IF(INDEX(tblUmsatzFltr[Nr],MATCH(filter_umsatz,tblUmsatzFltr[Umsatz Filter],0)) = 1, SUMIF(INDIRECT(dshbrdrng_bruttogewinn),"<>", INDEX(INDIRECT(dshbrdrng_bruttogewinn2),0,MATCH(DATE($B55,MONTH(H$49),1),Erfolgsrechnung_Detail!$O$8:$DF$8,0))), SUMIF(INDIRECT(dshbrdrng_bruttogewinn),"<>", INDEX(INDIRECT(dshbrdrng_bruttogewinn2),0,MATCH(DATE($B55,MONTH(H$49),1),Erfolgsrechnung_Detail!$O$8:$DF$8,0)))+G55),"") -> 55466.19 | I55: =IFERROR(SUMIF(INDIRECT(dshbrdrng_umsatzentwicklung),"<>", INDEX(INDIRECT(dshbrdrng_umsatzentwicklung2),0,MATCH(DATE($B19,MONTH(I$13),1),Erfolgsrechnung_Detail!$O$8:$DF$8,0))) + IF(INDEX(tblUmsatzFltr[Nr],MATCH(filter_umsatz,tblUmsatzFltr[Umsatz Filter],0)) = 1, SUMIF(INDIRECT(dshbrdrng_bruttogewinn),"<>", INDEX(INDIRECT(dshbrdrng_bruttogewinn2),0,MATCH(DATE($B55,MONTH(I$49),1),Erfolgsrechnung_Detail!$O$8:$DF$8,0))), SUMIF(INDIRECT(dshbrdrng_bruttogewinn),"<>", INDEX(INDIRECT(dshbrdrng_bruttogewinn2),0,MATCH(DATE($B55,MONTH(I$49),1),Erfolgsrechnung_Detail!$O$8:$DF$8,0)))+H55),"") -> 56909.61 | J55: =IFERROR(SUMIF(INDIRECT(dshbrdrng_umsatzentwicklung),"<>", INDEX(INDIRECT(dshbrdrng_umsatzentwicklung2),0,MATCH(DATE($B19,MONTH(J$13),1),Erfolgsrechnung_Detail!$O$8:$DF$8,0))) + IF(INDEX(tblUmsatzFltr[Nr],MATCH(filter_umsatz,tblUmsatzFltr[Umsatz Filter],0)) = 1, SUMIF(INDIRECT(dshbrdrng_bruttogewinn),"<>", INDEX(INDIRECT(dshbrdrng_bruttogewinn2),0,MATCH(DATE($B55,MONTH(J$49),1),Erfolgsrechnung_Detail!$O$8:$DF$8,0))), SUMIF(INDIRECT(dshbrdrng_bruttogewinn),"<>", INDEX(INDIRECT(dshbrdrng_bruttogewinn2),0,MATCH(DATE($B55,MONTH(J$49),1),Erfolgsrechnung_Detail!$O$8:$DF$8,0)))+I55),"") -> 82845.39 | K55: =IFERROR(SUMIF(INDIRECT(dshbrdrng_umsatzentwicklung),"<>", INDEX(INDIRECT(dshbrdrng_umsatzentwicklung2),0,MATCH(DATE($B19,MONTH(K$13),1),Erfolgsrechnung_Detail!$O$8:$DF$8,0))) + IF(INDEX(tblUmsatzFltr[Nr],MATCH(filter_umsatz,tblUmsatzFltr[Umsatz Filter],0)) = 1, SUMIF(INDIRECT(dshbrdrng_bruttogewinn),"<>", INDEX(INDIRECT(dshbrdrng_bruttogewinn2),0,MATCH(DATE($B55,MONTH(K$49),1),Erfolgsrechnung_Detail!$O$8:$DF$8,0))), SUMIF(INDIRECT(dshbrdrng_bruttogewinn),"<>", INDEX(INDIRECT(dshbrdrng_bruttogewinn2),0,MATCH(DATE($B55,MONTH(K$49),1),Erfolgsrechnung_Detail!$O$8:$DF$8,0)))+J55),"") -> 29908.85 | L55: =IFERROR(SUMIF(INDIRECT(dshbrdrng_umsatzentwicklung),"<>", INDEX(INDIRECT(dshbrdrng_umsatzentwicklung2),0,MATCH(DATE($B19,MONTH(L$13),1),Erfolgsrechnung_Detail!$O$8:$DF$8,0))) + IF(INDEX(tblUmsatzFltr[Nr],MATCH(filter_umsatz,tblUmsatzFltr[Umsatz Filter],0)) = 1, SUMIF(INDIRECT(dshbrdrng_bruttogewinn),"<>", INDEX(INDIRECT(dshbrdrng_bruttogewinn2),0,MATCH(DATE($B55,MONTH(L$49),1),Erfolgsrechnung_Detail!$O$8:$DF$8,0))), SUMIF(INDIRECT(dshbrdrng_bruttogewinn),"<>", INDEX(INDIRECT(dshbrdrng_bruttogewinn2),0,MATCH(DATE($B55,MONTH(L$49),1),Erfolgsrechnung_Detail!$O$8:$DF$8,0)))+K55),"") -> 44430.23 | M55: =IFERROR(SUMIF(INDIRECT(dshbrdrng_umsatzentwicklung),"<>", INDEX(INDIRECT(dshbrdrng_umsatzentwicklung2),0,MATCH(DATE($B19,MONTH(M$13),1),Erfolgsrechnung_Detail!$O$8:$DF$8,0))) + IF(INDEX(tblUmsatzFltr[Nr],MATCH(filter_umsatz,tblUmsatzFltr[Umsatz Filter],0)) = 1, SUMIF(INDIRECT(dshbrdrng_bruttogewinn),"<>", INDEX(INDIRECT(dshbrdrng_bruttogewinn2),0,MATCH(DATE($B55,MONTH(M$49),1),Erfolgsrechnung_Detail!$O$8:$DF$8,0))), SUMIF(INDIRECT(dshbrdrng_bruttogewinn),"<>", INDEX(INDIRECT(dshbrdrng_bruttogewinn2),0,MATCH(DATE($B55,MONTH(M$49),1),Erfolgsrechnung_Detail!$O$8:$DF$8,0)))+L55),"") -> 96127.75 | N55: =IFERROR(SUMIF(INDIRECT(dshbrdrng_umsatzentwicklung),"<>", INDEX(INDIRECT(dshbrdrng_umsatzentwicklung2),0,MATCH(DATE($B19,MONTH(N$13),1),Erfolgsrechnung_Detail!$O$8:$DF$8,0))) + IF(INDEX(tblUmsatzFltr[Nr],MATCH(filter_umsatz,tblUmsatzFltr[Umsatz Filter],0)) = 1, SUMIF(INDIRECT(dshbrdrng_bruttogewinn),"<>", INDEX(INDIRECT(dshbrdrng_bruttogewinn2),0,MATCH(DATE($B55,MONTH(N$49),1),Erfolgsrechnung_Detail!$O$8:$DF$8,0))), SUMIF(INDIRECT(dshbrdrng_bruttogewinn),"<>", INDEX(INDIRECT(dshbrdrng_bruttogewinn2),0,MATCH(DATE($B55,MONTH(N$49),1),Erfolgsrechnung_Detail!$O$8:$DF$8,0)))+M55),"") -> 145650.6 | P55: =IFERROR(IF( INDEX(tblUmsatzFltr[Nr],MATCH(filter_umsatz,tblUmsatzFltr[Umsatz Filter],0))=1, SUM($C55:INDEX($C55:$N55,1,selectedmonat_num)), INDEX($C55:$N55,0,MATCH(monat,tblMonate[Monate],0))),"") -> 163424.84 | Q55: =IFERROR( IF(INDEX(tblUmsatzFltr[Nr],MATCH(filter_umsatz,tblUmsatzFltr[Umsatz Filter],0))=1, SUM(C55:$N55),N55),"") -> 754990.7
B56: =jahr -> 2020 | C56: =IFERROR(C20+ SUMIF(INDIRECT(dshbrdrng_bruttogewinn),"<>", INDEX(INDIRECT(dshbrdrng_bruttogewinn2),0,MATCH(DATE($B56,MONTH(C$49),1),Erfolgsrechnung_Detail!$O$8:$DF$8,0))), "") -> 11567.28 | D56: =IFERROR(SUMIF(INDIRECT(dshbrdrng_umsatzentwicklung),"<>", INDEX(INDIRECT(dshbrdrng_umsatzentwicklung2),0,MATCH(DATE($B20,MONTH(D$13),1),Erfolgsrechnung_Detail!$O$8:$DF$8,0))) + IF(INDEX(tblUmsatzFltr[Nr],MATCH(filter_umsatz,tblUmsatzFltr[Umsatz Filter],0)) = 1, SUMIF(INDIRECT(dshbrdrng_bruttogewinn),"<>", INDEX(INDIRECT(dshbrdrng_bruttogewinn2),0,MATCH(DATE($B56,MONTH(D$49),1),Erfolgsrechnung_Detail!$O$8:$DF$8,0))), SUMIF(INDIRECT(dshbrdrng_bruttogewinn),"<>", INDEX(INDIRECT(dshbrdrng_bruttogewinn2),0,MATCH(DATE($B56,MONTH(D$49),1),Erfolgsrechnung_Detail!$O$8:$DF$8,0)))+C56),"") -> 28907.53 | E56: =IFERROR(SUMIF(INDIRECT(dshbrdrng_umsatzentwicklung),"<>", INDEX(INDIRECT(dshbrdrng_umsatzentwicklung2),0,MATCH(DATE($B20,MONTH(E$13),1),Erfolgsrechnung_Detail!$O$8:$DF$8,0))) + IF(INDEX(tblUmsatzFltr[Nr],MATCH(filter_umsatz,tblUmsatzFltr[Umsatz Filter],0)) = 1, SUMIF(INDIRECT(dshbrdrng_bruttogewinn),"<>", INDEX(INDIRECT(dshbrdrng_bruttogewinn2),0,MATCH(DATE($B56,MONTH(E$49),1),Erfolgsrechnung_Detail!$O$8:$DF$8,0))), SUMIF(INDIRECT(dshbrdrng_bruttogewinn),"<>", INDEX(INDIRECT(dshbrdrng_bruttogewinn2),0,MATCH(DATE($B56,MONTH(E$49),1),Erfolgsrechnung_Detail!$O$8:$DF$8,0)))+D56),"") -> 84971.14 | F56: =IFERROR(SUMIF(INDIRECT(dshbrdrng_umsatzentwicklung),"<>", INDEX(INDIRECT(dshbrdrng_umsatzentwicklung2),0,MATCH(DATE($B20,MONTH(F$13),1),Erfolgsrechnung_Detail!$O$8:$DF$8,0))) + IF(INDEX(tblUmsatzFltr[Nr],MATCH(filter_umsatz,tblUmsatzFltr[Umsatz Filter],0)) = 1, SUMIF(INDIRECT(dshbrdrng_bruttogewinn),"<>", INDEX(INDIRECT(dshbrdrng_bruttogewinn2),0,MATCH(DATE($B56,MONTH(F$49),1),Erfolgsrechnung_Detail!$O$8:$DF$8,0))), SUMIF(INDIRECT(dshbrdrng_bruttogewinn),"<>", INDEX(INDIRECT(dshbrdrng_bruttogewinn2),0,MATCH(DATE($B56,MONTH(F$49),1),Erfolgsrechnung_Detail!$O$8:$DF$8,0)))+E56),"") -> 29343.39 | G56: =IFERROR(SUMIF(INDIRECT(dshbrdrng_umsatzentwicklung),"<>", INDEX(INDIRECT(dshbrdrng_umsatzentwicklung2),0,MATCH(DATE($B20,MONTH(G$13),1),Erfolgsrechnung_Detail!$O$8:$DF$8,0))) + IF(INDEX(tblUmsatzFltr[Nr],MATCH(filter_umsatz,tblUmsatzFltr[Umsatz Filter],0)) = 1, SUMIF(INDIRECT(dshbrdrng_bruttogewinn),"<>", INDEX(INDIRECT(dshbrdrng_bruttogewinn2),0,MATCH(DATE($B56,MONTH(G$49),1),Erfolgsrechnung_Detail!$O$8:$DF$8,0))), SUMIF(INDIRECT(dshbrdrng_bruttogewinn),"<>", INDEX(INDIRECT(dshbrdrng_bruttogewinn2),0,MATCH(DATE($B56,MONTH(G$49),1),Erfolgsrechnung_Detail!$O$8:$DF$8,0)))+F56),"") -> 87529.67 | H56: =IFERROR(SUMIF(INDIRECT(dshbrdrng_umsatzentwicklung),"<>", INDEX(INDIRECT(dshbrdrng_umsatzentwicklung2),0,MATCH(DATE($B20,MONTH(H$13),1),Erfolgsrechnung_Detail!$O$8:$DF$8,0))) + IF(INDEX(tblUmsatzFltr[Nr],MATCH(filter_umsatz,tblUmsatzFltr[Umsatz Filter],0)) = 1, SUMIF(INDIRECT(dshbrdrng_bruttogewinn),"<>", INDEX(INDIRECT(dshbrdrng_bruttogewinn2),0,MATCH(DATE($B56,MONTH(H$49),1),Erfolgsrechnung_Detail!$O$8:$DF$8,0))), SUMIF(INDIRECT(dshbrdrng_bruttogewinn),"<>", INDEX(INDIRECT(dshbrdrng_bruttogewinn2),0,MATCH(DATE($B56,MONTH(H$49),1),Erfolgsrechnung_Detail!$O$8:$DF$8,0)))+G56),"") -> 134500.64 | I56: =IFERROR(SUMIF(INDIRECT(dshbrdrng_umsatzentwicklung),"<>", INDEX(INDIRECT(dshbrdrng_umsatzentwicklung2),0,MATCH(DATE($B20,MONTH(I$13),1),Erfolgsrechnung_Detail!$O$8:$DF$8,0))) + IF(INDEX(tblUmsatzFltr[Nr],MATCH(filter_umsatz,tblUmsatzFltr[Umsatz Filter],0)) = 1, SUMIF(INDIRECT(dshbrdrng_bruttogewinn),"<>", INDEX(INDIRECT(dshbrdrng_bruttogewinn2),0,MATCH(DATE($B56,MONTH(I$49),1),Erfolgsrechnung_Detail!$O$8:$DF$8,0))), SUMIF(INDIRECT(dshbrdrng_bruttogewinn),"<>", INDEX(INDIRECT(dshbrdrng_bruttogewinn2),0,MATCH(DATE($B56,MONTH(I$49),1),Erfolgsrechnung_Detail!$O$8:$DF$8,0)))+H56),"") -> 81728.28 | J56: =IFERROR(SUMIF(INDIRECT(dshbrdrng_umsatzentwicklung),"<>", INDEX(INDIRECT(dshbrdrng_umsatzentwicklung2),0,MATCH(DATE($B20,MONTH(J$13),1),Erfolgsrechnung_Detail!$O$8:$DF$8,0))) + IF(INDEX(tblUmsatzFltr[Nr],MATCH(filter_umsatz,tblUmsatzFltr[Umsatz Filter],0)) = 1, SUMIF(INDIRECT(dshbrdrng_bruttogewinn),"<>", INDEX(INDIRECT(dshbrdrng_bruttogewinn2),0,MATCH(DATE($B56,MONTH(J$49),1),Erfolgsrechnung_Detail!$O$8:$DF$8,0))), SUMIF(INDIRECT(dshbrdrng_bruttogewinn),"<>", INDEX(INDIRECT(dshbrdrng_bruttogewinn2),0,MATCH(DATE($B56,MONTH(J$49),1),Erfolgsrechnung_Detail!$O$8:$DF$8,0)))+I56),"") -> 20181.02 | K56: =IFERROR(SUMIF(INDIRECT(dshbrdrng_umsatzentwicklung),"<>", INDEX(INDIRECT(dshbrdrng_umsatzentwicklung2),0,MATCH(DATE($B20,MONTH(K$13),1),Erfolgsrechnung_Detail!$O$8:$DF$8,0))) + IF(INDEX(tblUmsatzFltr[Nr],MATCH(filter_umsatz,tblUmsatzFltr[Umsatz Filter],0)) = 1, SUMIF(INDIRECT(dshbrdrng_bruttogewinn),"<>", INDEX(INDIRECT(dshbrdrng_bruttogewinn2),0,MATCH(DATE($B56,MONTH(K$49),1),Erfolgsrechnung_Detail!$O$8:$DF$8,0))), SUMIF(INDIRECT(dshbrdrng_bruttogewinn),"<>", INDEX(INDIRECT(dshbrdrng_bruttogewinn2),0,MATCH(DATE($B56,MONTH(K$49),1),Erfolgsrechnung_Detail!$O$8:$DF$8,0)))+J56),"") -> 28643.36 | L56: =IFERROR(SUMIF(INDIRECT(dshbrdrng_umsatzentwicklung),"<>", INDEX(INDIRECT(dshbrdrng_umsatzentwicklung2),0,MATCH(DATE($B20,MONTH(L$13),1),Erfolgsrechnung_Detail!$O$8:$DF$8,0))) + IF(INDEX(tblUmsatzFltr[Nr],MATCH(filter_umsatz,tblUmsatzFltr[Umsatz Filter],0)) = 1, SUMIF(INDIRECT(dshbrdrng_bruttogewinn),"<>", INDEX(INDIRECT(dshbrdrng_bruttogewinn2),0,MATCH(DATE($B56,MONTH(L$49),1),Erfolgsrechnung_Detail!$O$8:$DF$8,0))), SUMIF(INDIRECT(dshbrdrng_bruttogewinn),"<>", INDEX(INDIRECT(dshbrdrng_bruttogewinn2),0,MATCH(DATE($B56,MONTH(L$49),1),Erfolgsrechnung_Detail!$O$8:$DF$8,0)))+K56),"") -> 56502.21 | M56: =IFERROR(SUMIF(INDIRECT(dshbrdrng_umsatzentwicklung),"<>", INDEX(INDIRECT(dshbrdrng_umsatzentwicklung2),0,MATCH(DATE($B20,MONTH(M$13),1),Erfolgsrechnung_Detail!$O$8:$DF$8,0))) + IF(INDEX(tblUmsatzFltr[Nr],MATCH(filter_umsatz,tblUmsatzFltr[Umsatz Filter],0)) = 1, SUMIF(INDIRECT(dshbrdrng_bruttogewinn),"<>", INDEX(INDIRECT(dshbrdrng_bruttogewinn2),0,MATCH(DATE($B56,MONTH(M$49),1),Erfolgsrechnung_Detail!$O$8:$DF$8,0))), SUMIF(INDIRECT(dshbrdrng_bruttogewinn),"<>", INDEX(INDIRECT(dshbrdrng_bruttogewinn2),0,MATCH(DATE($B56,MONTH(M$49),1),Erfolgsrechnung_Detail!$O$8:$DF$8,0)))+L56),"") -> 32680.82 | N56: =IFERROR(SUMIF(INDIRECT(dshbrdrng_umsatzentwicklung),"<>", INDEX(INDIRECT(dshbrdrng_umsatzentwicklung2),0,MATCH(DATE($B20,MONTH(N$13),1),Erfolgsrechnung_Detail!$O$8:$DF$8,0))) + IF(INDEX(tblUmsatzFltr[Nr],MATCH(filter_umsatz,tblUmsatzFltr[Umsatz Filter],0)) = 1, SUMIF(INDIRECT(dshbrdrng_bruttogewinn),"<>", INDEX(INDIRECT(dshbrdrng_bruttogewinn2),0,MATCH(DATE($B56,MONTH(N$49),1),Erfolgsrechnung_Detail!$O$8:$DF$8,0))), SUMIF(INDIRECT(dshbrdrng_bruttogewinn),"<>", INDEX(INDIRECT(dshbrdrng_bruttogewinn2),0,MATCH(DATE($B56,MONTH(N$49),1),Erfolgsrechnung_Detail!$O$8:$DF$8,0)))+M56),"") -> 52036.68 | P56: =IFERROR(IF( INDEX(tblUmsatzFltr[Nr],MATCH(filter_umsatz,tblUmsatzFltr[Umsatz Filter],0))=1, SUM($C56:INDEX($C56:$N56,1,selectedmonat_num)), INDEX($C56:$N56,0,MATCH(monat,tblMonate[Monate],0))),"") -> 125445.95 | Q56: =IFERROR( IF(INDEX(tblUmsatzFltr[Nr],MATCH(filter_umsatz,tblUmsatzFltr[Umsatz Filter],0))=1, SUM(C56:$N56),N56),"") -> 648592.02
B57: YTD | C57: =IFERROR(C56/C55-1,0) -> -0.5803181334 | D57: -0.2356319043 | E57: -0.1333363116 | F57: -0.2963747343 | G57: 1.272076252 | H57: 1.424912185 | I57: 0.4361068368 | J57: -0.7564014123 | K57: -0.04231155661 | L57: 0.2717064485 | M57: -0.6600272034 | N57: -0.6427293811 | P57: =IFERROR(P56/P55-1,0) -> -0.232393619 | Q57: =IFERROR(Q56/Q55-1,0) -> -0.1409271399
D58: =IFERROR( IF(INDEX(tblUmsatzFltr[Nr],MATCH(filter_umsatz,tblUmsatzFltr[Umsatz Filter],0)) = 1, SUMIF(dshbrdrng_bruttogewinn,"="&Einstellungen!$BI$9, INDEX(dshbrdrng_bruttogewinn2,MATCH(DATE(B58,MONTH(C$49),1),Erfolgsrechnung_Detail!$O$8:$DF$8,0))), SUMIF(dshbrdrng_bruttogewinn,"="&Einstellungen!$BI$9, INDEX(dshbrdrng_bruttogewinn2,MATCH(DATE(B58,MONTH(C$49),1),Erfolgsrechnung_Detail!$O$8:$DF$8,0)))+C58),"") -> 
B59: Budget | C59: =IFERROR(SUMIFS(INDIRECT(budgetrng_umsatzentwicklung),INDIRECT(budgetrng),"<>")- SUMIFS(INDIRECT(budgetrng_bruttogewinn),INDIRECT(budgetrng2),"<>"),"") -> 5000 | D59: =IFERROR(SUMIFS(OFFSET(INDIRECT(budgetrng_umsatzentwicklung),0,1),INDIRECT(budgetrng),"<>")- SUMIFS(OFFSET(INDIRECT(budgetrng_bruttogewinn),0,1),INDIRECT(budgetrng2),"<>"),"") -> 5000 | E59: =IFERROR(SUMIFS(OFFSET(INDIRECT(budgetrng_umsatzentwicklung),0,2),INDIRECT(budgetrng),"<>")- SUMIFS(OFFSET(INDIRECT(budgetrng_bruttogewinn),0,2),INDIRECT(budgetrng2),"<>"),"") -> 7000 | F59: =IFERROR(SUMIFS(OFFSET(INDIRECT(budgetrng_umsatzentwicklung),0,3),INDIRECT(budgetrng),"<>")- SUMIFS(OFFSET(INDIRECT(budgetrng_bruttogewinn),0,3),INDIRECT(budgetrng2),"<>"),"") -> 7000 | G59: =IFERROR(SUMIFS(OFFSET(INDIRECT(budgetrng_umsatzentwicklung),0,4),INDIRECT(budgetrng),"<>")- SUMIFS(OFFSET(INDIRECT(budgetrng_bruttogewinn),0,4),INDIRECT(budgetrng2),"<>"),"") -> 9000 | H59: =IFERROR(SUMIFS(OFFSET(INDIRECT(budgetrng_umsatzentwicklung),0,5),INDIRECT(budgetrng),"<>")- SUMIFS(OFFSET(INDIRECT(budgetrng_bruttogewinn),0,5),INDIRECT(budgetrng2),"<>"),"") -> 9000 | I59: =IFERROR(SUMIFS(OFFSET(INDIRECT(budgetrng_umsatzentwicklung),0,6),INDIRECT(budgetrng),"<>")- SUMIFS(OFFSET(INDIRECT(budgetrng_bruttogewinn),0,6),INDIRECT(budgetrng2),"<>"),"") -> 11000 | J59: =IFERROR(SUMIFS(OFFSET(INDIRECT(budgetrng_umsatzentwicklung),0,7),INDIRECT(budgetrng),"<>")- SUMIFS(OFFSET(INDIRECT(budgetrng_bruttogewinn),0,7),INDIRECT(budgetrng2),"<>"),"") -> 11000 | K59: =IFERROR(SUMIFS(OFFSET(INDIRECT(budgetrng_umsatzentwicklung),0,8),INDIRECT(budgetrng),"<>")- SUMIFS(OFFSET(INDIRECT(budgetrng_bruttogewinn),0,8),INDIRECT(budgetrng2),"<>"),"") -> 13000 | L59: =IFERROR(SUMIFS(OFFSET(INDIRECT(budgetrng_umsatzentwicklung),0,9),INDIRECT(budgetrng),"<>")- SUMIFS(OFFSET(INDIRECT(budgetrng_bruttogewinn),0,9),INDIRECT(budgetrng2),"<>"),"") -> 13000 | M59: =IFERROR(SUMIFS(OFFSET(INDIRECT(budgetrng_umsatzentwicklung),0,10),INDIRECT(budgetrng),"<>")- SUMIFS(OFFSET(INDIRECT(budgetrng_bruttogewinn),0,10),INDIRECT(budgetrng2),"<>"),"") -> 15000 | N59: =IFERROR(SUMIFS(OFFSET(INDIRECT(budgetrng_umsatzentwicklung),0,11),INDIRECT(budgetrng),"<>")- SUMIFS(OFFSET(INDIRECT(budgetrng_bruttogewinn),0,11),INDIRECT(budgetrng2),"<>"),"") -> 15000 | P59: =SUM($C59:INDEX($C59:$N59,1,selectedmonat_num)) -> 17000 | Q59: =SUM(rngBudgetCost) -> 120000
B62: Aktuelles Jahr vs. Vorjahr | P62: =IF(INDEX(tblMonate[Nr],MATCH(monat,tblMonate[Monate],0))<> 1, CONCATENATE("YTD ",Einstellungen!$AY$8," - ",monat," ",B47," Zielerreichung"), CONCATENATE("YTD ",Einstellungen!$AY$8," ",B47," Zielerreichungt")) -> YTD Januar - März Bruttogewinn /-Verlust Zielerreichung
B64: Budget | C64: =C59 -> 5000 | D64: =IF(INDEX(tblUmsatzFltr[Nr],MATCH($L$3,tblUmsatzFltr[Umsatz Filter],0)) = 1,D$59,D$59+C$64) -> 5000 | E64: =IF(INDEX(tblUmsatzFltr[Nr],MATCH($L$3,tblUmsatzFltr[Umsatz Filter],0)) = 1,E$59,E$59+D$64) -> 7000 | F64: =IF(INDEX(tblUmsatzFltr[Nr],MATCH($L$3,tblUmsatzFltr[Umsatz Filter],0)) = 1,F$59,F$59+E$64) -> 7000 | G64: =IF(INDEX(tblUmsatzFltr[Nr],MATCH($L$3,tblUmsatzFltr[Umsatz Filter],0)) = 1,G$59,G$59+F$64) -> 9000 | H64: =IF(INDEX(tblUmsatzFltr[Nr],MATCH($L$3,tblUmsatzFltr[Umsatz Filter],0)) = 1,H$59,H$59+G$64) -> 9000 | I64: =IF(INDEX(tblUmsatzFltr[Nr],MATCH($L$3,tblUmsatzFltr[Umsatz Filter],0)) = 1,I$59,I$59+H$64) -> 11000 | J64: =IF(INDEX(tblUmsatzFltr[Nr],MATCH($L$3,tblUmsatzFltr[Umsatz Filter],0)) = 1,J$59,J$59+I$64) -> 11000 | K64: =IF(INDEX(tblUmsatzFltr[Nr],MATCH($L$3,tblUmsatzFltr[Umsatz Filter],0)) = 1,K$59,K$59+J$64) -> 13000 | L64: =IF(INDEX(tblUmsatzFltr[Nr],MATCH($L$3,tblUmsatzFltr[Umsatz Filter],0)) = 1,L$59,L$59+K$64) -> 13000 | M64: =IF(INDEX(tblUmsatzFltr[Nr],MATCH($L$3,tblUmsatzFltr[Umsatz Filter],0)) = 1,M$59,M$59+L$64) -> 15000 | N64: =IF(INDEX(tblUmsatzFltr[Nr],MATCH($L$3,tblUmsatzFltr[Umsatz Filter],0)) = 1,N$59,N$59+M$64) -> 15000
B83: Reingewinn / Reinverlust
C85: =DATE(jahr,1,1) -> 2020-01-01 | D85: =EOMONTH(C85,0)+1 -> 2020-02-01 | E85: 2020-03-01 | F85: 2020-04-01 | G85: 2020-05-01 | H85: 2020-06-01 | I85: 2020-07-01 | J85: 2020-08-01 | K85: 2020-09-01 | L85: 2020-10-01 | M85: 2020-11-01 | N85: 2020-12-01 | P85: =P49 -> YTD Januar bis März | Q85: Total
B86: =Startseite!$H$3-6 -> 2014 | C86: =IFERROR(C14+ SUMIF(INDIRECT(dshbrdrng_reingewinn),"<>", INDEX(INDIRECT(dshbrdrng_reingewinn2),0,MATCH(DATE($B86,MONTH(C$85),1),Erfolgsrechnung_Detail!$O$8:$DF$8,0))), "") ->  | D86: =IFERROR(SUMIF(INDIRECT(dshbrdrng_umsatzentwicklung),"<>", INDEX(INDIRECT(dshbrdrng_umsatzentwicklung2),0,MATCH(DATE($B14,MONTH(D$13),1),Erfolgsrechnung_Detail!$O$8:$DF$8,0))) + IF(INDEX(tblUmsatzFltr[Nr],MATCH(filter_umsatz,tblUmsatzFltr[Umsatz Filter],0)) = 1, SUMIF(INDIRECT(dshbrdrng_reingewinn),"<>", INDEX(INDIRECT(dshbrdrng_reingewinn2),0,MATCH(DATE($B86,MONTH(D$85),1),Erfolgsrechnung_Detail!$O$8:$DF$8,0))), SUMIF(INDIRECT(dshbrdrng_reingewinn),"<>", INDEX(INDIRECT(dshbrdrng_reingewinn2),0,MATCH(DATE($B86,MONTH(D$85),1),Erfolgsrechnung_Detail!$O$8:$DF$8,0)))+C86),"") ->  | E86: =IFERROR(SUMIF(INDIRECT(dshbrdrng_umsatzentwicklung),"<>", INDEX(INDIRECT(dshbrdrng_umsatzentwicklung2),0,MATCH(DATE($B14,MONTH(E$13),1),Erfolgsrechnung_Detail!$O$8:$DF$8,0))) + IF(INDEX(tblUmsatzFltr[Nr],MATCH(filter_umsatz,tblUmsatzFltr[Umsatz Filter],0)) = 1, SUMIF(INDIRECT(dshbrdrng_reingewinn),"<>", INDEX(INDIRECT(dshbrdrng_reingewinn2),0,MATCH(DATE($B86,MONTH(E$85),1),Erfolgsrechnung_Detail!$O$8:$DF$8,0))), SUMIF(INDIRECT(dshbrdrng_reingewinn),"<>", INDEX(INDIRECT(dshbrdrng_reingewinn2),0,MATCH(DATE($B86,MONTH(E$85),1),Erfolgsrechnung_Detail!$O$8:$DF$8,0)))+D86),"") ->  | F86: =IFERROR(SUMIF(INDIRECT(dshbrdrng_umsatzentwicklung),"<>", INDEX(INDIRECT(dshbrdrng_umsatzentwicklung2),0,MATCH(DATE($B14,MONTH(F$13),1),Erfolgsrechnung_Detail!$O$8:$DF$8,0))) + IF(INDEX(tblUmsatzFltr[Nr],MATCH(filter_umsatz,tblUmsatzFltr[Umsatz Filter],0)) = 1, SUMIF(INDIRECT(dshbrdrng_reingewinn),"<>", INDEX(INDIRECT(dshbrdrng_reingewinn2),0,MATCH(DATE($B86,MONTH(F$85),1),Erfolgsrechnung_Detail!$O$8:$DF$8,0))), SUMIF(INDIRECT(dshbrdrng_reingewinn),"<>", INDEX(INDIRECT(dshbrdrng_reingewinn2),0,MATCH(DATE($B86,MONTH(F$85),1),Erfolgsrechnung_Detail!$O$8:$DF$8,0)))+E86),"") ->  | G86: =IFERROR(SUMIF(INDIRECT(dshbrdrng_umsatzentwicklung),"<>", INDEX(INDIRECT(dshbrdrng_umsatzentwicklung2),0,MATCH(DATE($B14,MONTH(G$13),1),Erfolgsrechnung_Detail!$O$8:$DF$8,0))) + IF(INDEX(tblUmsatzFltr[Nr],MATCH(filter_umsatz,tblUmsatzFltr[Umsatz Filter],0)) = 1, SUMIF(INDIRECT(dshbrdrng_reingewinn),"<>", INDEX(INDIRECT(dshbrdrng_reingewinn2),0,MATCH(DATE($B86,MONTH(G$85),1),Erfolgsrechnung_Detail!$O$8:$DF$8,0))), SUMIF(INDIRECT(dshbrdrng_reingewinn),"<>", INDEX(INDIRECT(dshbrdrng_reingewinn2),0,MATCH(DATE($B86,MONTH(G$85),1),Erfolgsrechnung_Detail!$O$8:$DF$8,0)))+F86),"") ->  | H86: =IFERROR(SUMIF(INDIRECT(dshbrdrng_umsatzentwicklung),"<>", INDEX(INDIRECT(dshbrdrng_umsatzentwicklung2),0,MATCH(DATE($B14,MONTH(H$13),1),Erfolgsrechnung_Detail!$O$8:$DF$8,0))) + IF(INDEX(tblUmsatzFltr[Nr],MATCH(filter_umsatz,tblUmsatzFltr[Umsatz Filter],0)) = 1, SUMIF(INDIRECT(dshbrdrng_reingewinn),"<>", INDEX(INDIRECT(dshbrdrng_reingewinn2),0,MATCH(DATE($B86,MONTH(H$85),1),Erfolgsrechnung_Detail!$O$8:$DF$8,0))), SUMIF(INDIRECT(dshbrdrng_reingewinn),"<>", INDEX(INDIRECT(dshbrdrng_reingewinn2),0,MATCH(DATE($B86,MONTH(H$85),1),Erfolgsrechnung_Detail!$O$8:$DF$8,0)))+G86),"") ->  | I86: =IFERROR(SUMIF(INDIRECT(dshbrdrng_umsatzentwicklung),"<>", INDEX(INDIRECT(dshbrdrng_umsatzentwicklung2),0,MATCH(DATE($B14,MONTH(I$13),1),Erfolgsrechnung_Detail!$O$8:$DF$8,0))) + IF(INDEX(tblUmsatzFltr[Nr],MATCH(filter_umsatz,tblUmsatzFltr[Umsatz Filter],0)) = 1, SUMIF(INDIRECT(dshbrdrng_reingewinn),"<>", INDEX(INDIRECT(dshbrdrng_reingewinn2),0,MATCH(DATE($B86,MONTH(I$85),1),Erfolgsrechnung_Detail!$O$8:$DF$8,0))), SUMIF(INDIRECT(dshbrdrng_reingewinn),"<>", INDEX(INDIRECT(dshbrdrng_reingewinn2),0,MATCH(DATE($B86,MONTH(I$85),1),Erfolgsrechnung_Detail!$O$8:$DF$8,0)))+H86),"") ->  | J86: =IFERROR(SUMIF(INDIRECT(dshbrdrng_umsatzentwicklung),"<>", INDEX(INDIRECT(dshbrdrng_umsatzentwicklung2),0,MATCH(DATE($B14,MONTH(J$13),1),Erfolgsrechnung_Detail!$O$8:$DF$8,0))) + IF(INDEX(tblUmsatzFltr[Nr],MATCH(filter_umsatz,tblUmsatzFltr[Umsatz Filter],0)) = 1, SUMIF(INDIRECT(dshbrdrng_reingewinn),"<>", INDEX(INDIRECT(dshbrdrng_reingewinn2),0,MATCH(DATE($B86,MONTH(J$85),1),Erfolgsrechnung_Detail!$O$8:$DF$8,0))), SUMIF(INDIRECT(dshbrdrng_reingewinn),"<>", INDEX(INDIRECT(dshbrdrng_reingewinn2),0,MATCH(DATE($B86,MONTH(J$85),1),Erfolgsrechnung_Detail!$O$8:$DF$8,0)))+I86),"") ->  | K86: =IFERROR(SUMIF(INDIRECT(dshbrdrng_umsatzentwicklung),"<>", INDEX(INDIRECT(dshbrdrng_umsatzentwicklung2),0,MATCH(DATE($B14,MONTH(K$13),1),Erfolgsrechnung_Detail!$O$8:$DF$8,0))) + IF(INDEX(tblUmsatzFltr[Nr],MATCH(filter_umsatz,tblUmsatzFltr[Umsatz Filter],0)) = 1, SUMIF(INDIRECT(dshbrdrng_reingewinn),"<>", INDEX(INDIRECT(dshbrdrng_reingewinn2),0,MATCH(DATE($B86,MONTH(K$85),1),Erfolgsrechnung_Detail!$O$8:$DF$8,0))), SUMIF(INDIRECT(dshbrdrng_reingewinn),"<>", INDEX(INDIRECT(dshbrdrng_reingewinn2),0,MATCH(DATE($B86,MONTH(K$85),1),Erfolgsrechnung_Detail!$O$8:$DF$8,0)))+J86),"") ->  | L86: =IFERROR(SUMIF(INDIRECT(dshbrdrng_umsatzentwicklung),"<>", INDEX(INDIRECT(dshbrdrng_umsatzentwicklung2),0,MATCH(DATE($B14,MONTH(L$13),1),Erfolgsrechnung_Detail!$O$8:$DF$8,0))) + IF(INDEX(tblUmsatzFltr[Nr],MATCH(filter_umsatz,tblUmsatzFltr[Umsatz Filter],0)) = 1, SUMIF(INDIRECT(dshbrdrng_reingewinn),"<>", INDEX(INDIRECT(dshbrdrng_reingewinn2),0,MATCH(DATE($B86,MONTH(L$85),1),Erfolgsrechnung_Detail!$O$8:$DF$8,0))), SUMIF(INDIRECT(dshbrdrng_reingewinn),"<>", INDEX(INDIRECT(dshbrdrng_reingewinn2),0,MATCH(DATE($B86,MONTH(L$85),1),Erfolgsrechnung_Detail!$O$8:$DF$8,0)))+K86),"") ->  | M86: =IFERROR(SUMIF(INDIRECT(dshbrdrng_umsatzentwicklung),"<>", INDEX(INDIRECT(dshbrdrng_umsatzentwicklung2),0,MATCH(DATE($B14,MONTH(M$13),1),Erfolgsrechnung_Detail!$O$8:$DF$8,0))) + IF(INDEX(tblUmsatzFltr[Nr],MATCH(filter_umsatz,tblUmsatzFltr[Umsatz Filter],0)) = 1, SUMIF(INDIRECT(dshbrdrng_reingewinn),"<>", INDEX(INDIRECT(dshbrdrng_reingewinn2),0,MATCH(DATE($B86,MONTH(M$85),1),Erfolgsrechnung_Detail!$O$8:$DF$8,0))), SUMIF(INDIRECT(dshbrdrng_reingewinn),"<>", INDEX(INDIRECT(dshbrdrng_reingewinn2),0,MATCH(DATE($B86,MONTH(M$85),1),Erfolgsrechnung_Detail!$O$8:$DF$8,0)))+L86),"") ->  | N86: =IFERROR(SUMIF(INDIRECT(dshbrdrng_umsatzentwicklung),"<>", INDEX(INDIRECT(dshbrdrng_umsatzentwicklung2),0,MATCH(DATE($B14,MONTH(N$13),1),Erfolgsrechnung_Detail!$O$8:$DF$8,0))) + IF(INDEX(tblUmsatzFltr[Nr],MATCH(filter_umsatz,tblUmsatzFltr[Umsatz Filter],0)) = 1, SUMIF(INDIRECT(dshbrdrng_reingewinn),"<>", INDEX(INDIRECT(dshbrdrng_reingewinn2),0,MATCH(DATE($B86,MONTH(N$85),1),Erfolgsrechnung_Detail!$O$8:$DF$8,0))), SUMIF(INDIRECT(dshbrdrng_reingewinn),"<>", INDEX(INDIRECT(dshbrdrng_reingewinn2),0,MATCH(DATE($B86,MONTH(N$85),1),Erfolgsrechnung_Detail!$O$8:$DF$8,0)))+M86),"") ->  | P86: =IFERROR(IF( INDEX(tblUmsatzFltr[Nr],MATCH(filter_umsatz,tblUmsatzFltr[Umsatz Filter],0))=1, SUM($C86:INDEX($C86:$N86,1,selectedmonat_num)), INDEX($C86:$N86,0,MATCH(monat,tblMonate[Monate],0))),"") -> 0 | Q86: =IFERROR( IF(INDEX(tblUmsatzFltr[Nr],MATCH($L$3,tblUmsatzFltr[Umsatz Filter],0)) = 1, SUM(Dashboard!$C86:$N86),Dashboard!$N86),"") -> 0
B87: =Startseite!$H$3-5 -> 2015 | C87: =IFERROR(C15+ SUMIF(INDIRECT(dshbrdrng_reingewinn),"<>", INDEX(INDIRECT(dshbrdrng_reingewinn2),0,MATCH(DATE($B87,MONTH(C$85),1),Erfolgsrechnung_Detail!$O$8:$DF$8,0))), "") -> 68086.2 | D87: =IFERROR(SUMIF(INDIRECT(dshbrdrng_umsatzentwicklung),"<>", INDEX(INDIRECT(dshbrdrng_umsatzentwicklung2),0,MATCH(DATE($B15,MONTH(D$13),1),Erfolgsrechnung_Detail!$O$8:$DF$8,0))) + IF(INDEX(tblUmsatzFltr[Nr],MATCH(filter_umsatz,tblUmsatzFltr[Umsatz Filter],0)) = 1, SUMIF(INDIRECT(dshbrdrng_reingewinn),"<>", INDEX(INDIRECT(dshbrdrng_reingewinn2),0,MATCH(DATE($B87,MONTH(D$85),1),Erfolgsrechnung_Detail!$O$8:$DF$8,0))), SUMIF(INDIRECT(dshbrdrng_reingewinn),"<>", INDEX(INDIRECT(dshbrdrng_reingewinn2),0,MATCH(DATE($B87,MONTH(D$85),1),Erfolgsrechnung_Detail!$O$8:$DF$8,0)))+C87),"") -> 85960.59 | E87: =IFERROR(SUMIF(INDIRECT(dshbrdrng_umsatzentwicklung),"<>", INDEX(INDIRECT(dshbrdrng_umsatzentwicklung2),0,MATCH(DATE($B15,MONTH(E$13),1),Erfolgsrechnung_Detail!$O$8:$DF$8,0))) + IF(INDEX(tblUmsatzFltr[Nr],MATCH(filter_umsatz,tblUmsatzFltr[Umsatz Filter],0)) = 1, SUMIF(INDIRECT(dshbrdrng_reingewinn),"<>", INDEX(INDIRECT(dshbrdrng_reingewinn2),0,MATCH(DATE($B87,MONTH(E$85),1),Erfolgsrechnung_Detail!$O$8:$DF$8,0))), SUMIF(INDIRECT(dshbrdrng_reingewinn),"<>", INDEX(INDIRECT(dshbrdrng_reingewinn2),0,MATCH(DATE($B87,MONTH(E$85),1),Erfolgsrechnung_Detail!$O$8:$DF$8,0)))+D87),"") -> 38586.22 | F87: =IFERROR(SUMIF(INDIRECT(dshbrdrng_umsatzentwicklung),"<>", INDEX(INDIRECT(dshbrdrng_umsatzentwicklung2),0,MATCH(DATE($B15,MONTH(F$13),1),Erfolgsrechnung_Detail!$O$8:$DF$8,0))) + IF(INDEX(tblUmsatzFltr[Nr],MATCH(filter_umsatz,tblUmsatzFltr[Umsatz Filter],0)) = 1, SUMIF(INDIRECT(dshbrdrng_reingewinn),"<>", INDEX(INDIRECT(dshbrdrng_reingewinn2),0,MATCH(DATE($B87,MONTH(F$85),1),Erfolgsrechnung_Detail!$O$8:$DF$8,0))), SUMIF(INDIRECT(dshbrdrng_reingewinn),"<>", INDEX(INDIRECT(dshbrdrng_reingewinn2),0,MATCH(DATE($B87,MONTH(F$85),1),Erfolgsrechnung_Detail!$O$8:$DF$8,0)))+E87),"") -> 53679.89 | G87: =IFERROR(SUMIF(INDIRECT(dshbrdrng_umsatzentwicklung),"<>", INDEX(INDIRECT(dshbrdrng_umsatzentwicklung2),0,MATCH(DATE($B15,MONTH(G$13),1),Erfolgsrechnung_Detail!$O$8:$DF$8,0))) + IF(INDEX(tblUmsatzFltr[Nr],MATCH(filter_umsatz,tblUmsatzFltr[Umsatz Filter],0)) = 1, SUMIF(INDIRECT(dshbrdrng_reingewinn),"<>", INDEX(INDIRECT(dshbrdrng_reingewinn2),0,MATCH(DATE($B87,MONTH(G$85),1),Erfolgsrechnung_Detail!$O$8:$DF$8,0))), SUMIF(INDIRECT(dshbrdrng_reingewinn),"<>", INDEX(INDIRECT(dshbrdrng_reingewinn2),0,MATCH(DATE($B87,MONTH(G$85),1),Erfolgsrechnung_Detail!$O$8:$DF$8,0)))+F87),"") -> 93586.94 | H87: =IFERROR(SUMIF(INDIRECT(dshbrdrng_umsatzentwicklung),"<>", INDEX(INDIRECT(dshbrdrng_umsatzentwicklung2),0,MATCH(DATE($B15,MONTH(H$13),1),Erfolgsrechnung_Detail!$O$8:$DF$8,0))) + IF(INDEX(tblUmsatzFltr[Nr],MATCH(filter_umsatz,tblUmsatzFltr[Umsatz Filter],0)) = 1, SUMIF(INDIRECT(dshbrdrng_reingewinn),"<>", INDEX(INDIRECT(dshbrdrng_reingewinn2),0,MATCH(DATE($B87,MONTH(H$85),1),Erfolgsrechnung_Detail!$O$8:$DF$8,0))), SUMIF(INDIRECT(dshbrdrng_reingewinn),"<>", INDEX(INDIRECT(dshbrdrng_reingewinn2),0,MATCH(DATE($B87,MONTH(H$85),1),Erfolgsrechnung_Detail!$O$8:$DF$8,0)))+G87),"") -> 132461.05 | I87: =IFERROR(SUMIF(INDIRECT(dshbrdrng_umsatzentwicklung),"<>", INDEX(INDIRECT(dshbrdrng_umsatzentwicklung2),0,MATCH(DATE($B15,MONTH(I$13),1),Erfolgsrechnung_Detail!$O$8:$DF$8,0))) + IF(INDEX(tblUmsatzFltr[Nr],MATCH(filter_umsatz,tblUmsatzFltr[Umsatz Filter],0)) = 1, SUMIF(INDIRECT(dshbrdrng_reingewinn),"<>", INDEX(INDIRECT(dshbrdrng_reingewinn2),0,MATCH(DATE($B87,MONTH(I$85),1),Erfolgsrechnung_Detail!$O$8:$DF$8,0))), SUMIF(INDIRECT(dshbrdrng_reingewinn),"<>", INDEX(INDIRECT(dshbrdrng_reingewinn2),0,MATCH(DATE($B87,MONTH(I$85),1),Erfolgsrechnung_Detail!$O$8:$DF$8,0)))+H87),"") -> 71514.3 | J87: =IFERROR(SUMIF(INDIRECT(dshbrdrng_umsatzentwicklung),"<>", INDEX(INDIRECT(dshbrdrng_umsatzentwicklung2),0,MATCH(DATE($B15,MONTH(J$13),1),Erfolgsrechnung_Detail!$O$8:$DF$8,0))) + IF(INDEX(tblUmsatzFltr[Nr],MATCH(filter_umsatz,tblUmsatzFltr[Umsatz Filter],0)) = 1, SUMIF(INDIRECT(dshbrdrng_reingewinn),"<>", INDEX(INDIRECT(dshbrdrng_reingewinn2),0,MATCH(DATE($B87,MONTH(J$85),1),Erfolgsrechnung_Detail!$O$8:$DF$8,0))), SUMIF(INDIRECT(dshbrdrng_reingewinn),"<>", INDEX(INDIRECT(dshbrdrng_reingewinn2),0,MATCH(DATE($B87,MONTH(J$85),1),Erfolgsrechnung_Detail!$O$8:$DF$8,0)))+I87),"") -> 61556.56 | K87: =IFERROR(SUMIF(INDIRECT(dshbrdrng_umsatzentwicklung),"<>", INDEX(INDIRECT(dshbrdrng_umsatzentwicklung2),0,MATCH(DATE($B15,MONTH(K$13),1),Erfolgsrechnung_Detail!$O$8:$DF$8,0))) + IF(INDEX(tblUmsatzFltr[Nr],MATCH(filter_umsatz,tblUmsatzFltr[Umsatz Filter],0)) = 1, SUMIF(INDIRECT(dshbrdrng_reingewinn),"<>", INDEX(INDIRECT(dshbrdrng_reingewinn2),0,MATCH(DATE($B87,MONTH(K$85),1),Erfolgsrechnung_Detail!$O$8:$DF$8,0))), SUMIF(INDIRECT(dshbrdrng_reingewinn),"<>", INDEX(INDIRECT(dshbrdrng_reingewinn2),0,MATCH(DATE($B87,MONTH(K$85),1),Erfolgsrechnung_Detail!$O$8:$DF$8,0)))+J87),"") -> 54067.13 | L87: =IFERROR(SUMIF(INDIRECT(dshbrdrng_umsatzentwicklung),"<>", INDEX(INDIRECT(dshbrdrng_umsatzentwicklung2),0,MATCH(DATE($B15,MONTH(L$13),1),Erfolgsrechnung_Detail!$O$8:$DF$8,0))) + IF(INDEX(tblUmsatzFltr[Nr],MATCH(filter_umsatz,tblUmsatzFltr[Umsatz Filter],0)) = 1, SUMIF(INDIRECT(dshbrdrng_reingewinn),"<>", INDEX(INDIRECT(dshbrdrng_reingewinn2),0,MATCH(DATE($B87,MONTH(L$85),1),Erfolgsrechnung_Detail!$O$8:$DF$8,0))), SUMIF(INDIRECT(dshbrdrng_reingewinn),"<>", INDEX(INDIRECT(dshbrdrng_reingewinn2),0,MATCH(DATE($B87,MONTH(L$85),1),Erfolgsrechnung_Detail!$O$8:$DF$8,0)))+K87),"") -> 88124.74 | M87: =IFERROR(SUMIF(INDIRECT(dshbrdrng_umsatzentwicklung),"<>", INDEX(INDIRECT(dshbrdrng_umsatzentwicklung2),0,MATCH(DATE($B15,MONTH(M$13),1),Erfolgsrechnung_Detail!$O$8:$DF$8,0))) + IF(INDEX(tblUmsatzFltr[Nr],MATCH(filter_umsatz,tblUmsatzFltr[Umsatz Filter],0)) = 1, SUMIF(INDIRECT(dshbrdrng_reingewinn),"<>", INDEX(INDIRECT(dshbrdrng_reingewinn2),0,MATCH(DATE($B87,MONTH(M$85),1),Erfolgsrechnung_Detail!$O$8:$DF$8,0))), SUMIF(INDIRECT(dshbrdrng_reingewinn),"<>", INDEX(INDIRECT(dshbrdrng_reingewinn2),0,MATCH(DATE($B87,MONTH(M$85),1),Erfolgsrechnung_Detail!$O$8:$DF$8,0)))+L87),"") -> 89251.03 | N87: =IFERROR(SUMIF(INDIRECT(dshbrdrng_umsatzentwicklung),"<>", INDEX(INDIRECT(dshbrdrng_umsatzentwicklung2),0,MATCH(DATE($B15,MONTH(N$13),1),Erfolgsrechnung_Detail!$O$8:$DF$8,0))) + IF(INDEX(tblUmsatzFltr[Nr],MATCH(filter_umsatz,tblUmsatzFltr[Umsatz Filter],0)) = 1, SUMIF(INDIRECT(dshbrdrng_reingewinn),"<>", INDEX(INDIRECT(dshbrdrng_reingewinn2),0,MATCH(DATE($B87,MONTH(N$85),1),Erfolgsrechnung_Detail!$O$8:$DF$8,0))), SUMIF(INDIRECT(dshbrdrng_reingewinn),"<>", INDEX(INDIRECT(dshbrdrng_reingewinn2),0,MATCH(DATE($B87,MONTH(N$85),1),Erfolgsrechnung_Detail!$O$8:$DF$8,0)))+M87),"") -> 155737 | P87: =IFERROR(IF( INDEX(tblUmsatzFltr[Nr],MATCH(filter_umsatz,tblUmsatzFltr[Umsatz Filter],0))=1, SUM($C87:INDEX($C87:$N87,1,selectedmonat_num)), INDEX($C87:$N87,0,MATCH(monat,tblMonate[Monate],0))),"") -> 192633.01 | Q87: =IFERROR( IF(INDEX(tblUmsatzFltr[Nr],MATCH($L$3,tblUmsatzFltr[Umsatz Filter],0)) = 1, SUM(Dashboard!$C87:$N87),Dashboard!$N87),"") -> 992611.65
B88: =Startseite!$H$3-4 -> 2016 | C88: =IFERROR(C16+ SUMIF(INDIRECT(dshbrdrng_reingewinn),"<>", INDEX(INDIRECT(dshbrdrng_reingewinn2),0,MATCH(DATE($B88,MONTH(C$85),1),Erfolgsrechnung_Detail!$O$8:$DF$8,0))), "") -> 72056.44 | D88: =IFERROR(SUMIF(INDIRECT(dshbrdrng_umsatzentwicklung),"<>", INDEX(INDIRECT(dshbrdrng_umsatzentwicklung2),0,MATCH(DATE($B16,MONTH(D$13),1),Erfolgsrechnung_Detail!$O$8:$DF$8,0))) + IF(INDEX(tblUmsatzFltr[Nr],MATCH(filter_umsatz,tblUmsatzFltr[Umsatz Filter],0)) = 1, SUMIF(INDIRECT(dshbrdrng_reingewinn),"<>", INDEX(INDIRECT(dshbrdrng_reingewinn2),0,MATCH(DATE($B88,MONTH(D$85),1),Erfolgsrechnung_Detail!$O$8:$DF$8,0))), SUMIF(INDIRECT(dshbrdrng_reingewinn),"<>", INDEX(INDIRECT(dshbrdrng_reingewinn2),0,MATCH(DATE($B88,MONTH(D$85),1),Erfolgsrechnung_Detail!$O$8:$DF$8,0)))+C88),"") -> 55783.39 | E88: =IFERROR(SUMIF(INDIRECT(dshbrdrng_umsatzentwicklung),"<>", INDEX(INDIRECT(dshbrdrng_umsatzentwicklung2),0,MATCH(DATE($B16,MONTH(E$13),1),Erfolgsrechnung_Detail!$O$8:$DF$8,0))) + IF(INDEX(tblUmsatzFltr[Nr],MATCH(filter_umsatz,tblUmsatzFltr[Umsatz Filter],0)) = 1, SUMIF(INDIRECT(dshbrdrng_reingewinn),"<>", INDEX(INDIRECT(dshbrdrng_reingewinn2),0,MATCH(DATE($B88,MONTH(E$85),1),Erfolgsrechnung_Detail!$O$8:$DF$8,0))), SUMIF(INDIRECT(dshbrdrng_reingewinn),"<>", INDEX(INDIRECT(dshbrdrng_reingewinn2),0,MATCH(DATE($B88,MONTH(E$85),1),Erfolgsrechnung_Detail!$O$8:$DF$8,0)))+D88),"") -> 83615.74 | F88: =IFERROR(SUMIF(INDIRECT(dshbrdrng_umsatzentwicklung),"<>", INDEX(INDIRECT(dshbrdrng_umsatzentwicklung2),0,MATCH(DATE($B16,MONTH(F$13),1),Erfolgsrechnung_Detail!$O$8:$DF$8,0))) + IF(INDEX(tblUmsatzFltr[Nr],MATCH(filter_umsatz,tblUmsatzFltr[Umsatz Filter],0)) = 1, SUMIF(INDIRECT(dshbrdrng_reingewinn),"<>", INDEX(INDIRECT(dshbrdrng_reingewinn2),0,MATCH(DATE($B88,MONTH(F$85),1),Erfolgsrechnung_Detail!$O$8:$DF$8,0))), SUMIF(INDIRECT(dshbrdrng_reingewinn),"<>", INDEX(INDIRECT(dshbrdrng_reingewinn2),0,MATCH(DATE($B88,MONTH(F$85),1),Erfolgsrechnung_Detail!$O$8:$DF$8,0)))+E88),"") -> 54125.11 | G88: =IFERROR(SUMIF(INDIRECT(dshbrdrng_umsatzentwicklung),"<>", INDEX(INDIRECT(dshbrdrng_umsatzentwicklung2),0,MATCH(DATE($B16,MONTH(G$13),1),Erfolgsrechnung_Detail!$O$8:$DF$8,0))) + IF(INDEX(tblUmsatzFltr[Nr],MATCH(filter_umsatz,tblUmsatzFltr[Umsatz Filter],0)) = 1, SUMIF(INDIRECT(dshbrdrng_reingewinn),"<>", INDEX(INDIRECT(dshbrdrng_reingewinn2),0,MATCH(DATE($B88,MONTH(G$85),1),Erfolgsrechnung_Detail!$O$8:$DF$8,0))), SUMIF(INDIRECT(dshbrdrng_reingewinn),"<>", INDEX(INDIRECT(dshbrdrng_reingewinn2),0,MATCH(DATE($B88,MONTH(G$85),1),Erfolgsrechnung_Detail!$O$8:$DF$8,0)))+F88),"") -> 42012.02 | H88: =IFERROR(SUMIF(INDIRECT(dshbrdrng_umsatzentwicklung),"<>", INDEX(INDIRECT(dshbrdrng_umsatzentwicklung2),0,MATCH(DATE($B16,MONTH(H$13),1),Erfolgsrechnung_Detail!$O$8:$DF$8,0))) + IF(INDEX(tblUmsatzFltr[Nr],MATCH(filter_umsatz,tblUmsatzFltr[Umsatz Filter],0)) = 1, SUMIF(INDIRECT(dshbrdrng_reingewinn),"<>", INDEX(INDIRECT(dshbrdrng_reingewinn2),0,MATCH(DATE($B88,MONTH(H$85),1),Erfolgsrechnung_Detail!$O$8:$DF$8,0))), SUMIF(INDIRECT(dshbrdrng_reingewinn),"<>", INDEX(INDIRECT(dshbrdrng_reingewinn2),0,MATCH(DATE($B88,MONTH(H$85),1),Erfolgsrechnung_Detail!$O$8:$DF$8,0)))+G88),"") -> 64759.86 | I88: =IFERROR(SUMIF(INDIRECT(dshbrdrng_umsatzentwicklung),"<>", INDEX(INDIRECT(dshbrdrng_umsatzentwicklung2),0,MATCH(DATE($B16,MONTH(I$13),1),Erfolgsrechnung_Detail!$O$8:$DF$8,0))) + IF(INDEX(tblUmsatzFltr[Nr],MATCH(filter_umsatz,tblUmsatzFltr[Umsatz Filter],0)) = 1, SUMIF(INDIRECT(dshbrdrng_reingewinn),"<>", INDEX(INDIRECT(dshbrdrng_reingewinn2),0,MATCH(DATE($B88,MONTH(I$85),1),Erfolgsrechnung_Detail!$O$8:$DF$8,0))), SUMIF(INDIRECT(dshbrdrng_reingewinn),"<>", INDEX(INDIRECT(dshbrdrng_reingewinn2),0,MATCH(DATE($B88,MONTH(I$85),1),Erfolgsrechnung_Detail!$O$8:$DF$8,0)))+H88),"") -> 85170.87 | J88: =IFERROR(SUMIF(INDIRECT(dshbrdrng_umsatzentwicklung),"<>", INDEX(INDIRECT(dshbrdrng_umsatzentwicklung2),0,MATCH(DATE($B16,MONTH(J$13),1),Erfolgsrechnung_Detail!$O$8:$DF$8,0))) + IF(INDEX(tblUmsatzFltr[Nr],MATCH(filter_umsatz,tblUmsatzFltr[Umsatz Filter],0)) = 1, SUMIF(INDIRECT(dshbrdrng_reingewinn),"<>", INDEX(INDIRECT(dshbrdrng_reingewinn2),0,MATCH(DATE($B88,MONTH(J$85),1),Erfolgsrechnung_Detail!$O$8:$DF$8,0))), SUMIF(INDIRECT(dshbrdrng_reingewinn),"<>", INDEX(INDIRECT(dshbrdrng_reingewinn2),0,MATCH(DATE($B88,MONTH(J$85),1),Erfolgsrechnung_Detail!$O$8:$DF$8,0)))+I88),"") -> 58492.76 | K88: =IFERROR(SUMIF(INDIRECT(dshbrdrng_umsatzentwicklung),"<>", INDEX(INDIRECT(dshbrdrng_umsatzentwicklung2),0,MATCH(DATE($B16,MONTH(K$13),1),Erfolgsrechnung_Detail!$O$8:$DF$8,0))) + IF(INDEX(tblUmsatzFltr[Nr],MATCH(filter_umsatz,tblUmsatzFltr[Umsatz Filter],0)) = 1, SUMIF(INDIRECT(dshbrdrng_reingewinn),"<>", INDEX(INDIRECT(dshbrdrng_reingewinn2),0,MATCH(DATE($B88,MONTH(K$85),1),Erfolgsrechnung_Detail!$O$8:$DF$8,0))), SUMIF(INDIRECT(dshbrdrng_reingewinn),"<>", INDEX(INDIRECT(dshbrdrng_reingewinn2),0,MATCH(DATE($B88,MONTH(K$85),1),Erfolgsrechnung_Detail!$O$8:$DF$8,0)))+J88),"") -> 62282.41 | L88: =IFERROR(SUMIF(INDIRECT(dshbrdrng_umsatzentwicklung),"<>", INDEX(INDIRECT(dshbrdrng_umsatzentwicklung2),0,MATCH(DATE($B16,MONTH(L$13),1),Erfolgsrechnung_Detail!$O$8:$DF$8,0))) + IF(INDEX(tblUmsatzFltr[Nr],MATCH(filter_umsatz,tblUmsatzFltr[Umsatz Filter],0)) = 1, SUMIF(INDIRECT(dshbrdrng_reingewinn),"<>", INDEX(INDIRECT(dshbrdrng_reingewinn2),0,MATCH(DATE($B88,MONTH(L$85),1),Erfolgsrechnung_Detail!$O$8:$DF$8,0))), SUMIF(INDIRECT(dshbrdrng_reingewinn),"<>", INDEX(INDIRECT(dshbrdrng_reingewinn2),0,MATCH(DATE($B88,MONTH(L$85),1),Erfolgsrechnung_Detail!$O$8:$DF$8,0)))+K88),"") -> 48323.86 | M88: =IFERROR(SUMIF(INDIRECT(dshbrdrng_umsatzentwicklung),"<>", INDEX(INDIRECT(dshbrdrng_umsatzentwicklung2),0,MATCH(DATE($B16,MONTH(M$13),1),Erfolgsrechnung_Detail!$O$8:$DF$8,0))) + IF(INDEX(tblUmsatzFltr[Nr],MATCH(filter_umsatz,tblUmsatzFltr[Umsatz Filter],0)) = 1, SUMIF(INDIRECT(dshbrdrng_reingewinn),"<>", INDEX(INDIRECT(dshbrdrng_reingewinn2),0,MATCH(DATE($B88,MONTH(M$85),1),Erfolgsrechnung_Detail!$O$8:$DF$8,0))), SUMIF(INDIRECT(dshbrdrng_reingewinn),"<>", INDEX(INDIRECT(dshbrdrng_reingewinn2),0,MATCH(DATE($B88,MONTH(M$85),1),Erfolgsrechnung_Detail!$O$8:$DF$8,0)))+L88),"") -> 124156.72 | N88: =IFERROR(SUMIF(INDIRECT(dshbrdrng_umsatzentwicklung),"<>", INDEX(INDIRECT(dshbrdrng_umsatzentwicklung2),0,MATCH(DATE($B16,MONTH(N$13),1),Erfolgsrechnung_Detail!$O$8:$DF$8,0))) + IF(INDEX(tblUmsatzFltr[Nr],MATCH(filter_umsatz,tblUmsatzFltr[Umsatz Filter],0)) = 1, SUMIF(INDIRECT(dshbrdrng_reingewinn),"<>", INDEX(INDIRECT(dshbrdrng_reingewinn2),0,MATCH(DATE($B88,MONTH(N$85),1),Erfolgsrechnung_Detail!$O$8:$DF$8,0))), SUMIF(INDIRECT(dshbrdrng_reingewinn),"<>", INDEX(INDIRECT(dshbrdrng_reingewinn2),0,MATCH(DATE($B88,MONTH(N$85),1),Erfolgsrechnung_Detail!$O$8:$DF$8,0)))+M88),"") -> 150129.31 | P88: =IFERROR(IF( INDEX(tblUmsatzFltr[Nr],MATCH(filter_umsatz,tblUmsatzFltr[Umsatz Filter],0))=1, SUM($C88:INDEX($C88:$N88,1,selectedmonat_num)), INDEX($C88:$N88,0,MATCH(monat,tblMonate[Monate],0))),"") -> 211455.57 | Q88: =IFERROR( IF(INDEX(tblUmsatzFltr[Nr],MATCH($L$3,tblUmsatzFltr[Umsatz Filter],0)) = 1, SUM(Dashboard!$C88:$N88),Dashboard!$N88),"") -> 900908.49
B89: =Startseite!$H$3-3 -> 2017 | C89: =IFERROR(C17+ SUMIF(INDIRECT(dshbrdrng_reingewinn),"<>", INDEX(INDIRECT(dshbrdrng_reingewinn2),0,MATCH(DATE($B89,MONTH(C$85),1),Erfolgsrechnung_Detail!$O$8:$DF$8,0))), "") -> 68107.44 | D89: =IFERROR(SUMIF(INDIRECT(dshbrdrng_umsatzentwicklung),"<>", INDEX(INDIRECT(dshbrdrng_umsatzentwicklung2),0,MATCH(DATE($B17,MONTH(D$13),1),Erfolgsrechnung_Detail!$O$8:$DF$8,0))) + IF(INDEX(tblUmsatzFltr[Nr],MATCH(filter_umsatz,tblUmsatzFltr[Umsatz Filter],0)) = 1, SUMIF(INDIRECT(dshbrdrng_reingewinn),"<>", INDEX(INDIRECT(dshbrdrng_reingewinn2),0,MATCH(DATE($B89,MONTH(D$85),1),Erfolgsrechnung_Detail!$O$8:$DF$8,0))), SUMIF(INDIRECT(dshbrdrng_reingewinn),"<>", INDEX(INDIRECT(dshbrdrng_reingewinn2),0,MATCH(DATE($B89,MONTH(D$85),1),Erfolgsrechnung_Detail!$O$8:$DF$8,0)))+C89),"") -> 43981.62 | E89: =IFERROR(SUMIF(INDIRECT(dshbrdrng_umsatzentwicklung),"<>", INDEX(INDIRECT(dshbrdrng_umsatzentwicklung2),0,MATCH(DATE($B17,MONTH(E$13),1),Erfolgsrechnung_Detail!$O$8:$DF$8,0))) + IF(INDEX(tblUmsatzFltr[Nr],MATCH(filter_umsatz,tblUmsatzFltr[Umsatz Filter],0)) = 1, SUMIF(INDIRECT(dshbrdrng_reingewinn),"<>", INDEX(INDIRECT(dshbrdrng_reingewinn2),0,MATCH(DATE($B89,MONTH(E$85),1),Erfolgsrechnung_Detail!$O$8:$DF$8,0))), SUMIF(INDIRECT(dshbrdrng_reingewinn),"<>", INDEX(INDIRECT(dshbrdrng_reingewinn2),0,MATCH(DATE($B89,MONTH(E$85),1),Erfolgsrechnung_Detail!$O$8:$DF$8,0)))+D89),"") -> 84275.97 | F89: =IFERROR(SUMIF(INDIRECT(dshbrdrng_umsatzentwicklung),"<>", INDEX(INDIRECT(dshbrdrng_umsatzentwicklung2),0,MATCH(DATE($B17,MONTH(F$13),1),Erfolgsrechnung_Detail!$O$8:$DF$8,0))) + IF(INDEX(tblUmsatzFltr[Nr],MATCH(filter_umsatz,tblUmsatzFltr[Umsatz Filter],0)) = 1, SUMIF(INDIRECT(dshbrdrng_reingewinn),"<>", INDEX(INDIRECT(dshbrdrng_reingewinn2),0,MATCH(DATE($B89,MONTH(F$85),1),Erfolgsrechnung_Detail!$O$8:$DF$8,0))), SUMIF(INDIRECT(dshbrdrng_reingewinn),"<>", INDEX(INDIRECT(dshbrdrng_reingewinn2),0,MATCH(DATE($B89,MONTH(F$85),1),Erfolgsrechnung_Detail!$O$8:$DF$8,0)))+E89),"") -> 39305.15 | G89: =IFERROR(SUMIF(INDIRECT(dshbrdrng_umsatzentwicklung),"<>", INDEX(INDIRECT(dshbrdrng_umsatzentwicklung2),0,MATCH(DATE($B17,MONTH(G$13),1),Erfolgsrechnung_Detail!$O$8:$DF$8,0))) + IF(INDEX(tblUmsatzFltr[Nr],MATCH(filter_umsatz,tblUmsatzFltr[Umsatz Filter],0)) = 1, SUMIF(INDIRECT(dshbrdrng_reingewinn),"<>", INDEX(INDIRECT(dshbrdrng_reingewinn2),0,MATCH(DATE($B89,MONTH(G$85),1),Erfolgsrechnung_Detail!$O$8:$DF$8,0))), SUMIF(INDIRECT(dshbrdrng_reingewinn),"<>", INDEX(INDIRECT(dshbrdrng_reingewinn2),0,MATCH(DATE($B89,MONTH(G$85),1),Erfolgsrechnung_Detail!$O$8:$DF$8,0)))+F89),"") -> 79005.97 | H89: =IFERROR(SUMIF(INDIRECT(dshbrdrng_umsatzentwicklung),"<>", INDEX(INDIRECT(dshbrdrng_umsatzentwicklung2),0,MATCH(DATE($B17,MONTH(H$13),1),Erfolgsrechnung_Detail!$O$8:$DF$8,0))) + IF(INDEX(tblUmsatzFltr[Nr],MATCH(filter_umsatz,tblUmsatzFltr[Umsatz Filter],0)) = 1, SUMIF(INDIRECT(dshbrdrng_reingewinn),"<>", INDEX(INDIRECT(dshbrdrng_reingewinn2),0,MATCH(DATE($B89,MONTH(H$85),1),Erfolgsrechnung_Detail!$O$8:$DF$8,0))), SUMIF(INDIRECT(dshbrdrng_reingewinn),"<>", INDEX(INDIRECT(dshbrdrng_reingewinn2),0,MATCH(DATE($B89,MONTH(H$85),1),Erfolgsrechnung_Detail!$O$8:$DF$8,0)))+G89),"") -> 77165.9 | I89: =IFERROR(SUMIF(INDIRECT(dshbrdrng_umsatzentwicklung),"<>", INDEX(INDIRECT(dshbrdrng_umsatzentwicklung2),0,MATCH(DATE($B17,MONTH(I$13),1),Erfolgsrechnung_Detail!$O$8:$DF$8,0))) + IF(INDEX(tblUmsatzFltr[Nr],MATCH(filter_umsatz,tblUmsatzFltr[Umsatz Filter],0)) = 1, SUMIF(INDIRECT(dshbrdrng_reingewinn),"<>", INDEX(INDIRECT(dshbrdrng_reingewinn2),0,MATCH(DATE($B89,MONTH(I$85),1),Erfolgsrechnung_Detail!$O$8:$DF$8,0))), SUMIF(INDIRECT(dshbrdrng_reingewinn),"<>", INDEX(INDIRECT(dshbrdrng_reingewinn2),0,MATCH(DATE($B89,MONTH(I$85),1),Erfolgsrechnung_Detail!$O$8:$DF$8,0)))+H89),"") -> 67904.57 | J89: =IFERROR(SUMIF(INDIRECT(dshbrdrng_umsatzentwicklung),"<>", INDEX(INDIRECT(dshbrdrng_umsatzentwicklung2),0,MATCH(DATE($B17,MONTH(J$13),1),Erfolgsrechnung_Detail!$O$8:$DF$8,0))) + IF(INDEX(tblUmsatzFltr[Nr],MATCH(filter_umsatz,tblUmsatzFltr[Umsatz Filter],0)) = 1, SUMIF(INDIRECT(dshbrdrng_reingewinn),"<>", INDEX(INDIRECT(dshbrdrng_reingewinn2),0,MATCH(DATE($B89,MONTH(J$85),1),Erfolgsrechnung_Detail!$O$8:$DF$8,0))), SUMIF(INDIRECT(dshbrdrng_reingewinn),"<>", INDEX(INDIRECT(dshbrdrng_reingewinn2),0,MATCH(DATE($B89,MONTH(J$85),1),Erfolgsrechnung_Detail!$O$8:$DF$8,0)))+I89),"") -> 70444.82 | K89: =IFERROR(SUMIF(INDIRECT(dshbrdrng_umsatzentwicklung),"<>", INDEX(INDIRECT(dshbrdrng_umsatzentwicklung2),0,MATCH(DATE($B17,MONTH(K$13),1),Erfolgsrechnung_Detail!$O$8:$DF$8,0))) + IF(INDEX(tblUmsatzFltr[Nr],MATCH(filter_umsatz,tblUmsatzFltr[Umsatz Filter],0)) = 1, SUMIF(INDIRECT(dshbrdrng_reingewinn),"<>", INDEX(INDIRECT(dshbrdrng_reingewinn2),0,MATCH(DATE($B89,MONTH(K$85),1),Erfolgsrechnung_Detail!$O$8:$DF$8,0))), SUMIF(INDIRECT(dshbrdrng_reingewinn),"<>", INDEX(INDIRECT(dshbrdrng_reingewinn2),0,MATCH(DATE($B89,MONTH(K$85),1),Erfolgsrechnung_Detail!$O$8:$DF$8,0)))+J89),"") -> 68120.29 | L89: =IFERROR(SUMIF(INDIRECT(dshbrdrng_umsatzentwicklung),"<>", INDEX(INDIRECT(dshbrdrng_umsatzentwicklung2),0,MATCH(DATE($B17,MONTH(L$13),1),Erfolgsrechnung_Detail!$O$8:$DF$8,0))) + IF(INDEX(tblUmsatzFltr[Nr],MATCH(filter_umsatz,tblUmsatzFltr[Umsatz Filter],0)) = 1, SUMIF(INDIRECT(dshbrdrng_reingewinn),"<>", INDEX(INDIRECT(dshbrdrng_reingewinn2),0,MATCH(DATE($B89,MONTH(L$85),1),Erfolgsrechnung_Detail!$O$8:$DF$8,0))), SUMIF(INDIRECT(dshbrdrng_reingewinn),"<>", INDEX(INDIRECT(dshbrdrng_reingewinn2),0,MATCH(DATE($B89,MONTH(L$85),1),Erfolgsrechnung_Detail!$O$8:$DF$8,0)))+K89),"") -> 76552.83 | M89: =IFERROR(SUMIF(INDIRECT(dshbrdrng_umsatzentwicklung),"<>", INDEX(INDIRECT(dshbrdrng_umsatzentwicklung2),0,MATCH(DATE($B17,MONTH(M$13),1),Erfolgsrechnung_Detail!$O$8:$DF$8,0))) + IF(INDEX(tblUmsatzFltr[Nr],MATCH(filter_umsatz,tblUmsatzFltr[Umsatz Filter],0)) = 1, SUMIF(INDIRECT(dshbrdrng_reingewinn),"<>", INDEX(INDIRECT(dshbrdrng_reingewinn2),0,MATCH(DATE($B89,MONTH(M$85),1),Erfolgsrechnung_Detail!$O$8:$DF$8,0))), SUMIF(INDIRECT(dshbrdrng_reingewinn),"<>", INDEX(INDIRECT(dshbrdrng_reingewinn2),0,MATCH(DATE($B89,MONTH(M$85),1),Erfolgsrechnung_Detail!$O$8:$DF$8,0)))+L89),"") -> 46096.61 | N89: =IFERROR(SUMIF(INDIRECT(dshbrdrng_umsatzentwicklung),"<>", INDEX(INDIRECT(dshbrdrng_umsatzentwicklung2),0,MATCH(DATE($B17,MONTH(N$13),1),Erfolgsrechnung_Detail!$O$8:$DF$8,0))) + IF(INDEX(tblUmsatzFltr[Nr],MATCH(filter_umsatz,tblUmsatzFltr[Umsatz Filter],0)) = 1, SUMIF(INDIRECT(dshbrdrng_reingewinn),"<>", INDEX(INDIRECT(dshbrdrng_reingewinn2),0,MATCH(DATE($B89,MONTH(N$85),1),Erfolgsrechnung_Detail!$O$8:$DF$8,0))), SUMIF(INDIRECT(dshbrdrng_reingewinn),"<>", INDEX(INDIRECT(dshbrdrng_reingewinn2),0,MATCH(DATE($B89,MONTH(N$85),1),Erfolgsrechnung_Detail!$O$8:$DF$8,0)))+M89),"") -> 88348.22 | P89: =IFERROR(IF( INDEX(tblUmsatzFltr[Nr],MATCH(filter_umsatz,tblUmsatzFltr[Umsatz Filter],0))=1, SUM($C89:INDEX($C89:$N89,1,selectedmonat_num)), INDEX($C89:$N89,0,MATCH(monat,tblMonate[Monate],0))),"") -> 196365.03 | Q89: =IFERROR( IF(INDEX(tblUmsatzFltr[Nr],MATCH($L$3,tblUmsatzFltr[Umsatz Filter],0)) = 1, SUM(Dashboard!$C89:$N89),Dashboard!$N89),"") -> 809309.39
B90: =Startseite!$H$3-2 -> 2018 | C90: =IFERROR(C18+ SUMIF(INDIRECT(dshbrdrng_reingewinn),"<>", INDEX(INDIRECT(dshbrdrng_reingewinn2),0,MATCH(DATE($B90,MONTH(C$85),1),Erfolgsrechnung_Detail!$O$8:$DF$8,0))), "") -> 35701.55 | D90: =IFERROR(SUMIF(INDIRECT(dshbrdrng_umsatzentwicklung),"<>", INDEX(INDIRECT(dshbrdrng_umsatzentwicklung2),0,MATCH(DATE($B18,MONTH(D$13),1),Erfolgsrechnung_Detail!$O$8:$DF$8,0))) + IF(INDEX(tblUmsatzFltr[Nr],MATCH(filter_umsatz,tblUmsatzFltr[Umsatz Filter],0)) = 1, SUMIF(INDIRECT(dshbrdrng_reingewinn),"<>", INDEX(INDIRECT(dshbrdrng_reingewinn2),0,MATCH(DATE($B90,MONTH(D$85),1),Erfolgsrechnung_Detail!$O$8:$DF$8,0))), SUMIF(INDIRECT(dshbrdrng_reingewinn),"<>", INDEX(INDIRECT(dshbrdrng_reingewinn2),0,MATCH(DATE($B90,MONTH(D$85),1),Erfolgsrechnung_Detail!$O$8:$DF$8,0)))+C90),"") -> 37137.19 | E90: =IFERROR(SUMIF(INDIRECT(dshbrdrng_umsatzentwicklung),"<>", INDEX(INDIRECT(dshbrdrng_umsatzentwicklung2),0,MATCH(DATE($B18,MONTH(E$13),1),Erfolgsrechnung_Detail!$O$8:$DF$8,0))) + IF(INDEX(tblUmsatzFltr[Nr],MATCH(filter_umsatz,tblUmsatzFltr[Umsatz Filter],0)) = 1, SUMIF(INDIRECT(dshbrdrng_reingewinn),"<>", INDEX(INDIRECT(dshbrdrng_reingewinn2),0,MATCH(DATE($B90,MONTH(E$85),1),Erfolgsrechnung_Detail!$O$8:$DF$8,0))), SUMIF(INDIRECT(dshbrdrng_reingewinn),"<>", INDEX(INDIRECT(dshbrdrng_reingewinn2),0,MATCH(DATE($B90,MONTH(E$85),1),Erfolgsrechnung_Detail!$O$8:$DF$8,0)))+D90),"") -> 70129.26 | F90: =IFERROR(SUMIF(INDIRECT(dshbrdrng_umsatzentwicklung),"<>", INDEX(INDIRECT(dshbrdrng_umsatzentwicklung2),0,MATCH(DATE($B18,MONTH(F$13),1),Erfolgsrechnung_Detail!$O$8:$DF$8,0))) + IF(INDEX(tblUmsatzFltr[Nr],MATCH(filter_umsatz,tblUmsatzFltr[Umsatz Filter],0)) = 1, SUMIF(INDIRECT(dshbrdrng_reingewinn),"<>", INDEX(INDIRECT(dshbrdrng_reingewinn2),0,MATCH(DATE($B90,MONTH(F$85),1),Erfolgsrechnung_Detail!$O$8:$DF$8,0))), SUMIF(INDIRECT(dshbrdrng_reingewinn),"<>", INDEX(INDIRECT(dshbrdrng_reingewinn2),0,MATCH(DATE($B90,MONTH(F$85),1),Erfolgsrechnung_Detail!$O$8:$DF$8,0)))+E90),"") -> 88905.28 | G90: =IFERROR(SUMIF(INDIRECT(dshbrdrng_umsatzentwicklung),"<>", INDEX(INDIRECT(dshbrdrng_umsatzentwicklung2),0,MATCH(DATE($B18,MONTH(G$13),1),Erfolgsrechnung_Detail!$O$8:$DF$8,0))) + IF(INDEX(tblUmsatzFltr[Nr],MATCH(filter_umsatz,tblUmsatzFltr[Umsatz Filter],0)) = 1, SUMIF(INDIRECT(dshbrdrng_reingewinn),"<>", INDEX(INDIRECT(dshbrdrng_reingewinn2),0,MATCH(DATE($B90,MONTH(G$85),1),Erfolgsrechnung_Detail!$O$8:$DF$8,0))), SUMIF(INDIRECT(dshbrdrng_reingewinn),"<>", INDEX(INDIRECT(dshbrdrng_reingewinn2),0,MATCH(DATE($B90,MONTH(G$85),1),Erfolgsrechnung_Detail!$O$8:$DF$8,0)))+F90),"") -> 51230.61 | H90: =IFERROR(SUMIF(INDIRECT(dshbrdrng_umsatzentwicklung),"<>", INDEX(INDIRECT(dshbrdrng_umsatzentwicklung2),0,MATCH(DATE($B18,MONTH(H$13),1),Erfolgsrechnung_Detail!$O$8:$DF$8,0))) + IF(INDEX(tblUmsatzFltr[Nr],MATCH(filter_umsatz,tblUmsatzFltr[Umsatz Filter],0)) = 1, SUMIF(INDIRECT(dshbrdrng_reingewinn),"<>", INDEX(INDIRECT(dshbrdrng_reingewinn2),0,MATCH(DATE($B90,MONTH(H$85),1),Erfolgsrechnung_Detail!$O$8:$DF$8,0))), SUMIF(INDIRECT(dshbrdrng_reingewinn),"<>", INDEX(INDIRECT(dshbrdrng_reingewinn2),0,MATCH(DATE($B90,MONTH(H$85),1),Erfolgsrechnung_Detail!$O$8:$DF$8,0)))+G90),"") -> 79820.52 | I90: =IFERROR(SUMIF(INDIRECT(dshbrdrng_umsatzentwicklung),"<>", INDEX(INDIRECT(dshbrdrng_umsatzentwicklung2),0,MATCH(DATE($B18,MONTH(I$13),1),Erfolgsrechnung_Detail!$O$8:$DF$8,0))) + IF(INDEX(tblUmsatzFltr[Nr],MATCH(filter_umsatz,tblUmsatzFltr[Umsatz Filter],0)) = 1, SUMIF(INDIRECT(dshbrdrng_reingewinn),"<>", INDEX(INDIRECT(dshbrdrng_reingewinn2),0,MATCH(DATE($B90,MONTH(I$85),1),Erfolgsrechnung_Detail!$O$8:$DF$8,0))), SUMIF(INDIRECT(dshbrdrng_reingewinn),"<>", INDEX(INDIRECT(dshbrdrng_reingewinn2),0,MATCH(DATE($B90,MONTH(I$85),1),Erfolgsrechnung_Detail!$O$8:$DF$8,0)))+H90),"") -> 94242.53 | J90: =IFERROR(SUMIF(INDIRECT(dshbrdrng_umsatzentwicklung),"<>", INDEX(INDIRECT(dshbrdrng_umsatzentwicklung2),0,MATCH(DATE($B18,MONTH(J$13),1),Erfolgsrechnung_Detail!$O$8:$DF$8,0))) + IF(INDEX(tblUmsatzFltr[Nr],MATCH(filter_umsatz,tblUmsatzFltr[Umsatz Filter],0)) = 1, SUMIF(INDIRECT(dshbrdrng_reingewinn),"<>", INDEX(INDIRECT(dshbrdrng_reingewinn2),0,MATCH(DATE($B90,MONTH(J$85),1),Erfolgsrechnung_Detail!$O$8:$DF$8,0))), SUMIF(INDIRECT(dshbrdrng_reingewinn),"<>", INDEX(INDIRECT(dshbrdrng_reingewinn2),0,MATCH(DATE($B90,MONTH(J$85),1),Erfolgsrechnung_Detail!$O$8:$DF$8,0)))+I90),"") -> 98818.09 | K90: =IFERROR(SUMIF(INDIRECT(dshbrdrng_umsatzentwicklung),"<>", INDEX(INDIRECT(dshbrdrng_umsatzentwicklung2),0,MATCH(DATE($B18,MONTH(K$13),1),Erfolgsrechnung_Detail!$O$8:$DF$8,0))) + IF(INDEX(tblUmsatzFltr[Nr],MATCH(filter_umsatz,tblUmsatzFltr[Umsatz Filter],0)) = 1, SUMIF(INDIRECT(dshbrdrng_reingewinn),"<>", INDEX(INDIRECT(dshbrdrng_reingewinn2),0,MATCH(DATE($B90,MONTH(K$85),1),Erfolgsrechnung_Detail!$O$8:$DF$8,0))), SUMIF(INDIRECT(dshbrdrng_reingewinn),"<>", INDEX(INDIRECT(dshbrdrng_reingewinn2),0,MATCH(DATE($B90,MONTH(K$85),1),Erfolgsrechnung_Detail!$O$8:$DF$8,0)))+J90),"") -> 68466.32 | L90: =IFERROR(SUMIF(INDIRECT(dshbrdrng_umsatzentwicklung),"<>", INDEX(INDIRECT(dshbrdrng_umsatzentwicklung2),0,MATCH(DATE($B18,MONTH(L$13),1),Erfolgsrechnung_Detail!$O$8:$DF$8,0))) + IF(INDEX(tblUmsatzFltr[Nr],MATCH(filter_umsatz,tblUmsatzFltr[Umsatz Filter],0)) = 1, SUMIF(INDIRECT(dshbrdrng_reingewinn),"<>", INDEX(INDIRECT(dshbrdrng_reingewinn2),0,MATCH(DATE($B90,MONTH(L$85),1),Erfolgsrechnung_Detail!$O$8:$DF$8,0))), SUMIF(INDIRECT(dshbrdrng_reingewinn),"<>", INDEX(INDIRECT(dshbrdrng_reingewinn2),0,MATCH(DATE($B90,MONTH(L$85),1),Erfolgsrechnung_Detail!$O$8:$DF$8,0)))+K90),"") -> 58057.91 | M90: =IFERROR(SUMIF(INDIRECT(dshbrdrng_umsatzentwicklung),"<>", INDEX(INDIRECT(dshbrdrng_umsatzentwicklung2),0,MATCH(DATE($B18,MONTH(M$13),1),Erfolgsrechnung_Detail!$O$8:$DF$8,0))) + IF(INDEX(tblUmsatzFltr[Nr],MATCH(filter_umsatz,tblUmsatzFltr[Umsatz Filter],0)) = 1, SUMIF(INDIRECT(dshbrdrng_reingewinn),"<>", INDEX(INDIRECT(dshbrdrng_reingewinn2),0,MATCH(DATE($B90,MONTH(M$85),1),Erfolgsrechnung_Detail!$O$8:$DF$8,0))), SUMIF(INDIRECT(dshbrdrng_reingewinn),"<>", INDEX(INDIRECT(dshbrdrng_reingewinn2),0,MATCH(DATE($B90,MONTH(M$85),1),Erfolgsrechnung_Detail!$O$8:$DF$8,0)))+L90),"") -> 84509.28 | N90: =IFERROR(SUMIF(INDIRECT(dshbrdrng_umsatzentwicklung),"<>", INDEX(INDIRECT(dshbrdrng_umsatzentwicklung2),0,MATCH(DATE($B18,MONTH(N$13),1),Erfolgsrechnung_Detail!$O$8:$DF$8,0))) + IF(INDEX(tblUmsatzFltr[Nr],MATCH(filter_umsatz,tblUmsatzFltr[Umsatz Filter],0)) = 1, SUMIF(INDIRECT(dshbrdrng_reingewinn),"<>", INDEX(INDIRECT(dshbrdrng_reingewinn2),0,MATCH(DATE($B90,MONTH(N$85),1),Erfolgsrechnung_Detail!$O$8:$DF$8,0))), SUMIF(INDIRECT(dshbrdrng_reingewinn),"<>", INDEX(INDIRECT(dshbrdrng_reingewinn2),0,MATCH(DATE($B90,MONTH(N$85),1),Erfolgsrechnung_Detail!$O$8:$DF$8,0)))+M90),"") -> 86763.87 | P90: =IFERROR(IF( INDEX(tblUmsatzFltr[Nr],MATCH(filter_umsatz,tblUmsatzFltr[Umsatz Filter],0))=1, SUM($C90:INDEX($C90:$N90,1,selectedmonat_num)), INDEX($C90:$N90,0,MATCH(monat,tblMonate[Monate],0))),"") -> 142968 | Q90: =IFERROR( IF(INDEX(tblUmsatzFltr[Nr],MATCH($L$3,tblUmsatzFltr[Umsatz Filter],0)) = 1, SUM(Dashboard!$C90:$N90),Dashboard!$N90),"") -> 853782.41
B91: =Startseite!$H$3-1 -> 2019 | C91: =IFERROR(C19+ SUMIF(INDIRECT(dshbrdrng_reingewinn),"<>", INDEX(INDIRECT(dshbrdrng_reingewinn2),0,MATCH(DATE($B91,MONTH(C$85),1),Erfolgsrechnung_Detail!$O$8:$DF$8,0))), "") -> 25657.23 | D91: =IFERROR(SUMIF(INDIRECT(dshbrdrng_umsatzentwicklung),"<>", INDEX(INDIRECT(dshbrdrng_umsatzentwicklung2),0,MATCH(DATE($B19,MONTH(D$13),1),Erfolgsrechnung_Detail!$O$8:$DF$8,0))) + IF(INDEX(tblUmsatzFltr[Nr],MATCH(filter_umsatz,tblUmsatzFltr[Umsatz Filter],0)) = 1, SUMIF(INDIRECT(dshbrdrng_reingewinn),"<>", INDEX(INDIRECT(dshbrdrng_reingewinn2),0,MATCH(DATE($B91,MONTH(D$85),1),Erfolgsrechnung_Detail!$O$8:$DF$8,0))), SUMIF(INDIRECT(dshbrdrng_reingewinn),"<>", INDEX(INDIRECT(dshbrdrng_reingewinn2),0,MATCH(DATE($B91,MONTH(D$85),1),Erfolgsrechnung_Detail!$O$8:$DF$8,0)))+C91),"") -> 37591.21 | E91: =IFERROR(SUMIF(INDIRECT(dshbrdrng_umsatzentwicklung),"<>", INDEX(INDIRECT(dshbrdrng_umsatzentwicklung2),0,MATCH(DATE($B19,MONTH(E$13),1),Erfolgsrechnung_Detail!$O$8:$DF$8,0))) + IF(INDEX(tblUmsatzFltr[Nr],MATCH(filter_umsatz,tblUmsatzFltr[Umsatz Filter],0)) = 1, SUMIF(INDIRECT(dshbrdrng_reingewinn),"<>", INDEX(INDIRECT(dshbrdrng_reingewinn2),0,MATCH(DATE($B91,MONTH(E$85),1),Erfolgsrechnung_Detail!$O$8:$DF$8,0))), SUMIF(INDIRECT(dshbrdrng_reingewinn),"<>", INDEX(INDIRECT(dshbrdrng_reingewinn2),0,MATCH(DATE($B91,MONTH(E$85),1),Erfolgsrechnung_Detail!$O$8:$DF$8,0)))+D91),"") -> 97896.58 | F91: =IFERROR(SUMIF(INDIRECT(dshbrdrng_umsatzentwicklung),"<>", INDEX(INDIRECT(dshbrdrng_umsatzentwicklung2),0,MATCH(DATE($B19,MONTH(F$13),1),Erfolgsrechnung_Detail!$O$8:$DF$8,0))) + IF(INDEX(tblUmsatzFltr[Nr],MATCH(filter_umsatz,tblUmsatzFltr[Umsatz Filter],0)) = 1, SUMIF(INDIRECT(dshbrdrng_reingewinn),"<>", INDEX(INDIRECT(dshbrdrng_reingewinn2),0,MATCH(DATE($B91,MONTH(F$85),1),Erfolgsrechnung_Detail!$O$8:$DF$8,0))), SUMIF(INDIRECT(dshbrdrng_reingewinn),"<>", INDEX(INDIRECT(dshbrdrng_reingewinn2),0,MATCH(DATE($B91,MONTH(F$85),1),Erfolgsrechnung_Detail!$O$8:$DF$8,0)))+E91),"") -> 36496.83 | G91: =IFERROR(SUMIF(INDIRECT(dshbrdrng_umsatzentwicklung),"<>", INDEX(INDIRECT(dshbrdrng_umsatzentwicklung2),0,MATCH(DATE($B19,MONTH(G$13),1),Erfolgsrechnung_Detail!$O$8:$DF$8,0))) + IF(INDEX(tblUmsatzFltr[Nr],MATCH(filter_umsatz,tblUmsatzFltr[Umsatz Filter],0)) = 1, SUMIF(INDIRECT(dshbrdrng_reingewinn),"<>", INDEX(INDIRECT(dshbrdrng_reingewinn2),0,MATCH(DATE($B91,MONTH(G$85),1),Erfolgsrechnung_Detail!$O$8:$DF$8,0))), SUMIF(INDIRECT(dshbrdrng_reingewinn),"<>", INDEX(INDIRECT(dshbrdrng_reingewinn2),0,MATCH(DATE($B91,MONTH(G$85),1),Erfolgsrechnung_Detail!$O$8:$DF$8,0)))+F91),"") -> 34406.69 | H91: =IFERROR(SUMIF(INDIRECT(dshbrdrng_umsatzentwicklung),"<>", INDEX(INDIRECT(dshbrdrng_umsatzentwicklung2),0,MATCH(DATE($B19,MONTH(H$13),1),Erfolgsrechnung_Detail!$O$8:$DF$8,0))) + IF(INDEX(tblUmsatzFltr[Nr],MATCH(filter_umsatz,tblUmsatzFltr[Umsatz Filter],0)) = 1, SUMIF(INDIRECT(dshbrdrng_reingewinn),"<>", INDEX(INDIRECT(dshbrdrng_reingewinn2),0,MATCH(DATE($B91,MONTH(H$85),1),Erfolgsrechnung_Detail!$O$8:$DF$8,0))), SUMIF(INDIRECT(dshbrdrng_reingewinn),"<>", INDEX(INDIRECT(dshbrdrng_reingewinn2),0,MATCH(DATE($B91,MONTH(H$85),1),Erfolgsrechnung_Detail!$O$8:$DF$8,0)))+G91),"") -> 51061.29 | I91: =IFERROR(SUMIF(INDIRECT(dshbrdrng_umsatzentwicklung),"<>", INDEX(INDIRECT(dshbrdrng_umsatzentwicklung2),0,MATCH(DATE($B19,MONTH(I$13),1),Erfolgsrechnung_Detail!$O$8:$DF$8,0))) + IF(INDEX(tblUmsatzFltr[Nr],MATCH(filter_umsatz,tblUmsatzFltr[Umsatz Filter],0)) = 1, SUMIF(INDIRECT(dshbrdrng_reingewinn),"<>", INDEX(INDIRECT(dshbrdrng_reingewinn2),0,MATCH(DATE($B91,MONTH(I$85),1),Erfolgsrechnung_Detail!$O$8:$DF$8,0))), SUMIF(INDIRECT(dshbrdrng_reingewinn),"<>", INDEX(INDIRECT(dshbrdrng_reingewinn2),0,MATCH(DATE($B91,MONTH(I$85),1),Erfolgsrechnung_Detail!$O$8:$DF$8,0)))+H91),"") -> 48878.93 | J91: =IFERROR(SUMIF(INDIRECT(dshbrdrng_umsatzentwicklung),"<>", INDEX(INDIRECT(dshbrdrng_umsatzentwicklung2),0,MATCH(DATE($B19,MONTH(J$13),1),Erfolgsrechnung_Detail!$O$8:$DF$8,0))) + IF(INDEX(tblUmsatzFltr[Nr],MATCH(filter_umsatz,tblUmsatzFltr[Umsatz Filter],0)) = 1, SUMIF(INDIRECT(dshbrdrng_reingewinn),"<>", INDEX(INDIRECT(dshbrdrng_reingewinn2),0,MATCH(DATE($B91,MONTH(J$85),1),Erfolgsrechnung_Detail!$O$8:$DF$8,0))), SUMIF(INDIRECT(dshbrdrng_reingewinn),"<>", INDEX(INDIRECT(dshbrdrng_reingewinn2),0,MATCH(DATE($B91,MONTH(J$85),1),Erfolgsrechnung_Detail!$O$8:$DF$8,0)))+I91),"") -> 86478.24 | K91: =IFERROR(SUMIF(INDIRECT(dshbrdrng_umsatzentwicklung),"<>", INDEX(INDIRECT(dshbrdrng_umsatzentwicklung2),0,MATCH(DATE($B19,MONTH(K$13),1),Erfolgsrechnung_Detail!$O$8:$DF$8,0))) + IF(INDEX(tblUmsatzFltr[Nr],MATCH(filter_umsatz,tblUmsatzFltr[Umsatz Filter],0)) = 1, SUMIF(INDIRECT(dshbrdrng_reingewinn),"<>", INDEX(INDIRECT(dshbrdrng_reingewinn2),0,MATCH(DATE($B91,MONTH(K$85),1),Erfolgsrechnung_Detail!$O$8:$DF$8,0))), SUMIF(INDIRECT(dshbrdrng_reingewinn),"<>", INDEX(INDIRECT(dshbrdrng_reingewinn2),0,MATCH(DATE($B91,MONTH(K$85),1),Erfolgsrechnung_Detail!$O$8:$DF$8,0)))+J91),"") -> 23428.6 | L91: =IFERROR(SUMIF(INDIRECT(dshbrdrng_umsatzentwicklung),"<>", INDEX(INDIRECT(dshbrdrng_umsatzentwicklung2),0,MATCH(DATE($B19,MONTH(L$13),1),Erfolgsrechnung_Detail!$O$8:$DF$8,0))) + IF(INDEX(tblUmsatzFltr[Nr],MATCH(filter_umsatz,tblUmsatzFltr[Umsatz Filter],0)) = 1, SUMIF(INDIRECT(dshbrdrng_reingewinn),"<>", INDEX(INDIRECT(dshbrdrng_reingewinn2),0,MATCH(DATE($B91,MONTH(L$85),1),Erfolgsrechnung_Detail!$O$8:$DF$8,0))), SUMIF(INDIRECT(dshbrdrng_reingewinn),"<>", INDEX(INDIRECT(dshbrdrng_reingewinn2),0,MATCH(DATE($B91,MONTH(L$85),1),Erfolgsrechnung_Detail!$O$8:$DF$8,0)))+K91),"") -> 41415.61 | M91: =IFERROR(SUMIF(INDIRECT(dshbrdrng_umsatzentwicklung),"<>", INDEX(INDIRECT(dshbrdrng_umsatzentwicklung2),0,MATCH(DATE($B19,MONTH(M$13),1),Erfolgsrechnung_Detail!$O$8:$DF$8,0))) + IF(INDEX(tblUmsatzFltr[Nr],MATCH(filter_umsatz,tblUmsatzFltr[Umsatz Filter],0)) = 1, SUMIF(INDIRECT(dshbrdrng_reingewinn),"<>", INDEX(INDIRECT(dshbrdrng_reingewinn2),0,MATCH(DATE($B91,MONTH(M$85),1),Erfolgsrechnung_Detail!$O$8:$DF$8,0))), SUMIF(INDIRECT(dshbrdrng_reingewinn),"<>", INDEX(INDIRECT(dshbrdrng_reingewinn2),0,MATCH(DATE($B91,MONTH(M$85),1),Erfolgsrechnung_Detail!$O$8:$DF$8,0)))+L91),"") -> 95361.9 | N91: =IFERROR(SUMIF(INDIRECT(dshbrdrng_umsatzentwicklung),"<>", INDEX(INDIRECT(dshbrdrng_umsatzentwicklung2),0,MATCH(DATE($B19,MONTH(N$13),1),Erfolgsrechnung_Detail!$O$8:$DF$8,0))) + IF(INDEX(tblUmsatzFltr[Nr],MATCH(filter_umsatz,tblUmsatzFltr[Umsatz Filter],0)) = 1, SUMIF(INDIRECT(dshbrdrng_reingewinn),"<>", INDEX(INDIRECT(dshbrdrng_reingewinn2),0,MATCH(DATE($B91,MONTH(N$85),1),Erfolgsrechnung_Detail!$O$8:$DF$8,0))), SUMIF(INDIRECT(dshbrdrng_reingewinn),"<>", INDEX(INDIRECT(dshbrdrng_reingewinn2),0,MATCH(DATE($B91,MONTH(N$85),1),Erfolgsrechnung_Detail!$O$8:$DF$8,0)))+M91),"") -> 160068.39 | P91: =IFERROR(IF( INDEX(tblUmsatzFltr[Nr],MATCH(filter_umsatz,tblUmsatzFltr[Umsatz Filter],0))=1, SUM($C91:INDEX($C91:$N91,1,selectedmonat_num)), INDEX($C91:$N91,0,MATCH(monat,tblMonate[Monate],0))),"") -> 161145.02 | Q91: =IFERROR( IF(INDEX(tblUmsatzFltr[Nr],MATCH($L$3,tblUmsatzFltr[Umsatz Filter],0)) = 1, SUM(Dashboard!$C91:$N91),Dashboard!$N91),"") -> 738741.5
B92: =Startseite!$H$3 -> 2020 | C92: =IFERROR(C20+ SUMIF(INDIRECT(dshbrdrng_reingewinn),"<>", INDEX(INDIRECT(dshbrdrng_reingewinn2),0,MATCH(DATE($B92,MONTH(C$85),1),Erfolgsrechnung_Detail!$O$8:$DF$8,0))), "") -> 4551.81 | D92: =IFERROR(SUMIF(INDIRECT(dshbrdrng_umsatzentwicklung),"<>", INDEX(INDIRECT(dshbrdrng_umsatzentwicklung2),0,MATCH(DATE($B20,MONTH(D$13),1),Erfolgsrechnung_Detail!$O$8:$DF$8,0))) + IF(INDEX(tblUmsatzFltr[Nr],MATCH(filter_umsatz,tblUmsatzFltr[Umsatz Filter],0)) = 1, SUMIF(INDIRECT(dshbrdrng_reingewinn),"<>", INDEX(INDIRECT(dshbrdrng_reingewinn2),0,MATCH(DATE($B92,MONTH(D$85),1),Erfolgsrechnung_Detail!$O$8:$DF$8,0))), SUMIF(INDIRECT(dshbrdrng_reingewinn),"<>", INDEX(INDIRECT(dshbrdrng_reingewinn2),0,MATCH(DATE($B92,MONTH(D$85),1),Erfolgsrechnung_Detail!$O$8:$DF$8,0)))+C92),"") -> 26144.26 | E92: =IFERROR(SUMIF(INDIRECT(dshbrdrng_umsatzentwicklung),"<>", INDEX(INDIRECT(dshbrdrng_umsatzentwicklung2),0,MATCH(DATE($B20,MONTH(E$13),1),Erfolgsrechnung_Detail!$O$8:$DF$8,0))) + IF(INDEX(tblUmsatzFltr[Nr],MATCH(filter_umsatz,tblUmsatzFltr[Umsatz Filter],0)) = 1, SUMIF(INDIRECT(dshbrdrng_reingewinn),"<>", INDEX(INDIRECT(dshbrdrng_reingewinn2),0,MATCH(DATE($B92,MONTH(E$85),1),Erfolgsrechnung_Detail!$O$8:$DF$8,0))), SUMIF(INDIRECT(dshbrdrng_reingewinn),"<>", INDEX(INDIRECT(dshbrdrng_reingewinn2),0,MATCH(DATE($B92,MONTH(E$85),1),Erfolgsrechnung_Detail!$O$8:$DF$8,0)))+D92),"") -> 83487.17 | F92: =IFERROR(SUMIF(INDIRECT(dshbrdrng_umsatzentwicklung),"<>", INDEX(INDIRECT(dshbrdrng_umsatzentwicklung2),0,MATCH(DATE($B20,MONTH(F$13),1),Erfolgsrechnung_Detail!$O$8:$DF$8,0))) + IF(INDEX(tblUmsatzFltr[Nr],MATCH(filter_umsatz,tblUmsatzFltr[Umsatz Filter],0)) = 1, SUMIF(INDIRECT(dshbrdrng_reingewinn),"<>", INDEX(INDIRECT(dshbrdrng_reingewinn2),0,MATCH(DATE($B92,MONTH(F$85),1),Erfolgsrechnung_Detail!$O$8:$DF$8,0))), SUMIF(INDIRECT(dshbrdrng_reingewinn),"<>", INDEX(INDIRECT(dshbrdrng_reingewinn2),0,MATCH(DATE($B92,MONTH(F$85),1),Erfolgsrechnung_Detail!$O$8:$DF$8,0)))+E92),"") -> 26381.62 | G92: =IFERROR(SUMIF(INDIRECT(dshbrdrng_umsatzentwicklung),"<>", INDEX(INDIRECT(dshbrdrng_umsatzentwicklung2),0,MATCH(DATE($B20,MONTH(G$13),1),Erfolgsrechnung_Detail!$O$8:$DF$8,0))) + IF(INDEX(tblUmsatzFltr[Nr],MATCH(filter_umsatz,tblUmsatzFltr[Umsatz Filter],0)) = 1, SUMIF(INDIRECT(dshbrdrng_reingewinn),"<>", INDEX(INDIRECT(dshbrdrng_reingewinn2),0,MATCH(DATE($B92,MONTH(G$85),1),Erfolgsrechnung_Detail!$O$8:$DF$8,0))), SUMIF(INDIRECT(dshbrdrng_reingewinn),"<>", INDEX(INDIRECT(dshbrdrng_reingewinn2),0,MATCH(DATE($B92,MONTH(G$85),1),Erfolgsrechnung_Detail!$O$8:$DF$8,0)))+F92),"") -> 83423.66 | H92: =IFERROR(SUMIF(INDIRECT(dshbrdrng_umsatzentwicklung),"<>", INDEX(INDIRECT(dshbrdrng_umsatzentwicklung2),0,MATCH(DATE($B20,MONTH(H$13),1),Erfolgsrechnung_Detail!$O$8:$DF$8,0))) + IF(INDEX(tblUmsatzFltr[Nr],MATCH(filter_umsatz,tblUmsatzFltr[Umsatz Filter],0)) = 1, SUMIF(INDIRECT(dshbrdrng_reingewinn),"<>", INDEX(INDIRECT(dshbrdrng_reingewinn2),0,MATCH(DATE($B92,MONTH(H$85),1),Erfolgsrechnung_Detail!$O$8:$DF$8,0))), SUMIF(INDIRECT(dshbrdrng_reingewinn),"<>", INDEX(INDIRECT(dshbrdrng_reingewinn2),0,MATCH(DATE($B92,MONTH(H$85),1),Erfolgsrechnung_Detail!$O$8:$DF$8,0)))+G92),"") -> 121114.33 | I92: =IFERROR(SUMIF(INDIRECT(dshbrdrng_umsatzentwicklung),"<>", INDEX(INDIRECT(dshbrdrng_umsatzentwicklung2),0,MATCH(DATE($B20,MONTH(I$13),1),Erfolgsrechnung_Detail!$O$8:$DF$8,0))) + IF(INDEX(tblUmsatzFltr[Nr],MATCH(filter_umsatz,tblUmsatzFltr[Umsatz Filter],0)) = 1, SUMIF(INDIRECT(dshbrdrng_reingewinn),"<>", INDEX(INDIRECT(dshbrdrng_reingewinn2),0,MATCH(DATE($B92,MONTH(I$85),1),Erfolgsrechnung_Detail!$O$8:$DF$8,0))), SUMIF(INDIRECT(dshbrdrng_reingewinn),"<>", INDEX(INDIRECT(dshbrdrng_reingewinn2),0,MATCH(DATE($B92,MONTH(I$85),1),Erfolgsrechnung_Detail!$O$8:$DF$8,0)))+H92),"") -> 84802.13 | J92: =IFERROR(SUMIF(INDIRECT(dshbrdrng_umsatzentwicklung),"<>", INDEX(INDIRECT(dshbrdrng_umsatzentwicklung2),0,MATCH(DATE($B20,MONTH(J$13),1),Erfolgsrechnung_Detail!$O$8:$DF$8,0))) + IF(INDEX(tblUmsatzFltr[Nr],MATCH(filter_umsatz,tblUmsatzFltr[Umsatz Filter],0)) = 1, SUMIF(INDIRECT(dshbrdrng_reingewinn),"<>", INDEX(INDIRECT(dshbrdrng_reingewinn2),0,MATCH(DATE($B92,MONTH(J$85),1),Erfolgsrechnung_Detail!$O$8:$DF$8,0))), SUMIF(INDIRECT(dshbrdrng_reingewinn),"<>", INDEX(INDIRECT(dshbrdrng_reingewinn2),0,MATCH(DATE($B92,MONTH(J$85),1),Erfolgsrechnung_Detail!$O$8:$DF$8,0)))+I92),"") -> 15917.46 | K92: =IFERROR(SUMIF(INDIRECT(dshbrdrng_umsatzentwicklung),"<>", INDEX(INDIRECT(dshbrdrng_umsatzentwicklung2),0,MATCH(DATE($B20,MONTH(K$13),1),Erfolgsrechnung_Detail!$O$8:$DF$8,0))) + IF(INDEX(tblUmsatzFltr[Nr],MATCH(filter_umsatz,tblUmsatzFltr[Umsatz Filter],0)) = 1, SUMIF(INDIRECT(dshbrdrng_reingewinn),"<>", INDEX(INDIRECT(dshbrdrng_reingewinn2),0,MATCH(DATE($B92,MONTH(K$85),1),Erfolgsrechnung_Detail!$O$8:$DF$8,0))), SUMIF(INDIRECT(dshbrdrng_reingewinn),"<>", INDEX(INDIRECT(dshbrdrng_reingewinn2),0,MATCH(DATE($B92,MONTH(K$85),1),Erfolgsrechnung_Detail!$O$8:$DF$8,0)))+J92),"") -> 31837.17 | L92: =IFERROR(SUMIF(INDIRECT(dshbrdrng_umsatzentwicklung),"<>", INDEX(INDIRECT(dshbrdrng_umsatzentwicklung2),0,MATCH(DATE($B20,MONTH(L$13),1),Erfolgsrechnung_Detail!$O$8:$DF$8,0))) + IF(INDEX(tblUmsatzFltr[Nr],MATCH(filter_umsatz,tblUmsatzFltr[Umsatz Filter],0)) = 1, SUMIF(INDIRECT(dshbrdrng_reingewinn),"<>", INDEX(INDIRECT(dshbrdrng_reingewinn2),0,MATCH(DATE($B92,MONTH(L$85),1),Erfolgsrechnung_Detail!$O$8:$DF$8,0))), SUMIF(INDIRECT(dshbrdrng_reingewinn),"<>", INDEX(INDIRECT(dshbrdrng_reingewinn2),0,MATCH(DATE($B92,MONTH(L$85),1),Erfolgsrechnung_Detail!$O$8:$DF$8,0)))+K92),"") -> 62272.37 | M92: =IFERROR(SUMIF(INDIRECT(dshbrdrng_umsatzentwicklung),"<>", INDEX(INDIRECT(dshbrdrng_umsatzentwicklung2),0,MATCH(DATE($B20,MONTH(M$13),1),Erfolgsrechnung_Detail!$O$8:$DF$8,0))) + IF(INDEX(tblUmsatzFltr[Nr],MATCH(filter_umsatz,tblUmsatzFltr[Umsatz Filter],0)) = 1, SUMIF(INDIRECT(dshbrdrng_reingewinn),"<>", INDEX(INDIRECT(dshbrdrng_reingewinn2),0,MATCH(DATE($B92,MONTH(M$85),1),Erfolgsrechnung_Detail!$O$8:$DF$8,0))), SUMIF(INDIRECT(dshbrdrng_reingewinn),"<>", INDEX(INDIRECT(dshbrdrng_reingewinn2),0,MATCH(DATE($B92,MONTH(M$85),1),Erfolgsrechnung_Detail!$O$8:$DF$8,0)))+L92),"") -> 28019.46 | N92: =IFERROR(SUMIF(INDIRECT(dshbrdrng_umsatzentwicklung),"<>", INDEX(INDIRECT(dshbrdrng_umsatzentwicklung2),0,MATCH(DATE($B20,MONTH(N$13),1),Erfolgsrechnung_Detail!$O$8:$DF$8,0))) + IF(INDEX(tblUmsatzFltr[Nr],MATCH(filter_umsatz,tblUmsatzFltr[Umsatz Filter],0)) = 1, SUMIF(INDIRECT(dshbrdrng_reingewinn),"<>", INDEX(INDIRECT(dshbrdrng_reingewinn2),0,MATCH(DATE($B92,MONTH(N$85),1),Erfolgsrechnung_Detail!$O$8:$DF$8,0))), SUMIF(INDIRECT(dshbrdrng_reingewinn),"<>", INDEX(INDIRECT(dshbrdrng_reingewinn2),0,MATCH(DATE($B92,MONTH(N$85),1),Erfolgsrechnung_Detail!$O$8:$DF$8,0)))+M92),"") -> 46890.64 | P92: =IFERROR(IF( INDEX(tblUmsatzFltr[Nr],MATCH(filter_umsatz,tblUmsatzFltr[Umsatz Filter],0))=1, SUM($C92:INDEX($C92:$N92,1,selectedmonat_num)), INDEX($C92:$N92,0,MATCH(monat,tblMonate[Monate],0))),"") -> 114183.24 | Q92: =IFERROR( IF(INDEX(tblUmsatzFltr[Nr],MATCH($L$3,tblUmsatzFltr[Umsatz Filter],0)) = 1, SUM(Dashboard!$C92:$N92),Dashboard!$N92),"") -> 614842.08
B93: YTD | C93: =IFERROR(C92/C91-1,0) -> -0.8225915268 | D93: -0.3045113472 | E93: -0.1471901266 | F93: -0.2771531117 | G93: 1.42463486 | H93: 1.37194027 | I93: 0.7349424384 | J93: -0.8159368183 | K93: 0.3589019404 | L93: 0.5035965908 | M93: -0.7061776244 | N93: -0.7070587141 | P93: =IFERROR(P92/P91-1,0) -> -0.2914255743 | Q93: =IFERROR(Q92/Q91-1,0) -> -0.1677168807
B95: Budget | C95: =IFERROR((SUMIFS(INDIRECT(budgetrng_umsatzentwicklung),INDIRECT(budgetrng),"<>")- SUMIFS(INDIRECT(budgetrng_bruttogewinn),INDIRECT(budgetrng2),"<>"))- SUMIFS(INDIRECT(budgetrng_reingewinn),INDIRECT(budgetrng3),"<>"),"") -> 2500 | D95: =IFERROR((SUMIFS(OFFSET(INDIRECT(budgetrng_umsatzentwicklung),0,1),INDIRECT(budgetrng),"<>")- SUMIFS(OFFSET(INDIRECT(budgetrng_bruttogewinn),0,1),INDIRECT(budgetrng2),"<>"))- SUMIFS(OFFSET(INDIRECT(budgetrng_reingewinn),0,1),INDIRECT(budgetrng3),"<>"),"") -> 2500 | E95: =IFERROR((SUMIFS(OFFSET(INDIRECT(budgetrng_umsatzentwicklung),0,2),INDIRECT(budgetrng),"<>")- SUMIFS(OFFSET(INDIRECT(budgetrng_bruttogewinn),0,2),INDIRECT(budgetrng2),"<>"))- SUMIFS(OFFSET(INDIRECT(budgetrng_reingewinn),0,2),INDIRECT(budgetrng3),"<>"),"") -> 4500 | F95: =IFERROR((SUMIFS(OFFSET(INDIRECT(budgetrng_umsatzentwicklung),0,3),INDIRECT(budgetrng),"<>")- SUMIFS(OFFSET(INDIRECT(budgetrng_bruttogewinn),0,3),INDIRECT(budgetrng2),"<>"))- SUMIFS(OFFSET(INDIRECT(budgetrng_reingewinn),0,3),INDIRECT(budgetrng3),"<>"),"") -> 4500 | G95: =IFERROR((SUMIFS(OFFSET(INDIRECT(budgetrng_umsatzentwicklung),0,4),INDIRECT(budgetrng),"<>")- SUMIFS(OFFSET(INDIRECT(budgetrng_bruttogewinn),0,4),INDIRECT(budgetrng2),"<>"))- SUMIFS(OFFSET(INDIRECT(budgetrng_reingewinn),0,4),INDIRECT(budgetrng3),"<>"),"") -> 6500 | H95: =IFERROR((SUMIFS(OFFSET(INDIRECT(budgetrng_umsatzentwicklung),0,5),INDIRECT(budgetrng),"<>")- SUMIFS(OFFSET(INDIRECT(budgetrng_bruttogewinn),0,5),INDIRECT(budgetrng2),"<>"))- SUMIFS(OFFSET(INDIRECT(budgetrng_reingewinn),0,5),INDIRECT(budgetrng3),"<>"),"") -> 6500 | I95: =IFERROR((SUMIFS(OFFSET(INDIRECT(budgetrng_umsatzentwicklung),0,6),INDIRECT(budgetrng),"<>")- SUMIFS(OFFSET(INDIRECT(budgetrng_bruttogewinn),0,6),INDIRECT(budgetrng2),"<>"))- SUMIFS(OFFSET(INDIRECT(budgetrng_reingewinn),0,6),INDIRECT(budgetrng3),"<>"),"") -> 8500 | J95: =IFERROR((SUMIFS(OFFSET(INDIRECT(budgetrng_umsatzentwicklung),0,7),INDIRECT(budgetrng),"<>")- SUMIFS(OFFSET(INDIRECT(budgetrng_bruttogewinn),0,7),INDIRECT(budgetrng2),"<>"))- SUMIFS(OFFSET(INDIRECT(budgetrng_reingewinn),0,7),INDIRECT(budgetrng3),"<>"),"") -> 8500 | K95: =IFERROR((SUMIFS(OFFSET(INDIRECT(budgetrng_umsatzentwicklung),0,8),INDIRECT(budgetrng),"<>")- SUMIFS(OFFSET(INDIRECT(budgetrng_bruttogewinn),0,8),INDIRECT(budgetrng2),"<>"))- SUMIFS(OFFSET(INDIRECT(budgetrng_reingewinn),0,8),INDIRECT(budgetrng3),"<>"),"") -> 10500 | L95: =IFERROR((SUMIFS(OFFSET(INDIRECT(budgetrng_umsatzentwicklung),0,9),INDIRECT(budgetrng),"<>")- SUMIFS(OFFSET(INDIRECT(budgetrng_bruttogewinn),0,9),INDIRECT(budgetrng2),"<>"))- SUMIFS(OFFSET(INDIRECT(budgetrng_reingewinn),0,9),INDIRECT(budgetrng3),"<>"),"") -> 10500 | M95: =IFERROR((SUMIFS(OFFSET(INDIRECT(budgetrng_umsatzentwicklung),0,10),INDIRECT(budgetrng),"<>")- SUMIFS(OFFSET(INDIRECT(budgetrng_bruttogewinn),0,10),INDIRECT(budgetrng2),"<>"))- SUMIFS(OFFSET(INDIRECT(budgetrng_reingewinn),0,10),INDIRECT(budgetrng3),"<>"),"") -> 12500 | N95: =IFERROR((SUMIFS(OFFSET(INDIRECT(budgetrng_umsatzentwicklung),0,11),INDIRECT(budgetrng),"<>")- SUMIFS(OFFSET(INDIRECT(budgetrng_bruttogewinn),0,11),INDIRECT(budgetrng2),"<>"))- SUMIFS(OFFSET(INDIRECT(budgetrng_reingewinn),0,11),INDIRECT(budgetrng3),"<>"),"") -> 12500 | P95: =SUM($C95:INDEX($C95:$N95,1,selectedmonat_num)) -> 9500 | Q95: =SUM(rngBudgetSalesCost) -> 90000
B98: Aktuelles Jahr vs. Vorjahr | P98: =IF(INDEX(tblMonate[Nr],MATCH(monat,tblMonate[Monate],0))<>1, CONCATENATE("YTD ",Einstellungen!$AY$8," - ",monat," ",B83," Zielerreichung"), CONCATENATE("YTD ",Einstellungen!$AY$8," ",B83," Zielerreichungt")) -> YTD Januar - März Reingewinn / Reinverlust Zielerreichung
B100: Budget | C100: =C95 -> 2500 | D100: =IF(INDEX(tblUmsatzFltr[Nr],MATCH($L$3,tblUmsatzFltr[Umsatz Filter],0)) = 1,D$95,D$95+C$100) -> 2500 | E100: =IF(INDEX(tblUmsatzFltr[Nr],MATCH($L$3,tblUmsatzFltr[Umsatz Filter],0)) = 1,E$95,E$95+D$100) -> 4500 | F100: =IF(INDEX(tblUmsatzFltr[Nr],MATCH($L$3,tblUmsatzFltr[Umsatz Filter],0)) = 1,F$95,F$95+E$100) -> 4500 | G100: =IF(INDEX(tblUmsatzFltr[Nr],MATCH($L$3,tblUmsatzFltr[Umsatz Filter],0)) = 1,G$95,G$95+F$100) -> 6500 | H100: =IF(INDEX(tblUmsatzFltr[Nr],MATCH($L$3,tblUmsatzFltr[Umsatz Filter],0)) = 1,H$95,H$95+G$100) -> 6500 | I100: =IF(INDEX(tblUmsatzFltr[Nr],MATCH($L$3,tblUmsatzFltr[Umsatz Filter],0)) = 1,I$95,I$95+H$100) -> 8500 | J100: =IF(INDEX(tblUmsatzFltr[Nr],MATCH($L$3,tblUmsatzFltr[Umsatz Filter],0)) = 1,J$95,J$95+I$100) -> 8500 | K100: =IF(INDEX(tblUmsatzFltr[Nr],MATCH($L$3,tblUmsatzFltr[Umsatz Filter],0)) = 1,K$95,K$95+J$100) -> 10500 | L100: =IF(INDEX(tblUmsatzFltr[Nr],MATCH($L$3,tblUmsatzFltr[Umsatz Filter],0)) = 1,L$95,L$95+K$100) -> 10500 | M100: =IF(INDEX(tblUmsatzFltr[Nr],MATCH($L$3,tblUmsatzFltr[Umsatz Filter],0)) = 1,M$95,M$95+L$100) -> 12500 | N100: =IF(INDEX(tblUmsatzFltr[Nr],MATCH($L$3,tblUmsatzFltr[Umsatz Filter],0)) = 1,N$95,N$95+M$100) -> 12500

Sheet Erfolgsrechnung_Detail
B8: Negativ (-1)/Positiv (1) | D8: Bezeichnung | E8: Gegenkonto | F8: Gegenkonto (Beschrieb) | G8: =DATE(startjahr,1,1) -> 2015-01-01 | H8: =DATE(YEAR(G8)+1,MONTH(G8),DAY(G8)) -> 2016-01-01 | I8: 2017-01-01 | J8: 2018-01-01 | K8: 2019-01-01 | L8: 2020-01-01 | M8: 2021-01-01 | N8: 2022-01-01 | O8: =G8 -> 2015-01-01 | P8: =EOMONTH(O8,0)+1 -> 2015-02-01 | Q8: =EOMONTH(P8,0)+1 -> 2015-03-01 | R8: 2015-04-01 | S8: 2015-05-01 | T8: 2015-06-01 | U8: 2015-07-01 | V8: 2015-08-01 | W8: 2015-09-01 | X8: 2015-10-01 | Y8: 2015-11-01 | Z8: 2015-12-01 | AA8: 2016-01-01 | AB8: 2016-02-01 | AC8: 2016-03-01 | AD8: 2016-04-01 | AE8: 2016-05-01 | AF8: 2016-06-01 | AG8: 2016-07-01 | AH8: 2016-08-01 | AI8: 2016-09-01 | AJ8: 2016-10-01 | AK8: 2016-11-01 | AL8: 2016-12-01 | AM8: 2017-01-01 | AN8: 2017-02-01 | AO8: 2017-03-01 | AP8: 2017-04-01 | AQ8: 2017-05-01 | AR8: 2017-06-01 | AS8: 2017-07-01 | AT8: 2017-08-01 | AU8: 2017-09-01 | AV8: 2017-10-01 | AW8: 2017-11-01 | AX8: 2017-12-01 | AY8: 2018-01-01 | AZ8: 2018-02-01 | BA8: 2018-03-01 | BB8: 2018-04-01 | BC8: 2018-05-01 | BD8: 2018-06-01 | BE8: 2018-07-01 | BF8: 2018-08-01 | BG8: 2018-09-01 | BH8: 2018-10-01 | BI8: 2018-11-01 | BJ8: 2018-12-01 | BK8: 2019-01-01 | BL8: 2019-02-01 | BM8: 2019-03-01 | BN8: 2019-04-01 | BO8: 2019-05-01 | BP8: 2019-06-01 | BQ8: 2019-07-01 | BR8: 2019-08-01 | BS8: 2019-09-01 | BT8: 2019-10-01 | BU8: 2019-11-01 | BV8: 2019-12-01 | BW8: 2020-01-01 | BX8: 2020-02-01 | BY8: 2020-03-01 | BZ8: 2020-04-01 | CA8: 2020-05-01 | CB8: 2020-06-01 | CC8: =EOMONTH(CB8,0)+1 -> 2020-07-01 | CD8: 2020-08-01 | CE8: 2020-09-01 | CF8: 2020-10-01 | CG8: 2020-11-01 | CH8: 2020-12-01 | CI8: 2021-01-01 | CJ8: 2021-02-01 | CK8: 2021-03-01 | CL8: 2021-04-01 | CM8: 2021-05-01 | CN8: 2021-06-01 | CO8: 2021-07-01 | CP8: 2021-08-01 | CQ8: 2021-09-01 | CR8: 2021-10-01 | CS8: 2021-11-01 | CT8: 2021-12-01 | CU8: 2022-01-01 | CV8: 2022-02-01 | CW8: 2022-03-01 | CX8: 2022-04-01 | CY8: 2022-05-01 | CZ8: 2022-06-01 | DA8: 2022-07-01 | DB8: 2022-08-01 | DC8: 2022-09-01 | DD8: 2022-10-01 | DE8: 2022-11-01 | DF8: 2022-12-01
C9: 3 - Betriebsertrag aus Lieferungen und Leistungen
B10: 0 | C10: 3000 | D10: Bruttoertrag Barverkäufe Hauptgeschäft | G10: =IF(ISNUMBER($C10), SUMIFS(Datenblatt!$M:$M, Datenblatt!$G:$G,$C10, Datenblatt!$R:$R,">="&G$8,Datenblatt!$R:$R,"<="&EOMONTH(G$8,11)) - SUMIFS(Datenblatt!$M:$M, Datenblatt!$E:$E,$C10, Datenblatt!$R:$R,">="&G$8,Datenblatt!$R:$R,"<="&EOMONTH(G$8,11)), "") -> 19834.99 | H10: =IF(ISNUMBER($C10), SUMIFS(Datenblatt!$M:$M, Datenblatt!$G:$G,$C10, Datenblatt!$R:$R,">="&H$8,Datenblatt!$R:$R,"<="&EOMONTH(H$8,11)) - SUMIFS(Datenblatt!$M:$M, Datenblatt!$E:$E,$C10, Datenblatt!$R:$R,">="&H$8,Datenblatt!$R:$R,"<="&EOMONTH(H$8,11)), "") -> 62531.81 | I10: =IF(ISNUMBER($C10), SUMIFS(Datenblatt!$M:$M, Datenblatt!$G:$G,$C10, Datenblatt!$R:$R,">="&I$8,Datenblatt!$R:$R,"<="&EOMONTH(I$8,11)) - SUMIFS(Datenblatt!$M:$M, Datenblatt!$E:$E,$C10, Datenblatt!$R:$R,">="&I$8,Datenblatt!$R:$R,"<="&EOMONTH(I$8,11)), "") -> 51664.96 | J10: =IF(ISNUMBER($C10), SUMIFS(Datenblatt!$M:$M, Datenblatt!$G:$G,$C10, Datenblatt!$R:$R,">="&J$8,Datenblatt!$R:$R,"<="&EOMONTH(J$8,11)) - SUMIFS(Datenblatt!$M:$M, Datenblatt!$E:$E,$C10, Datenblatt!$R:$R,">="&J$8,Datenblatt!$R:$R,"<="&EOMONTH(J$8,11)), "") -> 26150.94 | K10: =IF(ISNUMBER($C10), SUMIFS(Datenblatt!$M:$M, Datenblatt!$G:$G,$C10, Datenblatt!$R:$R,">="&K$8,Datenblatt!$R:$R,"<="&EOMONTH(K$8,11)) - SUMIFS(Datenblatt!$M:$M, Datenblatt!$E:$E,$C10, Datenblatt!$R:$R,">="&K$8,Datenblatt!$R:$R,"<="&EOMONTH(K$8,11)), "") -> 29331.61 | L10: =IF(ISNUMBER($C10), SUMIFS(Datenblatt!$M:$M, Datenblatt!$G:$G,$C10, Datenblatt!$R:$R,">="&L$8,Datenblatt!$R:$R,"<="&EOMONTH(L$8,11)) - SUMIFS(Datenblatt!$M:$M, Datenblatt!$E:$E,$C10, Datenblatt!$R:$R,">="&L$8,Datenblatt!$R:$R,"<="&EOMONTH(L$8,11)), "") -> 50800.91 | M10: =IF(ISNUMBER($C10), SUMIFS(Datenblatt!$M:$M, Datenblatt!$G:$G,$C10, Datenblatt!$R:$R,">="&M$8,Datenblatt!$R:$R,"<="&EOMONTH(M$8,11)) - SUMIFS(Datenblatt!$M:$M, Datenblatt!$E:$E,$C10, Datenblatt!$R:$R,">="&M$8,Datenblatt!$R:$R,"<="&EOMONTH(M$8,11)), "") -> 0 | N10: =IF(ISNUMBER($C10), SUMIFS(Datenblatt!$M:$M, Datenblatt!$G:$G,$C10, Datenblatt!$R:$R,">="&N$8,Datenblatt!$R:$R,"<="&EOMONTH(N$8,11)) - SUMIFS(Datenblatt!$M:$M, Datenblatt!$E:$E,$C10, Datenblatt!$R:$R,">="&N$8,Datenblatt!$R:$R,"<="&EOMONTH(N$8,11)), "") -> 0 | O10: =IF(ISNUMBER($C10), SUMIFS(Datenblatt!$M:$M, Datenblatt!$G:$G,$C10, Datenblatt!$R:$R,">="&O$8,Datenblatt!$R:$R,"<="&EOMONTH(O$8,0)) - SUMIFS(Datenblatt!$M:$M, Datenblatt!$E:$E,$C10, Datenblatt!$R:$R,">="&O$8,Datenblatt!$R:$R,"<="&EOMONTH(O$8,0)), "") -> 1715.43 | P10: =IF(ISNUMBER($C10), SUMIFS(Datenblatt!$M:$M, Datenblatt!$G:$G,$C10, Datenblatt!$R:$R,">="&P$8,Datenblatt!$R:$R,"<="&EOMONTH(P$8,0)) - SUMIFS(Datenblatt!$M:$M, Datenblatt!$E:$E,$C10, Datenblatt!$R:$R,">="&P$8,Datenblatt!$R:$R,"<="&EOMONTH(P$8,0)), "") -> 1362.87 | Q10: =IF(ISNUMBER($C10), SUMIFS(Datenblatt!$M:$M, Datenblatt!$G:$G,$C10, Datenblatt!$R:$R,">="&Q$8,Datenblatt!$R:$R,"<="&EOMONTH(Q$8,0)) - SUMIFS(Datenblatt!$M:$M, Datenblatt!$E:$E,$C10, Datenblatt!$R:$R,">="&Q$8,Datenblatt!$R:$R,"<="&EOMONTH(Q$8,0)), "") -> 0 | R10: =IF(ISNUMBER($C10), SUMIFS(Datenblatt!$M:$M, Datenblatt!$G:$G,$C10, Datenblatt!$R:$R,">="&R$8,Datenblatt!$R:$R,"<="&EOMONTH(R$8,0)) - SUMIFS(Datenblatt!$M:$M, Datenblatt!$E:$E,$C10, Datenblatt!$R:$R,">="&R$8,Datenblatt!$R:$R,"<="&EOMONTH(R$8,0)), "") -> 908.92 | S10: =IF(ISNUMBER($C10), SUMIFS(Datenblatt!$M:$M, Datenblatt!$G:$G,$C10, Datenblatt!$R:$R,">="&S$8,Datenblatt!$R:$R,"<="&EOMONTH(S$8,0)) - SUMIFS(Datenblatt!$M:$M, Datenblatt!$E:$E,$C10, Datenblatt!$R:$R,">="&S$8,Datenblatt!$R:$R,"<="&EOMONTH(S$8,0)), "") -> 3.84 | T10: =IF(ISNUMBER($C10), SUMIFS(Datenblatt!$M:$M, Datenblatt!$G:$G,$C10, Datenblatt!$R:$R,">="&T$8,Datenblatt!$R:$R,"<="&EOMONTH(T$8,0)) - SUMIFS(Datenblatt!$M:$M, Datenblatt!$E:$E,$C10, Datenblatt!$R:$R,">="&T$8,Datenblatt!$R:$R,"<="&EOMONTH(T$8,0)), "") -> 5919.53 | U10: =IF(ISNUMBER($C10), SUMIFS(Datenblatt!$M:$M, Datenblatt!$G:$G,$C10, Datenblatt!$R:$R,">="&U$8,Datenblatt!$R:$R,"<="&EOMONTH(U$8,0)) - SUMIFS(Datenblatt!$M:$M, Datenblatt!$E:$E,$C10, Datenblatt!$R:$R,">="&U$8,Datenblatt!$R:$R,"<="&EOMONTH(U$8,0)), "") -> 0 | V10: =IF(ISNUMBER($C10), SUMIFS(Datenblatt!$M:$M, Datenblatt!$G:$G,$C10, Datenblatt!$R:$R,">="&V$8,Datenblatt!$R:$R,"<="&EOMONTH(V$8,0)) - SUMIFS(Datenblatt!$M:$M, Datenblatt!$E:$E,$C10, Datenblatt!$R:$R,">="&V$8,Datenblatt!$R:$R,"<="&EOMONTH(V$8,0)), "") -> 2045.82 | W10: =IF(ISNUMBER($C10), SUMIFS(Datenblatt!$M:$M, Datenblatt!$G:$G,$C10, Datenblatt!$R:$R,">="&W$8,Datenblatt!$R:$R,"<="&EOMONTH(W$8,0)) - SUMIFS(Datenblatt!$M:$M, Datenblatt!$E:$E,$C10, Datenblatt!$R:$R,">="&W$8,Datenblatt!$R:$R,"<="&EOMONTH(W$8,0)), "") -> 0 | X10: =IF(ISNUMBER($C10), SUMIFS(Datenblatt!$M:$M, Datenblatt!$G:$G,$C10, Datenblatt!$R:$R,">="&X$8,Datenblatt!$R:$R,"<="&EOMONTH(X$8,0)) - SUMIFS(Datenblatt!$M:$M, Datenblatt!$E:$E,$C10, Datenblatt!$R:$R,">="&X$8,Datenblatt!$R:$R,"<="&EOMONTH(X$8,0)), "") -> 277.4 | Y10: =IF(ISNUMBER($C10), SUMIFS(Datenblatt!$M:$M, Datenblatt!$G:$G,$C10, Datenblatt!$R:$R,">="&Y$8,Datenblatt!$R:$R,"<="&EOMONTH(Y$8,0)) - SUMIFS(Datenblatt!$M:$M, Datenblatt!$E:$E,$C10, Datenblatt!$R:$R,">="&Y$8,Datenblatt!$R:$R,"<="&EOMONTH(Y$8,0)), "") -> 0 | Z10: =IF(ISNUMBER($C10), SUMIFS(Datenblatt!$M:$M, Datenblatt!$G:$G,$C10, Datenblatt!$R:$R,">="&Z$8,Datenblatt!$R:$R,"<="&EOMONTH(Z$8,0)) - SUMIFS(Datenblatt!$M:$M, Datenblatt!$E:$E,$C10, Datenblatt!$R:$R,">="&Z$8,Datenblatt!$R:$R,"<="&EOMONTH(Z$8,0)), "") -> 7601.18 | AA10: =IF(ISNUMBER($C10), SUMIFS(Datenblatt!$M:$M, Datenblatt!$G:$G,$C10, Datenblatt!$R:$R,">="&AA$8,Datenblatt!$R:$R,"<="&EOMONTH(AA$8,0)) - SUMIFS(Datenblatt!$M:$M, Datenblatt!$E:$E,$C10, Datenblatt!$R:$R,">="&AA$8,Datenblatt!$R:$R,"<="&EOMONTH(AA$8,0)), "") -> 3006.21 | AB10: =IF(ISNUMBER($C10), SUMIFS(Datenblatt!$M:$M, Datenblatt!$G:$G,$C10, Datenblatt!$R:$R,">="&AB$8,Datenblatt!$R:$R,"<="&EOMONTH(AB$8,0)) - SUMIFS(Datenblatt!$M:$M, Datenblatt!$E:$E,$C10, Datenblatt!$R:$R,">="&AB$8,Datenblatt!$R:$R,"<="&EOMONTH(AB$8,0)), "") -> 0 | AC10: =IF(ISNUMBER($C10), SUMIFS(Datenblatt!$M:$M, Datenblatt!$G:$G,$C10, Datenblatt!$R:$R,">="&AC$8,Datenblatt!$R:$R,"<="&EOMONTH(AC$8,0)) - SUMIFS(Datenblatt!$M:$M, Datenblatt!$E:$E,$C10, Datenblatt!$R:$R,">="&AC$8,Datenblatt!$R:$R,"<="&EOMONTH(AC$8,0)), "") -> 26905.14 | AD10: =IF(ISNUMBER($C10), SUMIFS(Datenblatt!$M:$M, Datenblatt!$G:$G,$C10, Datenblatt!$R:$R,">="&AD$8,Datenblatt!$R:$R,"<="&EOMONTH(AD$8,0)) - SUMIFS(Datenblatt!$M:$M, Datenblatt!$E:$E,$C10, Datenblatt!$R:$R,">="&AD$8,Datenblatt!$R:$R,"<="&EOMONTH(AD$8,0)), "") -> 1504.5 | AE10: =IF(ISNUMBER($C10), SUMIFS(Datenblatt!$M:$M, Datenblatt!$G:$G,$C10, Datenblatt!$R:$R,">="&AE$8,Datenblatt!$R:$R,"<="&EOMONTH(AE$8,0)) - SUMIFS(Datenblatt!$M:$M, Datenblatt!$E:$E,$C10, Datenblatt!$R:$R,">="&AE$8,Datenblatt!$R:$R,"<="&EOMONTH(AE$8,0)), "") -> 0 | AF10: =IF(ISNUMBER($C10), SUMIFS(Datenblatt!$M:$M, Datenblatt!$G:$G,$C10, Datenblatt!$R:$R,">="&AF$8,Datenblatt!$R:$R,"<="&EOMONTH(AF$8,0)) - SUMIFS(Datenblatt!$M:$M, Datenblatt!$E:$E,$C10, Datenblatt!$R:$R,">="&AF$8,Datenblatt!$R:$R,"<="&EOMONTH(AF$8,0)), "") -> 0 | AG10: =IF(ISNUMBER($C10), SUMIFS(Datenblatt!$M:$M, Datenblatt!$G:$G,$C10, Datenblatt!$R:$R,">="&AG$8,Datenblatt!$R:$R,"<="&EOMONTH(AG$8,0)) - SUMIFS(Datenblatt!$M:$M, Datenblatt!$E:$E,$C10, Datenblatt!$R:$R,">="&AG$8,Datenblatt!$R:$R,"<="&EOMONTH(AG$8,0)), "") -> 15310.65 | AH10: =IF(ISNUMBER($C10), SUMIFS(Datenblatt!$M:$M, Datenblatt!$G:$G,$C10, Datenblatt!$R:$R,">="&AH$8,Datenblatt!$R:$R,"<="&EOMONTH(AH$8,0)) - SUMIFS(Datenblatt!$M:$M, Datenblatt!$E:$E,$C10, Datenblatt!$R:$R,">="&AH$8,Datenblatt!$R:$R,"<="&EOMONTH(AH$8,0)), "") -> 0 | AI10: =IF(ISNUMBER($C10), SUMIFS(Datenblatt!$M:$M, Datenblatt!$G:$G,$C10, Datenblatt!$R:$R,">="&AI$8,Datenblatt!$R:$R,"<="&EOMONTH(AI$8,0)) - SUMIFS(Datenblatt!$M:$M, Datenblatt!$E:$E,$C10, Datenblatt!$R:$R,">="&AI$8,Datenblatt!$R:$R,"<="&EOMONTH(AI$8,0)), "") -> 1287.08 | AJ10: =IF(ISNUMBER($C10), SUMIFS(Datenblatt!$M:$M, Datenblatt!$G:$G,$C10, Datenblatt!$R:$R,">="&AJ$8,Datenblatt!$R:$R,"<="&EOMONTH(AJ$8,0)) - SUMIFS(Datenblatt!$M:$M, Datenblatt!$E:$E,$C10, Datenblatt!$R:$R,">="&AJ$8,Datenblatt!$R:$R,"<="&EOMONTH(AJ$8,0)), "") -> 0 | AK10: =IF(ISNUMBER($C10), SUMIFS(Datenblatt!$M:$M, Datenblatt!$G:$G,$C10, Datenblatt!$R:$R,">="&AK$8,Datenblatt!$R:$R,"<="&EOMONTH(AK$8,0)) - SUMIFS(Datenblatt!$M:$M, Datenblatt!$E:$E,$C10, Datenblatt!$R:$R,">="&AK$8,Datenblatt!$R:$R,"<="&EOMONTH(AK$8,0)), "") -> 4067.74 | AL10: =IF(ISNUMBER($C10), SUMIFS(Datenblatt!$M:$M, Datenblatt!$G:$G,$C10, Datenblatt!$R:$R,">="&AL$8,Datenblatt!$R:$R,"<="&EOMONTH(AL$8,0)) - SUMIFS(Datenblatt!$M:$M, Datenblatt!$E:$E,$C10, Datenblatt!$R:$R,">="&AL$8,Datenblatt!$R:$R,"<="&EOMONTH(AL$8,0)), "") -> 10450.49 | AM10: =IF(ISNUMBER($C10), SUMIFS(Datenblatt!$M:$M, Datenblatt!$G:$G,$C10, Datenblatt!$R:$R,">="&AM$8,Datenblatt!$R:$R,"<="&EOMONTH(AM$8,0)) - SUMIFS(Datenblatt!$M:$M, Datenblatt!$E:$E,$C10, Datenblatt!$R:$R,">="&AM$8,Datenblatt!$R:$R,"<="&EOMONTH(AM$8,0)), "") -> 3737.41 | AN10: =IF(ISNUMBER($C10), SUMIFS(Datenblatt!$M:$M, Datenblatt!$G:$G,$C10, Datenblatt!$R:$R,">="&AN$8,Datenblatt!$R:$R,"<="&EOMONTH(AN$8,0)) - SUMIFS(Datenblatt!$M:$M, Datenblatt!$E:$E,$C10, Datenblatt!$R:$R,">="&AN$8,Datenblatt!$R:$R,"<="&EOMONTH(AN$8,0)), "") -> 0 | AO10: =IF(ISNUMBER($C10), SUMIFS(Datenblatt!$M:$M, Datenblatt!$G:$G,$C10, Datenblatt!$R:$R,">="&AO$8,Datenblatt!$R:$R,"<="&EOMONTH(AO$8,0)) - SUMIFS(Datenblatt!$M:$M, Datenblatt!$E:$E,$C10, Datenblatt!$R:$R,">="&AO$8,Datenblatt!$R:$R,"<="&EOMONTH(AO$8,0)), "") -> 5481.39 | AP10: =IF(ISNUMBER($C10), SUMIFS(Datenblatt!$M:$M, Datenblatt!$G:$G,$C10, Datenblatt!$R:$R,">="&AP$8,Datenblatt!$R:$R,"<="&EOMONTH(AP$8,0)) - SUMIFS(Datenblatt!$M:$M, Datenblatt!$E:$E,$C10, Datenblatt!$R:$R,">="&AP$8,Datenblatt!$R:$R,"<="&EOMONTH(AP$8,0)), "") -> 3974.5 | AQ10: =IF(ISNUMBER($C10), SUMIFS(Datenblatt!$M:$M, Datenblatt!$G:$G,$C10, Datenblatt!$R:$R,">="&AQ$8,Datenblatt!$R:$R,"<="&EOMONTH(AQ$8,0)) - SUMIFS(Datenblatt!$M:$M, Datenblatt!$E:$E,$C10, Datenblatt!$R:$R,">="&AQ$8,Datenblatt!$R:$R,"<="&EOMONTH(AQ$8,0)), "") -> 5561.57 | AR10: =IF(ISNUMBER($C10), SUMIFS(Datenblatt!$M:$M, Datenblatt!$G:$G,$C10, Datenblatt!$R:$R,">="&AR$8,Datenblatt!$R:$R,"<="&EOMONTH(AR$8,0)) - SUMIFS(Datenblatt!$M:$M, Datenblatt!$E:$E,$C10, Datenblatt!$R:$R,">="&AR$8,Datenblatt!$R:$R,"<="&EOMONTH(AR$8,0)), "") -> 4471.51 | AS10: =IF(ISNUMBER($C10), SUMIFS(Datenblatt!$M:$M, Datenblatt!$G:$G,$C10, Datenblatt!$R:$R,">="&AS$8,Datenblatt!$R:$R,"<="&EOMONTH(AS$8,0)) - SUMIFS(Datenblatt!$M:$M, Datenblatt!$E:$E,$C10, Datenblatt!$R:$R,">="&AS$8,Datenblatt!$R:$R,"<="&EOMONTH(AS$8,0)), "") -> 3473.69 | AT10: =IF(ISNUMBER($C10), SUMIFS(Datenblatt!$M:$M, Datenblatt!$G:$G,$C10, Datenblatt!$R:$R,">="&AT$8,Datenblatt!$R:$R,"<="&EOMONTH(AT$8,0)) - SUMIFS(Datenblatt!$M:$M, Datenblatt!$E:$E,$C10, Datenblatt!$R:$R,">="&AT$8,Datenblatt!$R:$R,"<="&EOMONTH(AT$8,0)), "") -> 0 | AU10: =IF(ISNUMBER($C10), SUMIFS(Datenblatt!$M:$M, Datenblatt!$G:$G,$C10, Datenblatt!$R:$R,">="&AU$8,Datenblatt!$R:$R,"<="&EOMONTH(AU$8,0)) - SUMIFS(Datenblatt!$M:$M, Datenblatt!$E:$E,$C10, Datenblatt!$R:$R,">="&AU$8,Datenblatt!$R:$R,"<="&EOMONTH(AU$8,0)), "") -> 8786.28 | AV10: =IF(ISNUMBER($C10), SUMIFS(Datenblatt!$M:$M, Datenblatt!$G:$G,$C10, Datenblatt!$R:$R,">="&AV$8,Datenblatt!$R:$R,"<="&EOMONTH(AV$8,0)) - SUMIFS(Datenblatt!$M:$M, Datenblatt!$E:$E,$C10, Datenblatt!$R:$R,">="&AV$8,Datenblatt!$R:$R,"<="&EOMONTH(AV$8,0)), "") -> 0 | AW10: =IF(ISNUMBER($C10), SUMIFS(Datenblatt!$M:$M, Datenblatt!$G:$G,$C10, Datenblatt!$R:$R,">="&AW$8,Datenblatt!$R:$R,"<="&EOMONTH(AW$8,0)) - SUMIFS(Datenblatt!$M:$M, Datenblatt!$E:$E,$C10, Datenblatt!$R:$R,">="&AW$8,Datenblatt!$R:$R,"<="&EOMONTH(AW$8,0)), "") -> 2504.31 | AX10: =IF(ISNUMBER($C10), SUMIFS(Datenblatt!$M:$M, Datenblatt!$G:$G,$C10, Datenblatt!$R:$R,">="&AX$8,Datenblatt!$R:$R,"<="&EOMONTH(AX$8,0)) - SUMIFS(Datenblatt!$M:$M, Datenblatt!$E:$E,$C10, Datenblatt!$R:$R,">="&AX$8,Datenblatt!$R:$R,"<="&EOMONTH(AX$8,0)), "") -> 13674.3 | AY10: =IF(ISNUMBER($C10), SUMIFS(Datenblatt!$M:$M, Datenblatt!$G:$G,$C10, Datenblatt!$R:$R,">="&AY$8,Datenblatt!$R:$R,"<="&EOMONTH(AY$8,0)) - SUMIFS(Datenblatt!$M:$M, Datenblatt!$E:$E,$C10, Datenblatt!$R:$R,">="&AY$8,Datenblatt!$R:$R,"<="&EOMONTH(AY$8,0)), "") -> 0 | AZ10: =IF(ISNUMBER($C10), SUMIFS(Datenblatt!$M:$M, Datenblatt!$G:$G,$C10, Datenblatt!$R:$R,">="&AZ$8,Datenblatt!$R:$R,"<="&EOMONTH(AZ$8,0)) - SUMIFS(Datenblatt!$M:$M, Datenblatt!$E:$E,$C10, Datenblatt!$R:$R,">="&AZ$8,Datenblatt!$R:$R,"<="&EOMONTH(AZ$8,0)), "") -> 4953.71 | BA10: =IF(ISNUMBER($C10), SUMIFS(Datenblatt!$M:$M, Datenblatt!$G:$G,$C10, Datenblatt!$R:$R,">="&BA$8,Datenblatt!$R:$R,"<="&EOMONTH(BA$8,0)) - SUMIFS(Datenblatt!$M:$M, Datenblatt!$E:$E,$C10, Datenblatt!$R:$R,">="&BA$8,Datenblatt!$R:$R,"<="&EOMONTH(BA$8,0)), "") -> 0 | BB10: =IF(ISNUMBER($C10), SUMIFS(Datenblatt!$M:$M, Datenblatt!$G:$G,$C10, Datenblatt!$R:$R,">="&BB$8,Datenblatt!$R:$R,"<="&EOMONTH(BB$8,0)) - SUMIFS(Datenblatt!$M:$M, Datenblatt!$E:$E,$C10, Datenblatt!$R:$R,">="&BB$8,Datenblatt!$R:$R,"<="&EOMONTH(BB$8,0)), "") -> 2907.46 | BC10: =IF(ISNUMBER($C10), SUMIFS(Datenblatt!$M:$M, Datenblatt!$G:$G,$C10, Datenblatt!$R:$R,">="&BC$8,Datenblatt!$R:$R,"<="&EOMONTH(BC$8,0)) - SUMIFS(Datenblatt!$M:$M, Datenblatt!$E:$E,$C10, Datenblatt!$R:$R,">="&BC$8,Datenblatt!$R:$R,"<="&EOMONTH(BC$8,0)), "") -> 0 | BD10: =IF(ISNUMBER($C10), SUMIFS(Datenblatt!$M:$M, Datenblatt!$G:$G,$C10, Datenblatt!$R:$R,">="&BD$8,Datenblatt!$R:$R,"<="&EOMONTH(BD$8,0)) - SUMIFS(Datenblatt!$M:$M, Datenblatt!$E:$E,$C10, Datenblatt!$R:$R,">="&BD$8,Datenblatt!$R:$R,"<="&EOMONTH(BD$8,0)), "") -> 1158.62 | BE10: =IF(ISNUMBER($C10), SUMIFS(Datenblatt!$M:$M, Datenblatt!$G:$G,$C10, Datenblatt!$R:$R,">="&BE$8,Datenblatt!$R:$R,"<="&EOMONTH(BE$8,0)) - SUMIFS(Datenblatt!$M:$M, Datenblatt!$E:$E,$C10, Datenblatt!$R:$R,">="&BE$8,Datenblatt!$R:$R,"<="&EOMONTH(BE$8,0)), "") -> 3981.07 | BF10: =IF(ISNUMBER($C10), SUMIFS(Datenblatt!$M:$M, Datenblatt!$G:$G,$C10, Datenblatt!$R:$R,">="&BF$8,Datenblatt!$R:$R,"<="&EOMONTH(BF$8,0)) - SUMIFS(Datenblatt!$M:$M, Datenblatt!$E:$E,$C10, Datenblatt!$R:$R,">="&BF$8,Datenblatt!$R:$R,"<="&EOMONTH(BF$8,0)), "") -> 0 | BG10: =IF(ISNUMBER($C10), SUMIFS(Datenblatt!$M:$M, Datenblatt!$G:$G,$C10, Datenblatt!$R:$R,">="&BG$8,Datenblatt!$R:$R,"<="&EOMONTH(BG$8,0)) - SUMIFS(Datenblatt!$M:$M, Datenblatt!$E:$E,$C10, Datenblatt!$R:$R,">="&BG$8,Datenblatt!$R:$R,"<="&EOMONTH(BG$8,0)), "") -> 0 | BH10: =IF(ISNUMBER($C10), SUMIFS(Datenblatt!$M:$M, Datenblatt!$G:$G,$C10, Datenblatt!$R:$R,">="&BH$8,Datenblatt!$R:$R,"<="&EOMONTH(BH$8,0)) - SUMIFS(Datenblatt!$M:$M, Datenblatt!$E:$E,$C10, Datenblatt!$R:$R,">="&BH$8,Datenblatt!$R:$R,"<="&EOMONTH(BH$8,0)), "") -> 8321.69 | BI10: =IF(ISNUMBER($C10), SUMIFS(Datenblatt!$M:$M, Datenblatt!$G:$G,$C10, Datenblatt!$R:$R,">="&BI$8,Datenblatt!$R:$R,"<="&EOMONTH(BI$8,0)) - SUMIFS(Datenblatt!$M:$M, Datenblatt!$E:$E,$C10, Datenblatt!$R:$R,">="&BI$8,Datenblatt!$R:$R,"<="&EOMONTH(BI$8,0)), "") -> 0 | BJ10: =IF(ISNUMBER($C10), SUMIFS(Datenblatt!$M:$M, Datenblatt!$G:$G,$C10, Datenblatt!$R:$R,">="&BJ$8,Datenblatt!$R:$R,"<="&EOMONTH(BJ$8,0)) - SUMIFS(Datenblatt!$M:$M, Datenblatt!$E:$E,$C10, Datenblatt!$R:$R,">="&BJ$8,Datenblatt!$R:$R,"<="&EOMONTH(BJ$8,0)), "") -> 4828.39 | BK10: =IF(ISNUMBER($C10), SUMIFS(Datenblatt!$M:$M, Datenblatt!$G:$G,$C10, Datenblatt!$R:$R,">="&BK$8,Datenblatt!$R:$R,"<="&EOMONTH(BK$8,0)) - SUMIFS(Datenblatt!$M:$M, Datenblatt!$E:$E,$C10, Datenblatt!$R:$R,">="&BK$8,Datenblatt!$R:$R,"<="&EOMONTH(BK$8,0)), "") -> 0 | BL10: =IF(ISNUMBER($C10), SUMIFS(Datenblatt!$M:$M, Datenblatt!$G:$G,$C10, Datenblatt!$R:$R,">="&BL$8,Datenblatt!$R:$R,"<="&EOMONTH(BL$8,0)) - SUMIFS(Datenblatt!$M:$M, Datenblatt!$E:$E,$C10, Datenblatt!$R:$R,">="&BL$8,Datenblatt!$R:$R,"<="&EOMONTH(BL$8,0)), "") -> 1122.29 | BM10: =IF(ISNUMBER($C10), SUMIFS(Datenblatt!$M:$M, Datenblatt!$G:$G,$C10, Datenblatt!$R:$R,">="&BM$8,Datenblatt!$R:$R,"<="&EOMONTH(BM$8,0)) - SUMIFS(Datenblatt!$M:$M, Datenblatt!$E:$E,$C10, Datenblatt!$R:$R,">="&BM$8,Datenblatt!$R:$R,"<="&EOMONTH(BM$8,0)), "") -> 6848.85 | BN10: =IF(ISNUMBER($C10), SUMIFS(Datenblatt!$M:$M, Datenblatt!$G:$G,$C10, Datenblatt!$R:$R,">="&BN$8,Datenblatt!$R:$R,"<="&EOMONTH(BN$8,0)) - SUMIFS(Datenblatt!$M:$M, Datenblatt!$E:$E,$C10, Datenblatt!$R:$R,">="&BN$8,Datenblatt!$R:$R,"<="&EOMONTH(BN$8,0)), "") -> 2558.28 | BO10: =IF(ISNUMBER($C10), SUMIFS(Datenblatt!$M:$M, Datenblatt!$G:$G,$C10, Datenblatt!$R:$R,">="&BO$8,Datenblatt!$R:$R,"<="&EOMONTH(BO$8,0)) - SUMIFS(Datenblatt!$M:$M, Datenblatt!$E:$E,$C10, Datenblatt!$R:$R,">="&BO$8,Datenblatt!$R:$R,"<="&EOMONTH(BO$8,0)), "") -> 0 | BP10: =IF(ISNUMBER($C10), SUMIFS(Datenblatt!$M:$M, Datenblatt!$G:$G,$C10, Datenblatt!$R:$R,">="&BP$8,Datenblatt!$R:$R,"<="&EOMONTH(BP$8,0)) - SUMIFS(Datenblatt!$M:$M, Datenblatt!$E:$E,$C10, Datenblatt!$R:$R,">="&BP$8,Datenblatt!$R:$R,"<="&EOMONTH(BP$8,0)), "") -> 0 | BQ10: =IF(ISNUMBER($C10), SUMIFS(Datenblatt!$M:$M, Datenblatt!$G:$G,$C10, Datenblatt!$R:$R,">="&BQ$8,Datenblatt!$R:$R,"<="&EOMONTH(BQ$8,0)) - SUMIFS(Datenblatt!$M:$M, Datenblatt!$E:$E,$C10, Datenblatt!$R:$R,">="&BQ$8,Datenblatt!$R:$R,"<="&EOMONTH(BQ$8,0)), "") -> 1625.2 | BR10: =IF(ISNUMBER($C10), SUMIFS(Datenblatt!$M:$M, Datenblatt!$G:$G,$C10, Datenblatt!$R:$R,">="&BR$8,Datenblatt!$R:$R,"<="&EOMONTH(BR$8,0)) - SUMIFS(Datenblatt!$M:$M, Datenblatt!$E:$E,$C10, Datenblatt!$R:$R,">="&BR$8,Datenblatt!$R:$R,"<="&EOMONTH(BR$8,0)), "") -> 4476.82 | BS10: =IF(ISNUMBER($C10), SUMIFS(Datenblatt!$M:$M, Datenblatt!$G:$G,$C10, Datenblatt!$R:$R,">="&BS$8,Datenblatt!$R:$R,"<="&EOMONTH(BS$8,0)) - SUMIFS(Datenblatt!$M:$M, Datenblatt!$E:$E,$C10, Datenblatt!$R:$R,">="&BS$8,Datenblatt!$R:$R,"<="&EOMONTH(BS$8,0)), "") -> 0 | BT10: =IF(ISNUMBER($C10), SUMIFS(Datenblatt!$M:$M, Datenblatt!$G:$G,$C10, Datenblatt!$R:$R,">="&BT$8,Datenblatt!$R:$R,"<="&EOMONTH(BT$8,0)) - SUMIFS(Datenblatt!$M:$M, Datenblatt!$E:$E,$C10, Datenblatt!$R:$R,">="&BT$8,Datenblatt!$R:$R,"<="&EOMONTH(BT$8,0)), "") -> 3654.46 | BU10: =IF(ISNUMBER($C10), SUMIFS(Datenblatt!$M:$M, Datenblatt!$G:$G,$C10, Datenblatt!$R:$R,">="&BU$8,Datenblatt!$R:$R,"<="&EOMONTH(BU$8,0)) - SUMIFS(Datenblatt!$M:$M, Datenblatt!$E:$E,$C10, Datenblatt!$R:$R,">="&BU$8,Datenblatt!$R:$R,"<="&EOMONTH(BU$8,0)), "") -> 4067.03 | BV10: =IF(ISNUMBER($C10), SUMIFS(Datenblatt!$M:$M, Datenblatt!$G:$G,$C10, Datenblatt!$R:$R,">="&BV$8,Datenblatt!$R:$R,"<="&EOMONTH(BV$8,0)) - SUMIFS(Datenblatt!$M:$M, Datenblatt!$E:$E,$C10, Datenblatt!$R:$R,">="&BV$8,Datenblatt!$R:$R,"<="&EOMONTH(BV$8,0)), "") -> 4978.68 | BW10: =IF(ISNUMBER($C10), SUMIFS(Datenblatt!$M:$M, Datenblatt!$G:$G,$C10, Datenblatt!$R:$R,">="&BW$8,Datenblatt!$R:$R,"<="&EOMONTH(BW$8,0)) - SUMIFS(Datenblatt!$M:$M, Datenblatt!$E:$E,$C10, Datenblatt!$R:$R,">="&BW$8,Datenblatt!$R:$R,"<="&EOMONTH(BW$8,0)), "") -> 0 | BX10: =IF(ISNUMBER($C10), SUMIFS(Datenblatt!$M:$M, Datenblatt!$G:$G,$C10, Datenblatt!$R:$R,">="&BX$8,Datenblatt!$R:$R,"<="&EOMONTH(BX$8,0)) - SUMIFS(Datenblatt!$M:$M, Datenblatt!$E:$E,$C10, Datenblatt!$R:$R,">="&BX$8,Datenblatt!$R:$R,"<="&EOMONTH(BX$8,0)), "") -> 0 | BY10: =IF(ISNUMBER($C10), SUMIFS(Datenblatt!$M:$M, Datenblatt!$G:$G,$C10, Datenblatt!$R:$R,">="&BY$8,Datenblatt!$R:$R,"<="&EOMONTH(BY$8,0)) - SUMIFS(Datenblatt!$M:$M, Datenblatt!$E:$E,$C10, Datenblatt!$R:$R,">="&BY$8,Datenblatt!$R:$R,"<="&EOMONTH(BY$8,0)), "") -> 5922.79 | BZ10: =IF(ISNUMBER($C10), SUMIFS(Datenblatt!$M:$M, Datenblatt!$G:$G,$C10, Datenblatt!$R:$R,">="&BZ$8,Datenblatt!$R:$R,"<="&EOMONTH(BZ$8,0)) - SUMIFS(Datenblatt!$M:$M, Datenblatt!$E:$E,$C10, Datenblatt!$R:$R,">="&BZ$8,Datenblatt!$R:$R,"<="&EOMONTH(BZ$8,0)), "") -> 0 | CA10: =IF(ISNUMBER($C10), SUMIFS(Datenblatt!$M:$M, Datenblatt!$G:$G,$C10, Datenblatt!$R:$R,">="&CA$8,Datenblatt!$R:$R,"<="&EOMONTH(CA$8,0)) - SUMIFS(Datenblatt!$M:$M, Datenblatt!$E:$E,$C10, Datenblatt!$R:$R,">="&CA$8,Datenblatt!$R:$R,"<="&EOMONTH(CA$8,0)), "") -> 27800.31 | CB10: =IF(ISNUMBER($C10), SUMIFS(Datenblatt!$M:$M, Datenblatt!$G:$G,$C10, Datenblatt!$R:$R,">="&CB$8,Datenblatt!$R:$R,"<="&EOMONTH(CB$8,0)) - SUMIFS(Datenblatt!$M:$M, Datenblatt!$E:$E,$C10, Datenblatt!$R:$R,">="&CB$8,Datenblatt!$R:$R,"<="&EOMONTH(CB$8,0)), "") -> 5490.77 | CC10: =IF(ISNUMBER($C10), SUMIFS(Datenblatt!$M:$M, Datenblatt!$G:$G,$C10, Datenblatt!$R:$R,">="&CC$8,Datenblatt!$R:$R,"<="&EOMONTH(CC$8,0)) - SUMIFS(Datenblatt!$M:$M, Datenblatt!$E:$E,$C10, Datenblatt!$R:$R,">="&CC$8,Datenblatt!$R:$R,"<="&EOMONTH(CC$8,0)), "") -> 1505.14 | CD10: =IF(ISNUMBER($C10), SUMIFS(Datenblatt!$M:$M, Datenblatt!$G:$G,$C10, Datenblatt!$R:$R,">="&CD$8,Datenblatt!$R:$R,"<="&EOMONTH(CD$8,0)) - SUMIFS(Datenblatt!$M:$M, Datenblatt!$E:$E,$C10, Datenblatt!$R:$R,">="&CD$8,Datenblatt!$R:$R,"<="&EOMONTH(CD$8,0)), "") -> 0 | CE10: =IF(ISNUMBER($C10), SUMIFS(Datenblatt!$M:$M, Datenblatt!$G:$G,$C10, Datenblatt!$R:$R,">="&CE$8,Datenblatt!$R:$R,"<="&EOMONTH(CE$8,0)) - SUMIFS(Datenblatt!$M:$M, Datenblatt!$E:$E,$C10, Datenblatt!$R:$R,">="&CE$8,Datenblatt!$R:$R,"<="&EOMONTH(CE$8,0)), "") -> 0 | CF10: =IF(ISNUMBER($C10), SUMIFS(Datenblatt!$M:$M, Datenblatt!$G:$G,$C10, Datenblatt!$R:$R,">="&CF$8,Datenblatt!$R:$R,"<="&EOMONTH(CF$8,0)) - SUMIFS(Datenblatt!$M:$M, Datenblatt!$E:$E,$C10, Datenblatt!$R:$R,">="&CF$8,Datenblatt!$R:$R,"<="&EOMONTH(CF$8,0)), "") -> 8175.28 | CG10: =IF(ISNUMBER($C10), SUMIFS(Datenblatt!$M:$M, Datenblatt!$G:$G,$C10, Datenblatt!$R:$R,">="&CG$8,Datenblatt!$R:$R,"<="&EOMONTH(CG$8,0)) - SUMIFS(Datenblatt!$M:$M, Datenblatt!$E:$E,$C10, Datenblatt!$R:$R,">="&CG$8,Datenblatt!$R:$R,"<="&EOMONTH(CG$8,0)), "") -> 0 | CH10: =IF(ISNUMBER($C10), SUMIFS(Datenblatt!$M:$M, Datenblatt!$G:$G,$C10, Datenblatt!$R:$R,">="&CH$8,Datenblatt!$R:$R,"<="&EOMONTH(CH$8,0)) - SUMIFS(Datenblatt!$M:$M, Datenblatt!$E:$E,$C10, Datenblatt!$R:$R,">="&CH$8,Datenblatt!$R:$R,"<="&EOMONTH(CH$8,0)), "") -> 1906.62 | CI10: =IF(ISNUMBER($C10), SUMIFS(Datenblatt!$M:$M, Datenblatt!$G:$G,$C10, Datenblatt!$R:$R,">="&CI$8,Datenblatt!$R:$R,"<="&EOMONTH(CI$8,0)) - SUMIFS(Datenblatt!$M:$M, Datenblatt!$E:$E,$C10, Datenblatt!$R:$R,">="&CI$8,Datenblatt!$R:$R,"<="&EOMONTH(CI$8,0)), "") -> 0 | CJ10: =IF(ISNUMBER($C10), SUMIFS(Datenblatt!$M:$M, Datenblatt!$G:$G,$C10, Datenblatt!$R:$R,">="&CJ$8,Datenblatt!$R:$R,"<="&EOMONTH(CJ$8,0)) - SUMIFS(Datenblatt!$M:$M, Datenblatt!$E:$E,$C10, Datenblatt!$R:$R,">="&CJ$8,Datenblatt!$R:$R,"<="&EOMONTH(CJ$8,0)), "") -> 0 | CK10: =IF(ISNUMBER($C10), SUMIFS(Datenblatt!$M:$M, Datenblatt!$G:$G,$C10, Datenblatt!$R:$R,">="&CK$8,Datenblatt!$R:$R,"<="&EOMONTH(CK$8,0)) - SUMIFS(Datenblatt!$M:$M, Datenblatt!$E:$E,$C10, Datenblatt!$R:$R,">="&CK$8,Datenblatt!$R:$R,"<="&EOMONTH(CK$8,0)), "") -> 0 | CL10: =IF(ISNUMBER($C10), SUMIFS(Datenblatt!$M:$M, Datenblatt!$G:$G,$C10, Datenblatt!$R:$R,">="&CL$8,Datenblatt!$R:$R,"<="&EOMONTH(CL$8,0)) - SUMIFS(Datenblatt!$M:$M, Datenblatt!$E:$E,$C10, Datenblatt!$R:$R,">="&CL$8,Datenblatt!$R:$R,"<="&EOMONTH(CL$8,0)), "") -> 0 | CM10: =IF(ISNUMBER($C10), SUMIFS(Datenblatt!$M:$M, Datenblatt!$G:$G,$C10, Datenblatt!$R:$R,">="&CM$8,Datenblatt!$R:$R,"<="&EOMONTH(CM$8,0)) - SUMIFS(Datenblatt!$M:$M, Datenblatt!$E:$E,$C10, Datenblatt!$R:$R,">="&CM$8,Datenblatt!$R:$R,"<="&EOMONTH(CM$8,0)), "") -> 0 | CN10: =IF(ISNUMBER($C10), SUMIFS(Datenblatt!$M:$M, Datenblatt!$G:$G,$C10, Datenblatt!$R:$R,">="&CN$8,Datenblatt!$R:$R,"<="&EOMONTH(CN$8,0)) - SUMIFS(Datenblatt!$M:$M, Datenblatt!$E:$E,$C10, Datenblatt!$R:$R,">="&CN$8,Datenblatt!$R:$R,"<="&EOMONTH(CN$8,0)), "") -> 0 | CO10: =IF(ISNUMBER($C10), SUMIFS(Datenblatt!$M:$M, Datenblatt!$G:$G,$C10, Datenblatt!$R:$R,">="&CO$8,Datenblatt!$R:$R,"<="&EOMONTH(CO$8,0)) - SUMIFS(Datenblatt!$M:$M, Datenblatt!$E:$E,$C10, Datenblatt!$R:$R,">="&CO$8,Datenblatt!$R:$R,"<="&EOMONTH(CO$8,0)), "") -> 0 | CP10: =IF(ISNUMBER($C10), SUMIFS(Datenblatt!$M:$M, Datenblatt!$G:$G,$C10, Datenblatt!$R:$R,">="&CP$8,Datenblatt!$R:$R,"<="&EOMONTH(CP$8,0)) - SUMIFS(Datenblatt!$M:$M, Datenblatt!$E:$E,$C10, Datenblatt!$R:$R,">="&CP$8,Datenblatt!$R:$R,"<="&EOMONTH(CP$8,0)), "") -> 0 | CQ10: =IF(ISNUMBER($C10), SUMIFS(Datenblatt!$M:$M, Datenblatt!$G:$G,$C10, Datenblatt!$R:$R,">="&CQ$8,Datenblatt!$R:$R,"<="&EOMONTH(CQ$8,0)) - SUMIFS(Datenblatt!$M:$M, Datenblatt!$E:$E,$C10, Datenblatt!$R:$R,">="&CQ$8,Datenblatt!$R:$R,"<="&EOMONTH(CQ$8,0)), "") -> 0 | CR10: =IF(ISNUMBER($C10), SUMIFS(Datenblatt!$M:$M, Datenblatt!$G:$G,$C10, Datenblatt!$R:$R,">="&CR$8,Datenblatt!$R:$R,"<="&EOMONTH(CR$8,0)) - SUMIFS(Datenblatt!$M:$M, Datenblatt!$E:$E,$C10, Datenblatt!$R:$R,">="&CR$8,Datenblatt!$R:$R,"<="&EOMONTH(CR$8,0)), "") -> 0 | CS10: =IF(ISNUMBER($C10), SUMIFS(Datenblatt!$M:$M, Datenblatt!$G:$G,$C10, Datenblatt!$R:$R,">="&CS$8,Datenblatt!$R:$R,"<="&EOMONTH(CS$8,0)) - SUMIFS(Datenblatt!$M:$M, Datenblatt!$E:$E,$C10, Datenblatt!$R:$R,">="&CS$8,Datenblatt!$R:$R,"<="&EOMONTH(CS$8,0)), "") -> 0 | CT10: =IF(ISNUMBER($C10), SUMIFS(Datenblatt!$M:$M, Datenblatt!$G:$G,$C10, Datenblatt!$R:$R,">="&CT$8,Datenblatt!$R:$R,"<="&EOMONTH(CT$8,0)) - SUMIFS(Datenblatt!$M:$M, Datenblatt!$E:$E,$C10, Datenblatt!$R:$R,">="&CT$8,Datenblatt!$R:$R,"<="&EOMONTH(CT$8,0)), "") -> 0 | CU10: =IF(ISNUMBER($C10), SUMIFS(Datenblatt!$M:$M, Datenblatt!$G:$G,$C10, Datenblatt!$R:$R,">="&CU$8,Datenblatt!$R:$R,"<="&EOMONTH(CU$8,0)) - SUMIFS(Datenblatt!$M:$M, Datenblatt!$E:$E,$C10, Datenblatt!$R:$R,">="&CU$8,Datenblatt!$R:$R,"<="&EOMONTH(CU$8,0)), "") -> 0 | CV10: =IF(ISNUMBER($C10), SUMIFS(Datenblatt!$M:$M, Datenblatt!$G:$G,$C10, Datenblatt!$R:$R,">="&CV$8,Datenblatt!$R:$R,"<="&EOMONTH(CV$8,0)) - SUMIFS(Datenblatt!$M:$M, Datenblatt!$E:$E,$C10, Datenblatt!$R:$R,">="&CV$8,Datenblatt!$R:$R,"<="&EOMONTH(CV$8,0)), "") -> 0 | CW10: =IF(ISNUMBER($C10), SUMIFS(Datenblatt!$M:$M, Datenblatt!$G:$G,$C10, Datenblatt!$R:$R,">="&CW$8,Datenblatt!$R:$R,"<="&EOMONTH(CW$8,0)) - SUMIFS(Datenblatt!$M:$M, Datenblatt!$E:$E,$C10, Datenblatt!$R:$R,">="&CW$8,Datenblatt!$R:$R,"<="&EOMONTH(CW$8,0)), "") -> 0 | CX10: =IF(ISNUMBER($C10), SUMIFS(Datenblatt!$M:$M, Datenblatt!$G:$G,$C10, Datenblatt!$R:$R,">="&CX$8,Datenblatt!$R:$R,"<="&EOMONTH(CX$8,0)) - SUMIFS(Datenblatt!$M:$M, Datenblatt!$E:$E,$C10, Datenblatt!$R:$R,">="&CX$8,Datenblatt!$R:$R,"<="&EOMONTH(CX$8,0)), "") -> 0 | CY10: =IF(ISNUMBER($C10), SUMIFS(Datenblatt!$M:$M, Datenblatt!$G:$G,$C10, Datenblatt!$R:$R,">="&CY$8,Datenblatt!$R:$R,"<="&EOMONTH(CY$8,0)) - SUMIFS(Datenblatt!$M:$M, Datenblatt!$E:$E,$C10, Datenblatt!$R:$R,">="&CY$8,Datenblatt!$R:$R,"<="&EOMONTH(CY$8,0)), "") -> 0 | CZ10: =IF(ISNUMBER($C10), SUMIFS(Datenblatt!$M:$M, Datenblatt!$G:$G,$C10, Datenblatt!$R:$R,">="&CZ$8,Datenblatt!$R:$R,"<="&EOMONTH(CZ$8,0)) - SUMIFS(Datenblatt!$M:$M, Datenblatt!$E:$E,$C10, Datenblatt!$R:$R,">="&CZ$8,Datenblatt!$R:$R,"<="&EOMONTH(CZ$8,0)), "") -> 0 | DA10: =IF(ISNUMBER($C10), SUMIFS(Datenblatt!$M:$M, Datenblatt!$G:$G,$C10, Datenblatt!$R:$R,">="&DA$8,Datenblatt!$R:$R,"<="&EOMONTH(DA$8,0)) - SUMIFS(Datenblatt!$M:$M, Datenblatt!$E:$E,$C10, Datenblatt!$R:$R,">="&DA$8,Datenblatt!$R:$R,"<="&EOMONTH(DA$8,0)), "") -> 0 | DB10: =IF(ISNUMBER($C10), SUMIFS(Datenblatt!$M:$M, Datenblatt!$G:$G,$C10, Datenblatt!$R:$R,">="&DB$8,Datenblatt!$R:$R,"<="&EOMONTH(DB$8,0)) - SUMIFS(Datenblatt!$M:$M, Datenblatt!$E:$E,$C10, Datenblatt!$R:$R,">="&DB$8,Datenblatt!$R:$R,"<="&EOMONTH(DB$8,0)), "") -> 0 | DC10: =IF(ISNUMBER($C10), SUMIFS(Datenblatt!$M:$M, Datenblatt!$G:$G,$C10, Datenblatt!$R:$R,">="&DC$8,Datenblatt!$R:$R,"<="&EOMONTH(DC$8,0)) - SUMIFS(Datenblatt!$M:$M, Datenblatt!$E:$E,$C10, Datenblatt!$R:$R,">="&DC$8,Datenblatt!$R:$R,"<="&EOMONTH(DC$8,0)), "") -> 0 | DD10: =IF(ISNUMBER($C10), SUMIFS(Datenblatt!$M:$M, Datenblatt!$G:$G,$C10, Datenblatt!$R:$R,">="&DD$8,Datenblatt!$R:$R,"<="&EOMONTH(DD$8,0)) - SUMIFS(Datenblatt!$M:$M, Datenblatt!$E:$E,$C10, Datenblatt!$R:$R,">="&DD$8,Datenblatt!$R:$R,"<="&EOMONTH(DD$8,0)), "") -> 0 | DE10: =IF(ISNUMBER($C10), SUMIFS(Datenblatt!$M:$M, Datenblatt!$G:$G,$C10, Datenblatt!$R:$R,">="&DE$8,Datenblatt!$R:$R,"<="&EOMONTH(DE$8,0)) - SUMIFS(Datenblatt!$M:$M, Datenblatt!$E:$E,$C10, Datenblatt!$R:$R,">="&DE$8,Datenblatt!$R:$R,"<="&EOMONTH(DE$8,0)), "") -> 0 | DF10: =IF(ISNUMBER($C10), SUMIFS(Datenblatt!$M:$M, Datenblatt!$G:$G,$C10, Datenblatt!$R:$R,">="&DF$8,Datenblatt!$R:$R,"<="&EOMONTH(DF$8,0)) - SUMIFS(Datenblatt!$M:$M, Datenblatt!$E:$E,$C10, Datenblatt!$R:$R,">="&DF$8,Datenblatt!$R:$R,"<="&EOMONTH(DF$8,0)), "") -> 0
B11: 0 | C11: 3200 | D11: Bruttoertrag Barverkäufe Hauptgeschäft | G11: =IF(ISNUMBER($C11), SUMIFS(Datenblatt!$M:$M, Datenblatt!$G:$G,$C11, Datenblatt!$R:$R,">="&G$8,Datenblatt!$R:$R,"<="&EOMONTH(G$8,11)) - SUMIFS(Datenblatt!$M:$M, Datenblatt!$E:$E,$C11, Datenblatt!$R:$R,">="&G$8,Datenblatt!$R:$R,"<="&EOMONTH(G$8,11)), "") -> 22937.52 | H11: =IF(ISNUMBER($C11), SUMIFS(Datenblatt!$M:$M, Datenblatt!$G:$G,$C11, Datenblatt!$R:$R,">="&H$8,Datenblatt!$R:$R,"<="&EOMONTH(H$8,11)) - SUMIFS(Datenblatt!$M:$M, Datenblatt!$E:$E,$C11, Datenblatt!$R:$R,">="&H$8,Datenblatt!$R:$R,"<="&EOMONTH(H$8,11)), "") -> 46506.26 | I11: =IF(ISNUMBER($C11), SUMIFS(Datenblatt!$M:$M, Datenblatt!$G:$G,$C11, Datenblatt!$R:$R,">="&I$8,Datenblatt!$R:$R,"<="&EOMONTH(I$8,11)) - SUMIFS(Datenblatt!$M:$M, Datenblatt!$E:$E,$C11, Datenblatt!$R:$R,">="&I$8,Datenblatt!$R:$R,"<="&EOMONTH(I$8,11)), "") -> 33419.33 | J11: =IF(ISNUMBER($C11), SUMIFS(Datenblatt!$M:$M, Datenblatt!$G:$G,$C11, Datenblatt!$R:$R,">="&J$8,Datenblatt!$R:$R,"<="&EOMONTH(J$8,11)) - SUMIFS(Datenblatt!$M:$M, Datenblatt!$E:$E,$C11, Datenblatt!$R:$R,">="&J$8,Datenblatt!$R:$R,"<="&EOMONTH(J$8,11)), "") -> 49929.31 | K11: =IF(ISNUMBER($C11), SUMIFS(Datenblatt!$M:$M, Datenblatt!$G:$G,$C11, Datenblatt!$R:$R,">="&K$8,Datenblatt!$R:$R,"<="&EOMONTH(K$8,11)) - SUMIFS(Datenblatt!$M:$M, Datenblatt!$E:$E,$C11, Datenblatt!$R:$R,">="&K$8,Datenblatt!$R:$R,"<="&EOMONTH(K$8,11)), "") -> 31842.72 | L11: =IF(ISNUMBER($C11), SUMIFS(Datenblatt!$M:$M, Datenblatt!$G:$G,$C11, Datenblatt!$R:$R,">="&L$8,Datenblatt!$R:$R,"<="&EOMONTH(L$8,11)) - SUMIFS(Datenblatt!$M:$M, Datenblatt!$E:$E,$C11, Datenblatt!$R:$R,">="&L$8,Datenblatt!$R:$R,"<="&EOMONTH(L$8,11)), "") -> 45134.85 | M11: =IF(ISNUMBER($C11), SUMIFS(Datenblatt!$M:$M, Datenblatt!$G:$G,$C11, Datenblatt!$R:$R,">="&M$8,Datenblatt!$R:$R,"<="&EOMONTH(M$8,11)) - SUMIFS(Datenblatt!$M:$M, Datenblatt!$E:$E,$C11, Datenblatt!$R:$R,">="&M$8,Datenblatt!$R:$R,"<="&EOMONTH(M$8,11)), "") -> 0 | N11: =IF(ISNUMBER($C11), SUMIFS(Datenblatt!$M:$M, Datenblatt!$G:$G,$C11, Datenblatt!$R:$R,">="&N$8,Datenblatt!$R:$R,"<="&EOMONTH(N$8,11)) - SUMIFS(Datenblatt!$M:$M, Datenblatt!$E:$E,$C11, Datenblatt!$R:$R,">="&N$8,Datenblatt!$R:$R,"<="&EOMONTH(N$8,11)), "") -> 0 | O11: =IF(ISNUMBER($C11), SUMIFS(Datenblatt!$M:$M, Datenblatt!$G:$G,$C11, Datenblatt!$R:$R,">="&O$8,Datenblatt!$R:$R,"<="&EOMONTH(O$8,0)) - SUMIFS(Datenblatt!$M:$M, Datenblatt!$E:$E,$C11, Datenblatt!$R:$R,">="&O$8,Datenblatt!$R:$R,"<="&EOMONTH(O$8,0)), "") -> 730.51 | P11: =IF(ISNUMBER($C11), SUMIFS(Datenblatt!$M:$M, Datenblatt!$G:$G,$C11, Datenblatt!$R:$R,">="&P$8,Datenblatt!$R:$R,"<="&EOMONTH(P$8,0)) - SUMIFS(Datenblatt!$M:$M, Datenblatt!$E:$E,$C11, Datenblatt!$R:$R,">="&P$8,Datenblatt!$R:$R,"<="&EOMONTH(P$8,0)), "") -> 0 | Q11: =IF(ISNUMBER($C11), SUMIFS(Datenblatt!$M:$M, Datenblatt!$G:$G,$C11, Datenblatt!$R:$R,">="&Q$8,Datenblatt!$R:$R,"<="&EOMONTH(Q$8,0)) - SUMIFS(Datenblatt!$M:$M, Datenblatt!$E:$E,$C11, Datenblatt!$R:$R,">="&Q$8,Datenblatt!$R:$R,"<="&EOMONTH(Q$8,0)), "") -> 1242.91 | R11: =IF(ISNUMBER($C11), SUMIFS(Datenblatt!$M:$M, Datenblatt!$G:$G,$C11, Datenblatt!$R:$R,">="&R$8,Datenblatt!$R:$R,"<="&EOMONTH(R$8,0)) - SUMIFS(Datenblatt!$M:$M, Datenblatt!$E:$E,$C11, Datenblatt!$R:$R,">="&R$8,Datenblatt!$R:$R,"<="&EOMONTH(R$8,0)), "") -> 4439.92 | S11: =IF(ISNUMBER($C11), SUMIFS(Datenblatt!$M:$M, Datenblatt!$G:$G,$C11, Datenblatt!$R:$R,">="&S$8,Datenblatt!$R:$R,"<="&EOMONTH(S$8,0)) - SUMIFS(Datenblatt!$M:$M, Datenblatt!$E:$E,$C11, Datenblatt!$R:$R,">="&S$8,Datenblatt!$R:$R,"<="&EOMONTH(S$8,0)), "") -> 344.93 | T11: =IF(ISNUMBER($C11), SUMIFS(Datenblatt!$M:$M, Datenblatt!$G:$G,$C11, Datenblatt!$R:$R,">="&T$8,Datenblatt!$R:$R,"<="&EOMONTH(T$8,0)) - SUMIFS(Datenblatt!$M:$M, Datenblatt!$E:$E,$C11, Datenblatt!$R:$R,">="&T$8,Datenblatt!$R:$R,"<="&EOMONTH(T$8,0)), "") -> 3325.61 | U11: =IF(ISNUMBER($C11), SUMIFS(Datenblatt!$M:$M, Datenblatt!$G:$G,$C11, Datenblatt!$R:$R,">="&U$8,Datenblatt!$R:$R,"<="&EOMONTH(U$8,0)) - SUMIFS(Datenblatt!$M:$M, Datenblatt!$E:$E,$C11, Datenblatt!$R:$R,">="&U$8,Datenblatt!$R:$R,"<="&EOMONTH(U$8,0)), "") -> 0 | V11: =IF(ISNUMBER($C11), SUMIFS(Datenblatt!$M:$M, Datenblatt!$G:$G,$C11, Datenblatt!$R:$R,">="&V$8,Datenblatt!$R:$R,"<="&EOMONTH(V$8,0)) - SUMIFS(Datenblatt!$M:$M, Datenblatt!$E:$E,$C11, Datenblatt!$R:$R,">="&V$8,Datenblatt!$R:$R,"<="&EOMONTH(V$8,0)), "") -> 2517.89 | W11: =IF(ISNUMBER($C11), SUMIFS(Datenblatt!$M:$M, Datenblatt!$G:$G,$C11, Datenblatt!$R:$R,">="&W$8,Datenblatt!$R:$R,"<="&EOMONTH(W$8,0)) - SUMIFS(Datenblatt!$M:$M, Datenblatt!$E:$E,$C11, Datenblatt!$R:$R,">="&W$8,Datenblatt!$R:$R,"<="&EOMONTH(W$8,0)), "") -> 0 | X11: =IF(ISNUMBER($C11), SUMIFS(Datenblatt!$M:$M, Datenblatt!$G:$G,$C11, Datenblatt!$R:$R,">="&X$8,Datenblatt!$R:$R,"<="&EOMONTH(X$8,0)) - SUMIFS(Datenblatt!$M:$M, Datenblatt!$E:$E,$C11, Datenblatt!$R:$R,">="&X$8,Datenblatt!$R:$R,"<="&EOMONTH(X$8,0)), "") -> 1310.18 | Y11: =IF(ISNUMBER($C11), SUMIFS(Datenblatt!$M:$M, Datenblatt!$G:$G,$C11, Datenblatt!$R:$R,">="&Y$8,Datenblatt!$R:$R,"<="&EOMONTH(Y$8,0)) - SUMIFS(Datenblatt!$M:$M, Datenblatt!$E:$E,$C11, Datenblatt!$R:$R,">="&Y$8,Datenblatt!$R:$R,"<="&EOMONTH(Y$8,0)), "") -> 0 | Z11: =IF(ISNUMBER($C11), SUMIFS(Datenblatt!$M:$M, Datenblatt!$G:$G,$C11, Datenblatt!$R:$R,">="&Z$8,Datenblatt!$R:$R,"<="&EOMONTH(Z$8,0)) - SUMIFS(Datenblatt!$M:$M, Datenblatt!$E:$E,$C11, Datenblatt!$R:$R,">="&Z$8,Datenblatt!$R:$R,"<="&EOMONTH(Z$8,0)), "") -> 9025.57 | AA11: =IF(ISNUMBER($C11), SUMIFS(Datenblatt!$M:$M, Datenblatt!$G:$G,$C11, Datenblatt!$R:$R,">="&AA$8,Datenblatt!$R:$R,"<="&EOMONTH(AA$8,0)) - SUMIFS(Datenblatt!$M:$M, Datenblatt!$E:$E,$C11, Datenblatt!$R:$R,">="&AA$8,Datenblatt!$R:$R,"<="&EOMONTH(AA$8,0)), "") -> 2779.93 | AB11: =IF(ISNUMBER($C11), SUMIFS(Datenblatt!$M:$M, Datenblatt!$G:$G,$C11, Datenblatt!$R:$R,">="&AB$8,Datenblatt!$R:$R,"<="&EOMONTH(AB$8,0)) - SUMIFS(Datenblatt!$M:$M, Datenblatt!$E:$E,$C11, Datenblatt!$R:$R,">="&AB$8,Datenblatt!$R:$R,"<="&EOMONTH(AB$8,0)), "") -> 0 | AC11: =IF(ISNUMBER($C11), SUMIFS(Datenblatt!$M:$M, Datenblatt!$G:$G,$C11, Datenblatt!$R:$R,">="&AC$8,Datenblatt!$R:$R,"<="&EOMONTH(AC$8,0)) - SUMIFS(Datenblatt!$M:$M, Datenblatt!$E:$E,$C11, Datenblatt!$R:$R,">="&AC$8,Datenblatt!$R:$R,"<="&EOMONTH(AC$8,0)), "") -> 5527.37 | AD11: =IF(ISNUMBER($C11), SUMIFS(Datenblatt!$M:$M, Datenblatt!$G:$G,$C11, Datenblatt!$R:$R,">="&AD$8,Datenblatt!$R:$R,"<="&EOMONTH(AD$8,0)) - SUMIFS(Datenblatt!$M:$M, Datenblatt!$E:$E,$C11, Datenblatt!$R:$R,">="&AD$8,Datenblatt!$R:$R,"<="&EOMONTH(AD$8,0)), "") -> 610.43 | AE11: =IF(ISNUMBER($C11), SUMIFS(Datenblatt!$M:$M, Datenblatt!$G:$G,$C11, Datenblatt!$R:$R,">="&AE$8,Datenblatt!$R:$R,"<="&EOMONTH(AE$8,0)) - SUMIFS(Datenblatt!$M:$M, Datenblatt!$E:$E,$C11, Datenblatt!$R:$R,">="&AE$8,Datenblatt!$R:$R,"<="&EOMONTH(AE$8,0)), "") -> 0 | AF11: =IF(ISNUMBER($C11), SUMIFS(Datenblatt!$M:$M, Datenblatt!$G:$G,$C11, Datenblatt!$R:$R,">="&AF$8,Datenblatt!$R:$R,"<="&EOMONTH(AF$8,0)) - SUMIFS(Datenblatt!$M:$M, Datenblatt!$E:$E,$C11, Datenblatt!$R:$R,">="&AF$8,Datenblatt!$R:$R,"<="&EOMONTH(AF$8,0)), "") -> 0 | AG11: =IF(ISNUMBER($C11), SUMIFS(Datenblatt!$M:$M, Datenblatt!$G:$G,$C11, Datenblatt!$R:$R,">="&AG$8,Datenblatt!$R:$R,"<="&EOMONTH(AG$8,0)) - SUMIFS(Datenblatt!$M:$M, Datenblatt!$E:$E,$C11, Datenblatt!$R:$R,">="&AG$8,Datenblatt!$R:$R,"<="&EOMONTH(AG$8,0)), "") -> 4918.08 | AH11: =IF(ISNUMBER($C11), SUMIFS(Datenblatt!$M:$M, Datenblatt!$G:$G,$C11, Datenblatt!$R:$R,">="&AH$8,Datenblatt!$R:$R,"<="&EOMONTH(AH$8,0)) - SUMIFS(Datenblatt!$M:$M, Datenblatt!$E:$E,$C11, Datenblatt!$R:$R,">="&AH$8,Datenblatt!$R:$R,"<="&EOMONTH(AH$8,0)), "") -> 0 | AI11: =IF(ISNUMBER($C11), SUMIFS(Datenblatt!$M:$M, Datenblatt!$G:$G,$C11, Datenblatt!$R:$R,">="&AI$8,Datenblatt!$R:$R,"<="&EOMONTH(AI$8,0)) - SUMIFS(Datenblatt!$M:$M, Datenblatt!$E:$E,$C11, Datenblatt!$R:$R,">="&AI$8,Datenblatt!$R:$R,"<="&EOMONTH(AI$8,0)), "") -> 5812.29 | AJ11: =IF(ISNUMBER($C11), SUMIFS(Datenblatt!$M:$M, Datenblatt!$G:$G,$C11, Datenblatt!$R:$R,">="&AJ$8,Datenblatt!$R:$R,"<="&EOMONTH(AJ$8,0)) - SUMIFS(Datenblatt!$M:$M, Datenblatt!$E:$E,$C11, Datenblatt!$R:$R,">="&AJ$8,Datenblatt!$R:$R,"<="&EOMONTH(AJ$8,0)), "") -> 0 | AK11: =IF(ISNUMBER($C11), SUMIFS(Datenblatt!$M:$M, Datenblatt!$G:$G,$C11, Datenblatt!$R:$R,">="&AK$8,Datenblatt!$R:$R,"<="&EOMONTH(AK$8,0)) - SUMIFS(Datenblatt!$M:$M, Datenblatt!$E:$E,$C11, Datenblatt!$R:$R,">="&AK$8,Datenblatt!$R:$R,"<="&EOMONTH(AK$8,0)), "") -> 11447.39 | AL11: =IF(ISNUMBER($C11), SUMIFS(Datenblatt!$M:$M, Datenblatt!$G:$G,$C11, Datenblatt!$R:$R,">="&AL$8,Datenblatt!$R:$R,"<="&EOMONTH(AL$8,0)) - SUMIFS(Datenblatt!$M:$M, Datenblatt!$E:$E,$C11, Datenblatt!$R:$R,">="&AL$8,Datenblatt!$R:$R,"<="&EOMONTH(AL$8,0)), "") -> 15410.77 | AM11: =IF(ISNUMBER($C11), SUMIFS(Datenblatt!$M:$M, Datenblatt!$G:$G,$C11, Datenblatt!$R:$R,">="&AM$8,Datenblatt!$R:$R,"<="&EOMONTH(AM$8,0)) - SUMIFS(Datenblatt!$M:$M, Datenblatt!$E:$E,$C11, Datenblatt!$R:$R,">="&AM$8,Datenblatt!$R:$R,"<="&EOMONTH(AM$8,0)), "") -> 6455.36 | AN11: =IF(ISNUMBER($C11), SUMIFS(Datenblatt!$M:$M, Datenblatt!$G:$G,$C11, Datenblatt!$R:$R,">="&AN$8,Datenblatt!$R:$R,"<="&EOMONTH(AN$8,0)) - SUMIFS(Datenblatt!$M:$M, Datenblatt!$E:$E,$C11, Datenblatt!$R:$R,">="&AN$8,Datenblatt!$R:$R,"<="&EOMONTH(AN$8,0)), "") -> 0 | AO11: =IF(ISNUMBER($C11), SUMIFS(Datenblatt!$M:$M, Datenblatt!$G:$G,$C11, Datenblatt!$R:$R,">="&AO$8,Datenblatt!$R:$R,"<="&EOMONTH(AO$8,0)) - SUMIFS(Datenblatt!$M:$M, Datenblatt!$E:$E,$C11, Datenblatt!$R:$R,">="&AO$8,Datenblatt!$R:$R,"<="&EOMONTH(AO$8,0)), "") -> 3825.27 | AP11: =IF(ISNUMBER($C11), SUMIFS(Datenblatt!$M:$M, Datenblatt!$G:$G,$C11, Datenblatt!$R:$R,">="&AP$8,Datenblatt!$R:$R,"<="&EOMONTH(AP$8,0)) - SUMIFS(Datenblatt!$M:$M, Datenblatt!$E:$E,$C11, Datenblatt!$R:$R,">="&AP$8,Datenblatt!$R:$R,"<="&EOMONTH(AP$8,0)), "") -> 1487.47 | AQ11: =IF(ISNUMBER($C11), SUMIFS(Datenblatt!$M:$M, Datenblatt!$G:$G,$C11, Datenblatt!$R:$R,">="&AQ$8,Datenblatt!$R:$R,"<="&EOMONTH(AQ$8,0)) - SUMIFS(Datenblatt!$M:$M, Datenblatt!$E:$E,$C11, Datenblatt!$R:$R,">="&AQ$8,Datenblatt!$R:$R,"<="&EOMONTH(AQ$8,0)), "") -> 0 | AR11: =IF(ISNUMBER($C11), SUMIFS(Datenblatt!$M:$M, Datenblatt!$G:$G,$C11, Datenblatt!$R:$R,">="&AR$8,Datenblatt!$R:$R,"<="&EOMONTH(AR$8,0)) - SUMIFS(Datenblatt!$M:$M, Datenblatt!$E:$E,$C11, Datenblatt!$R:$R,">="&AR$8,Datenblatt!$R:$R,"<="&EOMONTH(AR$8,0)), "") -> 8499.23 | AS11: =IF(ISNUMBER($C11), SUMIFS(Datenblatt!$M:$M, Datenblatt!$G:$G,$C11, Datenblatt!$R:$R,">="&AS$8,Datenblatt!$R:$R,"<="&EOMONTH(AS$8,0)) - SUMIFS(Datenblatt!$M:$M, Datenblatt!$E:$E,$C11, Datenblatt!$R:$R,">="&AS$8,Datenblatt!$R:$R,"<="&EOMONTH(AS$8,0)), "") -> 6131.04 | AT11: =IF(ISNUMBER($C11), SUMIFS(Datenblatt!$M:$M, Datenblatt!$G:$G,$C11, Datenblatt!$R:$R,">="&AT$8,Datenblatt!$R:$R,"<="&EOMONTH(AT$8,0)) - SUMIFS(Datenblatt!$M:$M, Datenblatt!$E:$E,$C11, Datenblatt!$R:$R,">="&AT$8,Datenblatt!$R:$R,"<="&EOMONTH(AT$8,0)), "") -> 0 | AU11: =IF(ISNUMBER($C11), SUMIFS(Datenblatt!$M:$M, Datenblatt!$G:$G,$C11, Datenblatt!$R:$R,">="&AU$8,Datenblatt!$R:$R,"<="&EOMONTH(AU$8,0)) - SUMIFS(Datenblatt!$M:$M, Datenblatt!$E:$E,$C11, Datenblatt!$R:$R,">="&AU$8,Datenblatt!$R:$R,"<="&EOMONTH(AU$8,0)), "") -> 2533.08 | AV11: =IF(ISNUMBER($C11), SUMIFS(Datenblatt!$M:$M, Datenblatt!$G:$G,$C11, Datenblatt!$R:$R,">="&AV$8,Datenblatt!$R:$R,"<="&EOMONTH(AV$8,0)) - SUMIFS(Datenblatt!$M:$M, Datenblatt!$E:$E,$C11, Datenblatt!$R:$R,">="&AV$8,Datenblatt!$R:$R,"<="&EOMONTH(AV$8,0)), "") -> 0 | AW11: =IF(ISNUMBER($C11), SUMIFS(Datenblatt!$M:$M, Datenblatt!$G:$G,$C11, Datenblatt!$R:$R,">="&AW$8,Datenblatt!$R:$R,"<="&EOMONTH(AW$8,0)) - SUMIFS(Datenblatt!$M:$M, Datenblatt!$E:$E,$C11, Datenblatt!$R:$R,">="&AW$8,Datenblatt!$R:$R,"<="&EOMONTH(AW$8,0)), "") -> 2240.3 | AX11: =IF(ISNUMBER($C11), SUMIFS(Datenblatt!$M:$M, Datenblatt!$G:$G,$C11, Datenblatt!$R:$R,">="&AX$8,Datenblatt!$R:$R,"<="&EOMONTH(AX$8,0)) - SUMIFS(Datenblatt!$M:$M, Datenblatt!$E:$E,$C11, Datenblatt!$R:$R,">="&AX$8,Datenblatt!$R:$R,"<="&EOMONTH(AX$8,0)), "") -> 2247.58 | AY11: =IF(ISNUMBER($C11), SUMIFS(Datenblatt!$M:$M, Datenblatt!$G:$G,$C11, Datenblatt!$R:$R,">="&AY$8,Datenblatt!$R:$R,"<="&EOMONTH(AY$8,0)) - SUMIFS(Datenblatt!$M:$M, Datenblatt!$E:$E,$C11, Datenblatt!$R:$R,">="&AY$8,Datenblatt!$R:$R,"<="&EOMONTH(AY$8,0)), "") -> 0 | AZ11: =IF(ISNUMBER($C11), SUMIFS(Datenblatt!$M:$M, Datenblatt!$G:$G,$C11, Datenblatt!$R:$R,">="&AZ$8,Datenblatt!$R:$R,"<="&EOMONTH(AZ$8,0)) - SUMIFS(Datenblatt!$M:$M, Datenblatt!$E:$E,$C11, Datenblatt!$R:$R,">="&AZ$8,Datenblatt!$R:$R,"<="&EOMONTH(AZ$8,0)), "") -> 4105.48 | BA11: =IF(ISNUMBER($C11), SUMIFS(Datenblatt!$M:$M, Datenblatt!$G:$G,$C11, Datenblatt!$R:$R,">="&BA$8,Datenblatt!$R:$R,"<="&EOMONTH(BA$8,0)) - SUMIFS(Datenblatt!$M:$M, Datenblatt!$E:$E,$C11, Datenblatt!$R:$R,">="&BA$8,Datenblatt!$R:$R,"<="&EOMONTH(BA$8,0)), "") -> 22700.71 | BB11: =IF(ISNUMBER($C11), SUMIFS(Datenblatt!$M:$M, Datenblatt!$G:$G,$C11, Datenblatt!$R:$R,">="&BB$8,Datenblatt!$R:$R,"<="&EOMONTH(BB$8,0)) - SUMIFS(Datenblatt!$M:$M, Datenblatt!$E:$E,$C11, Datenblatt!$R:$R,">="&BB$8,Datenblatt!$R:$R,"<="&EOMONTH(BB$8,0)), "") -> 143.79 | BC11: =IF(ISNUMBER($C11), SUMIFS(Datenblatt!$M:$M, Datenblatt!$G:$G,$C11, Datenblatt!$R:$R,">="&BC$8,Datenblatt!$R:$R,"<="&EOMONTH(BC$8,0)) - SUMIFS(Datenblatt!$M:$M, Datenblatt!$E:$E,$C11, Datenblatt!$R:$R,">="&BC$8,Datenblatt!$R:$R,"<="&EOMONTH(BC$8,0)), "") -> 0 | BD11: =IF(ISNUMBER($C11), SUMIFS(Datenblatt!$M:$M, Datenblatt!$G:$G,$C11, Datenblatt!$R:$R,">="&BD$8,Datenblatt!$R:$R,"<="&EOMONTH(BD$8,0)) - SUMIFS(Datenblatt!$M:$M, Datenblatt!$E:$E,$C11, Datenblatt!$R:$R,">="&BD$8,Datenblatt!$R:$R,"<="&EOMONTH(BD$8,0)), "") -> 1948.72 | BE11: =IF(ISNUMBER($C11), SUMIFS(Datenblatt!$M:$M, Datenblatt!$G:$G,$C11, Datenblatt!$R:$R,">="&BE$8,Datenblatt!$R:$R,"<="&EOMONTH(BE$8,0)) - SUMIFS(Datenblatt!$M:$M, Datenblatt!$E:$E,$C11, Datenblatt!$R:$R,">="&BE$8,Datenblatt!$R:$R,"<="&EOMONTH(BE$8,0)), "") -> 0 | BF11: =IF(ISNUMBER($C11), SUMIFS(Datenblatt!$M:$M, Datenblatt!$G:$G,$C11, Datenblatt!$R:$R,">="&BF$8,Datenblatt!$R:$R,"<="&EOMONTH(BF$8,0)) - SUMIFS(Datenblatt!$M:$M, Datenblatt!$E:$E,$C11, Datenblatt!$R:$R,">="&BF$8,Datenblatt!$R:$R,"<="&EOMONTH(BF$8,0)), "") -> 7047.37 | BG11: =IF(ISNUMBER($C11), SUMIFS(Datenblatt!$M:$M, Datenblatt!$G:$G,$C11, Datenblatt!$R:$R,">="&BG$8,Datenblatt!$R:$R,"<="&EOMONTH(BG$8,0)) - SUMIFS(Datenblatt!$M:$M, Datenblatt!$E:$E,$C11, Datenblatt!$R:$R,">="&BG$8,Datenblatt!$R:$R,"<="&EOMONTH(BG$8,0)), "") -> 0 | BH11: =IF(ISNUMBER($C11), SUMIFS(Datenblatt!$M:$M, Datenblatt!$G:$G,$C11, Datenblatt!$R:$R,">="&BH$8,Datenblatt!$R:$R,"<="&EOMONTH(BH$8,0)) - SUMIFS(Datenblatt!$M:$M, Datenblatt!$E:$E,$C11, Datenblatt!$R:$R,">="&BH$8,Datenblatt!$R:$R,"<="&EOMONTH(BH$8,0)), "") -> 7939.23 | BI11: =IF(ISNUMBER($C11), SUMIFS(Datenblatt!$M:$M, Datenblatt!$G:$G,$C11, Datenblatt!$R:$R,">="&BI$8,Datenblatt!$R:$R,"<="&EOMONTH(BI$8,0)) - SUMIFS(Datenblatt!$M:$M, Datenblatt!$E:$E,$C11, Datenblatt!$R:$R,">="&BI$8,Datenblatt!$R:$R,"<="&EOMONTH(BI$8,0)), "") -> 0 | BJ11: =IF(ISNUMBER($C11), SUMIFS(Datenblatt!$M:$M, Datenblatt!$G:$G,$C11, Datenblatt!$R:$R,">="&BJ$8,Datenblatt!$R:$R,"<="&EOMONTH(BJ$8,0)) - SUMIFS(Datenblatt!$M:$M, Datenblatt!$E:$E,$C11, Datenblatt!$R:$R,">="&BJ$8,Datenblatt!$R:$R,"<="&EOMONTH(BJ$8,0)), "") -> 6044.01 | BK11: =IF(ISNUMBER($C11), SUMIFS(Datenblatt!$M:$M, Datenblatt!$G:$G,$C11, Datenblatt!$R:$R,">="&BK$8,Datenblatt!$R:$R,"<="&EOMONTH(BK$8,0)) - SUMIFS(Datenblatt!$M:$M, Datenblatt!$E:$E,$C11, Datenblatt!$R:$R,">="&BK$8,Datenblatt!$R:$R,"<="&EOMONTH(BK$8,0)), "") -> 0 | BL11: =IF(ISNUMBER($C11), SUMIFS(Datenblatt!$M:$M, Datenblatt!$G:$G,$C11, Datenblatt!$R:$R,">="&BL$8,Datenblatt!$R:$R,"<="&EOMONTH(BL$8,0)) - SUMIFS(Datenblatt!$M:$M, Datenblatt!$E:$E,$C11, Datenblatt!$R:$R,">="&BL$8,Datenblatt!$R:$R,"<="&EOMONTH(BL$8,0)), "") -> 0 | BM11: =IF(ISNUMBER($C11), SUMIFS(Datenblatt!$M:$M, Datenblatt!$G:$G,$C11, Datenblatt!$R:$R,">="&BM$8,Datenblatt!$R:$R,"<="&EOMONTH(BM$8,0)) - SUMIFS(Datenblatt!$M:$M, Datenblatt!$E:$E,$C11, Datenblatt!$R:$R,">="&BM$8,Datenblatt!$R:$R,"<="&EOMONTH(BM$8,0)), "") -> 10584.98 | BN11: =IF(ISNUMBER($C11), SUMIFS(Datenblatt!$M:$M, Datenblatt!$G:$G,$C11, Datenblatt!$R:$R,">="&BN$8,Datenblatt!$R:$R,"<="&EOMONTH(BN$8,0)) - SUMIFS(Datenblatt!$M:$M, Datenblatt!$E:$E,$C11, Datenblatt!$R:$R,">="&BN$8,Datenblatt!$R:$R,"<="&EOMONTH(BN$8,0)), "") -> 1225.66 | BO11: =IF(ISNUMBER($C11), SUMIFS(Datenblatt!$M:$M, Datenblatt!$G:$G,$C11, Datenblatt!$R:$R,">="&BO$8,Datenblatt!$R:$R,"<="&EOMONTH(BO$8,0)) - SUMIFS(Datenblatt!$M:$M, Datenblatt!$E:$E,$C11, Datenblatt!$R:$R,">="&BO$8,Datenblatt!$R:$R,"<="&EOMONTH(BO$8,0)), "") -> 0 | BP11: =IF(ISNUMBER($C11), SUMIFS(Datenblatt!$M:$M, Datenblatt!$G:$G,$C11, Datenblatt!$R:$R,">="&BP$8,Datenblatt!$R:$R,"<="&EOMONTH(BP$8,0)) - SUMIFS(Datenblatt!$M:$M, Datenblatt!$E:$E,$C11, Datenblatt!$R:$R,">="&BP$8,Datenblatt!$R:$R,"<="&EOMONTH(BP$8,0)), "") -> 0 | BQ11: =IF(ISNUMBER($C11), SUMIFS(Datenblatt!$M:$M, Datenblatt!$G:$G,$C11, Datenblatt!$R:$R,">="&BQ$8,Datenblatt!$R:$R,"<="&EOMONTH(BQ$8,0)) - SUMIFS(Datenblatt!$M:$M, Datenblatt!$E:$E,$C11, Datenblatt!$R:$R,">="&BQ$8,Datenblatt!$R:$R,"<="&EOMONTH(BQ$8,0)), "") -> 5832.85 | BR11: =IF(ISNUMBER($C11), SUMIFS(Datenblatt!$M:$M, Datenblatt!$G:$G,$C11, Datenblatt!$R:$R,">="&BR$8,Datenblatt!$R:$R,"<="&EOMONTH(BR$8,0)) - SUMIFS(Datenblatt!$M:$M, Datenblatt!$E:$E,$C11, Datenblatt!$R:$R,">="&BR$8,Datenblatt!$R:$R,"<="&EOMONTH(BR$8,0)), "") -> 1453.87 | BS11: =IF(ISNUMBER($C11), SUMIFS(Datenblatt!$M:$M, Datenblatt!$G:$G,$C11, Datenblatt!$R:$R,">="&BS$8,Datenblatt!$R:$R,"<="&EOMONTH(BS$8,0)) - SUMIFS(Datenblatt!$M:$M, Datenblatt!$E:$E,$C11, Datenblatt!$R:$R,">="&BS$8,Datenblatt!$R:$R,"<="&EOMONTH(BS$8,0)), "") -> 0 | BT11: =IF(ISNUMBER($C11), SUMIFS(Datenblatt!$M:$M, Datenblatt!$G:$G,$C11, Datenblatt!$R:$R,">="&BT$8,Datenblatt!$R:$R,"<="&EOMONTH(BT$8,0)) - SUMIFS(Datenblatt!$M:$M, Datenblatt!$E:$E,$C11, Datenblatt!$R:$R,">="&BT$8,Datenblatt!$R:$R,"<="&EOMONTH(BT$8,0)), "") -> 11423.6 | BU11: =IF(ISNUMBER($C11), SUMIFS(Datenblatt!$M:$M, Datenblatt!$G:$G,$C11, Datenblatt!$R:$R,">="&BU$8,Datenblatt!$R:$R,"<="&EOMONTH(BU$8,0)) - SUMIFS(Datenblatt!$M:$M, Datenblatt!$E:$E,$C11, Datenblatt!$R:$R,">="&BU$8,Datenblatt!$R:$R,"<="&EOMONTH(BU$8,0)), "") -> 0 | BV11: =IF(ISNUMBER($C11), SUMIFS(Datenblatt!$M:$M, Datenblatt!$G:$G,$C11, Datenblatt!$R:$R,">="&BV$8,Datenblatt!$R:$R,"<="&EOMONTH(BV$8,0)) - SUMIFS(Datenblatt!$M:$M, Datenblatt!$E:$E,$C11, Datenblatt!$R:$R,">="&BV$8,Datenblatt!$R:$R,"<="&EOMONTH(BV$8,0)), "") -> 1321.76 | BW11: =IF(ISNUMBER($C11), SUMIFS(Datenblatt!$M:$M, Datenblatt!$G:$G,$C11, Datenblatt!$R:$R,">="&BW$8,Datenblatt!$R:$R,"<="&EOMONTH(BW$8,0)) - SUMIFS(Datenblatt!$M:$M, Datenblatt!$E:$E,$C11, Datenblatt!$R:$R,">="&BW$8,Datenblatt!$R:$R,"<="&EOMONTH(BW$8,0)), "") -> 3215.14 | BX11: =IF(ISNUMBER($C11), SUMIFS(Datenblatt!$M:$M, Datenblatt!$G:$G,$C11, Datenblatt!$R:$R,">="&BX$8,Datenblatt!$R:$R,"<="&EOMONTH(BX$8,0)) - SUMIFS(Datenblatt!$M:$M, Datenblatt!$E:$E,$C11, Datenblatt!$R:$R,">="&BX$8,Datenblatt!$R:$R,"<="&EOMONTH(BX$8,0)), "") -> 0 | BY11: =IF(ISNUMBER($C11), SUMIFS(Datenblatt!$M:$M, Datenblatt!$G:$G,$C11, Datenblatt!$R:$R,">="&BY$8,Datenblatt!$R:$R,"<="&EOMONTH(BY$8,0)) - SUMIFS(Datenblatt!$M:$M, Datenblatt!$E:$E,$C11, Datenblatt!$R:$R,">="&BY$8,Datenblatt!$R:$R,"<="&EOMONTH(BY$8,0)), "") -> 4493.42 | BZ11: =IF(ISNUMBER($C11), SUMIFS(Datenblatt!$M:$M, Datenblatt!$G:$G,$C11, Datenblatt!$R:$R,">="&BZ$8,Datenblatt!$R:$R,"<="&EOMONTH(BZ$8,0)) - SUMIFS(Datenblatt!$M:$M, Datenblatt!$E:$E,$C11, Datenblatt!$R:$R,">="&BZ$8,Datenblatt!$R:$R,"<="&EOMONTH(BZ$8,0)), "") -> 0 | CA11: =IF(ISNUMBER($C11), SUMIFS(Datenblatt!$M:$M, Datenblatt!$G:$G,$C11, Datenblatt!$R:$R,">="&CA$8,Datenblatt!$R:$R,"<="&EOMONTH(CA$8,0)) - SUMIFS(Datenblatt!$M:$M, Datenblatt!$E:$E,$C11, Datenblatt!$R:$R,">="&CA$8,Datenblatt!$R:$R,"<="&EOMONTH(CA$8,0)), "") -> 1177.92 | CB11: =IF(ISNUMBER($C11), SUMIFS(Datenblatt!$M:$M, Datenblatt!$G:$G,$C11, Datenblatt!$R:$R,">="&CB$8,Datenblatt!$R:$R,"<="&EOMONTH(CB$8,0)) - SUMIFS(Datenblatt!$M:$M, Datenblatt!$E:$E,$C11, Datenblatt!$R:$R,">="&CB$8,Datenblatt!$R:$R,"<="&EOMONTH(CB$8,0)), "") -> 12398.96 | CC11: =IF(ISNUMBER($C11), SUMIFS(Datenblatt!$M:$M, Datenblatt!$G:$G,$C11, Datenblatt!$R:$R,">="&CC$8,Datenblatt!$R:$R,"<="&EOMONTH(CC$8,0)) - SUMIFS(Datenblatt!$M:$M, Datenblatt!$E:$E,$C11, Datenblatt!$R:$R,">="&CC$8,Datenblatt!$R:$R,"<="&EOMONTH(CC$8,0)), "") -> 1168.4 | CD11: =IF(ISNUMBER($C11), SUMIFS(Datenblatt!$M:$M, Datenblatt!$G:$G,$C11, Datenblatt!$R:$R,">="&CD$8,Datenblatt!$R:$R,"<="&EOMONTH(CD$8,0)) - SUMIFS(Datenblatt!$M:$M, Datenblatt!$E:$E,$C11, Datenblatt!$R:$R,">="&CD$8,Datenblatt!$R:$R,"<="&EOMONTH(CD$8,0)), "") -> 0 | CE11: =IF(ISNUMBER($C11), SUMIFS(Datenblatt!$M:$M, Datenblatt!$G:$G,$C11, Datenblatt!$R:$R,">="&CE$8,Datenblatt!$R:$R,"<="&EOMONTH(CE$8,0)) - SUMIFS(Datenblatt!$M:$M, Datenblatt!$E:$E,$C11, Datenblatt!$R:$R,">="&CE$8,Datenblatt!$R:$R,"<="&EOMONTH(CE$8,0)), "") -> 0 | CF11: =IF(ISNUMBER($C11), SUMIFS(Datenblatt!$M:$M, Datenblatt!$G:$G,$C11, Datenblatt!$R:$R,">="&CF$8,Datenblatt!$R:$R,"<="&EOMONTH(CF$8,0)) - SUMIFS(Datenblatt!$M:$M, Datenblatt!$E:$E,$C11, Datenblatt!$R:$R,">="&CF$8,Datenblatt!$R:$R,"<="&EOMONTH(CF$8,0)), "") -> 3731.68 | CG11: =IF(ISNUMBER($C11), SUMIFS(Datenblatt!$M:$M, Datenblatt!$G:$G,$C11, Datenblatt!$R:$R,">="&CG$8,Datenblatt!$R:$R,"<="&EOMONTH(CG$8,0)) - SUMIFS(Datenblatt!$M:$M, Datenblatt!$E:$E,$C11, Datenblatt!$R:$R,">="&CG$8,Datenblatt!$R:$R,"<="&EOMONTH(CG$8,0)), "") -> 0 | CH11: =IF(ISNUMBER($C11), SUMIFS(Datenblatt!$M:$M, Datenblatt!$G:$G,$C11, Datenblatt!$R:$R,">="&CH$8,Datenblatt!$R:$R,"<="&EOMONTH(CH$8,0)) - SUMIFS(Datenblatt!$M:$M, Datenblatt!$E:$E,$C11, Datenblatt!$R:$R,">="&CH$8,Datenblatt!$R:$R,"<="&EOMONTH(CH$8,0)), "") -> 18949.33 | CI11: =IF(ISNUMBER($C11), SUMIFS(Datenblatt!$M:$M, Datenblatt!$G:$G,$C11, Datenblatt!$R:$R,">="&CI$8,Datenblatt!$R:$R,"<="&EOMONTH(CI$8,0)) - SUMIFS(Datenblatt!$M:$M, Datenblatt!$E:$E,$C11, Datenblatt!$R:$R,">="&CI$8,Datenblatt!$R:$R,"<="&EOMONTH(CI$8,0)), "") -> 0 | CJ11: =IF(ISNUMBER($C11), SUMIFS(Datenblatt!$M:$M, Datenblatt!$G:$G,$C11, Datenblatt!$R:$R,">="&CJ$8,Datenblatt!$R:$R,"<="&EOMONTH(CJ$8,0)) - SUMIFS(Datenblatt!$M:$M, Datenblatt!$E:$E,$C11, Datenblatt!$R:$R,">="&CJ$8,Datenblatt!$R:$R,"<="&EOMONTH(CJ$8,0)), "") -> 0 | CK11: =IF(ISNUMBER($C11), SUMIFS(Datenblatt!$M:$M, Datenblatt!$G:$G,$C11, Datenblatt!$R:$R,">="&CK$8,Datenblatt!$R:$R,"<="&EOMONTH(CK$8,0)) - SUMIFS(Datenblatt!$M:$M, Datenblatt!$E:$E,$C11, Datenblatt!$R:$R,">="&CK$8,Datenblatt!$R:$R,"<="&EOMONTH(CK$8,0)), "") -> 0 | CL11: =IF(ISNUMBER($C11), SUMIFS(Datenblatt!$M:$M, Datenblatt!$G:$G,$C11, Datenblatt!$R:$R,">="&CL$8,Datenblatt!$R:$R,"<="&EOMONTH(CL$8,0)) - SUMIFS(Datenblatt!$M:$M, Datenblatt!$E:$E,$C11, Datenblatt!$R:$R,">="&CL$8,Datenblatt!$R:$R,"<="&EOMONTH(CL$8,0)), "") -> 0 | CM11: =IF(ISNUMBER($C11), SUMIFS(Datenblatt!$M:$M, Datenblatt!$G:$G,$C11, Datenblatt!$R:$R,">="&CM$8,Datenblatt!$R:$R,"<="&EOMONTH(CM$8,0)) - SUMIFS(Datenblatt!$M:$M, Datenblatt!$E:$E,$C11, Datenblatt!$R:$R,">="&CM$8,Datenblatt!$R:$R,"<="&EOMONTH(CM$8,0)), "") -> 0 | CN11: =IF(ISNUMBER($C11), SUMIFS(Datenblatt!$M:$M, Datenblatt!$G:$G,$C11, Datenblatt!$R:$R,">="&CN$8,Datenblatt!$R:$R,"<="&EOMONTH(CN$8,0)) - SUMIFS(Datenblatt!$M:$M, Datenblatt!$E:$E,$C11, Datenblatt!$R:$R,">="&CN$8,Datenblatt!$R:$R,"<="&EOMONTH(CN$8,0)), "") -> 0 | CO11: =IF(ISNUMBER($C11), SUMIFS(Datenblatt!$M:$M, Datenblatt!$G:$G,$C11, Datenblatt!$R:$R,">="&CO$8,Datenblatt!$R:$R,"<="&EOMONTH(CO$8,0)) - SUMIFS(Datenblatt!$M:$M, Datenblatt!$E:$E,$C11, Datenblatt!$R:$R,">="&CO$8,Datenblatt!$R:$R,"<="&EOMONTH(CO$8,0)), "") -> 0 | CP11: =IF(ISNUMBER($C11), SUMIFS(Datenblatt!$M:$M, Datenblatt!$G:$G,$C11, Datenblatt!$R:$R,">="&CP$8,Datenblatt!$R:$R,"<="&EOMONTH(CP$8,0)) - SUMIFS(Datenblatt!$M:$M, Datenblatt!$E:$E,$C11, Datenblatt!$R:$R,">="&CP$8,Datenblatt!$R:$R,"<="&EOMONTH(CP$8,0)), "") -> 0 | CQ11: =IF(ISNUMBER($C11), SUMIFS(Datenblatt!$M:$M, Datenblatt!$G:$G,$C11, Datenblatt!$R:$R,">="&CQ$8,Datenblatt!$R:$R,"<="&EOMONTH(CQ$8,0)) - SUMIFS(Datenblatt!$M:$M, Datenblatt!$E:$E,$C11, Datenblatt!$R:$R,">="&CQ$8,Datenblatt!$R:$R,"<="&EOMONTH(CQ$8,0)), "") -> 0 | CR11: =IF(ISNUMBER($C11), SUMIFS(Datenblatt!$M:$M, Datenblatt!$G:$G,$C11, Datenblatt!$R:$R,">="&CR$8,Datenblatt!$R:$R,"<="&EOMONTH(CR$8,0)) - SUMIFS(Datenblatt!$M:$M, Datenblatt!$E:$E,$C11, Datenblatt!$R:$R,">="&CR$8,Datenblatt!$R:$R,"<="&EOMONTH(CR$8,0)), "") -> 0 | CS11: =IF(ISNUMBER($C11), SUMIFS(Datenblatt!$M:$M, Datenblatt!$G:$G,$C11, Datenblatt!$R:$R,">="&CS$8,Datenblatt!$R:$R,"<="&EOMONTH(CS$8,0)) - SUMIFS(Datenblatt!$M:$M, Datenblatt!$E:$E,$C11, Datenblatt!$R:$R,">="&CS$8,Datenblatt!$R:$R,"<="&EOMONTH(CS$8,0)), "") -> 0 | CT11: =IF(ISNUMBER($C11), SUMIFS(Datenblatt!$M:$M, Datenblatt!$G:$G,$C11, Datenblatt!$R:$R,">="&CT$8,Datenblatt!$R:$R,"<="&EOMONTH(CT$8,0)) - SUMIFS(Datenblatt!$M:$M, Datenblatt!$E:$E,$C11, Datenblatt!$R:$R,">="&CT$8,Datenblatt!$R:$R,"<="&EOMONTH(CT$8,0)), "") -> 0 | CU11: =IF(ISNUMBER($C11), SUMIFS(Datenblatt!$M:$M, Datenblatt!$G:$G,$C11, Datenblatt!$R:$R,">="&CU$8,Datenblatt!$R:$R,"<="&EOMONTH(CU$8,0)) - SUMIFS(Datenblatt!$M:$M, Datenblatt!$E:$E,$C11, Datenblatt!$R:$R,">="&CU$8,Datenblatt!$R:$R,"<="&EOMONTH(CU$8,0)), "") -> 0 | CV11: =IF(ISNUMBER($C11), SUMIFS(Datenblatt!$M:$M, Datenblatt!$G:$G,$C11, Datenblatt!$R:$R,">="&CV$8,Datenblatt!$R:$R,"<="&EOMONTH(CV$8,0)) - SUMIFS(Datenblatt!$M:$M, Datenblatt!$E:$E,$C11, Datenblatt!$R:$R,">="&CV$8,Datenblatt!$R:$R,"<="&EOMONTH(CV$8,0)), "") -> 0 | CW11: =IF(ISNUMBER($C11), SUMIFS(Datenblatt!$M:$M, Datenblatt!$G:$G,$C11, Datenblatt!$R:$R,">="&CW$8,Datenblatt!$R:$R,"<="&EOMONTH(CW$8,0)) - SUMIFS(Datenblatt!$M:$M, Datenblatt!$E:$E,$C11, Datenblatt!$R:$R,">="&CW$8,Datenblatt!$R:$R,"<="&EOMONTH(CW$8,0)), "") -> 0 | CX11: =IF(ISNUMBER($C11), SUMIFS(Datenblatt!$M:$M, Datenblatt!$G:$G,$C11, Datenblatt!$R:$R,">="&CX$8,Datenblatt!$R:$R,"<="&EOMONTH(CX$8,0)) - SUMIFS(Datenblatt!$M:$M, Datenblatt!$E:$E,$C11, Datenblatt!$R:$R,">="&CX$8,Datenblatt!$R:$R,"<="&EOMONTH(CX$8,0)), "") -> 0 | CY11: =IF(ISNUMBER($C11), SUMIFS(Datenblatt!$M:$M, Datenblatt!$G:$G,$C11, Datenblatt!$R:$R,">="&CY$8,Datenblatt!$R:$R,"<="&EOMONTH(CY$8,0)) - SUMIFS(Datenblatt!$M:$M, Datenblatt!$E:$E,$C11, Datenblatt!$R:$R,">="&CY$8,Datenblatt!$R:$R,"<="&EOMONTH(CY$8,0)), "") -> 0 | CZ11: =IF(ISNUMBER($C11), SUMIFS(Datenblatt!$M:$M, Datenblatt!$G:$G,$C11, Datenblatt!$R:$R,">="&CZ$8,Datenblatt!$R:$R,"<="&EOMONTH(CZ$8,0)) - SUMIFS(Datenblatt!$M:$M, Datenblatt!$E:$E,$C11, Datenblatt!$R:$R,">="&CZ$8,Datenblatt!$R:$R,"<="&EOMONTH(CZ$8,0)), "") -> 0 | DA11: =IF(ISNUMBER($C11), SUMIFS(Datenblatt!$M:$M, Datenblatt!$G:$G,$C11, Datenblatt!$R:$R,">="&DA$8,Datenblatt!$R:$R,"<="&EOMONTH(DA$8,0)) - SUMIFS(Datenblatt!$M:$M, Datenblatt!$E:$E,$C11, Datenblatt!$R:$R,">="&DA$8,Datenblatt!$R:$R,"<="&EOMONTH(DA$8,0)), "") -> 0 | DB11: =IF(ISNUMBER($C11), SUMIFS(Datenblatt!$M:$M, Datenblatt!$G:$G,$C11, Datenblatt!$R:$R,">="&DB$8,Datenblatt!$R:$R,"<="&EOMONTH(DB$8,0)) - SUMIFS(Datenblatt!$M:$M, Datenblatt!$E:$E,$C11, Datenblatt!$R:$R,">="&DB$8,Datenblatt!$R:$R,"<="&EOMONTH(DB$8,0)), "") -> 0 | DC11: =IF(ISNUMBER($C11), SUMIFS(Datenblatt!$M:$M, Datenblatt!$G:$G,$C11, Datenblatt!$R:$R,">="&DC$8,Datenblatt!$R:$R,"<="&EOMONTH(DC$8,0)) - SUMIFS(Datenblatt!$M:$M, Datenblatt!$E:$E,$C11, Datenblatt!$R:$R,">="&DC$8,Datenblatt!$R:$R,"<="&EOMONTH(DC$8,0)), "") -> 0 | DD11: =IF(ISNUMBER($C11), SUMIFS(Datenblatt!$M:$M, Datenblatt!$G:$G,$C11, Datenblatt!$R:$R,">="&DD$8,Datenblatt!$R:$R,"<="&EOMONTH(DD$8,0)) - SUMIFS(Datenblatt!$M:$M, Datenblatt!$E:$E,$C11, Datenblatt!$R:$R,">="&DD$8,Datenblatt!$R:$R,"<="&EOMONTH(DD$8,0)), "") -> 0 | DE11: =IF(ISNUMBER($C11), SUMIFS(Datenblatt!$M:$M, Datenblatt!$G:$G,$C11, Datenblatt!$R:$R,">="&DE$8,Datenblatt!$R:$R,"<="&EOMONTH(DE$8,0)) - SUMIFS(Datenblatt!$M:$M, Datenblatt!$E:$E,$C11, Datenblatt!$R:$R,">="&DE$8,Datenblatt!$R:$R,"<="&EOMONTH(DE$8,0)), "") -> 0 | DF11: =IF(ISNUMBER($C11), SUMIFS(Datenblatt!$M:$M, Datenblatt!$G:$G,$C11, Datenblatt!$R:$R,">="&DF$8,Datenblatt!$R:$R,"<="&EOMONTH(DF$8,0)) - SUMIFS(Datenblatt!$M:$M, Datenblatt!$E:$E,$C11, Datenblatt!$R:$R,">="&DF$8,Datenblatt!$R:$R,"<="&EOMONTH(DF$8,0)), "") -> 0
B12: 0 | C12: 3700 | D12: Eigenleistungen | G12: =IF(ISNUMBER($C12), SUMIFS(Datenblatt!$M:$M, Datenblatt!$G:$G,$C12, Datenblatt!$R:$R,">="&G$8,Datenblatt!$R:$R,"<="&EOMONTH(G$8,11)) - SUMIFS(Datenblatt!$M:$M, Datenblatt!$E:$E,$C12, Datenblatt!$R:$R,">="&G$8,Datenblatt!$R:$R,"<="&EOMONTH(G$8,11)), "") -> 44414.9 | H12: =IF(ISNUMBER($C12), SUMIFS(Datenblatt!$M:$M, Datenblatt!$G:$G,$C12, Datenblatt!$R:$R,">="&H$8,Datenblatt!$R:$R,"<="&EOMONTH(H$8,11)) - SUMIFS(Datenblatt!$M:$M, Datenblatt!$E:$E,$C12, Datenblatt!$R:$R,">="&H$8,Datenblatt!$R:$R,"<="&EOMONTH(H$8,11)), "") -> 37002.42 | I12: =IF(ISNUMBER($C12), SUMIFS(Datenblatt!$M:$M, Datenblatt!$G:$G,$C12, Datenblatt!$R:$R,">="&I$8,Datenblatt!$R:$R,"<="&EOMONTH(I$8,11)) - SUMIFS(Datenblatt!$M:$M, Datenblatt!$E:$E,$C12, Datenblatt!$R:$R,">="&I$8,Datenblatt!$R:$R,"<="&EOMONTH(I$8,11)), "") -> 44905.88 | J12: =IF(ISNUMBER($C12), SUMIFS(Datenblatt!$M:$M, Datenblatt!$G:$G,$C12, Datenblatt!$R:$R,">="&J$8,Datenblatt!$R:$R,"<="&EOMONTH(J$8,11)) - SUMIFS(Datenblatt!$M:$M, Datenblatt!$E:$E,$C12, Datenblatt!$R:$R,">="&J$8,Datenblatt!$R:$R,"<="&EOMONTH(J$8,11)), "") -> 43904.12 | K12: =IF(ISNUMBER($C12), SUMIFS(Datenblatt!$M:$M, Datenblatt!$G:$G,$C12, Datenblatt!$R:$R,">="&K$8,Datenblatt!$R:$R,"<="&EOMONTH(K$8,11)) - SUMIFS(Datenblatt!$M:$M, Datenblatt!$E:$E,$C12, Datenblatt!$R:$R,">="&K$8,Datenblatt!$R:$R,"<="&EOMONTH(K$8,11)), "") -> 36858.86 | L12: =IF(ISNUMBER($C12), SUMIFS(Datenblatt!$M:$M, Datenblatt!$G:$G,$C12, Datenblatt!$R:$R,">="&L$8,Datenblatt!$R:$R,"<="&EOMONTH(L$8,11)) - SUMIFS(Datenblatt!$M:$M, Datenblatt!$E:$E,$C12, Datenblatt!$R:$R,">="&L$8,Datenblatt!$R:$R,"<="&EOMONTH(L$8,11)), "") -> 30879.88 | M12: =IF(ISNUMBER($C12), SUMIFS(Datenblatt!$M:$M, Datenblatt!$G:$G,$C12, Datenblatt!$R:$R,">="&M$8,Datenblatt!$R:$R,"<="&EOMONTH(M$8,11)) - SUMIFS(Datenblatt!$M:$M, Datenblatt!$E:$E,$C12, Datenblatt!$R:$R,">="&M$8,Datenblatt!$R:$R,"<="&EOMONTH(M$8,11)), "") -> 0 | N12: =IF(ISNUMBER($C12), SUMIFS(Datenblatt!$M:$M, Datenblatt!$G:$G,$C12, Datenblatt!$R:$R,">="&N$8,Datenblatt!$R:$R,"<="&EOMONTH(N$8,11)) - SUMIFS(Datenblatt!$M:$M, Datenblatt!$E:$E,$C12, Datenblatt!$R:$R,">="&N$8,Datenblatt!$R:$R,"<="&EOMONTH(N$8,11)), "") -> 0 | O12: =IF(ISNUMBER($C12), SUMIFS(Datenblatt!$M:$M, Datenblatt!$G:$G,$C12, Datenblatt!$R:$R,">="&O$8,Datenblatt!$R:$R,"<="&EOMONTH(O$8,0)) - SUMIFS(Datenblatt!$M:$M, Datenblatt!$E:$E,$C12, Datenblatt!$R:$R,">="&O$8,Datenblatt!$R:$R,"<="&EOMONTH(O$8,0)), "") -> 1352.72 | P12: =IF(ISNUMBER($C12), SUMIFS(Datenblatt!$M:$M, Datenblatt!$G:$G,$C12, Datenblatt!$R:$R,">="&P$8,Datenblatt!$R:$R,"<="&EOMONTH(P$8,0)) - SUMIFS(Datenblatt!$M:$M, Datenblatt!$E:$E,$C12, Datenblatt!$R:$R,">="&P$8,Datenblatt!$R:$R,"<="&EOMONTH(P$8,0)), "") -> 0 | Q12: =IF(ISNUMBER($C12), SUMIFS(Datenblatt!$M:$M, Datenblatt!$G:$G,$C12, Datenblatt!$R:$R,">="&Q$8,Datenblatt!$R:$R,"<="&EOMONTH(Q$8,0)) - SUMIFS(Datenblatt!$M:$M, Datenblatt!$E:$E,$C12, Datenblatt!$R:$R,">="&Q$8,Datenblatt!$R:$R,"<="&EOMONTH(Q$8,0)), "") -> 14494.42 | R12: =IF(ISNUMBER($C12), SUMIFS(Datenblatt!$M:$M, Datenblatt!$G:$G,$C12, Datenblatt!$R:$R,">="&R$8,Datenblatt!$R:$R,"<="&EOMONTH(R$8,0)) - SUMIFS(Datenblatt!$M:$M, Datenblatt!$E:$E,$C12, Datenblatt!$R:$R,">="&R$8,Datenblatt!$R:$R,"<="&EOMONTH(R$8,0)), "") -> 1310.18 | S12: =IF(ISNUMBER($C12), SUMIFS(Datenblatt!$M:$M, Datenblatt!$G:$G,$C12, Datenblatt!$R:$R,">="&S$8,Datenblatt!$R:$R,"<="&EOMONTH(S$8,0)) - SUMIFS(Datenblatt!$M:$M, Datenblatt!$E:$E,$C12, Datenblatt!$R:$R,">="&S$8,Datenblatt!$R:$R,"<="&EOMONTH(S$8,0)), "") -> 5744.92 | T12: =IF(ISNUMBER($C12), SUMIFS(Datenblatt!$M:$M, Datenblatt!$G:$G,$C12, Datenblatt!$R:$R,">="&T$8,Datenblatt!$R:$R,"<="&EOMONTH(T$8,0)) - SUMIFS(Datenblatt!$M:$M, Datenblatt!$E:$E,$C12, Datenblatt!$R:$R,">="&T$8,Datenblatt!$R:$R,"<="&EOMONTH(T$8,0)), "") -> 5453.91 | U12: =IF(ISNUMBER($C12), SUMIFS(Datenblatt!$M:$M, Datenblatt!$G:$G,$C12, Datenblatt!$R:$R,">="&U$8,Datenblatt!$R:$R,"<="&EOMONTH(U$8,0)) - SUMIFS(Datenblatt!$M:$M, Datenblatt!$E:$E,$C12, Datenblatt!$R:$R,">="&U$8,Datenblatt!$R:$R,"<="&EOMONTH(U$8,0)), "") -> 0 | V12: =IF(ISNUMBER($C12), SUMIFS(Datenblatt!$M:$M, Datenblatt!$G:$G,$C12, Datenblatt!$R:$R,">="&V$8,Datenblatt!$R:$R,"<="&EOMONTH(V$8,0)) - SUMIFS(Datenblatt!$M:$M, Datenblatt!$E:$E,$C12, Datenblatt!$R:$R,">="&V$8,Datenblatt!$R:$R,"<="&EOMONTH(V$8,0)), "") -> 5568.36 | W12: =IF(ISNUMBER($C12), SUMIFS(Datenblatt!$M:$M, Datenblatt!$G:$G,$C12, Datenblatt!$R:$R,">="&W$8,Datenblatt!$R:$R,"<="&EOMONTH(W$8,0)) - SUMIFS(Datenblatt!$M:$M, Datenblatt!$E:$E,$C12, Datenblatt!$R:$R,">="&W$8,Datenblatt!$R:$R,"<="&EOMONTH(W$8,0)), "") -> 0 | X12: =IF(ISNUMBER($C12), SUMIFS(Datenblatt!$M:$M, Datenblatt!$G:$G,$C12, Datenblatt!$R:$R,">="&X$8,Datenblatt!$R:$R,"<="&EOMONTH(X$8,0)) - SUMIFS(Datenblatt!$M:$M, Datenblatt!$E:$E,$C12, Datenblatt!$R:$R,">="&X$8,Datenblatt!$R:$R,"<="&EOMONTH(X$8,0)), "") -> 1557.77 | Y12: =IF(ISNUMBER($C12), SUMIFS(Datenblatt!$M:$M, Datenblatt!$G:$G,$C12, Datenblatt!$R:$R,">="&Y$8,Datenblatt!$R:$R,"<="&EOMONTH(Y$8,0)) - SUMIFS(Datenblatt!$M:$M, Datenblatt!$E:$E,$C12, Datenblatt!$R:$R,">="&Y$8,Datenblatt!$R:$R,"<="&EOMONTH(Y$8,0)), "") -> 0 | Z12: =IF(ISNUMBER($C12), SUMIFS(Datenblatt!$M:$M, Datenblatt!$G:$G,$C12, Datenblatt!$R:$R,">="&Z$8,Datenblatt!$R:$R,"<="&EOMONTH(Z$8,0)) - SUMIFS(Datenblatt!$M:$M, Datenblatt!$E:$E,$C12, Datenblatt!$R:$R,">="&Z$8,Datenblatt!$R:$R,"<="&EOMONTH(Z$8,0)), "") -> 8932.62 | AA12: =IF(ISNUMBER($C12), SUMIFS(Datenblatt!$M:$M, Datenblatt!$G:$G,$C12, Datenblatt!$R:$R,">="&AA$8,Datenblatt!$R:$R,"<="&EOMONTH(AA$8,0)) - SUMIFS(Datenblatt!$M:$M, Datenblatt!$E:$E,$C12, Datenblatt!$R:$R,">="&AA$8,Datenblatt!$R:$R,"<="&EOMONTH(AA$8,0)), "") -> 1880.55 | AB12: =IF(ISNUMBER($C12), SUMIFS(Datenblatt!$M:$M, Datenblatt!$G:$G,$C12, Datenblatt!$R:$R,">="&AB$8,Datenblatt!$R:$R,"<="&EOMONTH(AB$8,0)) - SUMIFS(Datenblatt!$M:$M, Datenblatt!$E:$E,$C12, Datenblatt!$R:$R,">="&AB$8,Datenblatt!$R:$R,"<="&EOMONTH(AB$8,0)), "") -> 0 | AC12: =IF(ISNUMBER($C12), SUMIFS(Datenblatt!$M:$M, Datenblatt!$G:$G,$C12, Datenblatt!$R:$R,">="&AC$8,Datenblatt!$R:$R,"<="&EOMONTH(AC$8,0)) - SUMIFS(Datenblatt!$M:$M, Datenblatt!$E:$E,$C12, Datenblatt!$R:$R,">="&AC$8,Datenblatt!$R:$R,"<="&EOMONTH(AC$8,0)), "") -> 255.85 | AD12: =IF(ISNUMBER($C12), SUMIFS(Datenblatt!$M:$M, Datenblatt!$G:$G,$C12, Datenblatt!$R:$R,">="&AD$8,Datenblatt!$R:$R,"<="&EOMONTH(AD$8,0)) - SUMIFS(Datenblatt!$M:$M, Datenblatt!$E:$E,$C12, Datenblatt!$R:$R,">="&AD$8,Datenblatt!$R:$R,"<="&EOMONTH(AD$8,0)), "") -> 5509.43 | AE12: =IF(ISNUMBER($C12), SUMIFS(Datenblatt!$M:$M, Datenblatt!$G:$G,$C12, Datenblatt!$R:$R,">="&AE$8,Datenblatt!$R:$R,"<="&EOMONTH(AE$8,0)) - SUMIFS(Datenblatt!$M:$M, Datenblatt!$E:$E,$C12, Datenblatt!$R:$R,">="&AE$8,Datenblatt!$R:$R,"<="&EOMONTH(AE$8,0)), "") -> 0 | AF12: =IF(ISNUMBER($C12), SUMIFS(Datenblatt!$M:$M, Datenblatt!$G:$G,$C12, Datenblatt!$R:$R,">="&AF$8,Datenblatt!$R:$R,"<="&EOMONTH(AF$8,0)) - SUMIFS(Datenblatt!$M:$M, Datenblatt!$E:$E,$C12, Datenblatt!$R:$R,">="&AF$8,Datenblatt!$R:$R,"<="&EOMONTH(AF$8,0)), "") -> 0 | AG12: =IF(ISNUMBER($C12), SUMIFS(Datenblatt!$M:$M, Datenblatt!$G:$G,$C12, Datenblatt!$R:$R,">="&AG$8,Datenblatt!$R:$R,"<="&EOMONTH(AG$8,0)) - SUMIFS(Datenblatt!$M:$M, Datenblatt!$E:$E,$C12, Datenblatt!$R:$R,">="&AG$8,Datenblatt!$R:$R,"<="&EOMONTH(AG$8,0)), "") -> 12644.76 | AH12: =IF(ISNUMBER($C12), SUMIFS(Datenblatt!$M:$M, Datenblatt!$G:$G,$C12, Datenblatt!$R:$R,">="&AH$8,Datenblatt!$R:$R,"<="&EOMONTH(AH$8,0)) - SUMIFS(Datenblatt!$M:$M, Datenblatt!$E:$E,$C12, Datenblatt!$R:$R,">="&AH$8,Datenblatt!$R:$R,"<="&EOMONTH(AH$8,0)), "") -> 0 | AI12: =IF(ISNUMBER($C12), SUMIFS(Datenblatt!$M:$M, Datenblatt!$G:$G,$C12, Datenblatt!$R:$R,">="&AI$8,Datenblatt!$R:$R,"<="&EOMONTH(AI$8,0)) - SUMIFS(Datenblatt!$M:$M, Datenblatt!$E:$E,$C12, Datenblatt!$R:$R,">="&AI$8,Datenblatt!$R:$R,"<="&EOMONTH(AI$8,0)), "") -> 4960.37 | AJ12: =IF(ISNUMBER($C12), SUMIFS(Datenblatt!$M:$M, Datenblatt!$G:$G,$C12, Datenblatt!$R:$R,">="&AJ$8,Datenblatt!$R:$R,"<="&EOMONTH(AJ$8,0)) - SUMIFS(Datenblatt!$M:$M, Datenblatt!$E:$E,$C12, Datenblatt!$R:$R,">="&AJ$8,Datenblatt!$R:$R,"<="&EOMONTH(AJ$8,0)), "") -> 0 | AK12: =IF(ISNUMBER($C12), SUMIFS(Datenblatt!$M:$M, Datenblatt!$G:$G,$C12, Datenblatt!$R:$R,">="&AK$8,Datenblatt!$R:$R,"<="&EOMONTH(AK$8,0)) - SUMIFS(Datenblatt!$M:$M, Datenblatt!$E:$E,$C12, Datenblatt!$R:$R,">="&AK$8,Datenblatt!$R:$R,"<="&EOMONTH(AK$8,0)), "") -> 5951.94 | AL12: =IF(ISNUMBER($C12), SUMIFS(Datenblatt!$M:$M, Datenblatt!$G:$G,$C12, Datenblatt!$R:$R,">="&AL$8,Datenblatt!$R:$R,"<="&EOMONTH(AL$8,0)) - SUMIFS(Datenblatt!$M:$M, Datenblatt!$E:$E,$C12, Datenblatt!$R:$R,">="&AL$8,Datenblatt!$R:$R,"<="&EOMONTH(AL$8,0)), "") -> 5799.52 | AM12: =IF(ISNUMBER($C12), SUMIFS(Datenblatt!$M:$M, Datenblatt!$G:$G,$C12, Datenblatt!$R:$R,">="&AM$8,Datenblatt!$R:$R,"<="&EOMONTH(AM$8,0)) - SUMIFS(Datenblatt!$M:$M, Datenblatt!$E:$E,$C12, Datenblatt!$R:$R,">="&AM$8,Datenblatt!$R:$R,"<="&EOMONTH(AM$8,0)), "") -> 1165.04 | AN12: =IF(ISNUMBER($C12), SUMIFS(Datenblatt!$M:$M, Datenblatt!$G:$G,$C12, Datenblatt!$R:$R,">="&AN$8,Datenblatt!$R:$R,"<="&EOMONTH(AN$8,0)) - SUMIFS(Datenblatt!$M:$M, Datenblatt!$E:$E,$C12, Datenblatt!$R:$R,">="&AN$8,Datenblatt!$R:$R,"<="&EOMONTH(AN$8,0)), "") -> 0 | AO12: =IF(ISNUMBER($C12), SUMIFS(Datenblatt!$M:$M, Datenblatt!$G:$G,$C12, Datenblatt!$R:$R,">="&AO$8,Datenblatt!$R:$R,"<="&EOMONTH(AO$8,0)) - SUMIFS(Datenblatt!$M:$M, Datenblatt!$E:$E,$C12, Datenblatt!$R:$R,">="&AO$8,Datenblatt!$R:$R,"<="&EOMONTH(AO$8,0)), "") -> 5689.51 | AP12: =IF(ISNUMBER($C12), SUMIFS(Datenblatt!$M:$M, Datenblatt!$G:$G,$C12, Datenblatt!$R:$R,">="&AP$8,Datenblatt!$R:$R,"<="&EOMONTH(AP$8,0)) - SUMIFS(Datenblatt!$M:$M, Datenblatt!$E:$E,$C12, Datenblatt!$R:$R,">="&AP$8,Datenblatt!$R:$R,"<="&EOMONTH(AP$8,0)), "") -> 2019.21 | AQ12: =IF(ISNUMBER($C12), SUMIFS(Datenblatt!$M:$M, Datenblatt!$G:$G,$C12, Datenblatt!$R:$R,">="&AQ$8,Datenblatt!$R:$R,"<="&EOMONTH(AQ$8,0)) - SUMIFS(Datenblatt!$M:$M, Datenblatt!$E:$E,$C12, Datenblatt!$R:$R,">="&AQ$8,Datenblatt!$R:$R,"<="&EOMONTH(AQ$8,0)), "") -> 0 | AR12: =IF(ISNUMBER($C12), SUMIFS(Datenblatt!$M:$M, Datenblatt!$G:$G,$C12, Datenblatt!$R:$R,">="&AR$8,Datenblatt!$R:$R,"<="&EOMONTH(AR$8,0)) - SUMIFS(Datenblatt!$M:$M, Datenblatt!$E:$E,$C12, Datenblatt!$R:$R,">="&AR$8,Datenblatt!$R:$R,"<="&EOMONTH(AR$8,0)), "") -> 2931.77 | AS12: =IF(ISNUMBER($C12), SUMIFS(Datenblatt!$M:$M, Datenblatt!$G:$G,$C12, Datenblatt!$R:$R,">="&AS$8,Datenblatt!$R:$R,"<="&EOMONTH(AS$8,0)) - SUMIFS(Datenblatt!$M:$M, Datenblatt!$E:$E,$C12, Datenblatt!$R:$R,">="&AS$8,Datenblatt!$R:$R,"<="&EOMONTH(AS$8,0)), "") -> 9346.35 | AT12: =IF(ISNUMBER($C12), SUMIFS(Datenblatt!$M:$M, Datenblatt!$G:$G,$C12, Datenblatt!$R:$R,">="&AT$8,Datenblatt!$R:$R,"<="&EOMONTH(AT$8,0)) - SUMIFS(Datenblatt!$M:$M, Datenblatt!$E:$E,$C12, Datenblatt!$R:$R,">="&AT$8,Datenblatt!$R:$R,"<="&EOMONTH(AT$8,0)), "") -> 11197.95 | AU12: =IF(ISNUMBER($C12), SUMIFS(Datenblatt!$M:$M, Datenblatt!$G:$G,$C12, Datenblatt!$R:$R,">="&AU$8,Datenblatt!$R:$R,"<="&EOMONTH(AU$8,0)) - SUMIFS(Datenblatt!$M:$M, Datenblatt!$E:$E,$C12, Datenblatt!$R:$R,">="&AU$8,Datenblatt!$R:$R,"<="&EOMONTH(AU$8,0)), "") -> 6974.75 | AV12: =IF(ISNUMBER($C12), SUMIFS(Datenblatt!$M:$M, Datenblatt!$G:$G,$C12, Datenblatt!$R:$R,">="&AV$8,Datenblatt!$R:$R,"<="&EOMONTH(AV$8,0)) - SUMIFS(Datenblatt!$M:$M, Datenblatt!$E:$E,$C12, Datenblatt!$R:$R,">="&AV$8,Datenblatt!$R:$R,"<="&EOMONTH(AV$8,0)), "") -> 0 | AW12: =IF(ISNUMBER($C12), SUMIFS(Datenblatt!$M:$M, Datenblatt!$G:$G,$C12, Datenblatt!$R:$R,">="&AW$8,Datenblatt!$R:$R,"<="&EOMONTH(AW$8,0)) - SUMIFS(Datenblatt!$M:$M, Datenblatt!$E:$E,$C12, Datenblatt!$R:$R,">="&AW$8,Datenblatt!$R:$R,"<="&EOMONTH(AW$8,0)), "") -> 2831.17 | AX12: =IF(ISNUMBER($C12), SUMIFS(Datenblatt!$M:$M, Datenblatt!$G:$G,$C12, Datenblatt!$R:$R,">="&AX$8,Datenblatt!$R:$R,"<="&EOMONTH(AX$8,0)) - SUMIFS(Datenblatt!$M:$M, Datenblatt!$E:$E,$C12, Datenblatt!$R:$R,">="&AX$8,Datenblatt!$R:$R,"<="&EOMONTH(AX$8,0)), "") -> 2750.13 | AY12: =IF(ISNUMBER($C12), SUMIFS(Datenblatt!$M:$M, Datenblatt!$G:$G,$C12, Datenblatt!$R:$R,">="&AY$8,Datenblatt!$R:$R,"<="&EOMONTH(AY$8,0)) - SUMIFS(Datenblatt!$M:$M, Datenblatt!$E:$E,$C12, Datenblatt!$R:$R,">="&AY$8,Datenblatt!$R:$R,"<="&EOMONTH(AY$8,0)), "") -> 0 | AZ12: =IF(ISNUMBER($C12), SUMIFS(Datenblatt!$M:$M, Datenblatt!$G:$G,$C12, Datenblatt!$R:$R,">="&AZ$8,Datenblatt!$R:$R,"<="&EOMONTH(AZ$8,0)) - SUMIFS(Datenblatt!$M:$M, Datenblatt!$E:$E,$C12, Datenblatt!$R:$R,">="&AZ$8,Datenblatt!$R:$R,"<="&EOMONTH(AZ$8,0)), "") -> 1330.48 | BA12: =IF(ISNUMBER($C12), SUMIFS(Datenblatt!$M:$M, Datenblatt!$G:$G,$C12, Datenblatt!$R:$R,">="&BA$8,Datenblatt!$R:$R,"<="&EOMONTH(BA$8,0)) - SUMIFS(Datenblatt!$M:$M, Datenblatt!$E:$E,$C12, Datenblatt!$R:$R,">="&BA$8,Datenblatt!$R:$R,"<="&EOMONTH(BA$8,0)), "") -> 12583.36 | BB12: =IF(ISNUMBER($C12), SUMIFS(Datenblatt!$M:$M, Datenblatt!$G:$G,$C12, Datenblatt!$R:$R,">="&BB$8,Datenblatt!$R:$R,"<="&EOMONTH(BB$8,0)) - SUMIFS(Datenblatt!$M:$M, Datenblatt!$E:$E,$C12, Datenblatt!$R:$R,">="&BB$8,Datenblatt!$R:$R,"<="&EOMONTH(BB$8,0)), "") -> 0 | BC12: =IF(ISNUMBER($C12), SUMIFS(Datenblatt!$M:$M, Datenblatt!$G:$G,$C12, Datenblatt!$R:$R,">="&BC$8,Datenblatt!$R:$R,"<="&EOMONTH(BC$8,0)) - SUMIFS(Datenblatt!$M:$M, Datenblatt!$E:$E,$C12, Datenblatt!$R:$R,">="&BC$8,Datenblatt!$R:$R,"<="&EOMONTH(BC$8,0)), "") -> 1268.13 | BD12: =IF(ISNUMBER($C12), SUMIFS(Datenblatt!$M:$M, Datenblatt!$G:$G,$C12, Datenblatt!$R:$R,">="&BD$8,Datenblatt!$R:$R,"<="&EOMONTH(BD$8,0)) - SUMIFS(Datenblatt!$M:$M, Datenblatt!$E:$E,$C12, Datenblatt!$R:$R,">="&BD$8,Datenblatt!$R:$R,"<="&EOMONTH(BD$8,0)), "") -> 9995.33 | BE12: =IF(ISNUMBER($C12), SUMIFS(Datenblatt!$M:$M, Datenblatt!$G:$G,$C12, Datenblatt!$R:$R,">="&BE$8,Datenblatt!$R:$R,"<="&EOMONTH(BE$8,0)) - SUMIFS(Datenblatt!$M:$M, Datenblatt!$E:$E,$C12, Datenblatt!$R:$R,">="&BE$8,Datenblatt!$R:$R,"<="&EOMONTH(BE$8,0)), "") -> 0 | BF12: =IF(ISNUMBER($C12), SUMIFS(Datenblatt!$M:$M, Datenblatt!$G:$G,$C12, Datenblatt!$R:$R,">="&BF$8,Datenblatt!$R:$R,"<="&EOMONTH(BF$8,0)) - SUMIFS(Datenblatt!$M:$M, Datenblatt!$E:$E,$C12, Datenblatt!$R:$R,">="&BF$8,Datenblatt!$R:$R,"<="&EOMONTH(BF$8,0)), "") -> 8879.8 | BG12: =IF(ISNUMBER($C12), SUMIFS(Datenblatt!$M:$M, Datenblatt!$G:$G,$C12, Datenblatt!$R:$R,">="&BG$8,Datenblatt!$R:$R,"<="&EOMONTH(BG$8,0)) - SUMIFS(Datenblatt!$M:$M, Datenblatt!$E:$E,$C12, Datenblatt!$R:$R,">="&BG$8,Datenblatt!$R:$R,"<="&EOMONTH(BG$8,0)), "") -> 0 | BH12: =IF(ISNUMBER($C12), SUMIFS(Datenblatt!$M:$M, Datenblatt!$G:$G,$C12, Datenblatt!$R:$R,">="&BH$8,Datenblatt!$R:$R,"<="&EOMONTH(BH$8,0)) - SUMIFS(Datenblatt!$M:$M, Datenblatt!$E:$E,$C12, Datenblatt!$R:$R,">="&BH$8,Datenblatt!$R:$R,"<="&EOMONTH(BH$8,0)), "") -> 8368.4 | BI12: =IF(ISNUMBER($C12), SUMIFS(Datenblatt!$M:$M, Datenblatt!$G:$G,$C12, Datenblatt!$R:$R,">="&BI$8,Datenblatt!$R:$R,"<="&EOMONTH(BI$8,0)) - SUMIFS(Datenblatt!$M:$M, Datenblatt!$E:$E,$C12, Datenblatt!$R:$R,">="&BI$8,Datenblatt!$R:$R,"<="&EOMONTH(BI$8,0)), "") -> 0 | BJ12: =IF(ISNUMBER($C12), SUMIFS(Datenblatt!$M:$M, Datenblatt!$G:$G,$C12, Datenblatt!$R:$R,">="&BJ$8,Datenblatt!$R:$R,"<="&EOMONTH(BJ$8,0)) - SUMIFS(Datenblatt!$M:$M, Datenblatt!$E:$E,$C12, Datenblatt!$R:$R,">="&BJ$8,Datenblatt!$R:$R,"<="&EOMONTH(BJ$8,0)), "") -> 1478.62 | BK12: =IF(ISNUMBER($C12), SUMIFS(Datenblatt!$M:$M, Datenblatt!$G:$G,$C12, Datenblatt!$R:$R,">="&BK$8,Datenblatt!$R:$R,"<="&EOMONTH(BK$8,0)) - SUMIFS(Datenblatt!$M:$M, Datenblatt!$E:$E,$C12, Datenblatt!$R:$R,">="&BK$8,Datenblatt!$R:$R,"<="&EOMONTH(BK$8,0)), "") -> 0 | BL12: =IF(ISNUMBER($C12), SUMIFS(Datenblatt!$M:$M, Datenblatt!$G:$G,$C12, Datenblatt!$R:$R,">="&BL$8,Datenblatt!$R:$R,"<="&EOMONTH(BL$8,0)) - SUMIFS(Datenblatt!$M:$M, Datenblatt!$E:$E,$C12, Datenblatt!$R:$R,">="&BL$8,Datenblatt!$R:$R,"<="&EOMONTH(BL$8,0)), "") -> 0 | BM12: =IF(ISNUMBER($C12), SUMIFS(Datenblatt!$M:$M, Datenblatt!$G:$G,$C12, Datenblatt!$R:$R,">="&BM$8,Datenblatt!$R:$R,"<="&EOMONTH(BM$8,0)) - SUMIFS(Datenblatt!$M:$M, Datenblatt!$E:$E,$C12, Datenblatt!$R:$R,">="&BM$8,Datenblatt!$R:$R,"<="&EOMONTH(BM$8,0)), "") -> 7143.32 | BN12: =IF(ISNUMBER($C12), SUMIFS(Datenblatt!$M:$M, Datenblatt!$G:$G,$C12, Datenblatt!$R:$R,">="&BN$8,Datenblatt!$R:$R,"<="&EOMONTH(BN$8,0)) - SUMIFS(Datenblatt!$M:$M, Datenblatt!$E:$E,$C12, Datenblatt!$R:$R,">="&BN$8,Datenblatt!$R:$R,"<="&EOMONTH(BN$8,0)), "") -> 1957.8 | BO12: =IF(ISNUMBER($C12), SUMIFS(Datenblatt!$M:$M, Datenblatt!$G:$G,$C12, Datenblatt!$R:$R,">="&BO$8,Datenblatt!$R:$R,"<="&EOMONTH(BO$8,0)) - SUMIFS(Datenblatt!$M:$M, Datenblatt!$E:$E,$C12, Datenblatt!$R:$R,">="&BO$8,Datenblatt!$R:$R,"<="&EOMONTH(BO$8,0)), "") -> 0 | BP12: =IF(ISNUMBER($C12), SUMIFS(Datenblatt!$M:$M, Datenblatt!$G:$G,$C12, Datenblatt!$R:$R,">="&BP$8,Datenblatt!$R:$R,"<="&EOMONTH(BP$8,0)) - SUMIFS(Datenblatt!$M:$M, Datenblatt!$E:$E,$C12, Datenblatt!$R:$R,">="&BP$8,Datenblatt!$R:$R,"<="&EOMONTH(BP$8,0)), "") -> 0 | BQ12: =IF(ISNUMBER($C12), SUMIFS(Datenblatt!$M:$M, Datenblatt!$G:$G,$C12, Datenblatt!$R:$R,">="&BQ$8,Datenblatt!$R:$R,"<="&EOMONTH(BQ$8,0)) - SUMIFS(Datenblatt!$M:$M, Datenblatt!$E:$E,$C12, Datenblatt!$R:$R,">="&BQ$8,Datenblatt!$R:$R,"<="&EOMONTH(BQ$8,0)), "") -> 3612.84 | BR12: =IF(ISNUMBER($C12), SUMIFS(Datenblatt!$M:$M, Datenblatt!$G:$G,$C12, Datenblatt!$R:$R,">="&BR$8,Datenblatt!$R:$R,"<="&EOMONTH(BR$8,0)) - SUMIFS(Datenblatt!$M:$M, Datenblatt!$E:$E,$C12, Datenblatt!$R:$R,">="&BR$8,Datenblatt!$R:$R,"<="&EOMONTH(BR$8,0)), "") -> 744.76 | BS12: =IF(ISNUMBER($C12), SUMIFS(Datenblatt!$M:$M, Datenblatt!$G:$G,$C12, Datenblatt!$R:$R,">="&BS$8,Datenblatt!$R:$R,"<="&EOMONTH(BS$8,0)) - SUMIFS(Datenblatt!$M:$M, Datenblatt!$E:$E,$C12, Datenblatt!$R:$R,">="&BS$8,Datenblatt!$R:$R,"<="&EOMONTH(BS$8,0)), "") -> 0 | BT12: =IF(ISNUMBER($C12), SUMIFS(Datenblatt!$M:$M, Datenblatt!$G:$G,$C12, Datenblatt!$R:$R,">="&BT$8,Datenblatt!$R:$R,"<="&EOMONTH(BT$8,0)) - SUMIFS(Datenblatt!$M:$M, Datenblatt!$E:$E,$C12, Datenblatt!$R:$R,">="&BT$8,Datenblatt!$R:$R,"<="&EOMONTH(BT$8,0)), "") -> 4812.85 | BU12: =IF(ISNUMBER($C12), SUMIFS(Datenblatt!$M:$M, Datenblatt!$G:$G,$C12, Datenblatt!$R:$R,">="&BU$8,Datenblatt!$R:$R,"<="&EOMONTH(BU$8,0)) - SUMIFS(Datenblatt!$M:$M, Datenblatt!$E:$E,$C12, Datenblatt!$R:$R,">="&BU$8,Datenblatt!$R:$R,"<="&EOMONTH(BU$8,0)), "") -> 1524.46 | BV12: =IF(ISNUMBER($C12), SUMIFS(Datenblatt!$M:$M, Datenblatt!$G:$G,$C12, Datenblatt!$R:$R,">="&BV$8,Datenblatt!$R:$R,"<="&EOMONTH(BV$8,0)) - SUMIFS(Datenblatt!$M:$M, Datenblatt!$E:$E,$C12, Datenblatt!$R:$R,">="&BV$8,Datenblatt!$R:$R,"<="&EOMONTH(BV$8,0)), "") -> 17062.83 | BW12: =IF(ISNUMBER($C12), SUMIFS(Datenblatt!$M:$M, Datenblatt!$G:$G,$C12, Datenblatt!$R:$R,">="&BW$8,Datenblatt!$R:$R,"<="&EOMONTH(BW$8,0)) - SUMIFS(Datenblatt!$M:$M, Datenblatt!$E:$E,$C12, Datenblatt!$R:$R,">="&BW$8,Datenblatt!$R:$R,"<="&EOMONTH(BW$8,0)), "") -> 2997.05 | BX12: =IF(ISNUMBER($C12), SUMIFS(Datenblatt!$M:$M, Datenblatt!$G:$G,$C12, Datenblatt!$R:$R,">="&BX$8,Datenblatt!$R:$R,"<="&EOMONTH(BX$8,0)) - SUMIFS(Datenblatt!$M:$M, Datenblatt!$E:$E,$C12, Datenblatt!$R:$R,">="&BX$8,Datenblatt!$R:$R,"<="&EOMONTH(BX$8,0)), "") -> 0 | BY12: =IF(ISNUMBER($C12), SUMIFS(Datenblatt!$M:$M, Datenblatt!$G:$G,$C12, Datenblatt!$R:$R,">="&BY$8,Datenblatt!$R:$R,"<="&EOMONTH(BY$8,0)) - SUMIFS(Datenblatt!$M:$M, Datenblatt!$E:$E,$C12, Datenblatt!$R:$R,">="&BY$8,Datenblatt!$R:$R,"<="&EOMONTH(BY$8,0)), "") -> 2751.69 | BZ12: =IF(ISNUMBER($C12), SUMIFS(Datenblatt!$M:$M, Datenblatt!$G:$G,$C12, Datenblatt!$R:$R,">="&BZ$8,Datenblatt!$R:$R,"<="&EOMONTH(BZ$8,0)) - SUMIFS(Datenblatt!$M:$M, Datenblatt!$E:$E,$C12, Datenblatt!$R:$R,">="&BZ$8,Datenblatt!$R:$R,"<="&EOMONTH(BZ$8,0)), "") -> 0 | CA12: =IF(ISNUMBER($C12), SUMIFS(Datenblatt!$M:$M, Datenblatt!$G:$G,$C12, Datenblatt!$R:$R,">="&CA$8,Datenblatt!$R:$R,"<="&EOMONTH(CA$8,0)) - SUMIFS(Datenblatt!$M:$M, Datenblatt!$E:$E,$C12, Datenblatt!$R:$R,">="&CA$8,Datenblatt!$R:$R,"<="&EOMONTH(CA$8,0)), "") -> 8513.14 | CB12: =IF(ISNUMBER($C12), SUMIFS(Datenblatt!$M:$M, Datenblatt!$G:$G,$C12, Datenblatt!$R:$R,">="&CB$8,Datenblatt!$R:$R,"<="&EOMONTH(CB$8,0)) - SUMIFS(Datenblatt!$M:$M, Datenblatt!$E:$E,$C12, Datenblatt!$R:$R,">="&CB$8,Datenblatt!$R:$R,"<="&EOMONTH(CB$8,0)), "") -> 4322.77 | CC12: =IF(ISNUMBER($C12), SUMIFS(Datenblatt!$M:$M, Datenblatt!$G:$G,$C12, Datenblatt!$R:$R,">="&CC$8,Datenblatt!$R:$R,"<="&EOMONTH(CC$8,0)) - SUMIFS(Datenblatt!$M:$M, Datenblatt!$E:$E,$C12, Datenblatt!$R:$R,">="&CC$8,Datenblatt!$R:$R,"<="&EOMONTH(CC$8,0)), "") -> 5542.15 | CD12: =IF(ISNUMBER($C12), SUMIFS(Datenblatt!$M:$M, Datenblatt!$G:$G,$C12, Datenblatt!$R:$R,">="&CD$8,Datenblatt!$R:$R,"<="&EOMONTH(CD$8,0)) - SUMIFS(Datenblatt!$M:$M, Datenblatt!$E:$E,$C12, Datenblatt!$R:$R,">="&CD$8,Datenblatt!$R:$R,"<="&EOMONTH(CD$8,0)), "") -> 0 | CE12: =IF(ISNUMBER($C12), SUMIFS(Datenblatt!$M:$M, Datenblatt!$G:$G,$C12, Datenblatt!$R:$R,">="&CE$8,Datenblatt!$R:$R,"<="&EOMONTH(CE$8,0)) - SUMIFS(Datenblatt!$M:$M, Datenblatt!$E:$E,$C12, Datenblatt!$R:$R,">="&CE$8,Datenblatt!$R:$R,"<="&EOMONTH(CE$8,0)), "") -> 0 | CF12: =IF(ISNUMBER($C12), SUMIFS(Datenblatt!$M:$M, Datenblatt!$G:$G,$C12, Datenblatt!$R:$R,">="&CF$8,Datenblatt!$R:$R,"<="&EOMONTH(CF$8,0)) - SUMIFS(Datenblatt!$M:$M, Datenblatt!$E:$E,$C12, Datenblatt!$R:$R,">="&CF$8,Datenblatt!$R:$R,"<="&EOMONTH(CF$8,0)), "") -> 4807.42 | CG12: =IF(ISNUMBER($C12), SUMIFS(Datenblatt!$M:$M, Datenblatt!$G:$G,$C12, Datenblatt!$R:$R,">="&CG$8,Datenblatt!$R:$R,"<="&EOMONTH(CG$8,0)) - SUMIFS(Datenblatt!$M:$M, Datenblatt!$E:$E,$C12, Datenblatt!$R:$R,">="&CG$8,Datenblatt!$R:$R,"<="&EOMONTH(CG$8,0)), "") -> 0 | CH12: =IF(ISNUMBER($C12), SUMIFS(Datenblatt!$M:$M, Datenblatt!$G:$G,$C12, Datenblatt!$R:$R,">="&CH$8,Datenblatt!$R:$R,"<="&EOMONTH(CH$8,0)) - SUMIFS(Datenblatt!$M:$M, Datenblatt!$E:$E,$C12, Datenblatt!$R:$R,">="&CH$8,Datenblatt!$R:$R,"<="&EOMONTH(CH$8,0)), "") -> 1945.66 | CI12: =IF(ISNUMBER($C12), SUMIFS(Datenblatt!$M:$M, Datenblatt!$G:$G,$C12, Datenblatt!$R:$R,">="&CI$8,Datenblatt!$R:$R,"<="&EOMONTH(CI$8,0)) - SUMIFS(Datenblatt!$M:$M, Datenblatt!$E:$E,$C12, Datenblatt!$R:$R,">="&CI$8,Datenblatt!$R:$R,"<="&EOMONTH(CI$8,0)), "") -> 0 | CJ12: =IF(ISNUMBER($C12), SUMIFS(Datenblatt!$M:$M, Datenblatt!$G:$G,$C12, Datenblatt!$R:$R,">="&CJ$8,Datenblatt!$R:$R,"<="&EOMONTH(CJ$8,0)) - SUMIFS(Datenblatt!$M:$M, Datenblatt!$E:$E,$C12, Datenblatt!$R:$R,">="&CJ$8,Datenblatt!$R:$R,"<="&EOMONTH(CJ$8,0)), "") -> 0 | CK12: =IF(ISNUMBER($C12), SUMIFS(Datenblatt!$M:$M, Datenblatt!$G:$G,$C12, Datenblatt!$R:$R,">="&CK$8,Datenblatt!$R:$R,"<="&EOMONTH(CK$8,0)) - SUMIFS(Datenblatt!$M:$M, Datenblatt!$E:$E,$C12, Datenblatt!$R:$R,">="&CK$8,Datenblatt!$R:$R,"<="&EOMONTH(CK$8,0)), "") -> 0 | CL12: =IF(ISNUMBER($C12), SUMIFS(Datenblatt!$M:$M, Datenblatt!$G:$G,$C12, Datenblatt!$R:$R,">="&CL$8,Datenblatt!$R:$R,"<="&EOMONTH(CL$8,0)) - SUMIFS(Datenblatt!$M:$M, Datenblatt!$E:$E,$C12, Datenblatt!$R:$R,">="&CL$8,Datenblatt!$R:$R,"<="&EOMONTH(CL$8,0)), "") -> 0 | CM12: =IF(ISNUMBER($C12), SUMIFS(Datenblatt!$M:$M, Datenblatt!$G:$G,$C12, Datenblatt!$R:$R,">="&CM$8,Datenblatt!$R:$R,"<="&EOMONTH(CM$8,0)) - SUMIFS(Datenblatt!$M:$M, Datenblatt!$E:$E,$C12, Datenblatt!$R:$R,">="&CM$8,Datenblatt!$R:$R,"<="&EOMONTH(CM$8,0)), "") -> 0 | CN12: =IF(ISNUMBER($C12), SUMIFS(Datenblatt!$M:$M, Datenblatt!$G:$G,$C12, Datenblatt!$R:$R,">="&CN$8,Datenblatt!$R:$R,"<="&EOMONTH(CN$8,0)) - SUMIFS(Datenblatt!$M:$M, Datenblatt!$E:$E,$C12, Datenblatt!$R:$R,">="&CN$8,Datenblatt!$R:$R,"<="&EOMONTH(CN$8,0)), "") -> 0 | CO12: =IF(ISNUMBER($C12), SUMIFS(Datenblatt!$M:$M, Datenblatt!$G:$G,$C12, Datenblatt!$R:$R,">="&CO$8,Datenblatt!$R:$R,"<="&EOMONTH(CO$8,0)) - SUMIFS(Datenblatt!$M:$M, Datenblatt!$E:$E,$C12, Datenblatt!$R:$R,">="&CO$8,Datenblatt!$R:$R,"<="&EOMONTH(CO$8,0)), "") -> 0 | CP12: =IF(ISNUMBER($C12), SUMIFS(Datenblatt!$M:$M, Datenblatt!$G:$G,$C12, Datenblatt!$R:$R,">="&CP$8,Datenblatt!$R:$R,"<="&EOMONTH(CP$8,0)) - SUMIFS(Datenblatt!$M:$M, Datenblatt!$E:$E,$C12, Datenblatt!$R:$R,">="&CP$8,Datenblatt!$R:$R,"<="&EOMONTH(CP$8,0)), "") -> 0 | CQ12: =IF(ISNUMBER($C12), SUMIFS(Datenblatt!$M:$M, Datenblatt!$G:$G,$C12, Datenblatt!$R:$R,">="&CQ$8,Datenblatt!$R:$R,"<="&EOMONTH(CQ$8,0)) - SUMIFS(Datenblatt!$M:$M, Datenblatt!$E:$E,$C12, Datenblatt!$R:$R,">="&CQ$8,Datenblatt!$R:$R,"<="&EOMONTH(CQ$8,0)), "") -> 0 | CR12: =IF(ISNUMBER($C12), SUMIFS(Datenblatt!$M:$M, Datenblatt!$G:$G,$C12, Datenblatt!$R:$R,">="&CR$8,Datenblatt!$R:$R,"<="&EOMONTH(CR$8,0)) - SUMIFS(Datenblatt!$M:$M, Datenblatt!$E:$E,$C12, Datenblatt!$R:$R,">="&CR$8,Datenblatt!$R:$R,"<="&EOMONTH(CR$8,0)), "") -> 0 | CS12: =IF(ISNUMBER($C12), SUMIFS(Datenblatt!$M:$M, Datenblatt!$G:$G,$C12, Datenblatt!$R:$R,">="&CS$8,Datenblatt!$R:$R,"<="&EOMONTH(CS$8,0)) - SUMIFS(Datenblatt!$M:$M, Datenblatt!$E:$E,$C12, Datenblatt!$R:$R,">="&CS$8,Datenblatt!$R:$R,"<="&EOMONTH(CS$8,0)), "") -> 0 | CT12: =IF(ISNUMBER($C12), SUMIFS(Datenblatt!$M:$M, Datenblatt!$G:$G,$C12, Datenblatt!$R:$R,">="&CT$8,Datenblatt!$R:$R,"<="&EOMONTH(CT$8,0)) - SUMIFS(Datenblatt!$M:$M, Datenblatt!$E:$E,$C12, Datenblatt!$R:$R,">="&CT$8,Datenblatt!$R:$R,"<="&EOMONTH(CT$8,0)), "") -> 0 | CU12: =IF(ISNUMBER($C12), SUMIFS(Datenblatt!$M:$M, Datenblatt!$G:$G,$C12, Datenblatt!$R:$R,">="&CU$8,Datenblatt!$R:$R,"<="&EOMONTH(CU$8,0)) - SUMIFS(Datenblatt!$M:$M, Datenblatt!$E:$E,$C12, Datenblatt!$R:$R,">="&CU$8,Datenblatt!$R:$R,"<="&EOMONTH(CU$8,0)), "") -> 0 | CV12: =IF(ISNUMBER($C12), SUMIFS(Datenblatt!$M:$M, Datenblatt!$G:$G,$C12, Datenblatt!$R:$R,">="&CV$8,Datenblatt!$R:$R,"<="&EOMONTH(CV$8,0)) - SUMIFS(Datenblatt!$M:$M, Datenblatt!$E:$E,$C12, Datenblatt!$R:$R,">="&CV$8,Datenblatt!$R:$R,"<="&EOMONTH(CV$8,0)), "") -> 0 | CW12: =IF(ISNUMBER($C12), SUMIFS(Datenblatt!$M:$M, Datenblatt!$G:$G,$C12, Datenblatt!$R:$R,">="&CW$8,Datenblatt!$R:$R,"<="&EOMONTH(CW$8,0)) - SUMIFS(Datenblatt!$M:$M, Datenblatt!$E:$E,$C12, Datenblatt!$R:$R,">="&CW$8,Datenblatt!$R:$R,"<="&EOMONTH(CW$8,0)), "") -> 0 | CX12: =IF(ISNUMBER($C12), SUMIFS(Datenblatt!$M:$M, Datenblatt!$G:$G,$C12, Datenblatt!$R:$R,">="&CX$8,Datenblatt!$R:$R,"<="&EOMONTH(CX$8,0)) - SUMIFS(Datenblatt!$M:$M, Datenblatt!$E:$E,$C12, Datenblatt!$R:$R,">="&CX$8,Datenblatt!$R:$R,"<="&EOMONTH(CX$8,0)), "") -> 0 | CY12: =IF(ISNUMBER($C12), SUMIFS(Datenblatt!$M:$M, Datenblatt!$G:$G,$C12, Datenblatt!$R:$R,">="&CY$8,Datenblatt!$R:$R,"<="&EOMONTH(CY$8,0)) - SUMIFS(Datenblatt!$M:$M, Datenblatt!$E:$E,$C12, Datenblatt!$R:$R,">="&CY$8,Datenblatt!$R:$R,"<="&EOMONTH(CY$8,0)), "") -> 0 | CZ12: =IF(ISNUMBER($C12), SUMIFS(Datenblatt!$M:$M, Datenblatt!$G:$G,$C12, Datenblatt!$R:$R,">="&CZ$8,Datenblatt!$R:$R,"<="&EOMONTH(CZ$8,0)) - SUMIFS(Datenblatt!$M:$M, Datenblatt!$E:$E,$C12, Datenblatt!$R:$R,">="&CZ$8,Datenblatt!$R:$R,"<="&EOMONTH(CZ$8,0)), "") -> 0 | DA12: =IF(ISNUMBER($C12), SUMIFS(Datenblatt!$M:$M, Datenblatt!$G:$G,$C12, Datenblatt!$R:$R,">="&DA$8,Datenblatt!$R:$R,"<="&EOMONTH(DA$8,0)) - SUMIFS(Datenblatt!$M:$M, Datenblatt!$E:$E,$C12, Datenblatt!$R:$R,">="&DA$8,Datenblatt!$R:$R,"<="&EOMONTH(DA$8,0)), "") -> 0 | DB12: =IF(ISNUMBER($C12), SUMIFS(Datenblatt!$M:$M, Datenblatt!$G:$G,$C12, Datenblatt!$R:$R,">="&DB$8,Datenblatt!$R:$R,"<="&EOMONTH(DB$8,0)) - SUMIFS(Datenblatt!$M:$M, Datenblatt!$E:$E,$C12, Datenblatt!$R:$R,">="&DB$8,Datenblatt!$R:$R,"<="&EOMONTH(DB$8,0)), "") -> 0 | DC12: =IF(ISNUMBER($C12), SUMIFS(Datenblatt!$M:$M, Datenblatt!$G:$G,$C12, Datenblatt!$R:$R,">="&DC$8,Datenblatt!$R:$R,"<="&EOMONTH(DC$8,0)) - SUMIFS(Datenblatt!$M:$M, Datenblatt!$E:$E,$C12, Datenblatt!$R:$R,">="&DC$8,Datenblatt!$R:$R,"<="&EOMONTH(DC$8,0)), "") -> 0 | DD12: =IF(ISNUMBER($C12), SUMIFS(Datenblatt!$M:$M, Datenblatt!$G:$G,$C12, Datenblatt!$R:$R,">="&DD$8,Datenblatt!$R:$R,"<="&EOMONTH(DD$8,0)) - SUMIFS(Datenblatt!$M:$M, Datenblatt!$E:$E,$C12, Datenblatt!$R:$R,">="&DD$8,Datenblatt!$R:$R,"<="&EOMONTH(DD$8,0)), "") -> 0 | DE12: =IF(ISNUMBER($C12), SUMIFS(Datenblatt!$M:$M, Datenblatt!$G:$G,$C12, Datenblatt!$R:$R,">="&DE$8,Datenblatt!$R:$R,"<="&EOMONTH(DE$8,0)) - SUMIFS(Datenblatt!$M:$M, Datenblatt!$E:$E,$C12, Datenblatt!$R:$R,">="&DE$8,Datenblatt!$R:$R,"<="&EOMONTH(DE$8,0)), "") -> 0 | DF12: =IF(ISNUMBER($C12), SUMIFS(Datenblatt!$M:$M, Datenblatt!$G:$G,$C12, Datenblatt!$R:$R,">="&DF$8,Datenblatt!$R:$R,"<="&EOMONTH(DF$8,0)) - SUMIFS(Datenblatt!$M:$M, Datenblatt!$E:$E,$C12, Datenblatt!$R:$R,">="&DF$8,Datenblatt!$R:$R,"<="&EOMONTH(DF$8,0)), "") -> 0
B13: 0 | C13: 3001 | D13: Bruttoertrag Barverkäufe Filiale | G13: =IF(ISNUMBER($C13), SUMIFS(Datenblatt!$M:$M, Datenblatt!$G:$G,$C13, Datenblatt!$R:$R,">="&G$8,Datenblatt!$R:$R,"<="&EOMONTH(G$8,11)) - SUMIFS(Datenblatt!$M:$M, Datenblatt!$E:$E,$C13, Datenblatt!$R:$R,">="&G$8,Datenblatt!$R:$R,"<="&EOMONTH(G$8,11)), "") -> 24876.98 | H13: =IF(ISNUMBER($C13), SUMIFS(Datenblatt!$M:$M, Datenblatt!$G:$G,$C13, Datenblatt!$R:$R,">="&H$8,Datenblatt!$R:$R,"<="&EOMONTH(H$8,11)) - SUMIFS(Datenblatt!$M:$M, Datenblatt!$E:$E,$C13, Datenblatt!$R:$R,">="&H$8,Datenblatt!$R:$R,"<="&EOMONTH(H$8,11)), "") -> 34647.07 | I13: =IF(ISNUMBER($C13), SUMIFS(Datenblatt!$M:$M, Datenblatt!$G:$G,$C13, Datenblatt!$R:$R,">="&I$8,Datenblatt!$R:$R,"<="&EOMONTH(I$8,11)) - SUMIFS(Datenblatt!$M:$M, Datenblatt!$E:$E,$C13, Datenblatt!$R:$R,">="&I$8,Datenblatt!$R:$R,"<="&EOMONTH(I$8,11)), "") -> 34915.11 | J13: =IF(ISNUMBER($C13), SUMIFS(Datenblatt!$M:$M, Datenblatt!$G:$G,$C13, Datenblatt!$R:$R,">="&J$8,Datenblatt!$R:$R,"<="&EOMONTH(J$8,11)) - SUMIFS(Datenblatt!$M:$M, Datenblatt!$E:$E,$C13, Datenblatt!$R:$R,">="&J$8,Datenblatt!$R:$R,"<="&EOMONTH(J$8,11)), "") -> 31433.25 | K13: =IF(ISNUMBER($C13), SUMIFS(Datenblatt!$M:$M, Datenblatt!$G:$G,$C13, Datenblatt!$R:$R,">="&K$8,Datenblatt!$R:$R,"<="&EOMONTH(K$8,11)) - SUMIFS(Datenblatt!$M:$M, Datenblatt!$E:$E,$C13, Datenblatt!$R:$R,">="&K$8,Datenblatt!$R:$R,"<="&EOMONTH(K$8,11)), "") -> 32595.5 | L13: =IF(ISNUMBER($C13), SUMIFS(Datenblatt!$M:$M, Datenblatt!$G:$G,$C13, Datenblatt!$R:$R,">="&L$8,Datenblatt!$R:$R,"<="&EOMONTH(L$8,11)) - SUMIFS(Datenblatt!$M:$M, Datenblatt!$E:$E,$C13, Datenblatt!$R:$R,">="&L$8,Datenblatt!$R:$R,"<="&EOMONTH(L$8,11)), "") -> 32762.28 | M13: =IF(ISNUMBER($C13), SUMIFS(Datenblatt!$M:$M, Datenblatt!$G:$G,$C13, Datenblatt!$R:$R,">="&M$8,Datenblatt!$R:$R,"<="&EOMONTH(M$8,11)) - SUMIFS(Datenblatt!$M:$M, Datenblatt!$E:$E,$C13, Datenblatt!$R:$R,">="&M$8,Datenblatt!$R:$R,"<="&EOMONTH(M$8,11)), "") -> 0 | N13: =IF(ISNUMBER($C13), SUMIFS(Datenblatt!$M:$M, Datenblatt!$G:$G,$C13, Datenblatt!$R:$R,">="&N$8,Datenblatt!$R:$R,"<="&EOMONTH(N$8,11)) - SUMIFS(Datenblatt!$M:$M, Datenblatt!$E:$E,$C13, Datenblatt!$R:$R,">="&N$8,Datenblatt!$R:$R,"<="&EOMONTH(N$8,11)), "") -> 0 | O13: =IF(ISNUMBER($C13), SUMIFS(Datenblatt!$M:$M, Datenblatt!$G:$G,$C13, Datenblatt!$R:$R,">="&O$8,Datenblatt!$R:$R,"<="&EOMONTH(O$8,0)) - SUMIFS(Datenblatt!$M:$M, Datenblatt!$E:$E,$C13, Datenblatt!$R:$R,">="&O$8,Datenblatt!$R:$R,"<="&EOMONTH(O$8,0)), "") -> 1314.55 | P13: =IF(ISNUMBER($C13), SUMIFS(Datenblatt!$M:$M, Datenblatt!$G:$G,$C13, Datenblatt!$R:$R,">="&P$8,Datenblatt!$R:$R,"<="&EOMONTH(P$8,0)) - SUMIFS(Datenblatt!$M:$M, Datenblatt!$E:$E,$C13, Datenblatt!$R:$R,">="&P$8,Datenblatt!$R:$R,"<="&EOMONTH(P$8,0)), "") -> 0 | Q13: =IF(ISNUMBER($C13), SUMIFS(Datenblatt!$M:$M, Datenblatt!$G:$G,$C13, Datenblatt!$R:$R,">="&Q$8,Datenblatt!$R:$R,"<="&EOMONTH(Q$8,0)) - SUMIFS(Datenblatt!$M:$M, Datenblatt!$E:$E,$C13, Datenblatt!$R:$R,">="&Q$8,Datenblatt!$R:$R,"<="&EOMONTH(Q$8,0)), "") -> 2120.02 | R13: =IF(ISNUMBER($C13), SUMIFS(Datenblatt!$M:$M, Datenblatt!$G:$G,$C13, Datenblatt!$R:$R,">="&R$8,Datenblatt!$R:$R,"<="&EOMONTH(R$8,0)) - SUMIFS(Datenblatt!$M:$M, Datenblatt!$E:$E,$C13, Datenblatt!$R:$R,">="&R$8,Datenblatt!$R:$R,"<="&EOMONTH(R$8,0)), "") -> 3363.53 | S13: =IF(ISNUMBER($C13), SUMIFS(Datenblatt!$M:$M, Datenblatt!$G:$G,$C13, Datenblatt!$R:$R,">="&S$8,Datenblatt!$R:$R,"<="&EOMONTH(S$8,0)) - SUMIFS(Datenblatt!$M:$M, Datenblatt!$E:$E,$C13, Datenblatt!$R:$R,">="&S$8,Datenblatt!$R:$R,"<="&EOMONTH(S$8,0)), "") -> 1511.82 | T13: =IF(ISNUMBER($C13), SUMIFS(Datenblatt!$M:$M, Datenblatt!$G:$G,$C13, Datenblatt!$R:$R,">="&T$8,Datenblatt!$R:$R,"<="&EOMONTH(T$8,0)) - SUMIFS(Datenblatt!$M:$M, Datenblatt!$E:$E,$C13, Datenblatt!$R:$R,">="&T$8,Datenblatt!$R:$R,"<="&EOMONTH(T$8,0)), "") -> 1542.61 | U13: =IF(ISNUMBER($C13), SUMIFS(Datenblatt!$M:$M, Datenblatt!$G:$G,$C13, Datenblatt!$R:$R,">="&U$8,Datenblatt!$R:$R,"<="&EOMONTH(U$8,0)) - SUMIFS(Datenblatt!$M:$M, Datenblatt!$E:$E,$C13, Datenblatt!$R:$R,">="&U$8,Datenblatt!$R:$R,"<="&EOMONTH(U$8,0)), "") -> 0 | V13: =IF(ISNUMBER($C13), SUMIFS(Datenblatt!$M:$M, Datenblatt!$G:$G,$C13, Datenblatt!$R:$R,">="&V$8,Datenblatt!$R:$R,"<="&EOMONTH(V$8,0)) - SUMIFS(Datenblatt!$M:$M, Datenblatt!$E:$E,$C13, Datenblatt!$R:$R,">="&V$8,Datenblatt!$R:$R,"<="&EOMONTH(V$8,0)), "") -> 5906.23 | W13: =IF(ISNUMBER($C13), SUMIFS(Datenblatt!$M:$M, Datenblatt!$G:$G,$C13, Datenblatt!$R:$R,">="&W$8,Datenblatt!$R:$R,"<="&EOMONTH(W$8,0)) - SUMIFS(Datenblatt!$M:$M, Datenblatt!$E:$E,$C13, Datenblatt!$R:$R,">="&W$8,Datenblatt!$R:$R,"<="&EOMONTH(W$8,0)), "") -> 1344.67 | X13: =IF(ISNUMBER($C13), SUMIFS(Datenblatt!$M:$M, Datenblatt!$G:$G,$C13, Datenblatt!$R:$R,">="&X$8,Datenblatt!$R:$R,"<="&EOMONTH(X$8,0)) - SUMIFS(Datenblatt!$M:$M, Datenblatt!$E:$E,$C13, Datenblatt!$R:$R,">="&X$8,Datenblatt!$R:$R,"<="&EOMONTH(X$8,0)), "") -> 0 | Y13: =IF(ISNUMBER($C13), SUMIFS(Datenblatt!$M:$M, Datenblatt!$G:$G,$C13, Datenblatt!$R:$R,">="&Y$8,Datenblatt!$R:$R,"<="&EOMONTH(Y$8,0)) - SUMIFS(Datenblatt!$M:$M, Datenblatt!$E:$E,$C13, Datenblatt!$R:$R,">="&Y$8,Datenblatt!$R:$R,"<="&EOMONTH(Y$8,0)), "") -> 3370.79 | Z13: =IF(ISNUMBER($C13), SUMIFS(Datenblatt!$M:$M, Datenblatt!$G:$G,$C13, Datenblatt!$R:$R,">="&Z$8,Datenblatt!$R:$R,"<="&EOMONTH(Z$8,0)) - SUMIFS(Datenblatt!$M:$M, Datenblatt!$E:$E,$C13, Datenblatt!$R:$R,">="&Z$8,Datenblatt!$R:$R,"<="&EOMONTH(Z$8,0)), "") -> 4402.76 | AA13: =IF(ISNUMBER($C13), SUMIFS(Datenblatt!$M:$M, Datenblatt!$G:$G,$C13, Datenblatt!$R:$R,">="&AA$8,Datenblatt!$R:$R,"<="&EOMONTH(AA$8,0)) - SUMIFS(Datenblatt!$M:$M, Datenblatt!$E:$E,$C13, Datenblatt!$R:$R,">="&AA$8,Datenblatt!$R:$R,"<="&EOMONTH(AA$8,0)), "") -> 4427.65 | AB13: =IF(ISNUMBER($C13), SUMIFS(Datenblatt!$M:$M, Datenblatt!$G:$G,$C13, Datenblatt!$R:$R,">="&AB$8,Datenblatt!$R:$R,"<="&EOMONTH(AB$8,0)) - SUMIFS(Datenblatt!$M:$M, Datenblatt!$E:$E,$C13, Datenblatt!$R:$R,">="&AB$8,Datenblatt!$R:$R,"<="&EOMONTH(AB$8,0)), "") -> 1525.3 | AC13: =IF(ISNUMBER($C13), SUMIFS(Datenblatt!$M:$M, Datenblatt!$G:$G,$C13, Datenblatt!$R:$R,">="&AC$8,Datenblatt!$R:$R,"<="&EOMONTH(AC$8,0)) - SUMIFS(Datenblatt!$M:$M, Datenblatt!$E:$E,$C13, Datenblatt!$R:$R,">="&AC$8,Datenblatt!$R:$R,"<="&EOMONTH(AC$8,0)), "") -> 5919.37 | AD13: =IF(ISNUMBER($C13), SUMIFS(Datenblatt!$M:$M, Datenblatt!$G:$G,$C13, Datenblatt!$R:$R,">="&AD$8,Datenblatt!$R:$R,"<="&EOMONTH(AD$8,0)) - SUMIFS(Datenblatt!$M:$M, Datenblatt!$E:$E,$C13, Datenblatt!$R:$R,">="&AD$8,Datenblatt!$R:$R,"<="&EOMONTH(AD$8,0)), "") -> 3815.35 | AE13: =IF(ISNUMBER($C13), SUMIFS(Datenblatt!$M:$M, Datenblatt!$G:$G,$C13, Datenblatt!$R:$R,">="&AE$8,Datenblatt!$R:$R,"<="&EOMONTH(AE$8,0)) - SUMIFS(Datenblatt!$M:$M, Datenblatt!$E:$E,$C13, Datenblatt!$R:$R,">="&AE$8,Datenblatt!$R:$R,"<="&EOMONTH(AE$8,0)), "") -> 0 | AF13: =IF(ISNUMBER($C13), SUMIFS(Datenblatt!$M:$M, Datenblatt!$G:$G,$C13, Datenblatt!$R:$R,">="&AF$8,Datenblatt!$R:$R,"<="&EOMONTH(AF$8,0)) - SUMIFS(Datenblatt!$M:$M, Datenblatt!$E:$E,$C13, Datenblatt!$R:$R,">="&AF$8,Datenblatt!$R:$R,"<="&EOMONTH(AF$8,0)), "") -> 0 | AG13: =IF(ISNUMBER($C13), SUMIFS(Datenblatt!$M:$M, Datenblatt!$G:$G,$C13, Datenblatt!$R:$R,">="&AG$8,Datenblatt!$R:$R,"<="&EOMONTH(AG$8,0)) - SUMIFS(Datenblatt!$M:$M, Datenblatt!$E:$E,$C13, Datenblatt!$R:$R,">="&AG$8,Datenblatt!$R:$R,"<="&EOMONTH(AG$8,0)), "") -> 1190.79 | AH13: =IF(ISNUMBER($C13), SUMIFS(Datenblatt!$M:$M, Datenblatt!$G:$G,$C13, Datenblatt!$R:$R,">="&AH$8,Datenblatt!$R:$R,"<="&EOMONTH(AH$8,0)) - SUMIFS(Datenblatt!$M:$M, Datenblatt!$E:$E,$C13, Datenblatt!$R:$R,">="&AH$8,Datenblatt!$R:$R,"<="&EOMONTH(AH$8,0)), "") -> 3430.34 | AI13: =IF(ISNUMBER($C13), SUMIFS(Datenblatt!$M:$M, Datenblatt!$G:$G,$C13, Datenblatt!$R:$R,">="&AI$8,Datenblatt!$R:$R,"<="&EOMONTH(AI$8,0)) - SUMIFS(Datenblatt!$M:$M, Datenblatt!$E:$E,$C13, Datenblatt!$R:$R,">="&AI$8,Datenblatt!$R:$R,"<="&EOMONTH(AI$8,0)), "") -> 0 | AJ13: =IF(ISNUMBER($C13), SUMIFS(Datenblatt!$M:$M, Datenblatt!$G:$G,$C13, Datenblatt!$R:$R,">="&AJ$8,Datenblatt!$R:$R,"<="&EOMONTH(AJ$8,0)) - SUMIFS(Datenblatt!$M:$M, Datenblatt!$E:$E,$C13, Datenblatt!$R:$R,">="&AJ$8,Datenblatt!$R:$R,"<="&EOMONTH(AJ$8,0)), "") -> 4615.63 | AK13: =IF(ISNUMBER($C13), SUMIFS(Datenblatt!$M:$M, Datenblatt!$G:$G,$C13, Datenblatt!$R:$R,">="&AK$8,Datenblatt!$R:$R,"<="&EOMONTH(AK$8,0)) - SUMIFS(Datenblatt!$M:$M, Datenblatt!$E:$E,$C13, Datenblatt!$R:$R,">="&AK$8,Datenblatt!$R:$R,"<="&EOMONTH(AK$8,0)), "") -> 3464.19 | AL13: =IF(ISNUMBER($C13), SUMIFS(Datenblatt!$M:$M, Datenblatt!$G:$G,$C13, Datenblatt!$R:$R,">="&AL$8,Datenblatt!$R:$R,"<="&EOMONTH(AL$8,0)) - SUMIFS(Datenblatt!$M:$M, Datenblatt!$E:$E,$C13, Datenblatt!$R:$R,">="&AL$8,Datenblatt!$R:$R,"<="&EOMONTH(AL$8,0)), "") -> 6258.45 | AM13: =IF(ISNUMBER($C13), SUMIFS(Datenblatt!$M:$M, Datenblatt!$G:$G,$C13, Datenblatt!$R:$R,">="&AM$8,Datenblatt!$R:$R,"<="&EOMONTH(AM$8,0)) - SUMIFS(Datenblatt!$M:$M, Datenblatt!$E:$E,$C13, Datenblatt!$R:$R,">="&AM$8,Datenblatt!$R:$R,"<="&EOMONTH(AM$8,0)), "") -> 0 | AN13: =IF(ISNUMBER($C13), SUMIFS(Datenblatt!$M:$M, Datenblatt!$G:$G,$C13, Datenblatt!$R:$R,">="&AN$8,Datenblatt!$R:$R,"<="&EOMONTH(AN$8,0)) - SUMIFS(Datenblatt!$M:$M, Datenblatt!$E:$E,$C13, Datenblatt!$R:$R,">="&AN$8,Datenblatt!$R:$R,"<="&EOMONTH(AN$8,0)), "") -> 649.15 | AO13: =IF(ISNUMBER($C13), SUMIFS(Datenblatt!$M:$M, Datenblatt!$G:$G,$C13, Datenblatt!$R:$R,">="&AO$8,Datenblatt!$R:$R,"<="&EOMONTH(AO$8,0)) - SUMIFS(Datenblatt!$M:$M, Datenblatt!$E:$E,$C13, Datenblatt!$R:$R,">="&AO$8,Datenblatt!$R:$R,"<="&EOMONTH(AO$8,0)), "") -> 3760.25 | AP13: =IF(ISNUMBER($C13), SUMIFS(Datenblatt!$M:$M, Datenblatt!$G:$G,$C13, Datenblatt!$R:$R,">="&AP$8,Datenblatt!$R:$R,"<="&EOMONTH(AP$8,0)) - SUMIFS(Datenblatt!$M:$M, Datenblatt!$E:$E,$C13, Datenblatt!$R:$R,">="&AP$8,Datenblatt!$R:$R,"<="&EOMONTH(AP$8,0)), "") -> 0 | AQ13: =IF(ISNUMBER($C13), SUMIFS(Datenblatt!$M:$M, Datenblatt!$G:$G,$C13, Datenblatt!$R:$R,">="&AQ$8,Datenblatt!$R:$R,"<="&EOMONTH(AQ$8,0)) - SUMIFS(Datenblatt!$M:$M, Datenblatt!$E:$E,$C13, Datenblatt!$R:$R,">="&AQ$8,Datenblatt!$R:$R,"<="&EOMONTH(AQ$8,0)), "") -> 5524.71 | AR13: =IF(ISNUMBER($C13), SUMIFS(Datenblatt!$M:$M, Datenblatt!$G:$G,$C13, Datenblatt!$R:$R,">="&AR$8,Datenblatt!$R:$R,"<="&EOMONTH(AR$8,0)) - SUMIFS(Datenblatt!$M:$M, Datenblatt!$E:$E,$C13, Datenblatt!$R:$R,">="&AR$8,Datenblatt!$R:$R,"<="&EOMONTH(AR$8,0)), "") -> 2397.64 | AS13: =IF(ISNUMBER($C13), SUMIFS(Datenblatt!$M:$M, Datenblatt!$G:$G,$C13, Datenblatt!$R:$R,">="&AS$8,Datenblatt!$R:$R,"<="&EOMONTH(AS$8,0)) - SUMIFS(Datenblatt!$M:$M, Datenblatt!$E:$E,$C13, Datenblatt!$R:$R,">="&AS$8,Datenblatt!$R:$R,"<="&EOMONTH(AS$8,0)), "") -> 0 | AT13: =IF(ISNUMBER($C13), SUMIFS(Datenblatt!$M:$M, Datenblatt!$G:$G,$C13, Datenblatt!$R:$R,">="&AT$8,Datenblatt!$R:$R,"<="&EOMONTH(AT$8,0)) - SUMIFS(Datenblatt!$M:$M, Datenblatt!$E:$E,$C13, Datenblatt!$R:$R,">="&AT$8,Datenblatt!$R:$R,"<="&EOMONTH(AT$8,0)), "") -> 13362.35 | AU13: =IF(ISNUMBER($C13), SUMIFS(Datenblatt!$M:$M, Datenblatt!$G:$G,$C13, Datenblatt!$R:$R,">="&AU$8,Datenblatt!$R:$R,"<="&EOMONTH(AU$8,0)) - SUMIFS(Datenblatt!$M:$M, Datenblatt!$E:$E,$C13, Datenblatt!$R:$R,">="&AU$8,Datenblatt!$R:$R,"<="&EOMONTH(AU$8,0)), "") -> 4890.9 | AV13: =IF(ISNUMBER($C13), SUMIFS(Datenblatt!$M:$M, Datenblatt!$G:$G,$C13, Datenblatt!$R:$R,">="&AV$8,Datenblatt!$R:$R,"<="&EOMONTH(AV$8,0)) - SUMIFS(Datenblatt!$M:$M, Datenblatt!$E:$E,$C13, Datenblatt!$R:$R,">="&AV$8,Datenblatt!$R:$R,"<="&EOMONTH(AV$8,0)), "") -> 0 | AW13: =IF(ISNUMBER($C13), SUMIFS(Datenblatt!$M:$M, Datenblatt!$G:$G,$C13, Datenblatt!$R:$R,">="&AW$8,Datenblatt!$R:$R,"<="&EOMONTH(AW$8,0)) - SUMIFS(Datenblatt!$M:$M, Datenblatt!$E:$E,$C13, Datenblatt!$R:$R,">="&AW$8,Datenblatt!$R:$R,"<="&EOMONTH(AW$8,0)), "") -> 4330.11 | AX13: =IF(ISNUMBER($C13), SUMIFS(Datenblatt!$M:$M, Datenblatt!$G:$G,$C13, Datenblatt!$R:$R,">="&AX$8,Datenblatt!$R:$R,"<="&EOMONTH(AX$8,0)) - SUMIFS(Datenblatt!$M:$M, Datenblatt!$E:$E,$C13, Datenblatt!$R:$R,">="&AX$8,Datenblatt!$R:$R,"<="&EOMONTH(AX$8,0)), "") -> 0 | AY13: =IF(ISNUMBER($C13), SUMIFS(Datenblatt!$M:$M, Datenblatt!$G:$G,$C13, Datenblatt!$R:$R,">="&AY$8,Datenblatt!$R:$R,"<="&EOMONTH(AY$8,0)) - SUMIFS(Datenblatt!$M:$M, Datenblatt!$E:$E,$C13, Datenblatt!$R:$R,">="&AY$8,Datenblatt!$R:$R,"<="&EOMONTH(AY$8,0)), "") -> 0 | AZ13: =IF(ISNUMBER($C13), SUMIFS(Datenblatt!$M:$M, Datenblatt!$G:$G,$C13, Datenblatt!$R:$R,">="&AZ$8,Datenblatt!$R:$R,"<="&EOMONTH(AZ$8,0)) - SUMIFS(Datenblatt!$M:$M, Datenblatt!$E:$E,$C13, Datenblatt!$R:$R,">="&AZ$8,Datenblatt!$R:$R,"<="&EOMONTH(AZ$8,0)), "") -> 0 | BA13: =IF(ISNUMBER($C13), SUMIFS(Datenblatt!$M:$M, Datenblatt!$G:$G,$C13, Datenblatt!$R:$R,">="&BA$8,Datenblatt!$R:$R,"<="&EOMONTH(BA$8,0)) - SUMIFS(Datenblatt!$M:$M, Datenblatt!$E:$E,$C13, Datenblatt!$R:$R,">="&BA$8,Datenblatt!$R:$R,"<="&EOMONTH(BA$8,0)), "") -> 2486.27 | BB13: =IF(ISNUMBER($C13), SUMIFS(Datenblatt!$M:$M, Datenblatt!$G:$G,$C13, Datenblatt!$R:$R,">="&BB$8,Datenblatt!$R:$R,"<="&EOMONTH(BB$8,0)) - SUMIFS(Datenblatt!$M:$M, Datenblatt!$E:$E,$C13, Datenblatt!$R:$R,">="&BB$8,Datenblatt!$R:$R,"<="&EOMONTH(BB$8,0)), "") -> 0 | BC13: =IF(ISNUMBER($C13), SUMIFS(Datenblatt!$M:$M, Datenblatt!$G:$G,$C13, Datenblatt!$R:$R,">="&BC$8,Datenblatt!$R:$R,"<="&EOMONTH(BC$8,0)) - SUMIFS(Datenblatt!$M:$M, Datenblatt!$E:$E,$C13, Datenblatt!$R:$R,">="&BC$8,Datenblatt!$R:$R,"<="&EOMONTH(BC$8,0)), "") -> 1770.76 | BD13: =IF(ISNUMBER($C13), SUMIFS(Datenblatt!$M:$M, Datenblatt!$G:$G,$C13, Datenblatt!$R:$R,">="&BD$8,Datenblatt!$R:$R,"<="&EOMONTH(BD$8,0)) - SUMIFS(Datenblatt!$M:$M, Datenblatt!$E:$E,$C13, Datenblatt!$R:$R,">="&BD$8,Datenblatt!$R:$R,"<="&EOMONTH(BD$8,0)), "") -> 0 | BE13: =IF(ISNUMBER($C13), SUMIFS(Datenblatt!$M:$M, Datenblatt!$G:$G,$C13, Datenblatt!$R:$R,">="&BE$8,Datenblatt!$R:$R,"<="&EOMONTH(BE$8,0)) - SUMIFS(Datenblatt!$M:$M, Datenblatt!$E:$E,$C13, Datenblatt!$R:$R,">="&BE$8,Datenblatt!$R:$R,"<="&EOMONTH(BE$8,0)), "") -> 8974.57 | BF13: =IF(ISNUMBER($C13), SUMIFS(Datenblatt!$M:$M, Datenblatt!$G:$G,$C13, Datenblatt!$R:$R,">="&BF$8,Datenblatt!$R:$R,"<="&EOMONTH(BF$8,0)) - SUMIFS(Datenblatt!$M:$M, Datenblatt!$E:$E,$C13, Datenblatt!$R:$R,">="&BF$8,Datenblatt!$R:$R,"<="&EOMONTH(BF$8,0)), "") -> 5668.73 | BG13: =IF(ISNUMBER($C13), SUMIFS(Datenblatt!$M:$M, Datenblatt!$G:$G,$C13, Datenblatt!$R:$R,">="&BG$8,Datenblatt!$R:$R,"<="&EOMONTH(BG$8,0)) - SUMIFS(Datenblatt!$M:$M, Datenblatt!$E:$E,$C13, Datenblatt!$R:$R,">="&BG$8,Datenblatt!$R:$R,"<="&EOMONTH(BG$8,0)), "") -> 0 | BH13: =IF(ISNUMBER($C13), SUMIFS(Datenblatt!$M:$M, Datenblatt!$G:$G,$C13, Datenblatt!$R:$R,">="&BH$8,Datenblatt!$R:$R,"<="&EOMONTH(BH$8,0)) - SUMIFS(Datenblatt!$M:$M, Datenblatt!$E:$E,$C13, Datenblatt!$R:$R,">="&BH$8,Datenblatt!$R:$R,"<="&EOMONTH(BH$8,0)), "") -> 0 | BI13: =IF(ISNUMBER($C13), SUMIFS(Datenblatt!$M:$M, Datenblatt!$G:$G,$C13, Datenblatt!$R:$R,">="&BI$8,Datenblatt!$R:$R,"<="&EOMONTH(BI$8,0)) - SUMIFS(Datenblatt!$M:$M, Datenblatt!$E:$E,$C13, Datenblatt!$R:$R,">="&BI$8,Datenblatt!$R:$R,"<="&EOMONTH(BI$8,0)), "") -> 8308.73 | BJ13: =IF(ISNUMBER($C13), SUMIFS(Datenblatt!$M:$M, Datenblatt!$G:$G,$C13, Datenblatt!$R:$R,">="&BJ$8,Datenblatt!$R:$R,"<="&EOMONTH(BJ$8,0)) - SUMIFS(Datenblatt!$M:$M, Datenblatt!$E:$E,$C13, Datenblatt!$R:$R,">="&BJ$8,Datenblatt!$R:$R,"<="&EOMONTH(BJ$8,0)), "") -> 4224.19 | BK13: =IF(ISNUMBER($C13), SUMIFS(Datenblatt!$M:$M, Datenblatt!$G:$G,$C13, Datenblatt!$R:$R,">="&BK$8,Datenblatt!$R:$R,"<="&EOMONTH(BK$8,0)) - SUMIFS(Datenblatt!$M:$M, Datenblatt!$E:$E,$C13, Datenblatt!$R:$R,">="&BK$8,Datenblatt!$R:$R,"<="&EOMONTH(BK$8,0)), "") -> 0 | BL13: =IF(ISNUMBER($C13), SUMIFS(Datenblatt!$M:$M, Datenblatt!$G:$G,$C13, Datenblatt!$R:$R,">="&BL$8,Datenblatt!$R:$R,"<="&EOMONTH(BL$8,0)) - SUMIFS(Datenblatt!$M:$M, Datenblatt!$E:$E,$C13, Datenblatt!$R:$R,">="&BL$8,Datenblatt!$R:$R,"<="&EOMONTH(BL$8,0)), "") -> 0 | BM13: =IF(ISNUMBER($C13), SUMIFS(Datenblatt!$M:$M, Datenblatt!$G:$G,$C13, Datenblatt!$R:$R,">="&BM$8,Datenblatt!$R:$R,"<="&EOMONTH(BM$8,0)) - SUMIFS(Datenblatt!$M:$M, Datenblatt!$E:$E,$C13, Datenblatt!$R:$R,">="&BM$8,Datenblatt!$R:$R,"<="&EOMONTH(BM$8,0)), "") -> 6080.15 | BN13: =IF(ISNUMBER($C13), SUMIFS(Datenblatt!$M:$M, Datenblatt!$G:$G,$C13, Datenblatt!$R:$R,">="&BN$8,Datenblatt!$R:$R,"<="&EOMONTH(BN$8,0)) - SUMIFS(Datenblatt!$M:$M, Datenblatt!$E:$E,$C13, Datenblatt!$R:$R,">="&BN$8,Datenblatt!$R:$R,"<="&EOMONTH(BN$8,0)), "") -> 3354.02 | BO13: =IF(ISNUMBER($C13), SUMIFS(Datenblatt!$M:$M, Datenblatt!$G:$G,$C13, Datenblatt!$R:$R,">="&BO$8,Datenblatt!$R:$R,"<="&EOMONTH(BO$8,0)) - SUMIFS(Datenblatt!$M:$M, Datenblatt!$E:$E,$C13, Datenblatt!$R:$R,">="&BO$8,Datenblatt!$R:$R,"<="&EOMONTH(BO$8,0)), "") -> 0 | BP13: =IF(ISNUMBER($C13), SUMIFS(Datenblatt!$M:$M, Datenblatt!$G:$G,$C13, Datenblatt!$R:$R,">="&BP$8,Datenblatt!$R:$R,"<="&EOMONTH(BP$8,0)) - SUMIFS(Datenblatt!$M:$M, Datenblatt!$E:$E,$C13, Datenblatt!$R:$R,">="&BP$8,Datenblatt!$R:$R,"<="&EOMONTH(BP$8,0)), "") -> 0 | BQ13: =IF(ISNUMBER($C13), SUMIFS(Datenblatt!$M:$M, Datenblatt!$G:$G,$C13, Datenblatt!$R:$R,">="&BQ$8,Datenblatt!$R:$R,"<="&EOMONTH(BQ$8,0)) - SUMIFS(Datenblatt!$M:$M, Datenblatt!$E:$E,$C13, Datenblatt!$R:$R,">="&BQ$8,Datenblatt!$R:$R,"<="&EOMONTH(BQ$8,0)), "") -> 5742.29 | BR13: =IF(ISNUMBER($C13), SUMIFS(Datenblatt!$M:$M, Datenblatt!$G:$G,$C13, Datenblatt!$R:$R,">="&BR$8,Datenblatt!$R:$R,"<="&EOMONTH(BR$8,0)) - SUMIFS(Datenblatt!$M:$M, Datenblatt!$E:$E,$C13, Datenblatt!$R:$R,">="&BR$8,Datenblatt!$R:$R,"<="&EOMONTH(BR$8,0)), "") -> 1199.03 | BS13: =IF(ISNUMBER($C13), SUMIFS(Datenblatt!$M:$M, Datenblatt!$G:$G,$C13, Datenblatt!$R:$R,">="&BS$8,Datenblatt!$R:$R,"<="&EOMONTH(BS$8,0)) - SUMIFS(Datenblatt!$M:$M, Datenblatt!$E:$E,$C13, Datenblatt!$R:$R,">="&BS$8,Datenblatt!$R:$R,"<="&EOMONTH(BS$8,0)), "") -> 0 | BT13: =IF(ISNUMBER($C13), SUMIFS(Datenblatt!$M:$M, Datenblatt!$G:$G,$C13, Datenblatt!$R:$R,">="&BT$8,Datenblatt!$R:$R,"<="&EOMONTH(BT$8,0)) - SUMIFS(Datenblatt!$M:$M, Datenblatt!$E:$E,$C13, Datenblatt!$R:$R,">="&BT$8,Datenblatt!$R:$R,"<="&EOMONTH(BT$8,0)), "") -> 3586.15 | BU13: =IF(ISNUMBER($C13), SUMIFS(Datenblatt!$M:$M, Datenblatt!$G:$G,$C13, Datenblatt!$R:$R,">="&BU$8,Datenblatt!$R:$R,"<="&EOMONTH(BU$8,0)) - SUMIFS(Datenblatt!$M:$M, Datenblatt!$E:$E,$C13, Datenblatt!$R:$R,">="&BU$8,Datenblatt!$R:$R,"<="&EOMONTH(BU$8,0)), "") -> 8604.53 | BV13: =IF(ISNUMBER($C13), SUMIFS(Datenblatt!$M:$M, Datenblatt!$G:$G,$C13, Datenblatt!$R:$R,">="&BV$8,Datenblatt!$R:$R,"<="&EOMONTH(BV$8,0)) - SUMIFS(Datenblatt!$M:$M, Datenblatt!$E:$E,$C13, Datenblatt!$R:$R,">="&BV$8,Datenblatt!$R:$R,"<="&EOMONTH(BV$8,0)), "") -> 4029.33 | BW13: =IF(ISNUMBER($C13), SUMIFS(Datenblatt!$M:$M, Datenblatt!$G:$G,$C13, Datenblatt!$R:$R,">="&BW$8,Datenblatt!$R:$R,"<="&EOMONTH(BW$8,0)) - SUMIFS(Datenblatt!$M:$M, Datenblatt!$E:$E,$C13, Datenblatt!$R:$R,">="&BW$8,Datenblatt!$R:$R,"<="&EOMONTH(BW$8,0)), "") -> 1540.13 | BX13: =IF(ISNUMBER($C13), SUMIFS(Datenblatt!$M:$M, Datenblatt!$G:$G,$C13, Datenblatt!$R:$R,">="&BX$8,Datenblatt!$R:$R,"<="&EOMONTH(BX$8,0)) - SUMIFS(Datenblatt!$M:$M, Datenblatt!$E:$E,$C13, Datenblatt!$R:$R,">="&BX$8,Datenblatt!$R:$R,"<="&EOMONTH(BX$8,0)), "") -> 0 | BY13: =IF(ISNUMBER($C13), SUMIFS(Datenblatt!$M:$M, Datenblatt!$G:$G,$C13, Datenblatt!$R:$R,">="&BY$8,Datenblatt!$R:$R,"<="&EOMONTH(BY$8,0)) - SUMIFS(Datenblatt!$M:$M, Datenblatt!$E:$E,$C13, Datenblatt!$R:$R,">="&BY$8,Datenblatt!$R:$R,"<="&EOMONTH(BY$8,0)), "") -> 13886.95 | BZ13: =IF(ISNUMBER($C13), SUMIFS(Datenblatt!$M:$M, Datenblatt!$G:$G,$C13, Datenblatt!$R:$R,">="&BZ$8,Datenblatt!$R:$R,"<="&EOMONTH(BZ$8,0)) - SUMIFS(Datenblatt!$M:$M, Datenblatt!$E:$E,$C13, Datenblatt!$R:$R,">="&BZ$8,Datenblatt!$R:$R,"<="&EOMONTH(BZ$8,0)), "") -> 0 | CA13: =IF(ISNUMBER($C13), SUMIFS(Datenblatt!$M:$M, Datenblatt!$G:$G,$C13, Datenblatt!$R:$R,">="&CA$8,Datenblatt!$R:$R,"<="&EOMONTH(CA$8,0)) - SUMIFS(Datenblatt!$M:$M, Datenblatt!$E:$E,$C13, Datenblatt!$R:$R,">="&CA$8,Datenblatt!$R:$R,"<="&EOMONTH(CA$8,0)), "") -> 1233.31 | CB13: =IF(ISNUMBER($C13), SUMIFS(Datenblatt!$M:$M, Datenblatt!$G:$G,$C13, Datenblatt!$R:$R,">="&CB$8,Datenblatt!$R:$R,"<="&EOMONTH(CB$8,0)) - SUMIFS(Datenblatt!$M:$M, Datenblatt!$E:$E,$C13, Datenblatt!$R:$R,">="&CB$8,Datenblatt!$R:$R,"<="&EOMONTH(CB$8,0)), "") -> 3218.37 | CC13: =IF(ISNUMBER($C13), SUMIFS(Datenblatt!$M:$M, Datenblatt!$G:$G,$C13, Datenblatt!$R:$R,">="&CC$8,Datenblatt!$R:$R,"<="&EOMONTH(CC$8,0)) - SUMIFS(Datenblatt!$M:$M, Datenblatt!$E:$E,$C13, Datenblatt!$R:$R,">="&CC$8,Datenblatt!$R:$R,"<="&EOMONTH(CC$8,0)), "") -> 5797.77 | CD13: =IF(ISNUMBER($C13), SUMIFS(Datenblatt!$M:$M, Datenblatt!$G:$G,$C13, Datenblatt!$R:$R,">="&CD$8,Datenblatt!$R:$R,"<="&EOMONTH(CD$8,0)) - SUMIFS(Datenblatt!$M:$M, Datenblatt!$E:$E,$C13, Datenblatt!$R:$R,">="&CD$8,Datenblatt!$R:$R,"<="&EOMONTH(CD$8,0)), "") -> 0 | CE13: =IF(ISNUMBER($C13), SUMIFS(Datenblatt!$M:$M, Datenblatt!$G:$G,$C13, Datenblatt!$R:$R,">="&CE$8,Datenblatt!$R:$R,"<="&EOMONTH(CE$8,0)) - SUMIFS(Datenblatt!$M:$M, Datenblatt!$E:$E,$C13, Datenblatt!$R:$R,">="&CE$8,Datenblatt!$R:$R,"<="&EOMONTH(CE$8,0)), "") -> 0 | CF13: =IF(ISNUMBER($C13), SUMIFS(Datenblatt!$M:$M, Datenblatt!$G:$G,$C13, Datenblatt!$R:$R,">="&CF$8,Datenblatt!$R:$R,"<="&EOMONTH(CF$8,0)) - SUMIFS(Datenblatt!$M:$M, Datenblatt!$E:$E,$C13, Datenblatt!$R:$R,">="&CF$8,Datenblatt!$R:$R,"<="&EOMONTH(CF$8,0)), "") -> 5861.92 | CG13: =IF(ISNUMBER($C13), SUMIFS(Datenblatt!$M:$M, Datenblatt!$G:$G,$C13, Datenblatt!$R:$R,">="&CG$8,Datenblatt!$R:$R,"<="&EOMONTH(CG$8,0)) - SUMIFS(Datenblatt!$M:$M, Datenblatt!$E:$E,$C13, Datenblatt!$R:$R,">="&CG$8,Datenblatt!$R:$R,"<="&EOMONTH(CG$8,0)), "") -> 0 | CH13: =IF(ISNUMBER($C13), SUMIFS(Datenblatt!$M:$M, Datenblatt!$G:$G,$C13, Datenblatt!$R:$R,">="&CH$8,Datenblatt!$R:$R,"<="&EOMONTH(CH$8,0)) - SUMIFS(Datenblatt!$M:$M, Datenblatt!$E:$E,$C13, Datenblatt!$R:$R,">="&CH$8,Datenblatt!$R:$R,"<="&EOMONTH(CH$8,0)), "") -> 1223.83 | CI13: =IF(ISNUMBER($C13), SUMIFS(Datenblatt!$M:$M, Datenblatt!$G:$G,$C13, Datenblatt!$R:$R,">="&CI$8,Datenblatt!$R:$R,"<="&EOMONTH(CI$8,0)) - SUMIFS(Datenblatt!$M:$M, Datenblatt!$E:$E,$C13, Datenblatt!$R:$R,">="&CI$8,Datenblatt!$R:$R,"<="&EOMONTH(CI$8,0)), "") -> 0 | CJ13: =IF(ISNUMBER($C13), SUMIFS(Datenblatt!$M:$M, Datenblatt!$G:$G,$C13, Datenblatt!$R:$R,">="&CJ$8,Datenblatt!$R:$R,"<="&EOMONTH(CJ$8,0)) - SUMIFS(Datenblatt!$M:$M, Datenblatt!$E:$E,$C13, Datenblatt!$R:$R,">="&CJ$8,Datenblatt!$R:$R,"<="&EOMONTH(CJ$8,0)), "") -> 0 | CK13: =IF(ISNUMBER($C13), SUMIFS(Datenblatt!$M:$M, Datenblatt!$G:$G,$C13, Datenblatt!$R:$R,">="&CK$8,Datenblatt!$R:$R,"<="&EOMONTH(CK$8,0)) - SUMIFS(Datenblatt!$M:$M, Datenblatt!$E:$E,$C13, Datenblatt!$R:$R,">="&CK$8,Datenblatt!$R:$R,"<="&EOMONTH(CK$8,0)), "") -> 0 | CL13: =IF(ISNUMBER($C13), SUMIFS(Datenblatt!$M:$M, Datenblatt!$G:$G,$C13, Datenblatt!$R:$R,">="&CL$8,Datenblatt!$R:$R,"<="&EOMONTH(CL$8,0)) - SUMIFS(Datenblatt!$M:$M, Datenblatt!$E:$E,$C13, Datenblatt!$R:$R,">="&CL$8,Datenblatt!$R:$R,"<="&EOMONTH(CL$8,0)), "") -> 0 | CM13: =IF(ISNUMBER($C13), SUMIFS(Datenblatt!$M:$M, Datenblatt!$G:$G,$C13, Datenblatt!$R:$R,">="&CM$8,Datenblatt!$R:$R,"<="&EOMONTH(CM$8,0)) - SUMIFS(Datenblatt!$M:$M, Datenblatt!$E:$E,$C13, Datenblatt!$R:$R,">="&CM$8,Datenblatt!$R:$R,"<="&EOMONTH(CM$8,0)), "") -> 0 | CN13: =IF(ISNUMBER($C13), SUMIFS(Datenblatt!$M:$M, Datenblatt!$G:$G,$C13, Datenblatt!$R:$R,">="&CN$8,Datenblatt!$R:$R,"<="&EOMONTH(CN$8,0)) - SUMIFS(Datenblatt!$M:$M, Datenblatt!$E:$E,$C13, Datenblatt!$R:$R,">="&CN$8,Datenblatt!$R:$R,"<="&EOMONTH(CN$8,0)), "") -> 0 | CO13: =IF(ISNUMBER($C13), SUMIFS(Datenblatt!$M:$M, Datenblatt!$G:$G,$C13, Datenblatt!$R:$R,">="&CO$8,Datenblatt!$R:$R,"<="&EOMONTH(CO$8,0)) - SUMIFS(Datenblatt!$M:$M, Datenblatt!$E:$E,$C13, Datenblatt!$R:$R,">="&CO$8,Datenblatt!$R:$R,"<="&EOMONTH(CO$8,0)), "") -> 0 | CP13: =IF(ISNUMBER($C13), SUMIFS(Datenblatt!$M:$M, Datenblatt!$G:$G,$C13, Datenblatt!$R:$R,">="&CP$8,Datenblatt!$R:$R,"<="&EOMONTH(CP$8,0)) - SUMIFS(Datenblatt!$M:$M, Datenblatt!$E:$E,$C13, Datenblatt!$R:$R,">="&CP$8,Datenblatt!$R:$R,"<="&EOMONTH(CP$8,0)), "") -> 0 | CQ13: =IF(ISNUMBER($C13), SUMIFS(Datenblatt!$M:$M, Datenblatt!$G:$G,$C13, Datenblatt!$R:$R,">="&CQ$8,Datenblatt!$R:$R,"<="&EOMONTH(CQ$8,0)) - SUMIFS(Datenblatt!$M:$M, Datenblatt!$E:$E,$C13, Datenblatt!$R:$R,">="&CQ$8,Datenblatt!$R:$R,"<="&EOMONTH(CQ$8,0)), "") -> 0 | CR13: =IF(ISNUMBER($C13), SUMIFS(Datenblatt!$M:$M, Datenblatt!$G:$G,$C13, Datenblatt!$R:$R,">="&CR$8,Datenblatt!$R:$R,"<="&EOMONTH(CR$8,0)) - SUMIFS(Datenblatt!$M:$M, Datenblatt!$E:$E,$C13, Datenblatt!$R:$R,">="&CR$8,Datenblatt!$R:$R,"<="&EOMONTH(CR$8,0)), "") -> 0 | CS13: =IF(ISNUMBER($C13), SUMIFS(Datenblatt!$M:$M, Datenblatt!$G:$G,$C13, Datenblatt!$R:$R,">="&CS$8,Datenblatt!$R:$R,"<="&EOMONTH(CS$8,0)) - SUMIFS(Datenblatt!$M:$M, Datenblatt!$E:$E,$C13, Datenblatt!$R:$R,">="&CS$8,Datenblatt!$R:$R,"<="&EOMONTH(CS$8,0)), "") -> 0 | CT13: =IF(ISNUMBER($C13), SUMIFS(Datenblatt!$M:$M, Datenblatt!$G:$G,$C13, Datenblatt!$R:$R,">="&CT$8,Datenblatt!$R:$R,"<="&EOMONTH(CT$8,0)) - SUMIFS(Datenblatt!$M:$M, Datenblatt!$E:$E,$C13, Datenblatt!$R:$R,">="&CT$8,Datenblatt!$R:$R,"<="&EOMONTH(CT$8,0)), "") -> 0 | CU13: =IF(ISNUMBER($C13), SUMIFS(Datenblatt!$M:$M, Datenblatt!$G:$G,$C13, Datenblatt!$R:$R,">="&CU$8,Datenblatt!$R:$R,"<="&EOMONTH(CU$8,0)) - SUMIFS(Datenblatt!$M:$M, Datenblatt!$E:$E,$C13, Datenblatt!$R:$R,">="&CU$8,Datenblatt!$R:$R,"<="&EOMONTH(CU$8,0)), "") -> 0 | CV13: =IF(ISNUMBER($C13), SUMIFS(Datenblatt!$M:$M, Datenblatt!$G:$G,$C13, Datenblatt!$R:$R,">="&CV$8,Datenblatt!$R:$R,"<="&EOMONTH(CV$8,0)) - SUMIFS(Datenblatt!$M:$M, Datenblatt!$E:$E,$C13, Datenblatt!$R:$R,">="&CV$8,Datenblatt!$R:$R,"<="&EOMONTH(CV$8,0)), "") -> 0 | CW13: =IF(ISNUMBER($C13), SUMIFS(Datenblatt!$M:$M, Datenblatt!$G:$G,$C13, Datenblatt!$R:$R,">="&CW$8,Datenblatt!$R:$R,"<="&EOMONTH(CW$8,0)) - SUMIFS(Datenblatt!$M:$M, Datenblatt!$E:$E,$C13, Datenblatt!$R:$R,">="&CW$8,Datenblatt!$R:$R,"<="&EOMONTH(CW$8,0)), "") -> 0 | CX13: =IF(ISNUMBER($C13), SUMIFS(Datenblatt!$M:$M, Datenblatt!$G:$G,$C13, Datenblatt!$R:$R,">="&CX$8,Datenblatt!$R:$R,"<="&EOMONTH(CX$8,0)) - SUMIFS(Datenblatt!$M:$M, Datenblatt!$E:$E,$C13, Datenblatt!$R:$R,">="&CX$8,Datenblatt!$R:$R,"<="&EOMONTH(CX$8,0)), "") -> 0 | CY13: =IF(ISNUMBER($C13), SUMIFS(Datenblatt!$M:$M, Datenblatt!$G:$G,$C13, Datenblatt!$R:$R,">="&CY$8,Datenblatt!$R:$R,"<="&EOMONTH(CY$8,0)) - SUMIFS(Datenblatt!$M:$M, Datenblatt!$E:$E,$C13, Datenblatt!$R:$R,">="&CY$8,Datenblatt!$R:$R,"<="&EOMONTH(CY$8,0)), "") -> 0 | CZ13: =IF(ISNUMBER($C13), SUMIFS(Datenblatt!$M:$M, Datenblatt!$G:$G,$C13, Datenblatt!$R:$R,">="&CZ$8,Datenblatt!$R:$R,"<="&EOMONTH(CZ$8,0)) - SUMIFS(Datenblatt!$M:$M, Datenblatt!$E:$E,$C13, Datenblatt!$R:$R,">="&CZ$8,Datenblatt!$R:$R,"<="&EOMONTH(CZ$8,0)), "") -> 0 | DA13: =IF(ISNUMBER($C13), SUMIFS(Datenblatt!$M:$M, Datenblatt!$G:$G,$C13, Datenblatt!$R:$R,">="&DA$8,Datenblatt!$R:$R,"<="&EOMONTH(DA$8,0)) - SUMIFS(Datenblatt!$M:$M, Datenblatt!$E:$E,$C13, Datenblatt!$R:$R,">="&DA$8,Datenblatt!$R:$R,"<="&EOMONTH(DA$8,0)), "") -> 0 | DB13: =IF(ISNUMBER($C13), SUMIFS(Datenblatt!$M:$M, Datenblatt!$G:$G,$C13, Datenblatt!$R:$R,">="&DB$8,Datenblatt!$R:$R,"<="&EOMONTH(DB$8,0)) - SUMIFS(Datenblatt!$M:$M, Datenblatt!$E:$E,$C13, Datenblatt!$R:$R,">="&DB$8,Datenblatt!$R:$R,"<="&EOMONTH(DB$8,0)), "") -> 0 | DC13: =IF(ISNUMBER($C13), SUMIFS(Datenblatt!$M:$M, Datenblatt!$G:$G,$C13, Datenblatt!$R:$R,">="&DC$8,Datenblatt!$R:$R,"<="&EOMONTH(DC$8,0)) - SUMIFS(Datenblatt!$M:$M, Datenblatt!$E:$E,$C13, Datenblatt!$R:$R,">="&DC$8,Datenblatt!$R:$R,"<="&EOMONTH(DC$8,0)), "") -> 0 | DD13: =IF(ISNUMBER($C13), SUMIFS(Datenblatt!$M:$M, Datenblatt!$G:$G,$C13, Datenblatt!$R:$R,">="&DD$8,Datenblatt!$R:$R,"<="&EOMONTH(DD$8,0)) - SUMIFS(Datenblatt!$M:$M, Datenblatt!$E:$E,$C13, Datenblatt!$R:$R,">="&DD$8,Datenblatt!$R:$R,"<="&EOMONTH(DD$8,0)), "") -> 0 | DE13: =IF(ISNUMBER($C13), SUMIFS(Datenblatt!$M:$M, Datenblatt!$G:$G,$C13, Datenblatt!$R:$R,">="&DE$8,Datenblatt!$R:$R,"<="&EOMONTH(DE$8,0)) - SUMIFS(Datenblatt!$M:$M, Datenblatt!$E:$E,$C13, Datenblatt!$R:$R,">="&DE$8,Datenblatt!$R:$R,"<="&EOMONTH(DE$8,0)), "") -> 0 | DF13: =IF(ISNUMBER($C13), SUMIFS(Datenblatt!$M:$M, Datenblatt!$G:$G,$C13, Datenblatt!$R:$R,">="&DF$8,Datenblatt!$R:$R,"<="&EOMONTH(DF$8,0)) - SUMIFS(Datenblatt!$M:$M, Datenblatt!$E:$E,$C13, Datenblatt!$R:$R,">="&DF$8,Datenblatt!$R:$R,"<="&EOMONTH(DF$8,0)), "") -> 0
B14: 0 | C14: 3005 | D14: Bruttoertrag Kreditverkäufe Detail | G14: =IF(ISNUMBER($C14), SUMIFS(Datenblatt!$M:$M, Datenblatt!$G:$G,$C14, Datenblatt!$R:$R,">="&G$8,Datenblatt!$R:$R,"<="&EOMONTH(G$8,11)) - SUMIFS(Datenblatt!$M:$M, Datenblatt!$E:$E,$C14, Datenblatt!$R:$R,">="&G$8,Datenblatt!$R:$R,"<="&EOMONTH(G$8,11)), "") -> 25791.39 | H14: =IF(ISNUMBER($C14), SUMIFS(Datenblatt!$M:$M, Datenblatt!$G:$G,$C14, Datenblatt!$R:$R,">="&H$8,Datenblatt!$R:$R,"<="&EOMONTH(H$8,11)) - SUMIFS(Datenblatt!$M:$M, Datenblatt!$E:$E,$C14, Datenblatt!$R:$R,">="&H$8,Datenblatt!$R:$R,"<="&EOMONTH(H$8,11)), "") -> 43175.02 | I14: =IF(ISNUMBER($C14), SUMIFS(Datenblatt!$M:$M, Datenblatt!$G:$G,$C14, Datenblatt!$R:$R,">="&I$8,Datenblatt!$R:$R,"<="&EOMONTH(I$8,11)) - SUMIFS(Datenblatt!$M:$M, Datenblatt!$E:$E,$C14, Datenblatt!$R:$R,">="&I$8,Datenblatt!$R:$R,"<="&EOMONTH(I$8,11)), "") -> 30216.72 | J14: =IF(ISNUMBER($C14), SUMIFS(Datenblatt!$M:$M, Datenblatt!$G:$G,$C14, Datenblatt!$R:$R,">="&J$8,Datenblatt!$R:$R,"<="&EOMONTH(J$8,11)) - SUMIFS(Datenblatt!$M:$M, Datenblatt!$E:$E,$C14, Datenblatt!$R:$R,">="&J$8,Datenblatt!$R:$R,"<="&EOMONTH(J$8,11)), "") -> 36196.52 | K14: =IF(ISNUMBER($C14), SUMIFS(Datenblatt!$M:$M, Datenblatt!$G:$G,$C14, Datenblatt!$R:$R,">="&K$8,Datenblatt!$R:$R,"<="&EOMONTH(K$8,11)) - SUMIFS(Datenblatt!$M:$M, Datenblatt!$E:$E,$C14, Datenblatt!$R:$R,">="&K$8,Datenblatt!$R:$R,"<="&EOMONTH(K$8,11)), "") -> 20809.93 | L14: =IF(ISNUMBER($C14), SUMIFS(Datenblatt!$M:$M, Datenblatt!$G:$G,$C14, Datenblatt!$R:$R,">="&L$8,Datenblatt!$R:$R,"<="&EOMONTH(L$8,11)) - SUMIFS(Datenblatt!$M:$M, Datenblatt!$E:$E,$C14, Datenblatt!$R:$R,">="&L$8,Datenblatt!$R:$R,"<="&EOMONTH(L$8,11)), "") -> 33500.65 | M14: =IF(ISNUMBER($C14), SUMIFS(Datenblatt!$M:$M, Datenblatt!$G:$G,$C14, Datenblatt!$R:$R,">="&M$8,Datenblatt!$R:$R,"<="&EOMONTH(M$8,11)) - SUMIFS(Datenblatt!$M:$M, Datenblatt!$E:$E,$C14, Datenblatt!$R:$R,">="&M$8,Datenblatt!$R:$R,"<="&EOMONTH(M$8,11)), "") -> 0 | N14: =IF(ISNUMBER($C14), SUMIFS(Datenblatt!$M:$M, Datenblatt!$G:$G,$C14, Datenblatt!$R:$R,">="&N$8,Datenblatt!$R:$R,"<="&EOMONTH(N$8,11)) - SUMIFS(Datenblatt!$M:$M, Datenblatt!$E:$E,$C14, Datenblatt!$R:$R,">="&N$8,Datenblatt!$R:$R,"<="&EOMONTH(N$8,11)), "") -> 0 | O14: =IF(ISNUMBER($C14), SUMIFS(Datenblatt!$M:$M, Datenblatt!$G:$G,$C14, Datenblatt!$R:$R,">="&O$8,Datenblatt!$R:$R,"<="&EOMONTH(O$8,0)) - SUMIFS(Datenblatt!$M:$M, Datenblatt!$E:$E,$C14, Datenblatt!$R:$R,">="&O$8,Datenblatt!$R:$R,"<="&EOMONTH(O$8,0)), "") -> 1165.17 | P14: =IF(ISNUMBER($C14), SUMIFS(Datenblatt!$M:$M, Datenblatt!$G:$G,$C14, Datenblatt!$R:$R,">="&P$8,Datenblatt!$R:$R,"<="&EOMONTH(P$8,0)) - SUMIFS(Datenblatt!$M:$M, Datenblatt!$E:$E,$C14, Datenblatt!$R:$R,">="&P$8,Datenblatt!$R:$R,"<="&EOMONTH(P$8,0)), "") -> 0 | Q14: =IF(ISNUMBER($C14), SUMIFS(Datenblatt!$M:$M, Datenblatt!$G:$G,$C14, Datenblatt!$R:$R,">="&Q$8,Datenblatt!$R:$R,"<="&EOMONTH(Q$8,0)) - SUMIFS(Datenblatt!$M:$M, Datenblatt!$E:$E,$C14, Datenblatt!$R:$R,">="&Q$8,Datenblatt!$R:$R,"<="&EOMONTH(Q$8,0)), "") -> 1771.56 | R14: =IF(ISNUMBER($C14), SUMIFS(Datenblatt!$M:$M, Datenblatt!$G:$G,$C14, Datenblatt!$R:$R,">="&R$8,Datenblatt!$R:$R,"<="&EOMONTH(R$8,0)) - SUMIFS(Datenblatt!$M:$M, Datenblatt!$E:$E,$C14, Datenblatt!$R:$R,">="&R$8,Datenblatt!$R:$R,"<="&EOMONTH(R$8,0)), "") -> 1971.86 | S14: =IF(ISNUMBER($C14), SUMIFS(Datenblatt!$M:$M, Datenblatt!$G:$G,$C14, Datenblatt!$R:$R,">="&S$8,Datenblatt!$R:$R,"<="&EOMONTH(S$8,0)) - SUMIFS(Datenblatt!$M:$M, Datenblatt!$E:$E,$C14, Datenblatt!$R:$R,">="&S$8,Datenblatt!$R:$R,"<="&EOMONTH(S$8,0)), "") -> 4476.82 | T14: =IF(ISNUMBER($C14), SUMIFS(Datenblatt!$M:$M, Datenblatt!$G:$G,$C14, Datenblatt!$R:$R,">="&T$8,Datenblatt!$R:$R,"<="&EOMONTH(T$8,0)) - SUMIFS(Datenblatt!$M:$M, Datenblatt!$E:$E,$C14, Datenblatt!$R:$R,">="&T$8,Datenblatt!$R:$R,"<="&EOMONTH(T$8,0)), "") -> 1338.42 | U14: =IF(ISNUMBER($C14), SUMIFS(Datenblatt!$M:$M, Datenblatt!$G:$G,$C14, Datenblatt!$R:$R,">="&U$8,Datenblatt!$R:$R,"<="&EOMONTH(U$8,0)) - SUMIFS(Datenblatt!$M:$M, Datenblatt!$E:$E,$C14, Datenblatt!$R:$R,">="&U$8,Datenblatt!$R:$R,"<="&EOMONTH(U$8,0)), "") -> 0 | V14: =IF(ISNUMBER($C14), SUMIFS(Datenblatt!$M:$M, Datenblatt!$G:$G,$C14, Datenblatt!$R:$R,">="&V$8,Datenblatt!$R:$R,"<="&EOMONTH(V$8,0)) - SUMIFS(Datenblatt!$M:$M, Datenblatt!$E:$E,$C14, Datenblatt!$R:$R,">="&V$8,Datenblatt!$R:$R,"<="&EOMONTH(V$8,0)), "") -> 0 | W14: =IF(ISNUMBER($C14), SUMIFS(Datenblatt!$M:$M, Datenblatt!$G:$G,$C14, Datenblatt!$R:$R,">="&W$8,Datenblatt!$R:$R,"<="&EOMONTH(W$8,0)) - SUMIFS(Datenblatt!$M:$M, Datenblatt!$E:$E,$C14, Datenblatt!$R:$R,">="&W$8,Datenblatt!$R:$R,"<="&EOMONTH(W$8,0)), "") -> 5088.35 | X14: =IF(ISNUMBER($C14), SUMIFS(Datenblatt!$M:$M, Datenblatt!$G:$G,$C14, Datenblatt!$R:$R,">="&X$8,Datenblatt!$R:$R,"<="&EOMONTH(X$8,0)) - SUMIFS(Datenblatt!$M:$M, Datenblatt!$E:$E,$C14, Datenblatt!$R:$R,">="&X$8,Datenblatt!$R:$R,"<="&EOMONTH(X$8,0)), "") -> 159.79 | Y14: =IF(ISNUMBER($C14), SUMIFS(Datenblatt!$M:$M, Datenblatt!$G:$G,$C14, Datenblatt!$R:$R,">="&Y$8,Datenblatt!$R:$R,"<="&EOMONTH(Y$8,0)) - SUMIFS(Datenblatt!$M:$M, Datenblatt!$E:$E,$C14, Datenblatt!$R:$R,">="&Y$8,Datenblatt!$R:$R,"<="&EOMONTH(Y$8,0)), "") -> 4150.28 | Z14: =IF(ISNUMBER($C14), SUMIFS(Datenblatt!$M:$M, Datenblatt!$G:$G,$C14, Datenblatt!$R:$R,">="&Z$8,Datenblatt!$R:$R,"<="&EOMONTH(Z$8,0)) - SUMIFS(Datenblatt!$M:$M, Datenblatt!$E:$E,$C14, Datenblatt!$R:$R,">="&Z$8,Datenblatt!$R:$R,"<="&EOMONTH(Z$8,0)), "") -> 5669.14 | AA14: =IF(ISNUMBER($C14), SUMIFS(Datenblatt!$M:$M, Datenblatt!$G:$G,$C14, Datenblatt!$R:$R,">="&AA$8,Datenblatt!$R:$R,"<="&EOMONTH(AA$8,0)) - SUMIFS(Datenblatt!$M:$M, Datenblatt!$E:$E,$C14, Datenblatt!$R:$R,">="&AA$8,Datenblatt!$R:$R,"<="&EOMONTH(AA$8,0)), "") -> 1854.57 | AB14: =IF(ISNUMBER($C14), SUMIFS(Datenblatt!$M:$M, Datenblatt!$G:$G,$C14, Datenblatt!$R:$R,">="&AB$8,Datenblatt!$R:$R,"<="&EOMONTH(AB$8,0)) - SUMIFS(Datenblatt!$M:$M, Datenblatt!$E:$E,$C14, Datenblatt!$R:$R,">="&AB$8,Datenblatt!$R:$R,"<="&EOMONTH(AB$8,0)), "") -> 11402.14 | AC14: =IF(ISNUMBER($C14), SUMIFS(Datenblatt!$M:$M, Datenblatt!$G:$G,$C14, Datenblatt!$R:$R,">="&AC$8,Datenblatt!$R:$R,"<="&EOMONTH(AC$8,0)) - SUMIFS(Datenblatt!$M:$M, Datenblatt!$E:$E,$C14, Datenblatt!$R:$R,">="&AC$8,Datenblatt!$R:$R,"<="&EOMONTH(AC$8,0)), "") -> 4723.06 | AD14: =IF(ISNUMBER($C14), SUMIFS(Datenblatt!$M:$M, Datenblatt!$G:$G,$C14, Datenblatt!$R:$R,">="&AD$8,Datenblatt!$R:$R,"<="&EOMONTH(AD$8,0)) - SUMIFS(Datenblatt!$M:$M, Datenblatt!$E:$E,$C14, Datenblatt!$R:$R,">="&AD$8,Datenblatt!$R:$R,"<="&EOMONTH(AD$8,0)), "") -> 1447.31 | AE14: =IF(ISNUMBER($C14), SUMIFS(Datenblatt!$M:$M, Datenblatt!$G:$G,$C14, Datenblatt!$R:$R,">="&AE$8,Datenblatt!$R:$R,"<="&EOMONTH(AE$8,0)) - SUMIFS(Datenblatt!$M:$M, Datenblatt!$E:$E,$C14, Datenblatt!$R:$R,">="&AE$8,Datenblatt!$R:$R,"<="&EOMONTH(AE$8,0)), "") -> 0 | AF14: =IF(ISNUMBER($C14), SUMIFS(Datenblatt!$M:$M, Datenblatt!$G:$G,$C14, Datenblatt!$R:$R,">="&AF$8,Datenblatt!$R:$R,"<="&EOMONTH(AF$8,0)) - SUMIFS(Datenblatt!$M:$M, Datenblatt!$E:$E,$C14, Datenblatt!$R:$R,">="&AF$8,Datenblatt!$R:$R,"<="&EOMONTH(AF$8,0)), "") -> 0 | AG14: =IF(ISNUMBER($C14), SUMIFS(Datenblatt!$M:$M, Datenblatt!$G:$G,$C14, Datenblatt!$R:$R,">="&AG$8,Datenblatt!$R:$R,"<="&EOMONTH(AG$8,0)) - SUMIFS(Datenblatt!$M:$M, Datenblatt!$E:$E,$C14, Datenblatt!$R:$R,">="&AG$8,Datenblatt!$R:$R,"<="&EOMONTH(AG$8,0)), "") -> 5379.24 | AH14: =IF(ISNUMBER($C14), SUMIFS(Datenblatt!$M:$M, Datenblatt!$G:$G,$C14, Datenblatt!$R:$R,">="&AH$8,Datenblatt!$R:$R,"<="&EOMONTH(AH$8,0)) - SUMIFS(Datenblatt!$M:$M, Datenblatt!$E:$E,$C14, Datenblatt!$R:$R,">="&AH$8,Datenblatt!$R:$R,"<="&EOMONTH(AH$8,0)), "") -> 7769.71 | AI14: =IF(ISNUMBER($C14), SUMIFS(Datenblatt!$M:$M, Datenblatt!$G:$G,$C14, Datenblatt!$R:$R,">="&AI$8,Datenblatt!$R:$R,"<="&EOMONTH(AI$8,0)) - SUMIFS(Datenblatt!$M:$M, Datenblatt!$E:$E,$C14, Datenblatt!$R:$R,">="&AI$8,Datenblatt!$R:$R,"<="&EOMONTH(AI$8,0)), "") -> 0 | AJ14: =IF(ISNUMBER($C14), SUMIFS(Datenblatt!$M:$M, Datenblatt!$G:$G,$C14, Datenblatt!$R:$R,">="&AJ$8,Datenblatt!$R:$R,"<="&EOMONTH(AJ$8,0)) - SUMIFS(Datenblatt!$M:$M, Datenblatt!$E:$E,$C14, Datenblatt!$R:$R,">="&AJ$8,Datenblatt!$R:$R,"<="&EOMONTH(AJ$8,0)), "") -> 3481.56 | AK14: =IF(ISNUMBER($C14), SUMIFS(Datenblatt!$M:$M, Datenblatt!$G:$G,$C14, Datenblatt!$R:$R,">="&AK$8,Datenblatt!$R:$R,"<="&EOMONTH(AK$8,0)) - SUMIFS(Datenblatt!$M:$M, Datenblatt!$E:$E,$C14, Datenblatt!$R:$R,">="&AK$8,Datenblatt!$R:$R,"<="&EOMONTH(AK$8,0)), "") -> 3763.82 | AL14: =IF(ISNUMBER($C14), SUMIFS(Datenblatt!$M:$M, Datenblatt!$G:$G,$C14, Datenblatt!$R:$R,">="&AL$8,Datenblatt!$R:$R,"<="&EOMONTH(AL$8,0)) - SUMIFS(Datenblatt!$M:$M, Datenblatt!$E:$E,$C14, Datenblatt!$R:$R,">="&AL$8,Datenblatt!$R:$R,"<="&EOMONTH(AL$8,0)), "") -> 3353.61 | AM14: =IF(ISNUMBER($C14), SUMIFS(Datenblatt!$M:$M, Datenblatt!$G:$G,$C14, Datenblatt!$R:$R,">="&AM$8,Datenblatt!$R:$R,"<="&EOMONTH(AM$8,0)) - SUMIFS(Datenblatt!$M:$M, Datenblatt!$E:$E,$C14, Datenblatt!$R:$R,">="&AM$8,Datenblatt!$R:$R,"<="&EOMONTH(AM$8,0)), "") -> 0 | AN14: =IF(ISNUMBER($C14), SUMIFS(Datenblatt!$M:$M, Datenblatt!$G:$G,$C14, Datenblatt!$R:$R,">="&AN$8,Datenblatt!$R:$R,"<="&EOMONTH(AN$8,0)) - SUMIFS(Datenblatt!$M:$M, Datenblatt!$E:$E,$C14, Datenblatt!$R:$R,">="&AN$8,Datenblatt!$R:$R,"<="&EOMONTH(AN$8,0)), "") -> 4796.82 | AO14: =IF(ISNUMBER($C14), SUMIFS(Datenblatt!$M:$M, Datenblatt!$G:$G,$C14, Datenblatt!$R:$R,">="&AO$8,Datenblatt!$R:$R,"<="&EOMONTH(AO$8,0)) - SUMIFS(Datenblatt!$M:$M, Datenblatt!$E:$E,$C14, Datenblatt!$R:$R,">="&AO$8,Datenblatt!$R:$R,"<="&EOMONTH(AO$8,0)), "") -> 0 | AP14: =IF(ISNUMBER($C14), SUMIFS(Datenblatt!$M:$M, Datenblatt!$G:$G,$C14, Datenblatt!$R:$R,">="&AP$8,Datenblatt!$R:$R,"<="&EOMONTH(AP$8,0)) - SUMIFS(Datenblatt!$M:$M, Datenblatt!$E:$E,$C14, Datenblatt!$R:$R,">="&AP$8,Datenblatt!$R:$R,"<="&EOMONTH(AP$8,0)), "") -> 8319.04 | AQ14: =IF(ISNUMBER($C14), SUMIFS(Datenblatt!$M:$M, Datenblatt!$G:$G,$C14, Datenblatt!$R:$R,">="&AQ$8,Datenblatt!$R:$R,"<="&EOMONTH(AQ$8,0)) - SUMIFS(Datenblatt!$M:$M, Datenblatt!$E:$E,$C14, Datenblatt!$R:$R,">="&AQ$8,Datenblatt!$R:$R,"<="&EOMONTH(AQ$8,0)), "") -> 3775.6 | AR14: =IF(ISNUMBER($C14), SUMIFS(Datenblatt!$M:$M, Datenblatt!$G:$G,$C14, Datenblatt!$R:$R,">="&AR$8,Datenblatt!$R:$R,"<="&EOMONTH(AR$8,0)) - SUMIFS(Datenblatt!$M:$M, Datenblatt!$E:$E,$C14, Datenblatt!$R:$R,">="&AR$8,Datenblatt!$R:$R,"<="&EOMONTH(AR$8,0)), "") -> 1729.2 | AS14: =IF(ISNUMBER($C14), SUMIFS(Datenblatt!$M:$M, Datenblatt!$G:$G,$C14, Datenblatt!$R:$R,">="&AS$8,Datenblatt!$R:$R,"<="&EOMONTH(AS$8,0)) - SUMIFS(Datenblatt!$M:$M, Datenblatt!$E:$E,$C14, Datenblatt!$R:$R,">="&AS$8,Datenblatt!$R:$R,"<="&EOMONTH(AS$8,0)), "") -> 0 | AT14: =IF(ISNUMBER($C14), SUMIFS(Datenblatt!$M:$M, Datenblatt!$G:$G,$C14, Datenblatt!$R:$R,">="&AT$8,Datenblatt!$R:$R,"<="&EOMONTH(AT$8,0)) - SUMIFS(Datenblatt!$M:$M, Datenblatt!$E:$E,$C14, Datenblatt!$R:$R,">="&AT$8,Datenblatt!$R:$R,"<="&EOMONTH(AT$8,0)), "") -> 3345.52 | AU14: =IF(ISNUMBER($C14), SUMIFS(Datenblatt!$M:$M, Datenblatt!$G:$G,$C14, Datenblatt!$R:$R,">="&AU$8,Datenblatt!$R:$R,"<="&EOMONTH(AU$8,0)) - SUMIFS(Datenblatt!$M:$M, Datenblatt!$E:$E,$C14, Datenblatt!$R:$R,">="&AU$8,Datenblatt!$R:$R,"<="&EOMONTH(AU$8,0)), "") -> 0 | AV14: =IF(ISNUMBER($C14), SUMIFS(Datenblatt!$M:$M, Datenblatt!$G:$G,$C14, Datenblatt!$R:$R,">="&AV$8,Datenblatt!$R:$R,"<="&EOMONTH(AV$8,0)) - SUMIFS(Datenblatt!$M:$M, Datenblatt!$E:$E,$C14, Datenblatt!$R:$R,">="&AV$8,Datenblatt!$R:$R,"<="&EOMONTH(AV$8,0)), "") -> 5913.75 | AW14: =IF(ISNUMBER($C14), SUMIFS(Datenblatt!$M:$M, Datenblatt!$G:$G,$C14, Datenblatt!$R:$R,">="&AW$8,Datenblatt!$R:$R,"<="&EOMONTH(AW$8,0)) - SUMIFS(Datenblatt!$M:$M, Datenblatt!$E:$E,$C14, Datenblatt!$R:$R,">="&AW$8,Datenblatt!$R:$R,"<="&EOMONTH(AW$8,0)), "") -> 2336.79 | AX14: =IF(ISNUMBER($C14), SUMIFS(Datenblatt!$M:$M, Datenblatt!$G:$G,$C14, Datenblatt!$R:$R,">="&AX$8,Datenblatt!$R:$R,"<="&EOMONTH(AX$8,0)) - SUMIFS(Datenblatt!$M:$M, Datenblatt!$E:$E,$C14, Datenblatt!$R:$R,">="&AX$8,Datenblatt!$R:$R,"<="&EOMONTH(AX$8,0)), "") -> 0 | AY14: =IF(ISNUMBER($C14), SUMIFS(Datenblatt!$M:$M, Datenblatt!$G:$G,$C14, Datenblatt!$R:$R,">="&AY$8,Datenblatt!$R:$R,"<="&EOMONTH(AY$8,0)) - SUMIFS(Datenblatt!$M:$M, Datenblatt!$E:$E,$C14, Datenblatt!$R:$R,">="&AY$8,Datenblatt!$R:$R,"<="&EOMONTH(AY$8,0)), "") -> 0 | AZ14: =IF(ISNUMBER($C14), SUMIFS(Datenblatt!$M:$M, Datenblatt!$G:$G,$C14, Datenblatt!$R:$R,">="&AZ$8,Datenblatt!$R:$R,"<="&EOMONTH(AZ$8,0)) - SUMIFS(Datenblatt!$M:$M, Datenblatt!$E:$E,$C14, Datenblatt!$R:$R,">="&AZ$8,Datenblatt!$R:$R,"<="&EOMONTH(AZ$8,0)), "") -> 0 | BA14: =IF(ISNUMBER($C14), SUMIFS(Datenblatt!$M:$M, Datenblatt!$G:$G,$C14, Datenblatt!$R:$R,">="&BA$8,Datenblatt!$R:$R,"<="&EOMONTH(BA$8,0)) - SUMIFS(Datenblatt!$M:$M, Datenblatt!$E:$E,$C14, Datenblatt!$R:$R,">="&BA$8,Datenblatt!$R:$R,"<="&EOMONTH(BA$8,0)), "") -> 5298.11 | BB14: =IF(ISNUMBER($C14), SUMIFS(Datenblatt!$M:$M, Datenblatt!$G:$G,$C14, Datenblatt!$R:$R,">="&BB$8,Datenblatt!$R:$R,"<="&EOMONTH(BB$8,0)) - SUMIFS(Datenblatt!$M:$M, Datenblatt!$E:$E,$C14, Datenblatt!$R:$R,">="&BB$8,Datenblatt!$R:$R,"<="&EOMONTH(BB$8,0)), "") -> 0 | BC14: =IF(ISNUMBER($C14), SUMIFS(Datenblatt!$M:$M, Datenblatt!$G:$G,$C14, Datenblatt!$R:$R,">="&BC$8,Datenblatt!$R:$R,"<="&EOMONTH(BC$8,0)) - SUMIFS(Datenblatt!$M:$M, Datenblatt!$E:$E,$C14, Datenblatt!$R:$R,">="&BC$8,Datenblatt!$R:$R,"<="&EOMONTH(BC$8,0)), "") -> 3279.1 | BD14: =IF(ISNUMBER($C14), SUMIFS(Datenblatt!$M:$M, Datenblatt!$G:$G,$C14, Datenblatt!$R:$R,">="&BD$8,Datenblatt!$R:$R,"<="&EOMONTH(BD$8,0)) - SUMIFS(Datenblatt!$M:$M, Datenblatt!$E:$E,$C14, Datenblatt!$R:$R,">="&BD$8,Datenblatt!$R:$R,"<="&EOMONTH(BD$8,0)), "") -> 0 | BE14: =IF(ISNUMBER($C14), SUMIFS(Datenblatt!$M:$M, Datenblatt!$G:$G,$C14, Datenblatt!$R:$R,">="&BE$8,Datenblatt!$R:$R,"<="&EOMONTH(BE$8,0)) - SUMIFS(Datenblatt!$M:$M, Datenblatt!$E:$E,$C14, Datenblatt!$R:$R,">="&BE$8,Datenblatt!$R:$R,"<="&EOMONTH(BE$8,0)), "") -> 4476.1 | BF14: =IF(ISNUMBER($C14), SUMIFS(Datenblatt!$M:$M, Datenblatt!$G:$G,$C14, Datenblatt!$R:$R,">="&BF$8,Datenblatt!$R:$R,"<="&EOMONTH(BF$8,0)) - SUMIFS(Datenblatt!$M:$M, Datenblatt!$E:$E,$C14, Datenblatt!$R:$R,">="&BF$8,Datenblatt!$R:$R,"<="&EOMONTH(BF$8,0)), "") -> 13703.48 | BG14: =IF(ISNUMBER($C14), SUMIFS(Datenblatt!$M:$M, Datenblatt!$G:$G,$C14, Datenblatt!$R:$R,">="&BG$8,Datenblatt!$R:$R,"<="&EOMONTH(BG$8,0)) - SUMIFS(Datenblatt!$M:$M, Datenblatt!$E:$E,$C14, Datenblatt!$R:$R,">="&BG$8,Datenblatt!$R:$R,"<="&EOMONTH(BG$8,0)), "") -> 0 | BH14: =IF(ISNUMBER($C14), SUMIFS(Datenblatt!$M:$M, Datenblatt!$G:$G,$C14, Datenblatt!$R:$R,">="&BH$8,Datenblatt!$R:$R,"<="&EOMONTH(BH$8,0)) - SUMIFS(Datenblatt!$M:$M, Datenblatt!$E:$E,$C14, Datenblatt!$R:$R,">="&BH$8,Datenblatt!$R:$R,"<="&EOMONTH(BH$8,0)), "") -> 0 | BI14: =IF(ISNUMBER($C14), SUMIFS(Datenblatt!$M:$M, Datenblatt!$G:$G,$C14, Datenblatt!$R:$R,">="&BI$8,Datenblatt!$R:$R,"<="&EOMONTH(BI$8,0)) - SUMIFS(Datenblatt!$M:$M, Datenblatt!$E:$E,$C14, Datenblatt!$R:$R,">="&BI$8,Datenblatt!$R:$R,"<="&EOMONTH(BI$8,0)), "") -> 4833.1 | BJ14: =IF(ISNUMBER($C14), SUMIFS(Datenblatt!$M:$M, Datenblatt!$G:$G,$C14, Datenblatt!$R:$R,">="&BJ$8,Datenblatt!$R:$R,"<="&EOMONTH(BJ$8,0)) - SUMIFS(Datenblatt!$M:$M, Datenblatt!$E:$E,$C14, Datenblatt!$R:$R,">="&BJ$8,Datenblatt!$R:$R,"<="&EOMONTH(BJ$8,0)), "") -> 4606.63 | BK14: =IF(ISNUMBER($C14), SUMIFS(Datenblatt!$M:$M, Datenblatt!$G:$G,$C14, Datenblatt!$R:$R,">="&BK$8,Datenblatt!$R:$R,"<="&EOMONTH(BK$8,0)) - SUMIFS(Datenblatt!$M:$M, Datenblatt!$E:$E,$C14, Datenblatt!$R:$R,">="&BK$8,Datenblatt!$R:$R,"<="&EOMONTH(BK$8,0)), "") -> 0 | BL14: =IF(ISNUMBER($C14), SUMIFS(Datenblatt!$M:$M, Datenblatt!$G:$G,$C14, Datenblatt!$R:$R,">="&BL$8,Datenblatt!$R:$R,"<="&EOMONTH(BL$8,0)) - SUMIFS(Datenblatt!$M:$M, Datenblatt!$E:$E,$C14, Datenblatt!$R:$R,">="&BL$8,Datenblatt!$R:$R,"<="&EOMONTH(BL$8,0)), "") -> 0 | BM14: =IF(ISNUMBER($C14), SUMIFS(Datenblatt!$M:$M, Datenblatt!$G:$G,$C14, Datenblatt!$R:$R,">="&BM$8,Datenblatt!$R:$R,"<="&EOMONTH(BM$8,0)) - SUMIFS(Datenblatt!$M:$M, Datenblatt!$E:$E,$C14, Datenblatt!$R:$R,">="&BM$8,Datenblatt!$R:$R,"<="&EOMONTH(BM$8,0)), "") -> 4627.64 | BN14: =IF(ISNUMBER($C14), SUMIFS(Datenblatt!$M:$M, Datenblatt!$G:$G,$C14, Datenblatt!$R:$R,">="&BN$8,Datenblatt!$R:$R,"<="&EOMONTH(BN$8,0)) - SUMIFS(Datenblatt!$M:$M, Datenblatt!$E:$E,$C14, Datenblatt!$R:$R,">="&BN$8,Datenblatt!$R:$R,"<="&EOMONTH(BN$8,0)), "") -> 2771.55 | BO14: =IF(ISNUMBER($C14), SUMIFS(Datenblatt!$M:$M, Datenblatt!$G:$G,$C14, Datenblatt!$R:$R,">="&BO$8,Datenblatt!$R:$R,"<="&EOMONTH(BO$8,0)) - SUMIFS(Datenblatt!$M:$M, Datenblatt!$E:$E,$C14, Datenblatt!$R:$R,">="&BO$8,Datenblatt!$R:$R,"<="&EOMONTH(BO$8,0)), "") -> 0 | BP14: =IF(ISNUMBER($C14), SUMIFS(Datenblatt!$M:$M, Datenblatt!$G:$G,$C14, Datenblatt!$R:$R,">="&BP$8,Datenblatt!$R:$R,"<="&EOMONTH(BP$8,0)) - SUMIFS(Datenblatt!$M:$M, Datenblatt!$E:$E,$C14, Datenblatt!$R:$R,">="&BP$8,Datenblatt!$R:$R,"<="&EOMONTH(BP$8,0)), "") -> 0 | BQ14: =IF(ISNUMBER($C14), SUMIFS(Datenblatt!$M:$M, Datenblatt!$G:$G,$C14, Datenblatt!$R:$R,">="&BQ$8,Datenblatt!$R:$R,"<="&EOMONTH(BQ$8,0)) - SUMIFS(Datenblatt!$M:$M, Datenblatt!$E:$E,$C14, Datenblatt!$R:$R,">="&BQ$8,Datenblatt!$R:$R,"<="&EOMONTH(BQ$8,0)), "") -> 11379.02 | BR14: =IF(ISNUMBER($C14), SUMIFS(Datenblatt!$M:$M, Datenblatt!$G:$G,$C14, Datenblatt!$R:$R,">="&BR$8,Datenblatt!$R:$R,"<="&EOMONTH(BR$8,0)) - SUMIFS(Datenblatt!$M:$M, Datenblatt!$E:$E,$C14, Datenblatt!$R:$R,">="&BR$8,Datenblatt!$R:$R,"<="&EOMONTH(BR$8,0)), "") -> 1531.22 | BS14: =IF(ISNUMBER($C14), SUMIFS(Datenblatt!$M:$M, Datenblatt!$G:$G,$C14, Datenblatt!$R:$R,">="&BS$8,Datenblatt!$R:$R,"<="&EOMONTH(BS$8,0)) - SUMIFS(Datenblatt!$M:$M, Datenblatt!$E:$E,$C14, Datenblatt!$R:$R,">="&BS$8,Datenblatt!$R:$R,"<="&EOMONTH(BS$8,0)), "") -> 0 | BT14: =IF(ISNUMBER($C14), SUMIFS(Datenblatt!$M:$M, Datenblatt!$G:$G,$C14, Datenblatt!$R:$R,">="&BT$8,Datenblatt!$R:$R,"<="&EOMONTH(BT$8,0)) - SUMIFS(Datenblatt!$M:$M, Datenblatt!$E:$E,$C14, Datenblatt!$R:$R,">="&BT$8,Datenblatt!$R:$R,"<="&EOMONTH(BT$8,0)), "") -> 0 | BU14: =IF(ISNUMBER($C14), SUMIFS(Datenblatt!$M:$M, Datenblatt!$G:$G,$C14, Datenblatt!$R:$R,">="&BU$8,Datenblatt!$R:$R,"<="&EOMONTH(BU$8,0)) - SUMIFS(Datenblatt!$M:$M, Datenblatt!$E:$E,$C14, Datenblatt!$R:$R,">="&BU$8,Datenblatt!$R:$R,"<="&EOMONTH(BU$8,0)), "") -> 383.27 | BV14: =IF(ISNUMBER($C14), SUMIFS(Datenblatt!$M:$M, Datenblatt!$G:$G,$C14, Datenblatt!$R:$R,">="&BV$8,Datenblatt!$R:$R,"<="&EOMONTH(BV$8,0)) - SUMIFS(Datenblatt!$M:$M, Datenblatt!$E:$E,$C14, Datenblatt!$R:$R,">="&BV$8,Datenblatt!$R:$R,"<="&EOMONTH(BV$8,0)), "") -> 117.23 | BW14: =IF(ISNUMBER($C14), SUMIFS(Datenblatt!$M:$M, Datenblatt!$G:$G,$C14, Datenblatt!$R:$R,">="&BW$8,Datenblatt!$R:$R,"<="&EOMONTH(BW$8,0)) - SUMIFS(Datenblatt!$M:$M, Datenblatt!$E:$E,$C14, Datenblatt!$R:$R,">="&BW$8,Datenblatt!$R:$R,"<="&EOMONTH(BW$8,0)), "") -> 0 | BX14: =IF(ISNUMBER($C14), SUMIFS(Datenblatt!$M:$M, Datenblatt!$G:$G,$C14, Datenblatt!$R:$R,">="&BX$8,Datenblatt!$R:$R,"<="&EOMONTH(BX$8,0)) - SUMIFS(Datenblatt!$M:$M, Datenblatt!$E:$E,$C14, Datenblatt!$R:$R,">="&BX$8,Datenblatt!$R:$R,"<="&EOMONTH(BX$8,0)), "") -> 4566.42 | BY14: =IF(ISNUMBER($C14), SUMIFS(Datenblatt!$M:$M, Datenblatt!$G:$G,$C14, Datenblatt!$R:$R,">="&BY$8,Datenblatt!$R:$R,"<="&EOMONTH(BY$8,0)) - SUMIFS(Datenblatt!$M:$M, Datenblatt!$E:$E,$C14, Datenblatt!$R:$R,">="&BY$8,Datenblatt!$R:$R,"<="&EOMONTH(BY$8,0)), "") -> 4566.42 | BZ14: =IF(ISNUMBER($C14), SUMIFS(Datenblatt!$M:$M, Datenblatt!$G:$G,$C14, Datenblatt!$R:$R,">="&BZ$8,Datenblatt!$R:$R,"<="&EOMONTH(BZ$8,0)) - SUMIFS(Datenblatt!$M:$M, Datenblatt!$E:$E,$C14, Datenblatt!$R:$R,">="&BZ$8,Datenblatt!$R:$R,"<="&EOMONTH(BZ$8,0)), "") -> 0 | CA14: =IF(ISNUMBER($C14), SUMIFS(Datenblatt!$M:$M, Datenblatt!$G:$G,$C14, Datenblatt!$R:$R,">="&CA$8,Datenblatt!$R:$R,"<="&EOMONTH(CA$8,0)) - SUMIFS(Datenblatt!$M:$M, Datenblatt!$E:$E,$C14, Datenblatt!$R:$R,">="&CA$8,Datenblatt!$R:$R,"<="&EOMONTH(CA$8,0)), "") -> 4816.61 | CB14: =IF(ISNUMBER($C14), SUMIFS(Datenblatt!$M:$M, Datenblatt!$G:$G,$C14, Datenblatt!$R:$R,">="&CB$8,Datenblatt!$R:$R,"<="&EOMONTH(CB$8,0)) - SUMIFS(Datenblatt!$M:$M, Datenblatt!$E:$E,$C14, Datenblatt!$R:$R,">="&CB$8,Datenblatt!$R:$R,"<="&EOMONTH(CB$8,0)), "") -> 6909.42 | CC14: =IF(ISNUMBER($C14), SUMIFS(Datenblatt!$M:$M, Datenblatt!$G:$G,$C14, Datenblatt!$R:$R,">="&CC$8,Datenblatt!$R:$R,"<="&EOMONTH(CC$8,0)) - SUMIFS(Datenblatt!$M:$M, Datenblatt!$E:$E,$C14, Datenblatt!$R:$R,">="&CC$8,Datenblatt!$R:$R,"<="&EOMONTH(CC$8,0)), "") -> 5361.08 | CD14: =IF(ISNUMBER($C14), SUMIFS(Datenblatt!$M:$M, Datenblatt!$G:$G,$C14, Datenblatt!$R:$R,">="&CD$8,Datenblatt!$R:$R,"<="&EOMONTH(CD$8,0)) - SUMIFS(Datenblatt!$M:$M, Datenblatt!$E:$E,$C14, Datenblatt!$R:$R,">="&CD$8,Datenblatt!$R:$R,"<="&EOMONTH(CD$8,0)), "") -> 0 | CE14: =IF(ISNUMBER($C14), SUMIFS(Datenblatt!$M:$M, Datenblatt!$G:$G,$C14, Datenblatt!$R:$R,">="&CE$8,Datenblatt!$R:$R,"<="&EOMONTH(CE$8,0)) - SUMIFS(Datenblatt!$M:$M, Datenblatt!$E:$E,$C14, Datenblatt!$R:$R,">="&CE$8,Datenblatt!$R:$R,"<="&EOMONTH(CE$8,0)), "") -> 0 | CF14: =IF(ISNUMBER($C14), SUMIFS(Datenblatt!$M:$M, Datenblatt!$G:$G,$C14, Datenblatt!$R:$R,">="&CF$8,Datenblatt!$R:$R,"<="&EOMONTH(CF$8,0)) - SUMIFS(Datenblatt!$M:$M, Datenblatt!$E:$E,$C14, Datenblatt!$R:$R,">="&CF$8,Datenblatt!$R:$R,"<="&EOMONTH(CF$8,0)), "") -> 5033.37 | CG14: =IF(ISNUMBER($C14), SUMIFS(Datenblatt!$M:$M, Datenblatt!$G:$G,$C14, Datenblatt!$R:$R,">="&CG$8,Datenblatt!$R:$R,"<="&EOMONTH(CG$8,0)) - SUMIFS(Datenblatt!$M:$M, Datenblatt!$E:$E,$C14, Datenblatt!$R:$R,">="&CG$8,Datenblatt!$R:$R,"<="&EOMONTH(CG$8,0)), "") -> 0 | CH14: =IF(ISNUMBER($C14), SUMIFS(Datenblatt!$M:$M, Datenblatt!$G:$G,$C14, Datenblatt!$R:$R,">="&CH$8,Datenblatt!$R:$R,"<="&EOMONTH(CH$8,0)) - SUMIFS(Datenblatt!$M:$M, Datenblatt!$E:$E,$C14, Datenblatt!$R:$R,">="&CH$8,Datenblatt!$R:$R,"<="&EOMONTH(CH$8,0)), "") -> 2247.33 | CI14: =IF(ISNUMBER($C14), SUMIFS(Datenblatt!$M:$M, Datenblatt!$G:$G,$C14, Datenblatt!$R:$R,">="&CI$8,Datenblatt!$R:$R,"<="&EOMONTH(CI$8,0)) - SUMIFS(Datenblatt!$M:$M, Datenblatt!$E:$E,$C14, Datenblatt!$R:$R,">="&CI$8,Datenblatt!$R:$R,"<="&EOMONTH(CI$8,0)), "") -> 0 | CJ14: =IF(ISNUMBER($C14), SUMIFS(Datenblatt!$M:$M, Datenblatt!$G:$G,$C14, Datenblatt!$R:$R,">="&CJ$8,Datenblatt!$R:$R,"<="&EOMONTH(CJ$8,0)) - SUMIFS(Datenblatt!$M:$M, Datenblatt!$E:$E,$C14, Datenblatt!$R:$R,">="&CJ$8,Datenblatt!$R:$R,"<="&EOMONTH(CJ$8,0)), "") -> 0 | CK14: =IF(ISNUMBER($C14), SUMIFS(Datenblatt!$M:$M, Datenblatt!$G:$G,$C14, Datenblatt!$R:$R,">="&CK$8,Datenblatt!$R:$R,"<="&EOMONTH(CK$8,0)) - SUMIFS(Datenblatt!$M:$M, Datenblatt!$E:$E,$C14, Datenblatt!$R:$R,">="&CK$8,Datenblatt!$R:$R,"<="&EOMONTH(CK$8,0)), "") -> 0 | CL14: =IF(ISNUMBER($C14), SUMIFS(Datenblatt!$M:$M, Datenblatt!$G:$G,$C14, Datenblatt!$R:$R,">="&CL$8,Datenblatt!$R:$R,"<="&EOMONTH(CL$8,0)) - SUMIFS(Datenblatt!$M:$M, Datenblatt!$E:$E,$C14, Datenblatt!$R:$R,">="&CL$8,Datenblatt!$R:$R,"<="&EOMONTH(CL$8,0)), "") -> 0 | CM14: =IF(ISNUMBER($C14), SUMIFS(Datenblatt!$M:$M, Datenblatt!$G:$G,$C14, Datenblatt!$R:$R,">="&CM$8,Datenblatt!$R:$R,"<="&EOMONTH(CM$8,0)) - SUMIFS(Datenblatt!$M:$M, Datenblatt!$E:$E,$C14, Datenblatt!$R:$R,">="&CM$8,Datenblatt!$R:$R,"<="&EOMONTH(CM$8,0)), "") -> 0 | CN14: =IF(ISNUMBER($C14), SUMIFS(Datenblatt!$M:$M, Datenblatt!$G:$G,$C14, Datenblatt!$R:$R,">="&CN$8,Datenblatt!$R:$R,"<="&EOMONTH(CN$8,0)) - SUMIFS(Datenblatt!$M:$M, Datenblatt!$E:$E,$C14, Datenblatt!$R:$R,">="&CN$8,Datenblatt!$R:$R,"<="&EOMONTH(CN$8,0)), "") -> 0 | CO14: =IF(ISNUMBER($C14), SUMIFS(Datenblatt!$M:$M, Datenblatt!$G:$G,$C14, Datenblatt!$R:$R,">="&CO$8,Datenblatt!$R:$R,"<="&EOMONTH(CO$8,0)) - SUMIFS(Datenblatt!$M:$M, Datenblatt!$E:$E,$C14, Datenblatt!$R:$R,">="&CO$8,Datenblatt!$R:$R,"<="&EOMONTH(CO$8,0)), "") -> 0 | CP14: =IF(ISNUMBER($C14), SUMIFS(Datenblatt!$M:$M, Datenblatt!$G:$G,$C14, Datenblatt!$R:$R,">="&CP$8,Datenblatt!$R:$R,"<="&EOMONTH(CP$8,0)) - SUMIFS(Datenblatt!$M:$M, Datenblatt!$E:$E,$C14, Datenblatt!$R:$R,">="&CP$8,Datenblatt!$R:$R,"<="&EOMONTH(CP$8,0)), "") -> 0 | CQ14: =IF(ISNUMBER($C14), SUMIFS(Datenblatt!$M:$M, Datenblatt!$G:$G,$C14, Datenblatt!$R:$R,">="&CQ$8,Datenblatt!$R:$R,"<="&EOMONTH(CQ$8,0)) - SUMIFS(Datenblatt!$M:$M, Datenblatt!$E:$E,$C14, Datenblatt!$R:$R,">="&CQ$8,Datenblatt!$R:$R,"<="&EOMONTH(CQ$8,0)), "") -> 0 | CR14: =IF(ISNUMBER($C14), SUMIFS(Datenblatt!$M:$M, Datenblatt!$G:$G,$C14, Datenblatt!$R:$R,">="&CR$8,Datenblatt!$R:$R,"<="&EOMONTH(CR$8,0)) - SUMIFS(Datenblatt!$M:$M, Datenblatt!$E:$E,$C14, Datenblatt!$R:$R,">="&CR$8,Datenblatt!$R:$R,"<="&EOMONTH(CR$8,0)), "") -> 0 | CS14: =IF(ISNUMBER($C14), SUMIFS(Datenblatt!$M:$M, Datenblatt!$G:$G,$C14, Datenblatt!$R:$R,">="&CS$8,Datenblatt!$R:$R,"<="&EOMONTH(CS$8,0)) - SUMIFS(Datenblatt!$M:$M, Datenblatt!$E:$E,$C14, Datenblatt!$R:$R,">="&CS$8,Datenblatt!$R:$R,"<="&EOMONTH(CS$8,0)), "") -> 0 | CT14: =IF(ISNUMBER($C14), SUMIFS(Datenblatt!$M:$M, Datenblatt!$G:$G,$C14, Datenblatt!$R:$R,">="&CT$8,Datenblatt!$R:$R,"<="&EOMONTH(CT$8,0)) - SUMIFS(Datenblatt!$M:$M, Datenblatt!$E:$E,$C14, Datenblatt!$R:$R,">="&CT$8,Datenblatt!$R:$R,"<="&EOMONTH(CT$8,0)), "") -> 0 | CU14: =IF(ISNUMBER($C14), SUMIFS(Datenblatt!$M:$M, Datenblatt!$G:$G,$C14, Datenblatt!$R:$R,">="&CU$8,Datenblatt!$R:$R,"<="&EOMONTH(CU$8,0)) - SUMIFS(Datenblatt!$M:$M, Datenblatt!$E:$E,$C14, Datenblatt!$R:$R,">="&CU$8,Datenblatt!$R:$R,"<="&EOMONTH(CU$8,0)), "") -> 0 | CV14: =IF(ISNUMBER($C14), SUMIFS(Datenblatt!$M:$M, Datenblatt!$G:$G,$C14, Datenblatt!$R:$R,">="&CV$8,Datenblatt!$R:$R,"<="&EOMONTH(CV$8,0)) - SUMIFS(Datenblatt!$M:$M, Datenblatt!$E:$E,$C14, Datenblatt!$R:$R,">="&CV$8,Datenblatt!$R:$R,"<="&EOMONTH(CV$8,0)), "") -> 0 | CW14: =IF(ISNUMBER($C14), SUMIFS(Datenblatt!$M:$M, Datenblatt!$G:$G,$C14, Datenblatt!$R:$R,">="&CW$8,Datenblatt!$R:$R,"<="&EOMONTH(CW$8,0)) - SUMIFS(Datenblatt!$M:$M, Datenblatt!$E:$E,$C14, Datenblatt!$R:$R,">="&CW$8,Datenblatt!$R:$R,"<="&EOMONTH(CW$8,0)), "") -> 0 | CX14: =IF(ISNUMBER($C14), SUMIFS(Datenblatt!$M:$M, Datenblatt!$G:$G,$C14, Datenblatt!$R:$R,">="&CX$8,Datenblatt!$R:$R,"<="&EOMONTH(CX$8,0)) - SUMIFS(Datenblatt!$M:$M, Datenblatt!$E:$E,$C14, Datenblatt!$R:$R,">="&CX$8,Datenblatt!$R:$R,"<="&EOMONTH(CX$8,0)), "") -> 0 | CY14: =IF(ISNUMBER($C14), SUMIFS(Datenblatt!$M:$M, Datenblatt!$G:$G,$C14, Datenblatt!$R:$R,">="&CY$8,Datenblatt!$R:$R,"<="&EOMONTH(CY$8,0)) - SUMIFS(Datenblatt!$M:$M, Datenblatt!$E:$E,$C14, Datenblatt!$R:$R,">="&CY$8,Datenblatt!$R:$R,"<="&EOMONTH(CY$8,0)), "") -> 0 | CZ14: =IF(ISNUMBER($C14), SUMIFS(Datenblatt!$M:$M, Datenblatt!$G:$G,$C14, Datenblatt!$R:$R,">="&CZ$8,Datenblatt!$R:$R,"<="&EOMONTH(CZ$8,0)) - SUMIFS(Datenblatt!$M:$M, Datenblatt!$E:$E,$C14, Datenblatt!$R:$R,">="&CZ$8,Datenblatt!$R:$R,"<="&EOMONTH(CZ$8,0)), "") -> 0 | DA14: =IF(ISNUMBER($C14), SUMIFS(Datenblatt!$M:$M, Datenblatt!$G:$G,$C14, Datenblatt!$R:$R,">="&DA$8,Datenblatt!$R:$R,"<="&EOMONTH(DA$8,0)) - SUMIFS(Datenblatt!$M:$M, Datenblatt!$E:$E,$C14, Datenblatt!$R:$R,">="&DA$8,Datenblatt!$R:$R,"<="&EOMONTH(DA$8,0)), "") -> 0 | DB14: =IF(ISNUMBER($C14), SUMIFS(Datenblatt!$M:$M, Datenblatt!$G:$G,$C14, Datenblatt!$R:$R,">="&DB$8,Datenblatt!$R:$R,"<="&EOMONTH(DB$8,0)) - SUMIFS(Datenblatt!$M:$M, Datenblatt!$E:$E,$C14, Datenblatt!$R:$R,">="&DB$8,Datenblatt!$R:$R,"<="&EOMONTH(DB$8,0)), "") -> 0 | DC14: =IF(ISNUMBER($C14), SUMIFS(Datenblatt!$M:$M, Datenblatt!$G:$G,$C14, Datenblatt!$R:$R,">="&DC$8,Datenblatt!$R:$R,"<="&EOMONTH(DC$8,0)) - SUMIFS(Datenblatt!$M:$M, Datenblatt!$E:$E,$C14, Datenblatt!$R:$R,">="&DC$8,Datenblatt!$R:$R,"<="&EOMONTH(DC$8,0)), "") -> 0 | DD14: =IF(ISNUMBER($C14), SUMIFS(Datenblatt!$M:$M, Datenblatt!$G:$G,$C14, Datenblatt!$R:$R,">="&DD$8,Datenblatt!$R:$R,"<="&EOMONTH(DD$8,0)) - SUMIFS(Datenblatt!$M:$M, Datenblatt!$E:$E,$C14, Datenblatt!$R:$R,">="&DD$8,Datenblatt!$R:$R,"<="&EOMONTH(DD$8,0)), "") -> 0 | DE14: =IF(ISNUMBER($C14), SUMIFS(Datenblatt!$M:$M, Datenblatt!$G:$G,$C14, Datenblatt!$R:$R,">="&DE$8,Datenblatt!$R:$R,"<="&EOMONTH(DE$8,0)) - SUMIFS(Datenblatt!$M:$M, Datenblatt!$E:$E,$C14, Datenblatt!$R:$R,">="&DE$8,Datenblatt!$R:$R,"<="&EOMONTH(DE$8,0)), "") -> 0 | DF14: =IF(ISNUMBER($C14), SUMIFS(Datenblatt!$M:$M, Datenblatt!$G:$G,$C14, Datenblatt!$R:$R,">="&DF$8,Datenblatt!$R:$R,"<="&EOMONTH(DF$8,0)) - SUMIFS(Datenblatt!$M:$M, Datenblatt!$E:$E,$C14, Datenblatt!$R:$R,">="&DF$8,Datenblatt!$R:$R,"<="&EOMONTH(DF$8,0)), "") -> 0
